Workbook

Sheet INDICE
F1: SUÍÇA
F2: Trocas comerciais com Portugal (PT) 2018-2022 Setores agrícola e agroalimentar, do mar e das florestas
C3: Fonte
D4: Estatísticas do Comércio Internacional | F4: Suíça - Síntese
D5: dados: 2022 definitivos | F5: 1. Evolução da balança comercial
F6: 2. Ranking dos parceiros comerciais de Portugal por país
C7: Data | D7: 2023-08-30T16:15:01.840 | F7: 2A Parceiros comerciais de Portugal - UE vs. Países Terceiros
F8: 3. Principais produtos transacionados (NC a 2 e 4 dígitos)
F9: 3A Principais produtos transacionados (sem mar nem florestas)
F10: 4A Evolução da balança comercial por produto
F11: 5.2. Trocas comerciais por produto (NC 2 dígitos)

Sheet Sintese
A1: Suíça - Síntese (2018-2022)
A3: • As trocas comerciais de bens transacionáveis (excluindo serviços) entre Portugal e Suíça representam um total de 645,2 milhões de € (M€) em exportações e 347 M€ em importações, na média do período 2018-2022, correspondendo a um saldo positivo da balança comercial de cerca de 298,2 M€.
A4: • No que respeita aos produtos dos setores agrícola e agroalimentar, mar e florestas, Portugal exportou para Suíça 143,4 M€ em média anual, no mesmo período (este país ocupa assim a 16ª posição em relação ao total dos países), enquanto as importações totalizaram 4,5 M€ (92ª posição), com um saldo positivo de 138,9 M€. Estes setores representam perto de 22,2% do total de exportações de bens transacionáveis e 1,3% das correspondentes importações.
A5: • Se nos referirmos apenas ao setor agrícola e agroalimentar, as exportações representam, em média, 92 M€ (14ª posição) e as importações 3 milhões (83ª posição), ou seja, Portugal tem um saldo positivo de 89 M€. Estes valores representam, respetivamente, cerca de 64,2% das exportações do setor agroflorestal e mar e 66,5% das importações.
A6: • As principais exportações agrícolas e agroalimentares (NC 4 dígitos) neste período são Vinhos de uvas frescas (36%), Cervejas de malte (12%) e Águas com açúcar ou outros produtos; outras bebidas (5%). As importações agrícolas e agroalimentares mais relevantes referem-se a Outras preparações alimentícias (29%), Chocolate e outras preparações com cacau (13%) e Preparações para caldos e sopas (8%). Se considerarmos também os produtos do mar e da floresta, merecem particular destaque, em termos de exportações, Vinhos de uvas frescas (23%), Papel e cartão p/ escrita, etc. (10%) e Cervejas de malte (8%). Nas importações destes setores, destacam-se Outras preparações alimentícias (19%), Chocolate e outras preparações com cacau (8%) e Embalagens de papel, cartão etc. (7%).
A9: Saldo da Balança Comercial | B9: 2018 | C9: 2019 | D9: 2020 | E9: 2021 | F9: 2022 | G9: média 2018-2022 | J9: Posição entre os parceiros comerciais de Portugal (milhares de euros)
A10: Total de Bens Transacionáveis* | B10: 276256.063 | C10: 2820-01-17T20:57:07.200 | D10: 332049.913 | E10: 260651.989 | F10: 2683-01-17T20:26:52.800 | G10: 298200.738 | J10: AA + M + F | K10: Posição | L10: média 2018-2022 | M10: % do total | N10: TVMA* 2018-2022 | O10: TVT* 2018-2022
A11: Agrícola e Agroalimentar (AA) | B11: 70684.462 | C11: 2107-06-02T08:57:07.200 | D11: 93004.395 | E11: 98481.32 | F11: 2193-01-20T10:50:52.800 | G11: 88993.6004 | J11: Exportações | K11: 16ª | L11: 143369.888 | M11: 0.01106267771 | N11: 0.08955517499 | O11: 0.409278775
A12: Mar (M) | B12: 14537.529 | C12: 14217.921 | D12: 17065.688 | E12: 17702.836 | F12: 18584.276 | G12: 16421.65 | J12: Importações | K12: 92ª | L12: 4511.0854 | M12: 0.0003016750651 | N12: -0.07850637123 | O12: -0.278943415
A13: Florestas (F) | B13: 33423.175 | C13: 1983-10-22T04:32:09.600 | D13: 28554.142 | E13: 29043.044 | F13: 2024-10-21T05:03:50.400 | G13: 33443.5522 | J13: AA
A14: AA + M + F | B14: 118645.166 | C14: 2230-02-26T11:35:31.200 | D14: 138624.225 | E14: 145227.2 | F14: 2368-09-30T22:32:09.600 | G14: 138858.8026 | J14: Exportações | K14: 14ª | L14: 91992.068 | M14: 0.01301351614 | N14: 0.1014057062 | O14: 0.4715983376
J15: Importações | K15: 83ª | L15: 2998.4676 | M15: 0.0002939360284 | N15: -0.07124624004 | O15: -0.3089604167
A16: milhares de euros *exclui serviços | K16: *TVMA - Taxa de variação média anual; TVT - Taxa de variação total
A18: Evolução das trocas comerciais Portugal-Suíça em milhares de euros (2018-2022)
E27: Exportações | G27: Importações | I27: Saldo
A28: Principais produtos agrícolas e agroalimentares, do mar e da floresta transacionados (NC 4 dígitos)
A47: Principais produtos agrícolas e agroalimentares transacionados (NC 4 dígitos)
A81: Fonte: GPP a partir de dados INE/Comércio Internacional (2022 definitivos) | N81: 2023-08-30T16:15:01.840

Sheet 1
A1: Evolução da balança comercial Portugal-Suíça 2018-2022 em milhões de euros
A3: Total de Bens Transacionáveis (BT)(1) | B3: 2018 | C3: 2019 | D3: 2020 | E3: 2021 | F3: 2022 | G3: média quinquénio | H3: var. 18/19 | I3: var. 19/20 | J3: var. 20/21 | K3: var. 21/22 | L3: TVMA* 2018-2022 | M3: TVT* 2018-2022
A4: Exportações | B4: 576.052522 | C4: 622.519127 | D4: 656.929923 | E4: 636.112349 | F4: 734.436139 | G4: 645.210012 | H4: 0.08066383398 | I4: 0.05527668871 | J4: -0.03168918521 | K4: 0.1545698494 | L4: 0.06260777461 | M4: 0.2749464866
A5: Importações | B5: 299.796459 | C5: 286.477254 | D5: 324.88001 | E5: 375.46036 | F5: 448.432287 | G5: 347.009274 | H5: -0.04442749272 | I5: 0.1340516759 | J5: 0.1556893267 | K5: 0.1943532121 | L5: 0.1059044199 | M5: 0.4957891381
A6: Saldo (exp-imp) | B6: 276.256063 | C6: 336.041873 | D6: 332.049913 | E6: 260.651989 | F6: 286.003852 | G6: 298.200738
A7: Cobertura (exp/imp) | B7: 1.921478739 | C7: 2.173014151 | D7: 2.022069388 | E7: 1.694219728 | F7: 1.637786039 | G7: 1.859345154
A8: Exp BT Suíça / Exp BT Mundo | B8: 0.009957694131 | C8: 0.01039215235 | D8: 0.01222027133 | E8: 0.009998854046 | F8: 0.009375204635 | G8: 0.01029151859 | L8: Exportações
A9: Imp BT Suíça / Imp BT Mundo | B9: 0.003974011853 | C9: 0.00358198975 | D9: 0.004767441518 | E9: 0.004515691047 | F9: 0.004095803119 | G9: 0.004168845841 | L9: Importações
A10: Exp BT Suíça / Exp TE Mundo | B10: 0.006462065246 | C10: 0.00667430427 | D10: 0.008843280912 | E10: 0.007114975811 | F10: 0.006132987499 | G10: 0.006924979461
A11: Imp BT Suíça / Imp TE Mundo | B11: 0.003399269498 | C11: 0.003103702713 | D11: 0.004134134357 | E11: 0.003930259185 | F11: 0.003567539212 | G11: 0.003612350453
A12: (1) Todos os produtos transacionados entre PT e Suíça (exclui serviços) | D12: TE - Total da Economia (bens e serviços) Fonte: INE/Contas Nacionais | H12: *TVMA - Taxa de variação média anual; TVT - Taxa de variação total
A24: Agro(1) + Mar + Florestas (AMF) | B24: 2018 | C24: 2019 | D24: 2020 | E24: 2021 | F24: 2022 | G24: média quinquénio | H24: var. 18/19 | I24: var. 19/20 | J24: var. 20/21 | K24: var. 21/22 | L24: TVMA* 2018-2022 | M24: TVT* 2018-2022
A25: Exportações | B25: 124.464253 | C25: 126.523557 | D25: 141.440288 | E25: 149.016512 | F25: 175.40483 | G25: 143.369888 | H25: 0.01654534495 | I25: 0.1178968672 | J25: 0.05356482306 | K25: 0.1770831812 | L25: 0.08955517499 | M25: 0.409278775
A26: Importações | B26: 5.819087 | C26: 5.935074 | D26: 2.816063 | E26: 3.789312 | F26: 4.195891 | G26: 4.5110854 | H26: 0.01993216462 | I26: -0.5255218385 | J26: 0.3456062595 | K26: 0.1072962585 | L26: -0.07850637123 | M26: -0.278943415
A27: Saldo (exp-imp) | B27: 118.645166 | C27: 120.588483 | D27: 138.624225 | E27: 145.2272 | F27: 171.208939 | G27: 138.8588026
A28: Cobertura (exp/imp) | B28: 21.38896583 | C28: 21.31794094 | D28: 50.22625133 | E28: 39.32547966 | F28: 41.80395296 | G28: 31.78168341
A29: Exp AMF / Exp BT | B29: 0.216064071 | C29: 0.2032444491 | D29: 0.2153049862 | E29: 0.2342613097 | F29: 0.2388292469 | G29: 0.2222065457 | L29: Exportações
A30: Imp AMF / Imp BT | B30: 0.01941012585 | C30: 0.02071743539 | D30: 0.00866800946 | E30: 0.01009244225 | F30: 0.009356799503 | G30: 0.01299989867 | L30: Importações
A31: Exp AMF Suíça / Exp AMF Mundo | B31: 0.01068297618 | C31: 0.01069711065 | D31: 0.01226137015 | E31: 0.01112348287 | F31: 0.01070300982 | G31: 0.01106267771
A32: Imp AMF Suíça / Imp AMF Mundo | B32: 0.0004269135892 | C32: 0.0004290404946 | D32: 0.0002158665606 | E32: 0.0002535570832 | F32: 0.0002172536445 | G32: 0.0003016750651
A33: (1) Produtos agrícolas e agroalimentares | B33: BT - Total de Bens Transacionáveis (exclui serviços) | H33: *TVMA - Taxa de variação média anual; TVT - Taxa de variação total
A45: Agroalimentar (AA)(1) | B45: 2018 | C45: 2019 | D45: 2020 | E45: 2021 | F45: 2022 | G45: média quinquénio | H45: var. 18/19 | I45: var. 19/20 | J45: var. 20/21 | K45: var. 21/22 | L45: TVMA* 2018-2022 | M45: TVT* 2018-2022
A46: Exportações | B46: 74.552608 | C46: 80.551139 | D46: 94.8215 | E46: 100.323599 | F46: 109.711494 | G46: 91.992068 | H46: 0.08046037772 | I46: 0.1771590219 | J46: 0.05802585911 | K46: 0.09357613855 | L46: 0.1014057062 | M46: 0.4715983376
A47: Importações | B47: 3.868146 | C47: 4.791766 | D47: 1.817105 | E47: 1.842279 | F47: 2.673042 | G47: 2.9984676 | H47: 0.238775889 | I47: -0.6207859482 | J47: 0.01385390498 | K47: 0.4509430982 | L47: -0.08825008561 | M47: -0.3089604167
A48: Saldo (exp-imp) | B48: 70.684462 | C48: 75.759373 | D48: 93.004395 | E48: 98.48132 | F48: 107.038452 | G48: 88.9936004
A49: Cobertura (exp/imp) | B49: 19.27347313 | C49: 16.810324 | D49: 52.18273022 | E49: 54.45624631 | F49: 41.04368506 | G49: 30.67969385
A50: Exp AA / Exp AMF | B50: 0.5989881127 | C50: 0.6366493395 | D50: 0.6703995116 | E50: 0.6732381375 | F50: 0.6254759005 | G50: 0.6416414861 | L50: Exportações
A51: Imp AA / Imp AMF | B51: 0.6647341757 | C51: 0.8073641542 | D51: 0.6452643282 | E51: 0.4861777019 | F51: 0.6370618303 | G51: 0.6646887244 | L51: Importações
A52: Exp AA / Exp BT | B52: 0.1294198101 | C52: 0.1293954443 | D52: 0.1443403576 | E52: 0.1577136478 | F52: 0.1493819383 | G52: 0.1425769382
A53: Imp AA / Imp BT | B53: 0.01290257401 | C53: 0.0167265147 | D53: 0.005593157301 | E53: 0.004906720379 | F53: 0.005960859817 | G53: 0.008640886065
A54: Exp AA Suíça / Exp AA Mundo | B54: 0.0122079764 | C54: 0.01280284475 | D54: 0.01432980659 | E54: 0.01346299702 | F54: 0.01235852227 | G54: 0.01301351614
A55: Imp AA Suíça / Imp AA Mundo | B55: 0.0004252636861 | C55: 0.0005142994935 | D55: 0.0002000236408 | E55: 0.000179369786 | F55: 0.0002019340822 | G55: 0.0002939360284
A56: (1) Produtos agrícolas e agroalimentares | B56: AMF - Agroalimentar, Mar e Florestas; BT - Total de Bens Transacionáveis (exclui serviços) | H56: *TVMA - Taxa de variação média anual; TVT - Taxa de variação total
A67: Mar (M) | B67: 2018 | C67: 2019 | D67: 2020 | E67: 2021 | F67: 2022 | G67: média quinquénio | H67: var. 18/19 | I67: var. 19/20 | J67: var. 20/21 | K67: var. 21/22 | L67: TVMA* 2018-2022 | M67: TVT* 2018-2022
A68: Exportações | B68: 14.545878 | C68: 14.217933 | D68: 17.075391 | E68: 17.819315 | F68: 18.610124 | G68: 16.4537282 | H68: -0.02254556239 | I68: 0.200975627 | J68: 0.04356702579 | K68: 0.04437931537 | L68: 0.06353633419 | M68: 0.2794087782
A69: Importações | B69: 0.008349 | C69: 1.2e-05 | D69: 0.009703 | E69: 0.116479 | F69: 0.025848 | G69: 0.0320782 | H69: -0.9985627021 | I69: 807.5833333 | J69: 11.00443162 | K69: -0.7780887542 | L69: 0.3264721036
A70: Saldo (exp-imp) | B70: 14.537529 | C70: 14.217921 | D70: 17.065688 | E70: 17.702836 | F70: 18.584276 | G70: 16.42165
A71: Cobertura (exp/imp) | B71: 1742.229968 | C71: 1184827.75 | D71: 1759.805318 | E71: 152.9830699 | F71: 719.9831322 | G71: 512.9255445
A72: Exp M / Exp AMF | B72: 0.1168679171 | C72: 0.1123738009 | D72: 0.1207250865 | E72: 0.1195794665 | F72: 0.1060981274 | G72: 0.114764184 | L72: Exportações
A73: Imp M / Imp AMF | B73: 0.001434761158 | C73: 2.02187875e-06 | D73: 0.003445590528 | E73: 0.03073882541 | F73: 0.006160312553 | G73: 0.007110971564 | L73: Importações
A74: Exp M / Exp BT | B74: 0.02525095793 | C74: 0.02283935125 | D74: 0.02599271308 | E74: 0.02801284243 | F74: 0.02533933587 | G74: 0.02550135288
A75: Imp M / Imp BT | B75: 2.784889464e-05 | C75: 4.188814237e-08 | D75: 2.986641129e-05 | E75: 0.0003102298203 | F75: 5.764080944e-05 | G75: 9.244190978e-05
A76: Exp M Suíça / Exp M Mundo | B76: 0.01333496837 | C76: 0.01330784992 | D76: 0.01897962238 | E76: 0.0162670175 | F76: 0.01454914219 | G76: 0.01514124979
A77: Imp M Suíça / Imp M Mundo | B77: 3.7877089e-06 | C77: 5.506248522e-09 | D77: 5.04086801e-06 | E77: 5.567684528e-05 | F77: 9.939886494e-06 | G77: 1.45797664e-05
A78: AMF - Agroalimentar, Mar e Florestas; BT - Total de Bens Transacionáveis (exclui serviços) | H78: *TVMA - Taxa de variação média anual; TVT - Taxa de variação total
A90: Florestas (F) | B90: 2018 | C90: 2019 | D90: 2020 | E90: 2021 | F90: 2022 | G90: média quinquénio | H90: var. 18/19 | I90: var. 19/20 | J90: var. 20/21 | K90: var. 21/22 | L90: TVMA* 2018-2022 | M90: TVT* 2018-2022
A91: Exportações | B91: 35.365767 | C91: 31.754485 | D91: 29.543397 | E91: 30.873598 | F91: 47.083212 | G91: 34.9240918 | H91: -0.1021123619 | I91: -0.0696307309 | J91: 0.04502532326 | K91: 0.525031582 | L91: 0.07416438872 | M91: 0.3313216705
A92: Importações | B92: 1.942592 | C92: 1.143296 | D92: 0.989255 | E92: 1.830554 | F92: 1.497001 | G92: 1.4805396 | H92: -0.4114585049 | I92: -0.1347341371 | J92: 0.850436945 | K92: -0.1822142368 | L92: -0.06306357408 | M92: -0.2293796124
A93: Saldo (exp-imp) | B93: 33.423175 | C93: 30.611189 | D93: 28.554142 | E93: 29.043044 | F93: 45.586211 | G93: 33.4435522
A94: Cobertura (exp/imp) | B94: 18.20545282 | C94: 27.77450896 | D94: 29.86428878 | E94: 16.86571278 | F94: 31.45169041 | G94: 23.58875899
A95: Exp F / Exp AMF | B95: 0.2841439702 | C95: 0.2509768596 | D95: 0.2088754019 | E95: 0.207182396 | F95: 0.2684259721 | G95: 0.2435943299 | L95: Exportações
A96: Imp F / Imp AMF | B96: 0.3338310632 | C96: 0.1926338239 | D96: 0.3512900812 | E96: 0.4830834727 | F96: 0.3567778572 | G96: 0.3282003041 | L96: Importações
A97: Exp F / Exp BT | B97: 0.06139330295 | C97: 0.05100965356 | D97: 0.04497191552 | E97: 0.04853481944 | F97: 0.06410797277 | G97: 0.0541282546
A98: Imp F / Imp BT | B98: 0.006479702951 | C98: 0.003990878801 | D98: 0.003044985747 | E98: 0.004875492049 | F98: 0.003338298877 | G98: 0.004266570697
A99: Exp F Suíça / Exp F Mundo | B99: 0.007941963384 | C99: 0.007107443054 | D99: 0.007351503536 | E99: 0.006366555792 | F99: 0.007555257646 | G99: 0.007269588367
A100: Imp F Suíça / Imp F Mundo | B100: 0.0008335568354 | C100: 0.0004892256652 | D100: 0.0004858649895 | E100: 0.0007090462783 | F100: 0.000430705446 | G100: 0.0005801072015
A101: AMF - Agroalimentar, Mar e Florestas; BT - Total de Bens Transacionáveis (exclui serviços) | H101: *TVMA - Taxa de variação média anual; TVT - Taxa de variação total
A111: Fonte: GPP a partir de dados INE/Comércio Internacional (2022 definitivos) | H111: 2023-08-30T16:15:01.840

Sheet 2
A1: Ranking dos parceiros comerciais de Portugal por país (média 2018-2022 em milhares de euros) produtos agrícolas e agroalimentares, do mar e da floresta
A2: Exportações | F2: Importações | K2: Trocas comerciais (total e saldo)
A3: P | B3: País | C3: média quinquénio | D3: % do Total | F3: P | G3: País | H3: média quinquénio | I3: % do Total | K3: P | L3: País | M3: Total (exp+imp) | N3: % do Total | O3: Saldo (exp-imp)
A4: 1 | B4: Espanha | C4: 4148750.739 | D4: 0.3201250482 | F4: 1 | G4: Espanha | H4: 6893783.417 | I4: 0.4610160031 | K4: 1 | L4: Espanha | M4: 11042534.16 | N4: 0.395602026 | O4: -2745032.678
A5: 2 | B5: França | C5: 1358886.663 | D5: 0.1048541322 | F5: 2 | G5: França | H5: 986144.9388 | I5: 0.06594761841 | K5: 2 | L5: França | M5: 2345031.602 | N5: 0.08401144518 | O5: 372741.7244
A6: 3 | B6: Itália | C6: 876413.3826 | D6: 0.06762562854 | F6: 3 | G6: Alemanha | H6: 882996.1958 | I6: 0.05904963245 | K6: 3 | L6: Alemanha | M6: 1518197.709 | N6: 0.05438987836 | O6: -247794.6828
A7: 4 | B7: Alemanha | C7: 635201.513 | D7: 0.04901328804 | F7: 4 | G7: Países Baixos | H7: 837622.6294 | I7: 0.05601531312 | K7: 4 | L7: Países Baixos | M7: 1425039.699 | N7: 0.05105246534 | O7: -250205.5596
A8: 5 | B8: Países Baixos | C8: 587417.0698 | D8: 0.0453261547 | F8: 5 | G8: Brasil | H8: 705232.1134 | I8: 0.04716180804 | K8: 5 | L8: Itália | M8: 1326247.626 | N8: 0.04751321033 | O8: 426579.139
A9: 6 | B9: Estados Unidos | C9: 554009.1122 | D9: 0.04274833677 | F9: 6 | G9: Itália | H9: 449834.2436 | I9: 0.030082289 | K9: 6 | L9: Brasil | M9: 1157937.372 | N9: 0.04148344611 | O9: -252526.8544 | P9: Nota: Nesta listagem, o Reino Unido passa a ser constituído por três componentes: Reino Unido [até 2020] ; Reino Unido (sem Irlanda do Norte) pós-2020 e Reino Unido (Irlanda do Norte) pós-2020. Estas componentes são calculadas igualmente como média do quinquénio, embora a primeira corresponda apenas a 2018-2020 e as duas últimas a 2021-2022.
A10: 7 | B10: Brasil | C10: 452705.259 | D10: 0.03493154976 | F10: 7 | G10: Suécia | H10: 342054.8722 | I10: 0.02287463364 | K10: 7 | L10: Estados Unidos | M10: 835402.1152 | N10: 0.02992852589 | O10: 272616.1092
A11: 8 | B11: Reino Unido | C11: 382822.421 | D11: 0.02953926464 | F11: 8 | G11: Bélgica | H11: 286674.3358 | I11: 0.01917110656 | K11: 8 | L11: Reino Unido | M11: 527725.3878 | N11: 0.01890591685 | O11: 237919.4542
A12: 9 | B12: Angola | C12: 331091.7324 | D12: 0.02554763192 | F12: 9 | G12: Estados Unidos | H12: 281393.003 | I12: 0.01881792184 | K12: 9 | L12: Bélgica | M12: 526747.6872 | N12: 0.01887089044 | O12: -46600.9844
A13: 10 | B13: Reino Unido (sem Irlanda do Norte) pós 2020 | C13: 297693.4518 | D13: 0.02297056069 | F13: 10 | G13: Polónia | H13: 206886.255 | I13: 0.01383534536 | K13: 10 | L13: Polónia | M13: 458140.6776 | N13: 0.0164130242 | O13: 44368.1676
A14: 11 | B14: Polónia | C14: 251254.4226 | D14: 0.0193872419 | F14: 11 | G14: Ucrânia | H14: 195333.6414 | I14: 0.01306277398 | K14: 11 | L14: Suécia | M14: 435988.145 | N14: 0.01561940322 | O14: -248121.5994
A15: 12 | B15: Bélgica | C15: 240073.3514 | D15: 0.01852449039 | F15: 12 | G15: China, República Popular da | H15: 173665.6746 | I15: 0.01161374681 | K15: 12 | L15: China, República Popular da | M15: 367334.7522 | N15: 0.01315987528 | O15: 20003.403
A16: 13 | B16: Israel | C16: 214331.8496 | D16: 0.01653822994 | F16: 13 | G16: África do Sul | H16: 145344.1816 | I16: 0.009719770643 | K16: 13 | L16: Reino Unido (sem Irlanda do Norte) pós 2020 | M16: 358748.5572 | N16: 0.01285227232 | O16: 236638.3464
A17: 14 | B17: China, República Popular da | C17: 193669.0776 | D17: 0.01494385339 | F17: 14 | G17: Reino Unido | H17: 144902.9668 | I17: 0.009690264772 | K17: 14 | L17: Angola | M17: 346515.8172 | N17: 0.01241403082 | O17: 315667.6476
A18: 15 | B18: Turquia | C18: 167223.9134 | D18: 0.01290329709 | F18: 15 | G18: Dinamarca | H18: 144508.7452 | I18: 0.009663901532 | K18: 15 | L18: Dinamarca | M18: 229058.3694 | N18: 0.00820608329 | O18: -59959.121
A19: 16 | B19: Suíça | C19: 143369.888 | D19: 0.01106267771 | F19: 16 | G19: Roménia | H19: 138998.2312 | I19: 0.009295390515 | K19: 16 | L19: Turquia | M19: 223211.8948 | N19: 0.007996631622 | O19: 111235.932
A20: 17 | B20: Marrocos | C20: 109026.8306 | D20: 0.0084127058 | F20: 17 | G20: Irlanda | H20: 115719.6518 | I20: 0.007738654977 | K20: 17 | L20: Israel | M20: 222680.6996 | N20: 0.007977601399 | O20: 205982.9996
A21: 18 | B21: Cabo Verde | C21: 100863.1066 | D21: 0.007782778214 | F21: 18 | G21: Canadá | H21: 108524.1664 | I21: 0.007257462906 | K21: 18 | L21: Ucrânia | M21: 209671.7124 | N21: 0.007511550615 | O21: -180995.5704
A22: 19 | B22: Canadá | C22: 96453.797 | D22: 0.007442547977 | F22: 19 | G22: Rússia, Federação da | H22: 105950.8246 | I22: 0.007085372825 | K22: 19 | L22: Canadá | M22: 204977.9634 | N22: 0.00734339568 | O22: -12070.3694
A23: 20 | B23: Suécia | C23: 93933.2728 | D23: 0.007248059809 | F23: 20 | G23: Uruguai | H23: 102112.0792 | I23: 0.006828659935 | K23: 20 | L23: Rússia, Federação da | M23: 185978.7022 | N23: 0.006662741573 | O23: -25922.947
A24: 21 | B24: Dinamarca | C24: 84549.6242 | D24: 0.006524000652 | F24: 21 | G24: Argentina | H24: 97727.8454 | I24: 0.006535467965 | K24: 21 | L24: África do Sul | M24: 182499.4124 | N24: 0.006538094995 | O24: -108188.9508
A25: 22 | B25: Egito | C25: 83372.4854 | D25: 0.006433170511 | F25: 22 | G25: Índia | H25: 75558.034 | I25: 0.00505288036 | K25: 22 | L25: Irlanda | M25: 179693.3864 | N25: 0.006437568291 | O25: -51745.9172
A26: 23 | B26: Rússia, Federação da | C26: 80027.8776 | D26: 0.006175094574 | F26: 23 | G26: Finlândia | H26: 73941.3526 | I26: 0.004944766143 | K26: 23 | L26: Roménia | M26: 164861.988 | N26: 0.005906229091 | O26: -113134.4744
A27: 24 | B27: Argélia | C27: 78380.8918 | D27: 0.006048010196 | F27: 24 | G27: Vietname | H27: 70011.1556 | I27: 0.004681937504 | K27: 24 | L27: Marrocos | M27: 151643.736 | N27: 0.005432681335 | O27: 66409.9252
A28: 25 | B28: México | C28: 73493.3644 | D28: 0.005670879815 | F28: 25 | G28: Costa Rica | H28: 69969.0578 | I28: 0.004679122249 | K28: 25 | L28: Suíça | M28: 147880.9734 | N28: 0.005297879261 | O28: 138858.8026
A29: 26 | B29: Japão | C29: 66606.0156 | D29: 0.005139439629 | F29: 26 | G29: Áustria | H29: 63908.1406 | I29: 0.004273803478 | K29: 26 | L29: Grécia | M29: 116697.7842 | N29: 0.004180732359 | O29: -11083.3998
A30: 27 | B30: Irlanda | C30: 63973.7346 | D30: 0.004936328105 | F30: 27 | G30: Grécia | H30: 63890.592 | I30: 0.00427262993 | K30: 27 | L30: Argentina | M30: 113763.425 | N30: 0.004075608079 | O30: -81692.2658
A31: 28 | B31: Luxemburgo | C31: 54794.7774 | D31: 0.004228063304 | F31: 28 | G31: Reino Unido (sem Irlanda do Norte) pós 2020 | H31: 61055.1054 | I31: 0.004083009134 | K31: 28 | L31: Uruguai | M31: 105101.1588 | N31: 0.003765279851 | O31: -99122.9996
A32: 29 | B32: Grécia | C32: 52807.1922 | D32: 0.004074697665 | F32: 29 | G32: Turquia | H32: 55987.9814 | I32: 0.003744149453 | K32: 29 | L32: Finlândia | M32: 103158.5318 | N32: 0.003695684669 | O32: -44724.1734
A33: 30 | B33: Áustria | C33: 39217.279 | D33: 0.003026075588 | F33: 30 | G33: Equador | H33: 48767.8678 | I33: 0.003261310391 | K33: 30 | L33: Áustria | M33: 103125.4196 | N33: 0.003694498415 | O33: -24690.8616
A34: 31 | B34: Moçambique | C34: 37446.547 | D34: 0.002889442731 | F34: 31 | G34: Chile | H34: 47784.2222 | I34: 0.003195529914 | K34: 31 | L34: Cabo Verde | M34: 101700.8832 | N34: 0.00364346398 | O34: 100025.33
A35: 32 | B35: África do Sul | C35: 37155.2308 | D35: 0.00286696425 | F35: 32 | G35: Bulgária | H35: 46240.758 | I35: 0.003092312036 | K35: 32 | L35: Índia | M35: 100022.4076 | N35: 0.003583332099 | O35: -51093.6604
A36: 33 | B36: Chile | C36: 36026.5554 | D36: 0.002779873632 | F36: 33 | G36: Cuba | H36: 43073.1354 | I36: 0.002880479923 | K36: 33 | L36: Egito | M36: 93738.5794 | N36: 0.00335821211 | O36: 73006.3914
A37: 34 | B37: Austrália | C37: 34889.2592 | D37: 0.002692117817 | F37: 34 | G37: Marrocos | H37: 42616.9054 | I37: 0.002849969923 | K37: 34 | L37: México | M37: 93580.153 | N37: 0.003352536438 | O37: 53406.5758
A38: 35 | B38: Arábia Saudita | C38: 32818.8452 | D38: 0.00253236096 | F38: 35 | G38: Moçambique | H38: 40008.831 | I38: 0.002675557127 | K38: 35 | L38: Chile | M38: 83810.7776 | N38: 0.003002545698 | O38: -11757.6668
A39: 36 | B39: Guiné-Bissau | C39: 32182.3082 | D39: 0.002483244623 | F39: 36 | G39: Checa, República | H39: 35780.8524 | I39: 0.002392814593 | K39: 36 | L39: Argélia | M39: 83294.638 | N39: 0.002984054845 | O39: 73467.1456
A40: 37 | B40: Finlândia | C40: 29217.1792 | D40: 0.002254449951 | F40: 37 | G40: Colômbia | H40: 29157.4358 | I40: 0.001949879145 | K40: 37 | L40: Japão | M40: 82993.326 | N40: 0.002973260255 | O40: 50218.7052
A41: 38 | B41: Checa, República | C41: 29096.25 | D41: 0.002245118837 | F41: 38 | G41: Indonésia | H41: 28526.3034 | I41: 0.001907672693 | K41: 38 | L41: Moçambique | M41: 77455.378 | N41: 0.002774861643 | O41: -2562.284
A42: 39 | B42: Emirados Árabes Unidos | C42: 29052.9664 | D42: 0.002241778997 | F42: 39 | G42: Guiana | H42: 28025.2924 | I42: 0.001874168001 | K42: 39 | L42: Vietname | M42: 75958.0768 | N42: 0.002721220388 | O42: -64064.2344
A43: 40 | B43: São Tomé e Príncipe | C43: 26792.4812 | D43: 0.002067355905 | F43: 40 | G43: Hungria | H43: 24242.0034 | I43: 0.001621163712 | K43: 40 | L43: Costa Rica | M43: 73986.347 | N43: 0.002650582589 | O43: -65951.7686
A44: 41 | B44: Jordânia | C44: 26642.1032 | D44: 0.002055752468 | F44: 41 | G44: Namíbia | H44: 22831.866 | I44: 0.001526861952 | K44: 41 | L44: Checa, República | M44: 64877.1024 | N44: 0.002324241229 | O44: -6684.6024
A45: 42 | B45: Roménia | C45: 25863.7568 | D45: 0.001995693864 | F45: 42 | G45: Costa do Marfim | H45: 22796.209 | I45: 0.00152447742 | K45: 42 | L45: Luxemburgo | M45: 63347.0378 | N45: 0.002269426215 | O45: 46242.517
A46: 43 | B46: Tunísia | C46: 24967.3514 | D46: 0.001926525616 | F46: 43 | G46: Uganda | H46: 22685.1228 | I46: 0.001517048623 | K46: 43 | L46: Bulgária | M46: 59231.1196 | N46: 0.002121972238 | O46: -33250.3964
A47: 44 | B47: Índia | C47: 24464.3736 | D47: 0.001887714946 | F47: 44 | G47: México | H47: 20086.7886 | I47: 0.001343287196 | K47: 44 | L47: Equador | M47: 51817.4262 | N47: 0.001856374497 | O47: -45718.3094
A48: 45 | B48: Noruega | C48: 22053.074 | D48: 0.001701654744 | F48: 45 | G48: Peru | H48: 19493.8856 | I48: 0.001303637303 | K48: 45 | L48: Austrália | M48: 48712.5526 | N48: 0.001745141489 | O48: 21065.9658
A49: 46 | B49: Coreia, República da | C49: 18924.4824 | D49: 0.001460247005 | F49: 46 | G49: Paraguai | H49: 18840.7592 | I49: 0.001259960021 | K49: 46 | L49: Cuba | M49: 48369.362 | N49: 0.001732846585 | O49: -37776.9088
A50: 47 | B50: Hungria | C50: 18306.327 | D50: 0.001412549026 | F50: 47 | G50: Senegal | H50: 17576.5504 | I50: 0.001175417115 | K50: 47 | L50: Hungria | M50: 42548.3304 | N50: 0.00152430642 | O50: -5935.6764
A51: 48 | B51: Nigéria | C51: 16216.7282 | D51: 0.001251311834 | F51: 48 | G51: Nova Zelânda | H51: 17377.015 | I51: 0.001162073352 | K51: 48 | L51: Colômbia | M51: 37490.321 | N51: 0.00134310175 | O51: -20824.5506
A52: 49 | B52: Argentina | C52: 16035.5796 | D52: 0.001237334083 | F52: 49 | G52: Japão | H52: 16387.3104 | I52: 0.001095887684 | K52: 49 | L52: Tunísia | M52: 35510.5226 | N52: 0.001272174891 | O52: 14424.1802
A53: 50 | B53: Lituânia | C53: 14426.2296 | D53: 0.001113153751 | F53: 50 | G53: Lituânia | H53: 15822.4366 | I53: 0.001058112221 | K53: 50 | L53: Noruega | M53: 34932.4536 | N53: 0.0012514654 | O53: 9173.6944
A54: 51 | B54: Ucrânia | C54: 14338.071 | D54: 0.001106351275 | F54: 51 | G54: Angola | H54: 15424.0848 | I54: 0.001031472777 | K54: 51 | L54: Costa do Marfim | M54: 32973.8046 | N54: 0.001181296224 | O54: -12618.6134
A55: 52 | B55: Macau | C55: 14162.3328 | D55: 0.001092791001 | F55: 52 | G55: Mauritânia | H55: 14124.4552 | I55: 0.0009445611341 | K55: 52 | L55: Arábia Saudita | M55: 32855.5924 | N55: 0.001177061238 | O55: 32782.098
A56: 53 | B56: Síria, República Árabe da | C56: 13309.7072 | D56: 0.00102700088 | F56: 53 | G56: Austrália | H56: 13823.2934 | I56: 0.0009244211904 | K56: 53 | L56: Guiné-Bissau | M56: 32561.5128 | N56: 0.00116652575 | O56: 31803.1036
A57: 54 | B57: Iraque | C57: 13216.9518 | D57: 0.001019843707 | F57: 54 | G57: Tanzânia, República Unida da | H57: 13711.0264 | I57: 0.0009169134287 | K57: 54 | L57: Indonésia | M57: 32128.1024 | N57: 0.001150998695 | O57: -24924.5044
A58: 55 | B58: Bulgária | C58: 12990.3616 | D58: 0.001002359601 | F58: 55 | G58: Eslovénia | H58: 13709.4752 | I58: 0.0009168096935 | K58: 55 | L58: Coreia, República da | M58: 31301.2172 | N58: 0.00112137529 | O58: 6547.7476
A59: 56 | B59: HongKong | C59: 12801.5844 | D59: 0.0009877932133 | F59: 56 | G59: Suazilândia | H59: 13238.7086 | I59: 0.0008853275706 | K59: 56 | L59: Lituânia | M59: 30248.6662 | N59: 0.001083667342 | O59: -1396.207
A60: 57 | B60: Eslováquia | C60: 12740.7416 | D60: 0.0009830984737 | F60: 57 | G60: Noruega | H60: 12879.3796 | I60: 0.0008612977441 | K60: 57 | L60: Emirados Árabes Unidos | M60: 29704.259 | N60: 0.001064163794 | O60: 28401.6738
A61: 58 | B61: Letónia | C61: 11849.96 | D61: 0.0009143641678 | F61: 58 | G61: Tailândia | H61: 12766.4348 | I61: 0.0008537446551 | K61: 58 | L61: Senegal | M61: 28854.894 | N61: 0.001033735044 | O61: -6298.2068
A62: 59 | B62: Croácia | C62: 11388.7032 | D62: 0.0008787727658 | F62: 59 | G62: Camarões | H62: 12420.4028 | I62: 0.0008306040543 | K62: 59 | L62: Guiana | M62: 28164.8726 | N62: 0.001009014825 | O62: -27885.7122
A63: 60 | B63: Senegal | C63: 11278.3436 | D63: 0.0008702572211 | F63: 60 | G63: Coreia, República da | H63: 12376.7348 | I63: 0.0008276837933 | K63: 60 | L63: São Tomé e Príncipe | M63: 27846.3486 | N63: 0.0009976036088 | O63: 25738.6138
A64: 61 | B64: Dominicana, República | C64: 11211.5302 | D64: 0.0008651017793 | F64: 61 | G64: Estónia | H64: 12113.6096 | I64: 0.0008100875155 | K64: 61 | L64: Jordânia | M64: 26699.1202 | N64: 0.0009565038148 | O64: 26585.0862
A65: 62 | B65: Líbia, Jamahira Árabe da | C65: 11110.2892 | D65: 0.0008572898422 | F65: 62 | G65: Moldava, República de | H65: 11911.9324 | I65: 0.0007966005214 | K65: 62 | L65: Peru | M65: 25631.4274 | N65: 0.000918253407 | O65: -13356.3438
A66: 63 | B66: Costa do Marfim | C66: 10177.5956 | D66: 0.0007853215311 | F66: 63 | G66: Sérvia | H66: 11557.857 | I66: 0.000772922025 | K66: 63 | L66: Uganda | M66: 23651.4418 | N66: 0.0008473198419 | O66: -21718.8038
A67: 64 | B67: Malta | C67: 10082.9972 | D67: 0.0007780221489 | F67: 64 | G67: Tunísia | H67: 10543.1712 | I67: 0.0007050657604 | K67: 64 | L67: Namíbia | M67: 23571.3778 | N67: 0.0008444515256 | O67: -22092.3542
A68: 65 | B68: Território Palestiniano Ocupado | C68: 9895.7186 | D68: 0.0007635713962 | F68: 65 | G68: Paquistão | H68: 10440.9988 | I68: 0.0006982330665 | K68: 65 | L68: Tailândia | M68: 22048.0496 | N68: 0.0007898778459 | O68: -3484.82
A69: 66 | B69: Líbano | C69: 9880.5148 | D69: 0.0007623982437 | F69: 66 | G69: Egito | H69: 10366.094 | I69: 0.0006932238706 | K69: 66 | L69: Eslovénia | M69: 22027.284 | N69: 0.0007891339122 | O69: -5391.6664
A70: 67 | B70: Chipre | C70: 9763.9754 | D70: 0.0007534058546 | F70: 67 | G70: Islândia | H70: 10004.441 | I70: 0.0006690386286 | K70: 67 | L70: Nigéria | M70: 21603.5138 | N70: 0.0007739522204 | O70: 10829.9426
A71: 68 | B71: Tailândia | C71: 9281.6148 | D71: 0.0007161860455 | F71: 68 | G71: Maurícias | H71: 9636.4388 | I71: 0.0006444287891 | K71: 68 | L71: Nova Zelânda | M71: 21601.671 | N71: 0.0007738862016 | O71: -13152.359
A72: 69 | B72: Kuwait | C72: 9121.1468 | D72: 0.0007038040468 | F72: 69 | G72: Letónia | H72: 9340.8474 | I72: 0.0006246613613 | K72: 69 | L72: Camarões | M72: 21512.3584 | N72: 0.0007706865515 | O72: -3328.4472
A73: 70 | B73: Camarões | C73: 9091.9556 | D73: 0.0007015516015 | F73: 70 | G73: Luxemburgo | H73: 8552.2604 | I73: 0.0005719252649 | K73: 70 | L73: Letónia | M73: 21190.8074 | N73: 0.0007591668926 | O73: 2509.1126
A74: 71 | B74: Colômbia | C74: 8332.8852 | D74: 0.000642980368 | F74: 71 | G74: Israel | H74: 8348.85 | I74: 0.0005583223645 | K74: 71 | L74: Estónia | M74: 20382.3 | N74: 0.0007302018777 | O74: -3844.9192
A75: 72 | B75: Eslovénia | C75: 8317.8088 | D75: 0.0006418170459 | F75: 72 | G75: Filipinas | H75: 8338.4466 | I75: 0.0005576266458 | K75: 72 | L75: Paraguai | M75: 20050.052 | N75: 0.0007182989957 | O75: -17631.4664
A76: 73 | B76: Estónia | C76: 8268.6904 | D76: 0.000638026982 | F76: 73 | G76: Belize | H76: 8129.6594 | I76: 0.0005436641763 | K76: 73 | L76: Croácia | M76: 18469.8002 | N76: 0.0006616860113 | O76: 4307.6062
A77: 74 | B77: Geórgia | C77: 8048.6886 | D77: 0.0006210512486 | F77: 74 | G77: Malásia | H77: 8113.8152 | I77: 0.0005426046087 | K77: 74 | L77: Eslováquia | M77: 18139.0792 | N77: 0.0006498378344 | O77: 7342.404
A78: 75 | B78: Gibraltar | C78: 7970.9208 | D78: 0.0006150505456 | F78: 75 | G78: Bangladesh | H78: 7929.0306 | I78: 0.000530247293 | K78: 75 | L78: Sérvia | M78: 17502.4848 | N78: 0.0006270316533 | O78: -5613.2292
A79: 76 | B79: Gana | C79: 7307.4466 | D79: 0.0005638556863 | F79: 76 | G79: Croácia | H79: 7081.097 | I79: 0.0004735424424 | K79: 76 | L79: Mauritânia | M79: 16931.2984 | N79: 0.0006065687329 | O79: -11317.612
A80: 77 | B80: Taiwan | C80: 6603.7526 | D80: 0.0005095573952 | F80: 77 | G80: Quénia | H80: 6721.3334 | I80: 0.0004494835524 | K80: 77 | L80: HongKong | M80: 15600.7076 | N80: 0.0005588999271 | O80: 10002.4612
A81: 78 | B81: Belarus | C81: 6189.2796 | D81: 0.0004775759151 | F81: 78 | G81: Gana | H81: 6621.1502 | I81: 0.0004427838846 | K81: 78 | L81: Maurícias | M81: 15492.987 | N81: 0.000555040805 | O81: -3779.8906
A82: 79 | B82: Guatemala | C82: 6179.6032 | D82: 0.0004768292667 | F82: 79 | G82: Panamá | H82: 6513.4974 | I82: 0.0004355846936 | K82: 79 | L82: Suazilândia | M82: 15229.8654 | N82: 0.0005456143965 | O82: -11247.5518
A83: 80 | B83: Peru | C83: 6137.5418 | D83: 0.0004735837336 | F83: 80 | G83: Honduras | H83: 6221.5346 | I83: 0.0004160599254 | K83: 80 | L83: Moldava, República de | M83: 14881.0396 | N83: 0.0005331176098 | O83: -8942.8252
A84: 81 | B84: Vietname | C84: 5946.9212 | D84: 0.0004588751062 | F84: 81 | G84: Suriname | H84: 5829.6302 | I84: 0.0003898516463 | K84: 81 | L84: Síria, República Árabe da | M84: 14259.5412 | N84: 0.0005108522473 | O84: 12359.8732
A85: 82 | B85: Sérvia | C85: 5944.6278 | D85: 0.0004586981434 | F85: 82 | G85: Eslováquia | H85: 5398.3376 | I85: 0.0003610093142 | K85: 82 | L85: Tanzânia, República Unida da | M85: 14227.4986 | N85: 0.0005097043117 | O85: -13194.5542
A86: 83 | B86: Maurícias | C86: 5856.5482 | D86: 0.0004519017635 | F86: 83 | G86: Nigéria | H86: 5386.7856 | I86: 0.0003602367839 | K86: 83 | L86: Macau | M86: 14182.009 | N86: 0.0005080746335 | O86: 14142.6566
A87: 84 | B87: Andorra | C87: 5401.2632 | D87: 0.0004167711563 | F87: 84 | G87: Etiópia | H87: 5332.9722 | I87: 0.0003566380577 | K87: 84 | L87: Gana | M87: 13928.5968 | N87: 0.0004989960671 | O87: 686.2964
A88: 85 | B88: Cuba | C88: 5296.2266 | D88: 0.0004086663438 | F88: 85 | G88: Congo | H88: 5207.279 | I88: 0.0003482324301 | K88: 85 | L88: Paquistão | M88: 13696.3036 | N88: 0.000490674095 | O88: -7185.694
A89: 86 | B89: Singapura | C89: 4670.5802 | D89: 0.0003603903454 | F89: 86 | G89: Guatemala | H89: 5139.0112 | I89: 0.000343667078 | K89: 86 | L89: Dominicana, República | M89: 13463.2218 | N89: 0.0004823238711 | O89: 8959.8386
A90: 87 | B90: Omã | C90: 4393.4536 | D90: 0.0003390067599 | F90: 87 | G90: Camboja | H90: 4965.3018 | I90: 0.0003320504071 | K90: 87 | L90: Iraque | M90: 13230.1254 | N90: 0.0004739731242 | O90: 13203.7782
A91: 88 | B91: Nova Zelânda | C91: 4224.656 | D91: 0.0003259820343 | F91: 88 | G91: Argélia | H91: 4913.7462 | I91: 0.0003286026694 | K91: 88 | L91: Chipre | M91: 13179.1368 | N91: 0.0004721464427 | O91: 6348.814
A92: 89 | B92: Panamá | C92: 4203.97 | D92: 0.0003243858655 | F92: 89 | G92: Reino Unido (Irlanda do Norte) pós-2020 | H92: 4864.879 | I92: 0.0003253347163 | K92: 89 | L92: Filipinas | M92: 11817.2578 | N92: 0.0004233567279 | O92: -4859.6354
A93: 90 | B93: Costa Rica | C93: 4017.2892 | D93: 0.0003099812401 | F93: 90 | G93: Macedónia, Antiga República jugoslava da | H93: 4838.7308 | I93: 0.0003235860773 | K93: 90 | L93: Islândia | M93: 11807.9024 | N93: 0.000423021568 | O93: -8200.9796
A94: 91 | B94: Catar | C94: 3814.9902 | D94: 0.0002943714864 | F94: 91 | G94: Zimbabwe | H94: 4709.246 | I94: 0.0003149268895 | K94: 91 | L94: Malta | M94: 11740.4076 | N94: 0.000420603547 | O94: 8425.5868
A95: 92 | B95: Burquina Faso | C95: 3646.8948 | D95: 0.0002814009439 | F95: 92 | G95: Suíça | H95: 4511.0854 | I95: 0.0003016750651 | K95: 92 | L95: Malásia | M95: 11542.323 | N95: 0.000413507108 | O95: -4685.3074
A96: 93 | B96: Indonésia | C96: 3601.799 | D96: 0.0002779212711 | F96: 93 | G96: Sri Lanca | H96: 4405.8098 | I96: 0.0002946348473 | K96: 93 | L96: Guatemala | M96: 11318.6144 | N96: 0.0004054926818 | O96: 1040.592
A97: 94 | B97: Sudão | C97: 3570.9408 | D97: 0.000275540197 | F97: 94 | G97: Madagáscar | H97: 3797.7566 | I97: 0.0002539717979 | K97: 94 | L97: Líbia, Jamahira Árabe da | M97: 11116.3092 | N97: 0.0003982450387 | O97: 11104.2692
A98: 95 | B98: Filipinas | C98: 3478.8112 | D98: 0.0002684313118 | F98: 95 | G98: Mali | H98: 3762.6334 | I98: 0.0002516229632 | K98: 95 | L98: Panamá | M98: 10717.4674 | N98: 0.0003839564142 | O98: -2309.5274
A99: 96 | B99: Mali | C99: 3441.82 | D99: 0.0002655770045 | F99: 96 | G99: Myanmar | H99: 3487.5672 | I99: 0.000233228141 | K99: 96 | L99: Líbano | M99: 10422.5976 | N99: 0.0003733926171 | O99: 9338.432
A100: 97 | B100: Malásia | C100: 3428.5078 | D100: 0.0002645498112 | F100: 97 | G100: Nicarágua | H100: 3458.6704 | I100: 0.0002312956917 | K100: 97 | L100: Kuwait | M100: 10304.9986 | N100: 0.0003691795984 | O100: 7937.295
A101: 98 | B101: Venezuela | C101: 3292.1542 | D101: 0.0002540285229 | F101: 98 | G101: Taiwan | H101: 3425.7168 | I101: 0.0002290919472 | K101: 98 | L101: Taiwan | M101: 10029.4694 | N101: 0.0003593086839 | O101: 3178.0358
A102: 99 | B102: Paquistão | C102: 3255.3048 | D102: 0.0002511851571 | F102: 99 | G102: Chipre | H102: 3415.1614 | I102: 0.0002283860637 | K102: 99 | L102: Território Palestiniano Ocupado | M102: 9896.2038 | N102: 0.0003545344047 | O102: 9895.2334
A103: 100 | B103: Irão, República Islâmica do | C103: 3151.3458 | D103: 0.0002431634942 | F103: 100 | G103: Congo, República Democrática do | H103: 3287.5926 | I103: 0.0002198550068 | K103: 100 | L103: Bangladesh | M103: 9893.849 | N103: 0.0003544500433 | O103: -5964.2122
A104: 101 | B104: Equador | C104: 3049.5584 | D104: 0.0002353093959 | F104: 101 | G104: Malavi | H104: 3258.3272 | I104: 0.0002178979077 | K104: 101 | L104: Quénia | M104: 9768.3614 | N104: 0.0003499544132 | O104: -3674.3054
A105: 102 | B105: Quénia | C105: 3047.028 | D105: 0.0002351141457 | F105: 102 | G105: Papuásia-Nova Guiné | H105: 3105.1676 | I105: 0.0002076554875 | K105: 102 | L105: Geórgia | M105: 8359.5618 | N105: 0.0002994837542 | O105: 7737.8154
A106: 103 | B106: Uruguai | C106: 2989.0796 | D106: 0.0002306427432 | F106: 103 | G106: HongKong | H106: 2799.1232 | I106: 0.0001871890241 | K106: 103 | L106: Belize | M106: 8131.84 | N106: 0.0002913255539 | O106: -8127.4788
A107: 104 | B107: Moldava, República de | C107: 2969.1072 | D107: 0.000229101637 | F107: 104 | G107: Gabão | H107: 2643.292 | I107: 0.0001767679428 | K107: 104 | L107: Gibraltar | M107: 8002.9498 | N107: 0.0002867080247 | O107: 7938.8918
A108: 105 | B108: Mauritânia | C108: 2806.8432 | D108: 0.0002165810557 | F108: 105 | G108: Centro-Africana, República | H108: 2579.2684 | I108: 0.0001724864181 | K108: 105 | L108: Congo | M108: 7636.6094 | N108: 0.0002735837724 | O108: -2777.9486
A109: 106 | B109: Timor-Leste | C109: 2726.394 | D109: 0.0002103734511 | F109: 106 | G109: Gâmbia | H109: 2389.373 | I109: 0.000159787322 | K109: 106 | L109: Honduras | M109: 7591.1752 | N109: 0.0002719560788 | O109: -4851.894
A110: 107 | B110: Guiné | C110: 2700.6706 | D110: 0.0002083885874 | F110: 107 | G110: Dominicana, República | H110: 2251.6916 | I110: 0.0001505799934 | K110: 107 | L110: Etiópia | M110: 7365.0862 | N110: 0.0002638563741 | O110: -3300.8582
A111: 108 | B111: Arménia | C111: 2588.4812 | D111: 0.0001997318521 | F111: 108 | G111: Serra Leoa | H111: 1997.9044 | I111: 0.0001336081866 | K111: 108 | L111: Reino Unido (Irlanda do Norte) pós-2020 | M111: 7284.542 | N111: 0.0002609708545 | O111: -2445.216
A112: 109 | B112: Gabão | C112: 2550.5466 | D112: 0.0001968047503 | F112: 109 | G112: Benim | H112: 1832.1494 | I112: 0.0001225234595 | K112: 109 | L112: Mali | M112: 7204.4534 | N112: 0.0002581016569 | O112: -320.8134
A113: 110 | B113: Congo | C113: 2429.3304 | D113: 0.0001874514909 | F113: 110 | G113: El Salvador | H113: 1779.7304 | I113: 0.0001190179827 | K113: 110 | L113: Belarus | M113: 7048.5194 | N113: 0.0002525152756 | O113: 5330.0398
A114: 111 | B114: Reino Unido (Irlanda do Norte) pós-2020 | C114: 2419.663 | D114: 0.000186705537 | F114: 111 | G114: Burquina Faso | H114: 1725.7576 | I114: 0.0001154085968 | K114: 111 | L114: Suriname | M114: 6411.9606 | N114: 0.0002297103698 | O114: -5247.2998
A115: 112 | B115: Albânia | C115: 2229.7502 | D115: 0.0001720515247 | F115: 112 | G115: Malta | H115: 1657.4104 | I115: 0.000110837935 | K115: 112 | L115: Singapura | M115: 5982.0136 | N115: 0.0002143073924 | O115: 3359.1468
A116: 113 | B116: Seychelles | C116: 2209.8298 | D116: 0.0001705144309 | F116: 113 | G116: Laos, República Democrática Popular do | H116: 1570.485 | I116: 0.0001050248715 | K116: 113 | L116: Camboja | M116: 5868.6792 | N116: 0.0002102471542 | O116: -4061.9244
A117: 114 | B117: Guiné Equatorial | C117: 2176.263 | D117: 0.0001679243564 | F117: 114 | G117: Singapura | H117: 1311.4334 | I117: 8.770101232e-05 | K117: 114 | L117: Sri Lanca | M117: 5846.5976 | N117: 0.0002094560744 | O117: -2965.022
A118: 115 | B118: Etiópia | C118: 2032.114 | D118: 0.0001568015611 | F118: 115 | G118: Seychelles | H118: 1264.2444 | I118: 8.45452874e-05 | K118: 115 | L118: Macedónia, Antiga República jugoslava da | M118: 5789.6166 | N118: 0.0002074147134 | O118: -3887.845
A119: 116 | B119: Suazilândia | C119: 1991.1568 | D119: 0.00015364123 | F119: 116 | G119: Kuwait | H119: 1183.8518 | I119: 7.916909948e-05 | K119: 116 | L119: Andorra | M119: 5443.4826 | N119: 0.0001950143613 | O119: 5359.0438
A120: 117 | B120: Bangladesh | C120: 1964.8184 | D120: 0.0001516089119 | F120: 117 | G120: Bolívia | H120: 1171.3558 | I120: 7.833343992e-05 | K120: 117 | L120: Burquina Faso | M120: 5372.6524 | N120: 0.0001924768486 | O120: 1921.1372
A121: 118 | B121: Islândia | C121: 1803.4614 | D121: 0.0001391583163 | F121: 118 | G121: Togo | H121: 1123.3282 | I121: 7.512163432e-05 | K121: 118 | L121: Gabão | M121: 5193.8386 | N121: 0.0001860707917 | O121: -92.7454
A122: 119 | B122: Benim | C122: 1771.8166 | D122: 0.0001367165468 | F122: 119 | G122: São Tomé e Príncipe | H122: 1053.8674 | I122: 7.047650139e-05 | K122: 119 | L122: Nicarágua | M122: 5085.114 | N122: 0.000182175701 | O122: -1832.2268
A123: 120 | B123: Congo, República Democrática do | C123: 1727.181 | D123: 0.0001332723838 | F123: 120 | G123: Venezuela | H123: 1042.655 | I123: 6.972668151e-05 | K123: 120 | L123: Congo, República Democrática do | M123: 5014.7736 | N123: 0.0001796557356 | O123: -1560.4116
A124: 121 | B124: Jamaica | C124: 1687.498 | D124: 0.0001302103724 | F124: 121 | G124: Iémen | H124: 1024.4982 | I124: 6.851246069e-05 | K124: 121 | L124: Omã | M124: 4885.6232 | N124: 0.0001750288846 | O124: 3901.284
A125: 122 | B125: Nicarágua | C125: 1626.4436 | D125: 0.0001254993054 | F125: 122 | G125: Síria, República Árabe da | H125: 949.834 | I125: 6.351935473e-05 | K125: 122 | L125: Zimbabwe | M125: 4774.2052 | N125: 0.0001710373021 | O125: -4644.2868
A126: 123 | B126: Togo | C126: 1570.864 | D126: 0.0001212106838 | F126: 123 | G126: Belarus | H126: 859.2398 | I126: 5.746094334e-05 | K126: 123 | L126: Venezuela | M126: 4334.8092 | N126: 0.0001552958114 | O126: 2249.4992
A127: 124 | B127: El Salvador | C127: 1565.6294 | D127: 0.0001208067726 | F127: 124 | G127: Cabo Verde | H127: 837.7766 | I127: 5.602560978e-05 | K127: 124 | L127: Madagáscar | M127: 4107.7518 | N127: 0.0001471614135 | O127: -3487.7614
A128: 125 | B128: Cazaquistão | C128: 1534.519 | D128: 0.0001184062384 | F128: 125 | G128: Bósnia-Herzegovina | H128: 758.2198 | I128: 5.070531529e-05 | K128: 125 | L128: Myanmar | M128: 3979.95 | N128: 0.0001425828765 | O128: -2995.1844
A129: 126 | B129: Sri Lanca | C129: 1440.7878 | D129: 0.0001111737709 | F129: 126 | G129: Turquemenistão | H129: 720.6558 | I129: 4.819325419e-05 | K129: 126 | L129: Catar | M129: 3836.467 | N129: 0.0001374425559 | O129: 3793.5134
A130: 127 | B130: Azerbaijão | C130: 1435.1898 | D130: 0.0001107418191 | F130: 127 | G130: Chade | H130: 675.9004 | I130: 4.520027423e-05 | K130: 127 | L130: Benim | M130: 3603.966 | N130: 0.0001291131394 | O130: -60.3328
A131: 128 | B131: Bolívia | C131: 1412.2374 | D131: 0.0001089707708 | F131: 128 | G131: Emirados Árabes Unidos | H131: 651.2926 | I131: 4.355464817e-05 | K131: 128 | L131: Sudão | M131: 3591.4234 | N131: 0.000128663797 | O131: 3550.4582
A132: 129 | B132: Honduras | C132: 1369.6406 | D132: 0.0001056839253 | F132: 129 | G132: Timor-Leste | H132: 614.587 | I132: 4.109999186e-05 | K132: 129 | L132: Seychelles | M132: 3474.0742 | N132: 0.0001244597275 | O132: 945.5854
A133: 130 | B133: São Bartolomeu | C133: 1280.9726 | D133: 9.884214338e-05 | F133: 130 | G133: Faroé, Ilhas | H133: 597.6172 | I133: 3.996515067e-05 | K133: 130 | L133: Irão, República Islâmica do | M133: 3375.8844 | N133: 0.0001209420491 | O133: 2926.8072
A134: 131 | B134: Ruanda | C134: 1241.1874 | D134: 9.577224599e-05 | F134: 131 | G134: Líbano | H134: 542.0828 | I134: 3.625133409e-05 | K134: 131 | L134: El Salvador | M134: 3345.3598 | N134: 0.0001198484964 | O134: -214.101
A135: 132 | B135: Paraguai | C135: 1209.2928 | D135: 9.331120144e-05 | F135: 132 | G135: Omã | H135: 492.1696 | I135: 3.291343057e-05 | K135: 132 | L135: Timor-Leste | M135: 3340.981 | N135: 0.0001196916246 | O135: 2111.807
A136: 133 | B136: Iémen | C136: 1145.3826 | D136: 8.837977578e-05 | F136: 133 | G136: Gronelândia | H136: 481.3548 | I136: 3.219019986e-05 | K136: 133 | L136: Malavi | M136: 3267.4564 | N136: 0.0001170575842 | O136: -3249.198
A137: 134 | B137: Montenegro | C137: 1046.3476 | D137: 8.073805755e-05 | F137: 134 | G137: Guiné-Bissau | H137: 379.2046 | I137: 2.535899063e-05 | K137: 134 | L137: Papuásia-Nova Guiné | M137: 3108.0532 | N137: 0.0001113469178 | O137: -3102.282
A138: 135 | B138: Uganda | C138: 966.319 | D138: 7.456290724e-05 | F138: 135 | G138: Geórgia | H138: 310.8732 | I138: 2.078938537e-05 | K138: 135 | L138: Guiné | M138: 3003.4878 | N138: 0.0001076008317 | O138: 2397.8534
A139: 136 | B139: Macedónia, Antiga República jugoslava da | C139: 950.8858 | D139: 7.337205384e-05 | F139: 136 | G139: Usbequistão | H139: 308.419 | I139: 2.06252628e-05 | K139: 136 | L139: Gâmbia | M139: 2880.9438 | N139: 0.0001032106569 | O139: -1897.8022
A140: 137 | B140: Bermudas | C140: 907.5284 | D140: 7.002651909e-05 | F140: 137 | G140: Guiné | H140: 302.8172 | I140: 2.025064711e-05 | K140: 137 | L140: Togo | M140: 2694.1922 | N140: 9.652022605e-05 | O140: 447.5358
A141: 138 | B141: Camboja | C141: 903.3774 | D141: 6.970622049e-05 | F141: 138 | G141: Irão, República Islâmica do | H141: 224.5386 | I141: 1.501583117e-05 | K141: 138 | L141: Centro-Africana, República | M141: 2675.6308 | N141: 9.585525845e-05 | O141: -2482.906
A142: 139 | B142: Barbados | C142: 889.1274 | D142: 6.860666493e-05 | F142: 139 | G142: Zâmbia | H142: 199.3992 | I142: 1.333465481e-05 | K142: 139 | L142: Arménia | M142: 2615.5848 | N142: 9.370409288e-05 | O142: 2561.3776
A143: 140 | B143: Trindade e Tobago | C143: 876.5142 | D143: 6.763340779e-05 | F143: 140 | G143: Azerbaijão | H143: 125.9264 | I143: 8.421222731e-06 | K143: 140 | L143: Bolívia | M143: 2583.5932 | N143: 9.255798443e-05 | O143: 240.8816
A144: 141 | B144: Namíbia | C144: 739.5118 | D144: 5.706205688e-05 | F144: 141 | G144: Fiji, Ilhas | H144: 123.8396 | I144: 8.281669725e-06 | K144: 141 | L144: Serra Leoa | M144: 2504.721 | N144: 8.973236472e-05 | O144: -1491.0878
A145: 142 | B145: Turquemenistão | C145: 730.8192 | D145: 5.639132027e-05 | F145: 142 | G145: Maldivas | H145: 106.2128 | I145: 7.102892211e-06 | K145: 142 | L145: Albânia | M145: 2335.6576 | N145: 8.367561881e-05 | O145: 2123.8428
A146: 143 | B146: Barém | C146: 714.5288 | D146: 5.513432379e-05 | F146: 143 | G146: Albânia | H146: 105.9074 | I146: 7.082468841e-06 | K146: 143 | L146: Guiné Equatorial | M146: 2182.2494 | N146: 7.817972504e-05 | O146: 2170.2766
A147: 144 | B147: Burundi | C147: 677.1012 | D147: 5.224634305e-05 | F147: 144 | G147: Tajiquistão | H147: 59.4122 | I147: 3.973141209e-06 | K147: 144 | L147: Iémen | M147: 2169.8808 | N147: 7.773661631e-05 | O147: 120.8844
A148: 145 | B148: Aruba | C148: 656.9934 | D148: 5.069478913e-05 | F148: 145 | G148: Jordânia | H148: 57.017 | I148: 3.812964211e-06 | K148: 145 | L148: Jamaica | M148: 1698.661 | N148: 6.085502872e-05 | O148: 1676.335
A149: 146 | B149: Niger | C149: 652.165 | D149: 5.032222113e-05 | F149: 146 | G149: Andorra | H149: 42.2194 | I149: 2.823387081e-06 | K149: 146 | L149: Laos, República Democrática Popular do | M149: 1586.3348 | N149: 5.683090965e-05 | O149: -1554.6352
A150: 147 | B150: São Martinho (parte holandesa) | C150: 597.7744 | D150: 4.612534488e-05 | F150: 147 | G150: Libéria | H150: 38.8276 | I150: 2.596563292e-06 | K150: 147 | L150: Azerbaijão | M150: 1561.1162 | N150: 5.59274459e-05 | O150: 1309.2634
A151: 148 | B151: Suriname | C151: 582.3304 | D151: 4.493365814e-05 | F151: 148 | G151: Falkland Ilhas (Malvinas) | H151: 38.0622 | I151: 2.545377807e-06 | K151: 148 | L151: Cazaquistão | M151: 1551.583 | N151: 5.558591622e-05 | O151: 1517.455
A152: 149 | B152: Bósnia-Herzegovina | C152: 535.6404 | D152: 4.133097399e-05 | F152: 149 | G152: Aruba | H152: 38.0518 | I152: 2.544682315e-06 | K152: 149 | L152: Turquemenistão | M152: 1451.475 | N152: 5.199951774e-05 | O152: 10.1634
A153: 150 | B153: Tanzânia, República Unida da | C153: 516.4722 | D153: 3.98519213e-05 | F153: 150 | G153: Arábia Saudita | H153: 36.7472 | I153: 2.457438281e-06 | K153: 150 | L153: Bósnia-Herzegovina | M153: 1293.8602 | N153: 4.635292129e-05 | O153: -222.5794
A154: 151 | B154: Ceuta e Melilha | C154: 507.8786 | D154: 3.918882371e-05 | F154: 151 | G154: São Marino | H154: 32.7702 | I154: 2.191479731e-06 | K154: 151 | L154: São Bartolomeu | M154: 1281.3282 | N154: 4.590395871e-05 | O154: 1280.617
A155: 152 | B155: Serra Leoa | C155: 506.8166 | D155: 3.910687789e-05 | F155: 152 | G155: Gibraltar | H155: 32.029 | I155: 2.1419126e-06 | K155: 152 | L155: Ruanda | M155: 1241.8574 | N155: 4.448990572e-05 | O155: 1240.5174
A156: 153 | B156: Myanmar | C156: 492.3828 | D156: 3.799313999e-05 | F156: 153 | G156: Botswana | H156: 30.0284 | I156: 2.008124148e-06 | K156: 153 | L156: Montenegro | M156: 1046.7 | N156: 3.749833461e-05 | O156: 1045.9952
A157: 154 | B157: Gâmbia | C157: 491.5708 | D157: 3.793048461e-05 | F157: 154 | G157: São Pedro e Miquelon | H157: 28.9156 | I157: 1.933706578e-06 | K157: 154 | L157: Bermudas | M157: 908.3498 | N157: 3.25418981e-05 | O157: 906.707
A158: 155 | B158: Curaçau | C158: 479.6396 | D158: 3.700985182e-05 | F158: 155 | G158: Arménia | H158: 27.1036 | I158: 1.812530593e-06 | K158: 155 | L158: Barbados | M158: 899.4474 | N158: 3.222296701e-05 | O158: 878.8074
A159: 156 | B159: Kosovo | C159: 471.1818 | D159: 3.63572328e-05 | F159: 156 | G159: Catar | H159: 21.4768 | I159: 1.436243046e-06 | K159: 156 | L159: Trindade e Tobago | M159: 876.838 | N159: 3.141297862e-05 | O159: 876.1904
A160: 157 | B160: Polinésia Francesa | C160: 366.6458 | D160: 2.829104755e-05 | F160: 157 | G160: Sudão | H160: 20.4826 | I160: 1.369756752e-06 | K160: 157 | L160: Barém | M160: 719.1302 | N160: 2.576305041e-05 | O160: 709.9274
A161: 158 | B161: Antígua e Barbuda | C161: 363.7054 | D161: 2.806416101e-05 | F161: 158 | G161: Macau | H161: 19.6762 | I161: 1.315829427e-06 | K161: 158 | L161: Aruba | M161: 695.0452 | N161: 2.490019822e-05 | O161: 618.9416
A162: 159 | B162: Haiti | C162: 328.5232 | D162: 2.534943935e-05 | F162: 159 | G162: Quirguizistão | H162: 17.4758 | I162: 1.168679516e-06 | K162: 159 | L162: Burundi | M162: 677.2152 | N162: 2.426143324e-05 | O162: 676.9872
A163: 160 | B163: Comores | C163: 311.607 | D163: 2.404415502e-05 | F163: 160 | G163: Cazaquistão | H163: 17.064 | I163: 1.141140735e-06 | K163: 160 | L163: Chade | M163: 676.014 | N163: 2.42183999e-05 | O163: -675.7868
A164: 161 | B164: Madagáscar | C164: 309.9952 | D164: 2.391978564e-05 | F164: 161 | G164: Salomão, Ilhas | H164: 16.0532 | I164: 1.07354433e-06 | K164: 161 | L164: Niger | M164: 655.4318 | N164: 2.348103654e-05 | O164: 648.8982
A165: 162 | B165: Nova Caledónia | C165: 302.6442 | D165: 2.33525693e-05 | F165: 162 | G165: Santa Helena | H165: 15.7338 | I165: 1.052184722e-06 | K165: 162 | L165: Faroé, Ilhas | M165: 598.4668 | N165: 2.14402487e-05 | O165: -596.7676
A166: 163 | B166: Libéria | C166: 295.8354 | D166: 2.282719008e-05 | F166: 163 | G166: Marshall, Ilhas | H166: 13.4098 | I166: 8.96769165e-07 | K166: 163 | L166: São Martinho (parte holandesa) | M166: 597.7772 | N166: 2.141554358e-05 | O166: 597.7716
A167: 164 | B167: Somália | C167: 292.9902 | D167: 2.260764934e-05 | F167: 164 | G167: Iraque | H167: 13.1736 | I167: 8.809734874e-07 | K167: 164 | L167: Usbequistão | M167: 531.501 | N167: 1.904117927e-05 | O167: -85.337
A168: 165 | B168: Bahamas | C168: 280.4744 | D168: 2.164190776e-05 | F168: 165 | G168: Curaçau | H168: 12.9632 | I168: 8.669031633e-07 | K168: 165 | L168: Ceuta e Melilha | M168: 507.8786 | N168: 1.819489986e-05 | O168: 507.8786
A169: 166 | B169: Usbequistão | C169: 223.082 | D169: 1.721340724e-05 | F169: 166 | G169: Jamaica | H169: 11.163 | I169: 7.465162932e-07 | K169: 166 | L169: Curaçau | M169: 492.6028 | N169: 1.764763984e-05 | O169: 466.6764
A170: 167 | B170: São Marino | C170: 219.9688 | D170: 1.697318715e-05 | F170: 167 | G170: Nepal | H170: 11.0964 | I170: 7.420624739e-07 | K170: 167 | L170: Gronelândia | M170: 481.9304 | N170: 1.726529798e-05 | O170: -480.7792
A171: 168 | B171: Bonaire, Santo Eustáquio e Saba | C171: 206.5448 | D171: 1.593736723e-05 | F171: 168 | G171: Barbados | H171: 10.32 | I171: 6.901413729e-07 | K171: 168 | L171: Kosovo | M171: 479.738 | N171: 1.718675461e-05 | O171: 462.6256
A172: 169 | B172: Guiana | C172: 139.5802 | D172: 1.077025858e-05 | F172: 169 | G172: Antígua e Barbuda | H172: 9.2324 | I172: 6.174090321e-07 | K172: 169 | L172: Antígua e Barbuda | M172: 372.9378 | N172: 1.336060611e-05 | O172: 354.473
A173: 170 | B173: Zâmbia | C173: 138.1944 | D173: 1.066332777e-05 | F173: 170 | G173: Kosovo | H173: 8.5562 | I173: 5.721887224e-07 | K173: 170 | L173: Polinésia Francesa | M173: 367.1436 | N173: 1.315302719e-05 | O173: 366.148
A174: 171 | B174: Maldivas | C174: 129.0678 | D174: 9.959102945e-06 | F174: 171 | G174: Jibuti | H174: 7.3022 | I174: 4.883285207e-07 | K174: 171 | L174: Zâmbia | M174: 337.5936 | N174: 1.209438977e-05 | O174: -61.2048
A175: 172 | B175: Santa Lúcia | C175: 120.252 | D175: 9.278860005e-06 | F175: 172 | G175: Líbia, Jamahira Árabe da | H175: 6.02 | I175: 4.025824675e-07 | K175: 172 | L175: Libéria | M175: 334.663 | N175: 1.198940017e-05 | O175: 257.0078
A176: 173 | B176: Liechtenstein | C176: 119.4194 | D176: 9.214615095e-06 | F176: 173 | G176: Guiné Equatorial | H176: 5.9864 | I176: 4.003354956e-07 | K176: 173 | L176: Haiti | M176: 328.8052 | N176: 1.177954276e-05 | O176: 328.2412
A177: 174 | B177: Afeganistão | C177: 109.4574 | D177: 8.445929308e-06 | F177: 174 | G177: Barém | H177: 4.6014 | I177: 3.077147784e-07 | K177: 174 | L177: Comores | M177: 311.607 | N177: 1.11634122e-05 | O177: 311.607
A178: 175 | B178: Quirguizistão | C178: 109.2342 | D178: 8.428706795e-06 | F178: 175 | G178: São Cristovão e Nevis | H178: 4.4456 | I178: 2.972957837e-07 | K178: 175 | L178: Nova Caledónia | M178: 303.3516 | N178: 1.086766007e-05 | O178: 301.9368
A179: 176 | B179: Virgens Britânicas, Ilhas | C179: 102.589 | D179: 7.915951244e-06 | F179: 176 | G179: Afeganistão | H179: 4.3746 | I179: 2.92547718e-07 | K179: 176 | L179: Somália | M179: 292.9902 | N179: 1.049645988e-05 | O179: 292.9902
A180: 177 | B180: Botswana | C180: 98.1832 | D180: 7.575991814e-06 | F180: 177 | G180: Niger | H180: 3.2668 | I180: 2.184645191e-07 | K180: 177 | L180: Bahamas | M180: 280.4744 | N180: 1.004807767e-05 | O180: 280.4744
A181: 178 | B181: Jibuti | C181: 96.957 | D181: 7.481376023e-06 | F181: 178 | G181: Liechtenstein | H181: 1.8556 | I181: 1.240916988e-07 | K181: 178 | L181: São Marino | M181: 252.739 | N181: 9.05444883e-06 | O181: 187.1986
A182: 179 | B182: Centro-Africana, República | C182: 96.3624 | D182: 7.43549562e-06 | F182: 179 | G182: Lesoto | H182: 1.7136 | I182: 1.145955675e-07 | K182: 179 | L182: Maldivas | M182: 235.2806 | N182: 8.428996527e-06 | O182: 22.855
A183: 180 | B183: Nepal | C183: 77.231 | D183: 5.959282482e-06 | F183: 180 | G183: Butão | H183: 1.2178 | I183: 8.143935697e-08 | K183: 180 | L183: Bonaire, Santo Eustáquio e Saba | M183: 206.5448 | N183: 7.399528061e-06 | O183: 206.5448
A184: 181 | B184: Zimbabwe | C184: 64.9592 | D184: 5.012368383e-06 | F184: 181 | G184: Bermudas | H184: 0.8214 | I184: 5.493043835e-08 | K184: 181 | L184: Fiji, Ilhas | M184: 135.9458 | N184: 4.870298172e-06 | O184: -111.7334
A185: 182 | B185: Caimão, Ilhas | C185: 51.6906 | D185: 3.988539409e-06 | F185: 182 | G185: Nova Caledónia | H185: 0.7074 | I185: 4.730678364e-08 | K185: 182 | L185: Botswana | M185: 128.2116 | N185: 4.593218188e-06 | O185: 68.1548
A186: 183 | B186: Mongólia | C186: 37.8358 | D186: 2.919478191e-06 | F186: 183 | G186: Ruanda | H186: 0.67 | I186: 4.480568991e-08 | K186: 183 | L186: Quirguizistão | M186: 126.71 | N186: 4.539422927e-06 | O186: 91.7584
A187: 184 | B187: Turcas e Caicos, Ilhas | C187: 19.071 | D187: 1.471552566e-06 | F187: 184 | G187: Polinésia Francesa | H187: 0.4978 | I187: 3.328995886e-08 | K187: 184 | L187: Liechtenstein | M187: 121.275 | N187: 4.344712458e-06 | O187: 117.5638
A188: 185 | B188: Laos, República Democrática Popular do | C188: 15.8498 | D188: 1.222998996e-06 | F188: 185 | G188: Território Palestiniano Ocupado | H188: 0.4852 | I188: 3.244734439e-08 | K188: 185 | L188: Santa Lúcia | M188: 120.2746 | N188: 4.308872834e-06 | O188: 120.2294
A189: 186 | B189: Fiji, Ilhas | C189: 12.1062 | D189: 9.341361058e-07 | F189: 186 | G189: São Bartolomeu | H189: 0.3556 | I189: 2.378045273e-08 | K189: 186 | L189: Afeganistão | M189: 113.832 | N189: 4.078064799e-06 | O189: 105.0828
A190: 187 | B190: Anguila | C190: 10.0614 | D190: 7.763556702e-07 | F190: 187 | G190: Montenegro | H190: 0.3524 | I190: 2.356645541e-08 | K190: 187 | L190: Jibuti | M190: 104.2592 | N190: 3.73511643e-06 | O190: 89.6548
A191: 188 | B191: Malavi | C191: 9.1292 | D191: 7.044254462e-07 | F191: 188 | G191: Micronésia, Estados Federados da | H191: 0.3438 | I191: 2.29913376e-08 | K191: 188 | L191: Virgens Britânicas, Ilhas | M191: 102.596 | N191: 3.675531802e-06 | O191: 102.582
A192: 189 | B192: Brunei Darussalam | C192: 7.7238 | D192: 5.959822615e-07 | F192: 189 | G192: Trindade e Tobago | H192: 0.3238 | I192: 2.165385432e-08 | K192: 189 | L192: Nepal | M192: 88.3274 | N192: 3.164355021e-06 | O192: 66.1346
A193: 190 | B193: São Vicente e Granadinas | C193: 7.6034 | D193: 5.866919815e-07 | F193: 190 | G193: Haiti | H193: 0.282 | I193: 1.885851426e-08 | K193: 190 | L193: Tajiquistão | M193: 59.4122 | N193: 2.128459497e-06 | O193: -59.4122
A194: 191 | B194: Guam | C194: 6.6636 | D194: 5.141753279e-07 | F194: 191 | G194: Oceano Indico, Território Britânico do | H194: 0.128 | I194: 8.559892998e-09 | K194: 191 | L194: Caimão, Ilhas | M194: 51.6906 | N194: 1.851830911e-06 | O194: 51.6906
A195: 192 | B195: Territórios Franceses do Sul | C195: 6.3102 | D195: 4.8690635e-07 | F195: 192 | G195: Burundi | H195: 0.114 | I195: 7.623654701e-09 | K195: 192 | L195: Falkland Ilhas (Malvinas) | M195: 38.0622 | N195: 1.363589483e-06 | O195: -38.0622
A196: 193 | B196: Menores distantes dos Estados Unidos, lhas | C196: 4.5544 | D196: 3.514256728e-07 | F196: 193 | G196: Nauru | H196: 0.0694 | I196: 4.641066985e-09 | K196: 193 | L196: Mongólia | M196: 37.85 | N196: 1.355987355e-06 | O196: 37.8216
A197: 194 | B197: Sudão do Sul | C197: 3.771 | D197: 2.909771237e-07 | F197: 194 | G197: Vanuatu | H197: 0.065 | I197: 4.346820663e-09 | K197: 194 | L197: São Pedro e Miquelon | M197: 29.2314 | N197: 1.047223482e-06 | O197: -28.5998
A198: 195 | B198: Melilha | C198: 3.6164 | D198: 2.790479104e-07 | F198: 195 | G198: Santa Lúcia | H198: 0.0226 | I198: 1.511356107e-09 | K198: 195 | L198: Turcas e Caicos, Ilhas | M198: 19.071 | N198: 6.832241705e-07 | O198: 19.071
A199: 196 | B199: Marianas do Norte, Ilhas | C199: 2.9244 | D199: 2.256519492e-07 | F199: 196 | G199: São Vicente e Granadinas | H199: 0.0144 | I199: 9.629879622e-10 | K199: 196 | L199: Salomão, Ilhas | M199: 16.0532 | N199: 5.751106001e-07 | O199: -16.0532
A200: 197 | B200: Papuásia-Nova Guiné | C200: 2.8856 | D200: 2.226580716e-07 | F200: 197 | G200: Mongólia | H200: 0.0142 | I200: 9.496131294e-10 | K200: 197 | L200: Santa Helena | M200: 15.7338 | N200: 5.636680014e-07 | O200: -15.7338
... 59 more rows

Sheet 2AA
A1: Ranking dos parceiros comerciais de Portugal por país (média 2018-2022 em milhares de euros) produtos agrícolas e agroalimentares
A2: Exportações | F2: Importações | K2: Trocas comerciais (total e saldo)
A3: P | B3: País | C3: média quinquénio | D3: % do Total | F3: P | G3: País | H3: média quinquénio | I3: % do Total | K3: P | L3: País | M3: Total (exp+imp) | N3: % do Total | O3: Saldo (exp-imp)
A4: 1 | B4: Espanha | C4: 2415706.759 | D4: 0.3417342339 | F4: 1 | G4: Espanha | H4: 4700233.367 | I4: 0.4607579981 | K4: 1 | L4: Espanha | M4: 7115940.126 | N4: 0.4120392909 | O4: -2284526.609
A5: 2 | B5: França | C5: 675806.7388 | D5: 0.09560195886 | F5: 2 | G5: França | H5: 803086.6822 | I5: 0.07872558298 | K5: 2 | L5: França | M5: 1478893.421 | N5: 0.08563340693 | O5: -127279.9434
A6: 3 | B6: Itália | C6: 450048.5236 | D6: 0.06366542085 | F6: 3 | G6: Alemanha | H6: 693242.9014 | I6: 0.06795773454 | K6: 3 | L6: Alemanha | M6: 953060.8432 | N6: 0.05518575298 | O6: -433424.9596
A7: 4 | B7: Brasil | C7: 371201.5514 | D7: 0.05251145543 | F7: 4 | G7: Países Baixos | H7: 600479.2596 | I7: 0.05886423076 | K7: 4 | L7: Países Baixos | M7: 932127.81 | N7: 0.05397365282 | O7: -268830.7092
A8: 5 | B8: Países Baixos | C8: 331648.5504 | D8: 0.0469161511 | F8: 5 | G8: Brasil | H8: 551829.2644 | I8: 0.05409513258 | K8: 5 | L8: Brasil | M8: 923030.8158 | N8: 0.05344690316 | O8: -180627.713
A9: 6 | B9: Angola | C9: 270788.7526 | D9: 0.03830671359 | F9: 6 | G9: Itália | H9: 327446.3636 | I9: 0.03209915746 | K9: 6 | L9: Itália | M9: 777494.8872 | N9: 0.04501983383 | O9: 122602.16 | P9: Nota: Nesta listagem, o Reino Unido passa a ser constituído por três componentes: Reino Unido [até 2020] ; Reino Unido (sem Irlanda do Norte) pós-2020 e Reino Unido (Irlanda do Norte) pós-2020. Estas componentes são calculadas igualmente como média do quinquénio, embora a primeira corresponda apenas a 2018-2020 e as duas últimas a 2021-2022.
A10: 7 | B10: Alemanha | C10: 259817.9418 | D10: 0.03675474475 | F10: 7 | G10: Bélgica | H10: 257333.6916 | I10: 0.02522609992 | K10: 7 | L10: Bélgica | M10: 424096.2578 | N10: 0.02455674419 | O10: -90571.1254
A11: 8 | B11: Reino Unido | C11: 202835.6198 | D11: 0.02869382838 | F11: 8 | G11: Estados Unidos | H11: 216724.4778 | I11: 0.02124522949 | K11: 8 | L11: Estados Unidos | M11: 400307.8654 | N11: 0.02317930816 | O11: -33141.0902
A12: 9 | B12: Estados Unidos | C12: 183583.3876 | D12: 0.02597034102 | F12: 9 | G12: Ucrânia | H12: 191922.8274 | I12: 0.01881395472 | K12: 9 | L12: Polónia | M12: 317334.5188 | N12: 0.01837484405 | O12: -48783.4444
A13: 10 | B13: Israel | C13: 169488.4306 | D13: 0.02397641965 | F13: 10 | G13: Polónia | H13: 183058.9816 | I13: 0.017945043 | K13: 10 | L13: Reino Unido | M13: 313115.4092 | N13: 0.01813054198 | O13: 92555.8304
A14: 11 | B14: Bélgica | C14: 166762.5662 | D14: 0.02359080944 | F14: 11 | G14: Roménia | H14: 135395.1758 | I14: 0.01327261974 | K14: 11 | L14: Angola | M14: 277910.725 | N14: 0.01609206036 | O14: 263666.7802
A15: 12 | B15: Reino Unido (sem Irlanda do Norte) pós 2020 | C15: 153037.8236 | D15: 0.02164925988 | F15: 12 | G15: África do Sul | H15: 112521.5396 | I15: 0.01103034579 | K15: 12 | L15: Reino Unido (sem Irlanda do Norte) pós 2020 | M15: 202616.3834 | N15: 0.01173223909 | O15: 103459.2638
A16: 13 | B16: Polónia | C16: 134275.5372 | D16: 0.01899508195 | F16: 13 | G16: Reino Unido | H16: 110279.7894 | I16: 0.01081058982 | K16: 13 | L16: Ucrânia | M16: 198678.0056 | N16: 0.01150419243 | O16: -185167.6492
A17: 14 | B17: Suíça | C17: 91992.068 | D17: 0.01301351614 | F17: 14 | G17: Irlanda | H17: 108062.8466 | I17: 0.01059326569 | K17: 14 | L17: Canadá | M17: 175329.8698 | N17: 0.01015224889 | O17: -30892.3678
A18: 15 | B18: Cabo Verde | C18: 85414.0192 | D18: 0.0120829626 | F18: 15 | G18: Canadá | H18: 103111.1188 | I18: 0.01010785401 | K18: 15 | L18: Israel | M18: 174655.5912 | N18: 0.01011320566 | O18: 164321.27
A19: 16 | B19: Canadá | C19: 72218.751 | D19: 0.01021631432 | F19: 16 | G19: Argentina | H19: 72787.4116 | I19: 0.007135258919 | K19: 16 | L19: Roménia | M19: 151197.393 | N19: 0.008754889093 | O19: -119592.9586
A20: 17 | B20: China, República Popular da | C20: 72213.4462 | D20: 0.01021556388 | F20: 17 | G20: Dinamarca | H20: 70233.1534 | I20: 0.006884868183 | K20: 17 | L20: Irlanda | M20: 134807.959 | N20: 0.007805880158 | O20: -81317.7342
A21: 18 | B21: Japão | C21: 54923.0146 | D21: 0.007769599622 | F21: 18 | G21: Costa Rica | H21: 69966.4334 | I21: 0.006858721955 | K21: 18 | L21: África do Sul | M21: 134356.7194 | N21: 0.007779751714 | O21: -90686.3598
A22: 19 | B22: Suécia | C22: 50793.0088 | D22: 0.007185354716 | F22: 19 | G22: Reino Unido (sem Irlanda do Norte) pós 2020 | H22: 49578.5598 | I22: 0.004860124206 | K22: 19 | L22: Dinamarca | M22: 117665.3674 | N22: 0.006813260608 | O22: -22800.9394
A23: 20 | B23: Rússia, Federação da | C23: 48391.7838 | D23: 0.006845669122 | F23: 20 | G23: China, República Popular da | H23: 45047.8158 | I23: 0.004415981039 | K23: 20 | L23: China, República Popular da | M23: 117261.262 | N23: 0.006789861408 | O23: 27165.6304
A24: 21 | B24: Dinamarca | C24: 47432.214 | D24: 0.006709925059 | F24: 21 | G24: Bulgária | H24: 43907.4694 | I24: 0.004304194307 | K24: 21 | L24: Suíça | M24: 94990.5356 | N24: 0.005500303858 | O24: 88993.6004
A25: 22 | B25: Luxemburgo | C25: 45125.6972 | D25: 0.006383637214 | F25: 22 | G25: Cuba | H25: 35799.7426 | I25: 0.00350940399 | K25: 22 | L25: Cabo Verde | M25: 85541.4296 | N25: 0.004953165621 | O25: 85286.6088
A26: 23 | B26: Marrocos | C26: 40786.9258 | D26: 0.005769859604 | F26: 23 | G26: Grécia | H26: 30645.8102 | I26: 0.003004170443 | K26: 23 | L26: Argentina | M26: 73024.74 | N26: 0.004228402931 | O26: -72550.0832
A27: 24 | B27: Guiné-Bissau | C27: 30105.237 | D27: 0.004258790959 | F27: 24 | G27: Vietname | H27: 28845.3448 | I27: 0.002827673072 | K27: 24 | L27: Costa Rica | M27: 71166.1566 | N27: 0.004120784068 | O27: -68766.7102
A28: 25 | B28: Irlanda | C28: 26745.1124 | D28: 0.00378345611 | F28: 25 | G28: Colômbia | H28: 28227.4602 | I28: 0.002767102617 | K28: 25 | L28: Japão | M28: 68496.2538 | N28: 0.003966186807 | O28: 41349.7754
A29: 26 | B29: São Tomé e Príncipe | C29: 25259.196 | D29: 0.003573253237 | F29: 26 | G29: Guiana | H29: 28025.2924 | I29: 0.002747284361 | K29: 26 | L29: Suécia | M29: 64449.5152 | N29: 0.003731865653 | O29: 37136.5024
A30: 27 | B30: Arábia Saudita | C30: 25195.0996 | D30: 0.003564185938 | F30: 27 | G30: Chile | H30: 24583.4362 | I30: 0.002409883503 | K30: 27 | L30: Rússia, Federação da | M30: 60550.976 | N30: 0.003506125793 | O30: 36232.5916
A31: 28 | B31: Moçambique | C31: 25036.1622 | D31: 0.003541702104 | F31: 28 | G31: Áustria | H31: 23718.0114 | I31: 0.002325046992 | K31: 28 | L31: Luxemburgo | M31: 53191.4828 | N31: 0.003079983877 | O31: 37059.9116
A32: 29 | B32: Grécia | C32: 22444.1484 | D32: 0.003175026866 | F32: 29 | G32: Uruguai | H32: 22544.1794 | I32: 0.002209977709 | K32: 29 | L32: Grécia | M32: 53089.9586 | N32: 0.003074105249 | O32: -8201.6618
A33: 30 | B33: África do Sul | C33: 21835.1798 | D33: 0.003088880062 | F33: 30 | G33: Checa, República | H33: 21986.3926 | I33: 0.002155298567 | K33: 30 | L33: Bulgária | M33: 52078.8802 | N33: 0.003015560065 | O33: -35736.0586
A34: 31 | B34: Finlândia | C34: 19871.7108 | D34: 0.002811120945 | F34: 31 | G34: Costa do Marfim | H34: 21706.691 | I34: 0.002127879769 | K34: 31 | L34: Marrocos | M34: 50674.6404 | N34: 0.002934249379 | O34: 30899.2112
A35: 32 | B35: Checa, República | C35: 18184.9724 | D35: 0.002572509097 | F35: 32 | G35: Índia | H35: 20830.7032 | I35: 0.00204200778 | K35: 32 | L35: Checa, República | M35: 40171.365 | N35: 0.002326070829 | O35: -3801.4202
A36: 33 | B36: Jordânia | C36: 17519.4376 | D36: 0.002478360242 | F36: 33 | G36: Paraguai | H36: 18542.9402 | I36: 0.001817741235 | K36: 33 | L36: Cuba | M36: 38669.2808 | N36: 0.00223909459 | O36: -32930.2044
A37: 34 | B37: Noruega | C37: 16995.9884 | D37: 0.002404311308 | F37: 34 | G37: Turquia | H37: 17991.0046 | I37: 0.001763635678 | K37: 34 | L37: Áustria | M37: 38078.486 | N37: 0.002204885383 | O37: -9357.5368
A38: 35 | B38: Roménia | C38: 15802.2172 | D38: 0.002235436304 | F38: 35 | G38: Hungria | H38: 16792.9934 | I38: 0.001646196139 | K38: 35 | L38: Moçambique | M38: 35149.7218 | N38: 0.002035299088 | O38: 14922.6026
A39: 36 | B39: Austrália | C39: 14444.222 | D39: 0.002043329606 | F39: 36 | G39: Uganda | H39: 16711.9036 | I39: 0.001638247007 | K39: 36 | L39: Colômbia | M39: 34588.8908 | N39: 0.002002824895 | O39: -21866.0296
A40: 37 | B40: Áustria | C40: 14360.4746 | D40: 0.002031482409 | F40: 37 | G40: Suécia | H40: 13656.5064 | I40: 0.001338730241 | K40: 37 | L40: Vietname | M40: 30879.9888 | N40: 0.001788065732 | O40: -26810.7008
A41: 38 | B41: Coreia, República da | C41: 13720.4568 | D41: 0.001940943277 | F41: 38 | G41: Japão | H41: 13573.2392 | I41: 0.001330567662 | K41: 38 | L41: Guiné-Bissau | M41: 30466.6832 | N41: 0.001764133807 | O41: 29743.7908
A42: 39 | B42: Iraque | C42: 12397.914 | D42: 0.001753851798 | F42: 39 | G42: Suazilândia | H42: 13238.5804 | I42: 0.001297761478 | K42: 39 | L42: Chile | M42: 30213.2108 | N42: 0.001749456816 | O42: -18953.6616
A43: 40 | B43: Emirados Árabes Unidos | C43: 11828.644 | D43: 0.001673320895 | F43: 40 | G43: Indonésia | H43: 13212.7406 | I43: 0.001295228435 | K43: 40 | L43: Guiana | M43: 28043.5358 | N43: 0.001623824597 | O43: -28007.049
A44: 41 | B44: Argélia | C44: 11256.5744 | D44: 0.001592393951 | F44: 41 | G44: México | H44: 13063.7214 | I44: 0.001280620269 | K44: 41 | L44: Hungria | M44: 28003.0576 | N44: 0.001621480759 | O44: -5582.9292
A45: 42 | B45: Macau | C45: 11226.3746 | D45: 0.001588121783 | F45: 42 | G45: Austrália | H45: 12930.0706 | I45: 0.001267518648 | K45: 42 | L45: Turquia | M45: 27957.3216 | N45: 0.001618832475 | O45: -8024.6876
A46: 43 | B46: Hungria | C46: 11210.0642 | D46: 0.001585814457 | F46: 43 | G46: Rússia, Federação da | H46: 12159.1922 | I46: 0.001191950403 | K46: 43 | L46: Finlândia | M46: 27396.6714 | N46: 0.001586368752 | O46: 12346.7502
A47: 44 | B47: Nigéria | C47: 10936.4444 | D47: 0.001547107254 | F47: 44 | G47: Moldava, República de | H47: 11903.439 | I47: 0.001166879237 | K47: 44 | L47: Austrália | M47: 27374.2926 | N47: 0.001585072937 | O47: 1514.1514
A48: 45 | B48: Turquia | C48: 9966.317 | D48: 0.001409869676 | F48: 45 | G48: Lituânia | H48: 11893.779 | I48: 0.001165932279 | K48: 45 | L48: Costa do Marfim | M48: 27312.2412 | N48: 0.001581479931 | O48: -16101.1408
A49: 46 | B49: Território Palestiniano Ocupado | C49: 9369.3582 | D49: 0.001325421819 | F49: 46 | G49: Peru | H49: 11310.0138 | I49: 0.001108706507 | K49: 46 | L49: São Tomé e Príncipe | M49: 26312.808 | N49: 0.001523609046 | O49: 24205.584
A50: 47 | B50: Eslováquia | C50: 9079.0046 | D50: 0.001284347395 | F50: 47 | G50: Paquistão | H50: 10304.445 | I50: 0.001010131855 | K50: 47 | L50: Arábia Saudita | M50: 25220.0634 | N50: 0.001460335087 | O50: 25170.1358
A51: 48 | B51: Senegal | C51: 8493.732 | D51: 0.001201552708 | F51: 48 | G51: Tailândia | H51: 10200.8142 | I51: 0.0009999730572 | K51: 48 | L51: Uruguai | M51: 24295.8202 | N51: 0.001406817982 | O51: -20792.5386
A52: 49 | B52: Bulgária | C52: 8171.4108 | D52: 0.001155956036 | F52: 49 | G52: Moçambique | H52: 10113.5596 | I52: 0.0009914195979 | K52: 49 | L52: Índia | M52: 23845.568 | N52: 0.001380746712 | O52: -17815.8384
A53: 50 | B53: Líbia, Jamahira Árabe da | C53: 7994.4952 | D53: 0.001130928944 | F53: 50 | G53: Marrocos | H53: 9887.7146 | I53: 0.000969280295 | K53: 50 | L53: Paraguai | M53: 19187.5668 | N53: 0.001111031189 | O53: -17898.3136
A54: 51 | B54: Gibraltar | C54: 7555.2434 | D54: 0.001068790865 | F54: 51 | G54: Egito | H54: 9790.5476 | I54: 0.0009597551355 | K54: 51 | L54: México | M54: 18719.3066 | N54: 0.001083917189 | O54: -7408.1362
A55: 52 | B55: Kuwait | C55: 7350.4748 | D55: 0.00103982359 | F55: 52 | G55: Sérvia | H55: 8809.786 | I55: 0.0008636123026 | K55: 52 | L55: Noruega | M55: 18007.7536 | N55: 0.001042715635 | O55: 15984.2232
A56: 53 | B56: Ucrânia | C56: 6755.1782 | D56: 0.0009556108741 | F56: 53 | G56: Equador | H56: 8208.356 | I56: 0.0008046548719 | K56: 53 | L56: Jordânia | M56: 17549.35 | N56: 0.001016172368 | O56: 17489.5252
A57: 54 | B57: Colômbia | C57: 6361.4306 | D57: 0.0008999099766 | F57: 54 | G57: Luxemburgo | H57: 8065.7856 | I57: 0.000790678874 | K57: 54 | L57: Uganda | M57: 17196.9522 | N57: 0.0009957672303 | O57: -16226.855
A58: 55 | B58: Letónia | C58: 5847.3278 | D58: 0.0008271832163 | F58: 55 | G58: Nova Zelânda | H58: 7880.7508 | I58: 0.0007725401439 | K58: 55 | L58: Lituânia | M58: 16927.7228 | N58: 0.0009801778508 | O58: -6859.8352
A59: 56 | B59: HongKong | C59: 5831.0346 | D59: 0.0008248783238 | F59: 56 | G59: Finlândia | H59: 7524.9606 | I59: 0.0007376624757 | K59: 56 | L59: Suazilândia | M59: 15229.1586 | N59: 0.0008818246921 | O59: -11248.0022
A60: 57 | B60: Maurícias | C60: 5663.2906 | D60: 0.0008011486774 | F60: 57 | G60: Letónia | H60: 7523.6884 | I60: 0.0007375377635 | K60: 57 | L60: Coreia, República da | M60: 14661.023 | N60: 0.0008489275365 | O60: 12779.8906
A61: 58 | B61: México | C61: 5655.5852 | D61: 0.0008000586448 | F61: 58 | G61: Malásia | H61: 7403.8212 | I61: 0.0007257873318 | K61: 58 | L61: Indonésia | M61: 14350.1382 | N61: 0.000830926155 | O61: -12075.343
A62: 59 | B62: Chile | C62: 5629.7746 | D62: 0.0007964073881 | F62: 59 | G62: Angola | H62: 7121.9724 | I62: 0.0006981580464 | K62: 59 | L62: Letónia | M62: 13371.0162 | N62: 0.0007742313645 | O62: -1676.3606
A63: 60 | B63: Costa do Marfim | C63: 5605.5502 | D63: 0.0007929805207 | F63: 60 | G63: Camarões | H63: 6330.963 | I63: 0.0006206163843 | K63: 60 | L63: Tailândia | M63: 13287.6996 | N63: 0.0007694070248 | O63: -7113.9288
A64: 61 | B64: Andorra | C64: 5268.3636 | D64: 0.0007452809379 | F64: 61 | G64: Honduras | H64: 6193.8364 | I64: 0.0006071740352 | K64: 61 | L64: Peru | M64: 13096.7276 | N64: 0.0007583490386 | O64: -9523.3
A65: 62 | B65: Lituânia | C65: 5033.9438 | D65: 0.0007121191022 | F65: 62 | G65: Etiópia | H65: 5332.904 | I65: 0.0005227779089 | K65: 62 | L65: Eslováquia | M65: 12639.492 | N65: 0.0007318734038 | O65: 5518.5172
A66: 63 | B66: Malta | C66: 4911.2352 | D66: 0.0006947603192 | F66: 63 | G66: Israel | H66: 5167.1606 | I66: 0.0005065302907 | K66: 63 | L66: Iraque | M66: 12410.178 | N66: 0.0007185952738 | O66: 12385.65
A67: 64 | B67: Estónia | C67: 4891.9612 | D67: 0.0006920337525 | F67: 64 | G67: Belize | H67: 5153.7922 | I67: 0.0005052198032 | K67: 64 | L67: Emirados Árabes Unidos | M67: 12284.869 | N67: 0.0007113394185 | O67: 11372.419
A68: 65 | B68: Síria, República Árabe da | C68: 4399.3294 | D68: 0.000622344354 | F68: 65 | G68: Camboja | H68: 4964.3942 | I68: 0.0004866533541 | K68: 65 | L68: Moldava, República de | M68: 12104.827 | N68: 0.0007009143198 | O68: -11702.051
A69: 66 | B69: Chipre | C69: 4051.8682 | D69: 0.0005731912908 | F69: 66 | G69: Zimbabwe | H69: 4709.0808 | I69: 0.0004616253009 | K69: 66 | L69: Argélia | M69: 11803.9212 | N69: 0.0006834907595 | O69: 10709.2276
A70: 67 | B70: Omã | C70: 3805.6814 | D70: 0.0005383648545 | F70: 67 | G70: Guatemala | H70: 4635.2426 | I70: 0.0004543870345 | K70: 67 | L70: Sérvia | M70: 11344.2962 | N70: 0.0006568767695 | O70: -6275.2758
A71: 68 | B71: Eslovénia | C71: 3315.0192 | D71: 0.0004689540826 | F71: 68 | G71: Suriname | H71: 4613.819 | I71: 0.0004522869058 | K71: 68 | L71: Egito | M71: 11329.12 | N71: 0.0006559980113 | O71: -8251.9752
A72: 69 | B72: Mali | C72: 3288.1148 | D72: 0.0004651480931 | F72: 69 | G72: Macedónia, Antiga República jugoslava da | H72: 4601.7574 | I72: 0.0004511045222 | K72: 69 | L72: Macau | M72: 11244.0184 | N72: 0.0006510703135 | O72: 11208.7308
A73: 70 | B73: Tailândia | C73: 3086.8854 | D73: 0.0004366814861 | F73: 70 | G73: Tanzânia, República Unida da | H73: 4539.7292 | I73: 0.0004450239753 | K73: 70 | L73: Nigéria | M73: 11134.6158 | N73: 0.0006447354977 | O73: 10738.273
A74: 71 | B74: Índia | C74: 3014.8648 | D74: 0.0004264932029 | F74: 71 | G74: Eslovénia | H74: 4539.0796 | I74: 0.0004449602959 | K74: 71 | L74: Paquistão | M74: 10571.2956 | N74: 0.0006121171716 | O74: -10037.5944
A75: 72 | B75: Singapura | C75: 2938.7244 | D75: 0.0004157221186 | F75: 72 | G75: Filipinas | H75: 4493.8362 | I75: 0.0004405251419 | K75: 72 | L75: Nova Zelânda | M75: 10270.7832 | N75: 0.0005947163905 | O75: -5490.7184
A76: 73 | B76: Cuba | C76: 2869.5382 | D76: 0.0004059347994 | F76: 73 | G76: Tunísia | H76: 4123.8374 | I76: 0.0004042546224 | K76: 73 | L76: Território Palestiniano Ocupado | M76: 9369.8434 | N76: 0.000542548639 | O76: 9368.873
A77: 74 | B77: Gana | C77: 2746.7854 | D77: 0.0003885697637 | F77: 74 | G77: Estónia | H77: 4040.7446 | I77: 0.0003961091391 | K77: 74 | L77: Senegal | M77: 9057.1362 | N77: 0.0005244417338 | O77: 7930.3278
A78: 75 | B78: Taiwan | C78: 2744.6238 | D78: 0.0003882639763 | F78: 75 | G78: Mali | H78: 3761.0172 | I78: 0.000368687812 | K78: 75 | L78: Equador | M78: 9035.7916 | N78: 0.0005232058024 | O78: -7380.9204
A79: 76 | B79: Sérvia | C79: 2534.5102 | D79: 0.0003585405797 | F79: 76 | G79: Eslováquia | H79: 3560.4874 | I79: 0.0003490301265 | K79: 76 | L79: Estónia | M79: 8932.7058 | N79: 0.0005172367528 | O79: 851.2166
A80: 77 | B80: Líbano | C80: 2490.8708 | D80: 0.0003523671992 | F80: 77 | G80: Myanmar | H80: 3336.3804 | I80: 0.0003270611976 | K80: 77 | L80: Malásia | M80: 8922.5932 | N80: 0.0005166511958 | O80: -5885.0492
A81: 78 | B81: Timor-Leste | C81: 2471.9198 | D81: 0.0003496863252 | F81: 78 | G81: Quénia | H81: 3256.788 | I81: 0.0003192588542 | K81: 78 | L81: Camarões | M81: 8612.0928 | N81: 0.0004986720725 | O81: -4049.8332
A82: 79 | B82: Belarus | C82: 2455.9286 | D82: 0.0003474241547 | F82: 79 | G82: Malavi | H82: 3254.1854 | I82: 0.0003190037245 | K82: 79 | L82: Kuwait | M82: 8534.0068 | N82: 0.0004941506039 | O82: 6166.9428
A83: 80 | B83: Nova Zelânda | C83: 2390.0324 | D83: 0.0003381022503 | F83: 80 | G83: Nicarágua | H83: 3164.5168 | I83: 0.0003102136238 | K83: 80 | L83: Líbia, Jamahira Árabe da | M83: 8000.447 | N83: 0.0004632555151 | O83: 7988.5434
A84: 81 | B84: Filipinas | C84: 2342.9576 | D84: 0.0003314428863 | F84: 81 | G84: Chipre | H84: 3103.6452 | I84: 0.000304246457 | K84: 81 | L84: Eslovénia | M84: 7854.0988 | N84: 0.0004547814123 | O84: -1224.0604
A85: 82 | B85: Guiné | C85: 2294.4076 | D85: 0.0003245748354 | F85: 82 | G85: Sri Lanca | H85: 3086.3876 | I85: 0.0003025547161 | K85: 82 | L85: Gibraltar | M85: 7555.2434 | N85: 0.0004374765776 | O85: 7555.2434
A86: 83 | B86: Camarões | C86: 2281.1298 | D86: 0.0003226965118 | F86: 83 | G86: Suíça | H86: 2998.4676 | I86: 0.0002939360284 | K86: 83 | L86: Maurícias | M86: 7215.0914 | N86: 0.0004177805169 | O86: 4111.4898
A87: 84 | B87: Irão, República Islâmica do | C87: 2234.7082 | D87: 0.0003161295517 | F87: 84 | G87: Taiwan | H87: 2719.0514 | I87: 0.0002665452078 | K87: 84 | L87: Chipre | M87: 7155.5134 | N87: 0.00041433073 | O87: 948.223
A88: 85 | B88: Congo | C88: 2180.7492 | D88: 0.000308496325 | F88: 85 | G88: Reino Unido (Irlanda do Norte) pós-2020 | H88: 2486.6052 | I88: 0.0002437587976 | K88: 85 | L88: Mali | M88: 7049.132 | N88: 0.0004081708529 | O88: -472.9024
A89: 86 | B89: Seychelles | C89: 2103.9052 | D89: 0.0002976257069 | F89: 86 | G89: Dominicana, República | H89: 2224.7388 | I89: 0.0002180883619 | K89: 86 | L89: HongKong | M89: 7034.0506 | N89: 0.000407297584 | O89: 4628.0186
A90: 87 | B90: Gabão | C90: 2079.6516 | D90: 0.0002941947088 | F90: 87 | G90: Serra Leoa | H90: 1997.841 | I90: 0.0001958458544 | K90: 87 | L90: Honduras | M90: 7007.5386 | N90: 0.000405762441 | O90: -5380.1342
A91: 88 | B91: Venezuela | C91: 2058.4802 | D91: 0.0002911997293 | F91: 88 | G91: Benim | H91: 1817.5436 | I91: 0.0001781715258 | K91: 88 | L91: Filipinas | M91: 6836.7938 | N91: 0.0003958756847 | O91: -2150.8786
A92: 89 | B92: Vietname | C92: 2034.644 | D92: 0.000287827778 | F92: 89 | G92: Croácia | H92: 1794.8456 | I92: 0.0001759464692 | K92: 89 | L92: Etiópia | M92: 6077.3128 | N92: 0.0003518989216 | O92: -4588.4952
A93: 90 | B93: Suazilândia | C93: 1990.5782 | D93: 0.0002815940775 | F93: 90 | G93: Burquina Faso | H93: 1725.7566 | I93: 0.000169173761 | K93: 90 | L93: Taiwan | M93: 5463.6752 | N93: 0.0003163670317 | O93: 25.5724
A94: 91 | B94: Sudão | C94: 1865.0268 | D94: 0.0002638331422 | F94: 91 | G94: Gana | H94: 1658.8832 | I94: 0.0001626182452 | K94: 91 | L94: Malta | M94: 5451.155 | N94: 0.0003156420657 | O94: 4371.3154
A95: 92 | B95: Burquina Faso | C95: 1848.8938 | D95: 0.0002615509122 | F95: 92 | G95: Laos, República Democrática Popular do | H95: 1570.3752 | I95: 0.0001539419167 | K95: 92 | L95: Camboja | M95: 5365.826 | N95: 0.0003107012005 | O95: -4562.9624
A96: 93 | B96: Guiné Equatorial | C96: 1818.0792 | D96: 0.0002571917723 | F96: 93 | G96: Maurícias | H96: 1551.8008 | I96: 0.0001521210915 | K96: 93 | L96: Síria, República Árabe da | M96: 5349.1634 | N96: 0.0003097363743 | O96: 3449.4954
A97: 94 | B97: Peru | C97: 1786.7138 | D97: 0.0002527547143 | F97: 94 | G97: Madagáscar | H97: 1535.4408 | I97: 0.0001505173411 | K97: 94 | L97: Andorra | M97: 5273.09 | N97: 0.0003053314426 | O97: 5263.6372
A98: 95 | B98: Croácia | C98: 1762.667 | D98: 0.0002493529708 | F98: 95 | G98: Panamá | H98: 1513.6732 | I98: 0.0001483834905 | K98: 95 | L98: Belize | M98: 5155.9728 | N98: 0.000298549923 | O98: -5151.6116
A99: 96 | B99: Uruguai | C99: 1751.6408 | D99: 0.0002477931664 | F99: 96 | G99: Congo, República Democrática do | H99: 1226.6954 | I99: 0.0001202514158 | K99: 96 | L99: Guatemala | M99: 5127.1054 | N99: 0.0002968783936 | O99: -4143.3798
A100: 97 | B100: Dominicana, República | C100: 1708.9932 | D100: 0.0002417600894 | F100: 97 | G100: HongKong | H100: 1203.016 | I100: 0.0001179301538 | K100: 97 | L100: Tanzânia, República Unida da | M100: 4910.617 | N100: 0.0002843429133 | O100: -4168.8414
A101: 98 | B101: Benim | C101: 1572.4166 | D101: 0.0002224394912 | F101: 98 | G101: Kuwait | H101: 1183.532 | I101: 0.0001160201616 | K101: 98 | L101: Macedónia, Antiga República jugoslava da | M101: 4874.4688 | N101: 0.0002822497987 | O101: -4329.046
A102: 99 | B102: Bangladesh | C102: 1558.9346 | D102: 0.0002205322808 | F102: 99 | G102: Togo | H102: 1123.3282 | I102: 0.0001101184584 | K102: 99 | L102: Tunísia | M102: 4849.4484 | N102: 0.0002808010248 | O102: -3398.2264
A103: 100 | B103: Egito | C103: 1538.5724 | D103: 0.0002176517736 | F103: 100 | G103: Singapura | H103: 1066.466 | I103: 0.0001045443281 | K103: 100 | L103: Zimbabwe | M103: 4772.3634 | N103: 0.0002763375178 | O103: -4645.7982
A104: 101 | B104: Malásia | C104: 1518.772 | D104: 0.0002148507405 | F104: 101 | G104: São Tomé e Príncipe | H104: 1053.612 | I104: 0.0001032842665 | K104: 101 | L104: Suriname | M104: 4769.9158 | N104: 0.0002761957927 | O104: -4457.7222
A105: 102 | B105: Catar | C105: 1515.1716 | D105: 0.0002143414155 | F105: 102 | G105: Noruega | H105: 1011.7652 | I105: 9.918207707e-05 | K105: 102 | L105: Gana | M105: 4405.6686 | N105: 0.0002551045306 | O105: 1087.9022
A106: 103 | B106: Geórgia | C106: 1344.215 | D106: 0.0001901573035 | F106: 103 | G106: Síria, República Árabe da | H106: 949.834 | I106: 9.3111039e-05 | K106: 103 | L106: Omã | M106: 4283.851 | N106: 0.0002480508404 | O106: 3327.5118
A107: 104 | B107: Albânia | C107: 1266.1722 | D107: 0.0001791170991 | F107: 104 | G107: Coreia, República da | H107: 940.5662 | I107: 9.220252816e-05 | K107: 104 | L107: Singapura | M107: 4005.1904 | N107: 0.0002319153595 | O107: 1872.2584
A108: 105 | B108: Reino Unido (Irlanda do Norte) pós-2020 | C108: 1227.8066 | D108: 0.0001736897686 | F108: 105 | G108: El Salvador | H108: 728.093 | I108: 7.137404612e-05 | K108: 105 | L108: Dominicana, República | M108: 3933.732 | N108: 0.0002277776534 | O108: -515.7456
A109: 106 | B109: Costa Rica | C109: 1199.7232 | D109: 0.0001697169937 | F109: 106 | G109: Turquemenistão | H109: 720.6558 | I109: 7.06449867e-05 | K109: 106 | L109: Myanmar | M109: 3786.5898 | N109: 0.000219257575 | O109: -2886.171
A110: 107 | B110: Indonésia | C110: 1137.3976 | D110: 0.0001609001987 | F110: 107 | G110: Chade | H110: 675.9004 | I110: 6.625767082e-05 | K110: 107 | L110: Reino Unido (Irlanda do Norte) pós-2020 | M110: 3714.4118 | N110: 0.0002150782015 | O110: -1258.7986
A111: 108 | B111: Islândia | C111: 1133.5366 | D111: 0.0001603540083 | F111: 108 | G111: Timor-Leste | H111: 614.309 | I111: 6.021994291e-05 | K111: 108 | L111: Quénia | M111: 3707.2604 | N111: 0.0002146641089 | O111: -2806.3156
A112: 109 | B112: Congo, República Democrática do | C112: 1102.9278 | D112: 0.0001560239816 | F112: 109 | G112: Senegal | H112: 563.4042 | I112: 5.522980904e-05 | K112: 109 | L112: Nicarágua | M112: 3581.5684 | N112: 0.0002073860766 | O112: -2747.4652
A113: 110 | B113: Togo | C113: 886.836 | D113: 0.0001254548881 | F113: 110 | G113: Argélia | H113: 547.3468 | I113: 5.36557222e-05 | K113: 110 | L113: Burquina Faso | M113: 3574.6504 | N113: 0.0002069854987 | O113: 123.1372
A114: 111 | B114: Panamá | C114: 853.2114 | D114: 0.0001206982359 | F114: 111 | G114: Malta | H114: 539.9198 | I114: 5.292766268e-05 | K114: 111 | L114: Croácia | M114: 3557.5126 | N114: 0.0002059931566 | O114: -32.1786
A115: 112 | B115: Equador | C115: 827.4356 | D115: 0.000117051902 | F115: 112 | G115: Líbano | H115: 532.182 | I115: 5.216913582e-05 | K115: 112 | L115: Sri Lanca | M115: 3479.4264 | N115: 0.0002014716764 | O115: -2693.3488
A116: 113 | B116: Ruanda | C116: 825.8566 | D116: 0.0001168285312 | F116: 113 | G116: Omã | H116: 478.1696 | I116: 4.687436781e-05 | K116: 113 | L116: Benim | M116: 3389.9602 | N116: 0.0001962912521 | O116: -245.127
A117: 114 | B117: Honduras | C117: 813.7022 | D117: 0.0001151091278 | F117: 114 | G117: Emirados Árabes Unidos | H117: 456.225 | I117: 4.472316612e-05 | K117: 114 | L117: Malavi | M117: 3260.7888 | N117: 0.0001888117496 | O117: -3247.582
A118: 115 | B118: Bermudas | C118: 793.1712 | D118: 0.0001122047415 | F118: 115 | G118: Belarus | H118: 370.985 | I118: 3.636719553e-05 | K118: 115 | L118: Timor-Leste | M118: 3086.2288 | N118: 0.000178704079 | O118: 1857.6108
A119: 116 | B119: Etiópia | C119: 744.4088 | D119: 0.0001053066437 | F119: 116 | G119: Guiné-Bissau | H119: 361.4462 | I119: 3.54321189e-05 | K119: 116 | L119: Líbano | M119: 3023.0528 | N119: 0.0001750459546 | O119: 1958.6888
A120: 117 | B120: Tunísia | C120: 725.611 | D120: 0.0001026474419 | F120: 117 | G120: Usbequistão | H120: 308.3676 | I120: 3.022889013e-05 | K120: 117 | L120: Belarus | M120: 2826.9136 | N120: 0.0001636887684 | O120: 2084.9436
A121: 118 | B121: Burundi | C121: 677.0954 | D121: 9.578425733e-05 | F121: 118 | G121: Guiné | H121: 302.1342 | I121: 2.961783773e-05 | K121: 118 | L121: Guiné | M121: 2596.5418 | N121: 0.0001503493879 | O121: 1992.2734
A122: 119 | B122: Iémen | C122: 670.7886 | D122: 9.489207559e-05 | F122: 119 | G122: Geórgia | H122: 294.6596 | I122: 2.888511204e-05 | K122: 119 | L122: Serra Leoa | M122: 2499.2974 | N122: 0.0001447185769 | O122: -1496.3846
A123: 120 | B123: Paraguai | C123: 644.6266 | D123: 9.119110857e-05 | F123: 120 | G123: Bolívia | H123: 281.7088 | I123: 2.761556131e-05 | K123: 120 | L123: Irão, República Islâmica do | M123: 2440.2744 | N123: 0.0001413009266 | O123: 2029.142
A124: 121 | B124: Namíbia | C124: 633.7298 | D124: 8.964960955e-05 | F124: 121 | G124: Bangladesh | H124: 280.8088 | I124: 2.752733544e-05 | K124: 121 | L124: Congo | M124: 2380.0768 | N124: 0.0001378152626 | O124: 1981.4216
A125: 122 | B125: Azerbaijão | C125: 594.9756 | D125: 8.416730637e-05 | F125: 122 | G125: Irão, República Islâmica do | H125: 205.5662 | I125: 2.015139747e-05 | K125: 122 | L125: Panamá | M125: 2366.8846 | N125: 0.0001370513853 | O125: -660.4618
A126: 123 | B126: Arménia | C126: 559.6906 | D126: 7.917576822e-05 | F126: 123 | G126: Congo | H126: 199.3276 | I126: 1.953983532e-05 | K126: 123 | L126: Congo, República Democrática do | M126: 2329.6232 | N126: 0.0001348938123 | O126: -123.7676
A127: 124 | B127: Cazaquistão | C127: 531.8816 | D127: 7.524181089e-05 | F127: 124 | G127: Zâmbia | H127: 199.294 | I127: 1.953654155e-05 | K127: 124 | L127: Venezuela | M127: 2213.4414 | N127: 0.0001281664557 | O127: 1903.519
A128: 125 | B128: Aruba | C128: 522.985 | D128: 7.398326708e-05 | F128: 125 | G128: Nigéria | H128: 198.1714 | I128: 1.942649448e-05 | K128: 125 | L128: Seychelles | M128: 2103.9052 | N128: 0.000121823904 | O128: 2103.9052
A129: 126 | B129: Serra Leoa | C129: 501.4564 | D129: 7.093775686e-05 | F129: 126 | G129: Islândia | H129: 193.9226 | I129: 1.900998993e-05 | K129: 126 | L129: Gabão | M129: 2079.9016 | N129: 0.0001204340066 | O129: 2079.4016
A130: 127 | B130: Guatemala | C130: 491.8628 | D130: 6.958061302e-05 | F130: 127 | G130: Venezuela | H130: 154.9612 | I130: 1.519065262e-05 | K130: 127 | L130: Togo | M130: 2010.1642 | N130: 0.0001163959529 | O130: -236.4922
A131: 128 | B131: Uganda | C131: 485.0486 | D131: 6.861665272e-05 | F131: 128 | G131: Cabo Verde | H131: 127.4104 | I131: 1.248988215e-05 | K131: 128 | L131: Sudão | M131: 1881.5594 | N131: 0.0001089492586 | O131: 1848.4942
A132: 129 | B132: São Bartolomeu | C132: 472.0258 | D132: 6.677440239e-05 | F132: 129 | G132: Azerbaijão | H132: 124.836 | I132: 1.223751694e-05 | K132: 129 | L132: Bangladesh | M132: 1839.7434 | N132: 0.0001065279573 | O132: 1278.1258
A133: 130 | B133: Mauritânia | C133: 470.2498 | D133: 6.652316328e-05 | F133: 130 | G133: Albânia | H133: 104.1554 | I133: 1.021022359e-05 | K133: 130 | L133: Guiné Equatorial | M133: 1818.0792 | N133: 0.0001052735199 | O133: 1818.0792
A134: 131 | B134: Barém | C134: 469.46 | D134: 6.641143544e-05 | F134: 131 | G134: Namíbia | H134: 70.1862 | I134: 6.880265399e-06 | K134: 131 | L134: Madagáscar | M134: 1665.0982 | N134: 9.641535334e-05 | O134: -1405.7834
A135: 132 | B135: Gâmbia | C135: 455.249 | D135: 6.440109823e-05 | F135: 132 | G135: Tajiquistão | H135: 59.4122 | I135: 5.824103655e-06 | K135: 132 | L135: Geórgia | M135: 1638.8746 | N135: 9.489690977e-05 | O135: 1049.5554
A136: 133 | B136: Quénia | C136: 450.4724 | D136: 6.372538387e-05 | F136: 133 | G136: Iémen | H136: 45.76 | I136: 4.485795565e-06 | K136: 133 | L136: Laos, República Democrática Popular do | M136: 1584.7624 | N136: 9.176361296e-05 | O136: -1555.988
A137: 134 | B137: Myanmar | C137: 450.2094 | D137: 6.368817898e-05 | F137: 134 | G137: Libéria | H137: 38.8276 | I137: 3.806221064e-06 | K137: 134 | L137: Catar | M137: 1531.2412 | N137: 8.866453723e-05 | O137: 1499.102
A138: 135 | B138: Kosovo | C138: 418.4652 | D138: 5.919753465e-05 | F138: 135 | G138: Aruba | H138: 38.0318 | I138: 3.728209785e-06 | K138: 135 | L138: Albânia | M138: 1370.3276 | N138: 7.934704376e-05 | O138: 1162.0168
A139: 136 | B139: Nicarágua | C139: 417.0516 | D139: 5.89975619e-05 | F139: 136 | G139: São Marino | H139: 32.7702 | I139: 3.212421718e-06 | K139: 136 | L139: Islândia | M139: 1327.4592 | N139: 7.686480462e-05 | O139: 939.614
A140: 137 | B140: Camboja | C140: 401.4318 | D140: 5.678793097e-05 | F140: 137 | G140: Botswana | H140: 30.0284 | I140: 2.943646493e-06 | K140: 137 | L140: El Salvador | M140: 1020.6408 | N140: 5.90988828e-05 | O140: -435.5452
A141: 138 | B141: Sri Lanca | C141: 393.0388 | D141: 5.560062815e-05 | F141: 138 | G141: Jordânia | H141: 29.9124 | I141: 2.932275159e-06 | K141: 138 | L141: Ruanda | M141: 826.094 | N141: 4.783390247e-05 | O141: 825.6192
A142: 139 | B142: Bolívia | C142: 391.1324 | D142: 5.533094222e-05 | F142: 139 | G142: Bósnia-Herzegovina | H142: 27.8982 | I142: 2.734825652e-06 | K142: 139 | L142: Bermudas | M142: 793.8626 | N142: 4.596758502e-05 | O142: 792.4798
A143: 140 | B143: Tanzânia, República Unida da | C143: 370.8878 | D143: 5.246707107e-05 | F143: 140 | G143: Papuásia-Nova Guiné | H143: 25.837 | I143: 2.532768794e-06 | K143: 140 | L143: Turquemenistão | M143: 732.4956 | N143: 4.241420842e-05 | O143: -708.816
A144: 141 | B144: São Martinho (parte holandesa) | C144: 349.244 | D144: 4.940526426e-05 | F144: 141 | G144: Arábia Saudita | H144: 24.9638 | I144: 2.44717009e-06 | K144: 141 | L144: Azerbaijão | M144: 719.8116 | N144: 4.167975784e-05 | O144: 470.1396
A145: 142 | B145: Comores | C145: 311.607 | D145: 4.408100406e-05 | F145: 142 | G145: Macau | H145: 17.6438 | I145: 1.729599646e-06 | K145: 142 | L145: Iémen | M145: 716.5486 | N145: 4.149081805e-05 | O145: 625.0286
A146: 143 | B146: Libéria | C146: 294.774 | D146: 4.169974965e-05 | F146: 143 | G146: Quirguizistão | H146: 17.4758 | I146: 1.713130816e-06 | K146: 143 | L146: Namíbia | M146: 703.916 | N146: 4.075934372e-05 | O146: 563.5436
A147: 144 | B147: Somália | C147: 292.8146 | D147: 4.142256615e-05 | F147: 144 | G147: Sudão | H147: 16.5326 | I147: 1.6206701e-06 | K147: 144 | L147: Burundi | M147: 677.2094 | N147: 3.921293266e-05 | O147: 676.9814
A148: 145 | B148: El Salvador | C148: 292.5478 | D148: 4.13848237e-05 | F148: 145 | G148: Catar | H148: 16.0696 | I148: 1.575282789e-06 | K148: 145 | L148: Chade | M148: 675.9044 | N148: 3.913736832e-05 | O148: -675.8964
A149: 146 | B149: Jamaica | C149: 276.7996 | D149: 3.915702886e-05 | F149: 146 | G149: Arménia | H149: 15.3428 | I149: 1.504035494e-06 | K149: 146 | L149: Bolívia | M149: 672.8412 | N149: 3.89599977e-05 | O149: 109.4236
A150: 147 | B150: Macedónia, Antiga República jugoslava da | C150: 272.7114 | D150: 3.857869794e-05 | F150: 147 | G150: Curaçau | H150: 12.9632 | I150: 1.270766282e-06 | K150: 147 | L150: Arménia | M150: 575.0334 | N150: 3.32965638e-05 | O150: 544.3478
A151: 148 | B151: Paquistão | C151: 266.8506 | D151: 3.77496089e-05 | F151: 148 | G151: Iraque | H151: 12.264 | I151: 1.202224581e-06 | K151: 148 | L151: Aruba | M151: 561.0168 | N151: 3.248495074e-05 | O151: 484.9532
A152: 149 | B152: Antígua e Barbuda | C152: 264.4064 | D152: 3.740384392e-05 | F152: 149 | G152: Jamaica | H152: 11.1274 | I152: 1.090805104e-06 | K152: 149 | L152: Cazaquistão | M152: 538.873 | N152: 3.12027427e-05 | O152: 524.8902
A153: 150 | B153: Argentina | C153: 237.3284 | D153: 3.357329637e-05 | F153: 150 | G153: Kosovo | H153: 8.3722 | I153: 8.207162943e-07 | K153: 150 | L153: Barém | M153: 473.8092 | N153: 2.743530768e-05 | O153: 465.1108
A154: 151 | B154: Curaçau | C154: 224.0074 | D154: 3.168886164e-05 | F154: 151 | G154: Cazaquistão | H154: 6.9914 | I154: 6.853581974e-07 | K154: 151 | L154: São Bartolomeu | M154: 472.3088 | N154: 2.734842896e-05 | O154: 471.7428
A155: 152 | B155: Moldava, República de | C155: 201.388 | D155: 2.848904307e-05 | F155: 152 | G155: Líbia, Jamahira Árabe da | H155: 5.9518 | I155: 5.834475097e-07 | K155: 152 | L155: Mauritânia | M155: 471.8238 | N155: 2.732034567e-05 | O155: 468.6758
A156: 153 | B156: Haiti | C156: 195.7344 | D156: 2.768926526e-05 | F156: 153 | G156: Andorra | H156: 4.7264 | I156: 4.633230804e-07 | K156: 153 | L156: Gâmbia | M156: 455.249 | N156: 2.636060335e-05 | O156: 455.249
A157: 154 | B157: Ceuta e Melilha | C157: 191.5534 | D157: 2.709780654e-05 | F157: 154 | G157: São Cristovão e Nevis | H157: 4.4456 | I157: 4.357966076e-07 | K157: 154 | L157: Kosovo | M157: 426.8374 | N157: 2.471546648e-05 | O157: 410.093
A158: 155 | B158: Suriname | C158: 156.0968 | D158: 2.208199326e-05 | F158: 155 | G158: Afeganistão | H158: 4.3746 | I158: 4.288365664e-07 | K158: 155 | L158: São Martinho (parte holandesa) | M158: 349.244 | N158: 2.022252121e-05 | O158: 349.244
A159: 156 | B159: Nova Caledónia | C159: 140.1192 | D159: 1.98217467e-05 | F159: 156 | G159: Barém | H159: 4.3492 | I159: 4.263466362e-07 | K159: 156 | L159: Usbequistão | M159: 348.7024 | N159: 2.019116056e-05 | O159: -268.0328
A160: 157 | B160: Trindade e Tobago | C160: 140.025 | D160: 1.980842084e-05 | F160: 157 | G160: Nepal | H160: 2.446 | I160: 2.397783206e-07 | K160: 157 | L160: Zâmbia | M160: 336.52 | N160: 1.948575448e-05 | O160: -62.068
A161: 158 | B161: Zâmbia | C161: 137.226 | D161: 1.941246462e-05 | F161: 158 | G161: Liechtenstein | H161: 1.7982 | I161: 1.762752969e-07 | K161: 158 | L161: Libéria | M161: 333.6016 | N161: 1.931676831e-05 | O161: 255.9464
A162: 159 | B162: Polinésia Francesa | C162: 133.1554 | D162: 1.883662346e-05 | F162: 159 | G162: Lesoto | H162: 1.7136 | I162: 1.679820647e-07 | K162: 159 | L162: Comores | M162: 311.607 | N162: 1.80431995e-05 | O162: 311.607
A163: 160 | B163: Madagáscar | C163: 129.6574 | D163: 1.834178428e-05 | F163: 160 | G163: Mauritânia | H163: 1.574 | I163: 1.542972513e-07 | K163: 160 | L163: Somália | M163: 292.8146 | N163: 1.695504993e-05 | O163: 292.8146
A164: 161 | B164: Maldivas | C164: 127.1794 | D164: 1.799123783e-05 | F164: 161 | G164: Fiji, Ilhas | H164: 1.3818 | I164: 1.354561257e-07 | K164: 161 | L164: Jamaica | M164: 287.927 | N164: 1.667203979e-05 | O164: 265.6722
A165: 162 | B165: Niger | C165: 113.05 | D165: 1.599244404e-05 | F165: 162 | G165: Bermudas | H165: 0.6914 | I165: 6.777707722e-08 | K165: 162 | L165: Antígua e Barbuda | M165: 264.426 | N165: 1.531124484e-05 | O165: 264.3868
A166: 163 | B166: Liechtenstein | C166: 106.2456 | D166: 1.502987008e-05 | F166: 163 | G166: Território Palestiniano Ocupado | H166: 0.4852 | I166: 4.756354913e-08 | K166: 163 | L166: Curaçau | M166: 236.9706 | N166: 1.372147548e-05 | O166: 211.0442
A167: 164 | B167: Centro-Africana, República | C167: 83.0308 | D167: 1.174582417e-05 | F167: 164 | G167: Montenegro | H167: 0.3086 | I167: 3.025167201e-08 | K167: 164 | L167: Haiti | M167: 195.7358 | N167: 1.133382783e-05 | O167: 195.733
A168: 165 | B168: Jibuti | C168: 77.3086 | D168: 1.093634196e-05 | F168: 165 | G168: São Bartolomeu | H168: 0.283 | I168: 2.774213603e-08 | K168: 165 | L168: Ceuta e Melilha | M168: 191.5534 | N168: 1.109165138e-05 | O168: 191.5534
A169: 166 | B169: Nepal | C169: 76.6542 | D169: 1.084376828e-05 | F169: 166 | G169: Gabão | H169: 0.25 | I169: 2.450718731e-08 | K169: 166 | L169: Nova Caledónia | M169: 140.1192 | N169: 8.113420685e-06 | O169: 140.1192
A170: 167 | B170: Zimbabwe | C170: 63.2826 | D170: 8.952175488e-06 | F170: 167 | G170: Ruanda | H170: 0.2374 | I170: 2.327202507e-08 | K170: 167 | L170: Trindade e Tobago | M170: 140.0354 | N170: 8.108568354e-06 | O170: 140.0146
A171: 168 | B171: Caimão, Ilhas | C171: 51.4562 | D171: 7.279172037e-06 | F171: 168 | G171: Barbados | H171: 0.1378 | I171: 1.350836164e-08 | K171: 168 | L171: Polinésia Francesa | M171: 133.1554 | N171: 7.710190871e-06 | O171: 133.1554
A172: 169 | B172: Bósnia-Herzegovina | C172: 50.6168 | D172: 7.16042761e-06 | F172: 169 | G172: Oceano Indico, Território Britânico do | H172: 0.128 | I172: 1.25476799e-08 | K172: 169 | L172: Maldivas | M172: 127.183 | N172: 7.364366789e-06 | O172: 127.1758
A173: 170 | B173: Montenegro | C173: 46.101 | D173: 6.521606922e-06 | F173: 170 | G173: Niger | H173: 0.1252 | I173: 1.22731994e-08 | K173: 170 | L173: Niger | M173: 113.1752 | N173: 6.553263283e-06 | O173: 112.9248
A174: 171 | B174: Bahamas | C174: 42.9652 | D174: 6.078005807e-06 | F174: 171 | G174: Burundi | H174: 0.114 | I174: 1.117527741e-08 | K174: 171 | L174: Liechtenstein | M174: 108.0438 | N174: 6.256136217e-06 | O174: 104.4474
A175: 172 | B175: Usbequistão | C175: 40.3348 | D175: 5.705900325e-06 | F175: 172 | G175: Antígua e Barbuda | H175: 0.0196 | I175: 1.921363485e-09 | K175: 172 | L175: Centro-Africana, República | M175: 83.0308 | N175: 4.807790868e-06 | O175: 83.0308
A176: 173 | B176: Mongólia | C176: 30.8452 | D176: 4.363468684e-06 | F176: 173 | G176: São Vicente e Granadinas | H176: 0.0144 | I176: 1.411613989e-09 | K176: 173 | L176: Nepal | M176: 79.1002 | N176: 4.580194569e-06 | O176: 74.2082
A177: 174 | B177: Afeganistão | C177: 18.9718 | D177: 2.683816451e-06 | F177: 174 | G177: Mongólia | H177: 0.0112 | I177: 1.097921991e-09 | K177: 174 | L177: Bósnia-Herzegovina | M177: 78.515 | N177: 4.546309321e-06 | O177: 22.7186
A178: 175 | B178: Guiana | C178: 18.2434 | D178: 2.580774467e-06 | F178: 175 | G178: Trindade e Tobago | H178: 0.0104 | I178: 1.019498992e-09 | K178: 175 | L178: Jibuti | M178: 77.3086 | N178: 4.476454293e-06 | O178: 77.3086
A179: 176 | B179: Turcas e Caicos, Ilhas | C179: 18.0666 | D179: 2.555763728e-06 | F179: 176 | G179: Virgens Britânicas, Ilhas | H179: 0.007 | I179: 6.862012446e-10 | K179: 176 | L179: Tajiquistão | M179: 59.4122 | N179: 3.440186444e-06 | O179: -59.4122
A180: 177 | B180: Laos, República Democrática Popular do | C180: 14.3872 | D180: 2.035263077e-06 | F180: 177 | G180: Santa Lúcia | H180: 0.004 | I180: 3.921149969e-10 | K180: 177 | L180: Caimão, Ilhas | M180: 51.4562 | N180: 2.979504575e-06 | O180: 51.4562
A181: 178 | B181: Barbados | C181: 14.032 | D181: 1.985015256e-06 | F181: 178 | G181: Maldivas | H181: 0.0036 | I181: 3.529034972e-10 | K181: 178 | L181: Montenegro | M181: 46.4096 | N181: 2.687287742e-06 | O181: 45.7924
A182: 179 | B182: Turquemenistão | C182: 11.8398 | D182: 1.674899061e-06 | F182: 179 | G182: Haiti | H182: 0.0014 | I182: 1.372402489e-10 | K182: 179 | L182: Bahamas | M182: 42.9652 | N182: 2.487844224e-06 | O182: 42.9652
A183: 180 | B183: Virgens Britânicas, Ilhas | C183: 9.9272 | D183: 1.40433605e-06 | F183: 180 | G183: Anguila | H183: 0 | I183: 0 | K183: 180 | L183: São Marino | M183: 32.7902 | N183: 1.898674036e-06 | O183: -32.7502
A184: 181 | B184: Fiji, Ilhas | C184: 8.1268 | D184: 1.149645238e-06 | F184: 181 | G184: Antárctica | H184: 0 | I184: 0 | K184: 181 | L184: Mongólia | M184: 30.8564 | N184: 1.786699853e-06 | O184: 30.834
A185: 182 | B185: Santa Lúcia | C185: 7.138 | D185: 1.00976617e-06 | F185: 182 | G185: Antilhas Holandesas | H185: 0 | I185: 0 | K185: 182 | L185: Botswana | M185: 30.1228 | N185: 1.744221696e-06 | O185: -29.934
A186: 183 | B186: Brunei Darussalam | C186: 6.98 | D186: 9.874149436e-07 | F186: 183 | G186: Bahamas | H186: 0 | I186: 0 | K186: 183 | L186: Papuásia-Nova Guiné | M186: 28.7226 | N186: 1.663144929e-06 | O186: -22.9514
A187: 184 | B187: Malavi | C187: 6.6034 | D187: 9.341398049e-07 | F187: 184 | G187: Bonaire, Santo Eustáquio e Saba | H187: 0 | I187: 0 | K187: 184 | L187: Afeganistão | M187: 23.3464 | N187: 1.351843036e-06 | O187: 14.5972
A188: 185 | B188: Guam | C188: 6.5774 | D188: 9.30461755e-07 | F188: 185 | G188: Bouvet, Ilha | H188: 0 | I188: 0 | K188: 185 | L188: Quirguizistão | M188: 22.1324 | N188: 1.281547939e-06 | O188: -12.8192
A189: 186 | B189: São Vicente e Granadinas | C189: 5.6654 | D189: 8.014470804e-07 | F189: 186 | G189: Brunei Darussalam | H189: 0 | I189: 0 | K189: 186 | L189: Turcas e Caicos, Ilhas | M189: 18.0666 | N189: 1.046123059e-06 | O189: 18.0666
A190: 187 | B190: Quirguizistão | C190: 4.6566 | D190: 6.58738743e-07 | F190: 187 | G190: Butão | H190: 0 | I190: 0 | K190: 187 | L190: Barbados | M190: 14.1698 | N190: 8.204839053e-07 | O190: 13.8942
A191: 188 | B191: Menores distantes dos Estados Unidos, lhas | C191: 4.5542 | D191: 6.442528848e-07 | F191: 188 | G191: Caimão, Ilhas | H191: 0 | I191: 0 | K191: 188 | L191: Virgens Britânicas, Ilhas | M191: 9.9342 | N191: 5.752269765e-07 | O191: 9.9202
A192: 189 | B192: Sudão do Sul | C192: 3.771 | D192: 5.334587037e-07 | F192: 189 | G192: Centro-Africana, República | H192: 0 | I192: 0 | K192: 189 | L192: Fiji, Ilhas | M192: 9.5086 | N192: 5.505831601e-07 | O192: 6.745
A193: 190 | B193: Bonaire, Santo Eustáquio e Saba | C193: 3.1276 | D193: 4.424411142e-07 | F193: 190 | G193: Ceuta | H193: 0 | I193: 0 | K193: 190 | L193: Santa Lúcia | M193: 7.142 | N193: 4.135482541e-07 | O193: 7.134
A194: 191 | B194: Marianas do Norte, Ilhas | C194: 2.9244 | D194: 4.136957394e-07 | F194: 191 | G194: Ceuta e Melilha | H194: 0 | I194: 0 | K194: 191 | L194: Brunei Darussalam | M194: 6.98 | N194: 4.041678541e-07 | O194: 6.98
A195: 192 | B195: Papuásia-Nova Guiné | C195: 2.8856 | D195: 4.082069572e-07 | F195: 192 | G195: Christmas, Ilha | H195: 0 | I195: 0 | K195: 192 | L195: Guam | M195: 6.5774 | N195: 3.808558228e-07 | O195: 6.5774
A196: 193 | B196: Belize | C196: 2.1806 | D196: 3.084752186e-07 | F196: 193 | G196: Cocos (Keeling), Ilhas | H196: 0 | I196: 0 | K196: 193 | L196: São Vicente e Granadinas | M196: 5.6798 | N196: 3.288814581e-07 | O196: 5.651
A197: 194 | B197: Melilha | C197: 1.3464 | D197: 1.904664011e-07 | F197: 194 | G197: Comores | H197: 0 | I197: 0 | K197: 194 | L197: Menores distantes dos Estados Unidos, lhas | M197: 4.5542 | N197: 2.637050489e-07 | O197: 4.5542
A198: 195 | B198: Granada | C198: 0.6866 | D198: 9.712881092e-08 | F198: 195 | G198: Cook, Ilhas | H198: 0 | I198: 0 | K198: 195 | L198: São Cristovão e Nevis | M198: 4.4456 | N198: 2.574167066e-07 | O198: -4.4456
A199: 196 | B199: Virgens dos Estados Unidos, Ilhas | C199: 0.295 | D199: 4.173172039e-08 | F199: 196 | G199: Coreia, República Popular Democrática da | H199: 0 | I199: 0 | K199: 196 | L199: Sudão do Sul | M199: 3.771 | N199: 2.183548679e-07 | O199: 3.771
A200: 197 | B200: Botswana | C200: 0.0944 | D200: 1.335415053e-08 | F200: 197 | G200: Domínica | H200: 0 | I200: 0 | K200: 197 | L200: Bonaire, Santo Eustáquio e Saba | M200: 3.1276 | N200: 1.810996247e-07 | O200: 3.1276
... 59 more rows

Sheet 2A
A1: Parceiros comerciais de Portugal - União Europeia vs. Países Terceiros (média 2018-2022 em milhões de euros) produtos agrícolas e agroalimentares, do mar e da floresta
A2: Exportações | F2: Importações | K2: Trocas comerciais (total e saldo)
A3: P | B3: Grupo de Países | C3: média quinquénio | D3: % do Total | F3: P | G3: Grupo de Países | H3: média quinquénio | I3: % do Total | K3: P | L3: Grupo de Países | M3: média quinquénio | N3: % do Total | O3: Saldo (exp-imp)
A4: 1 | B4: União Europeia | C4: 8689.586002 | D4: 0.6705040416 | F4: 1 | G4: União Europeia | H4: 11670.31785 | I4: 0.7804427503 | K4: 1 | L4: União Europeia | M4: 20359.90385 | N4: 0.7293995292 | O4: -2980.731848
A5: 2 | B5: Países Terceiros | C5: 4270.778311 | D5: 0.3295409146 | F5: 2 | G5: Países Terceiros | H5: 3283.140101 | I5: 0.2195572497 | K5: 2 | L5: Países Terceiros | M5: 7553.918411 | N5: 0.2706213434 | O5: 987.6382102
B6: Outros | C6: 0 | D6: -4.495620481e-05 | G6: Outros | H6: 0 | I6: 0 | L6: Outros | M6: 0 | N6: -2.087262559e-05 | O6: 0
B7: Total | C7: 12959.78169 | D7: 1 | G7: Total | H7: 14953.45795 | I7: 1 | L7: Total | M7: 27913.23964 | N7: 1 | O7: -1993.67626
F27: valores em milhões de euros
A28: Nota: Outros = Países não determinados, abastecimentos de bordo, etc.
A29: Fonte: GPP a partir de dados INE/Comércio Internacional (2022 provisórios) | M29: 2023-08-10

Sheet 3
A1: Principais produtos agrícolas e agroalimentares, do mar e da floresta transacionados entre Portugal e Suíça em 2018-2022 (NC a 2 e 4 dígitos) em milhões de euros
AC4: P | AE4: Cód.NC | AF4: Descritivo | AG4: Média export quinquénio | AH4: % do total | AI4: % acumulada | AN4: P | AO4: NC | AP4: Exportações | AQ4: 2018 | AR4: 2019 | AS4: 2020 | AT4: 2021 | AU4: 2022 | AV4: média quinquénio
AC5: 1 | AD5: º | AE5: 22 | AF5: Bebidas, líquidos alcoólicos e vinagres | AG5: 50.7546152 | AH5: 0.354011682 | AN5: 1º | AO5: 22 | AP5: Bebidas, líquidos alcoólicos e vinagres | AQ5: 45.66359 | AR5: 48.271845 | AS5: 51.574366 | AT5: 53.820971 | AU5: 54.442304 | AV5: 50.7546152
AC6: 2 | AD6: º | AE6: 48 | AF6: Papel e cartão | AG6: 17.2901394 | AH6: 0.1205981231 | AN6: 2º | AO6: 48 | AP6: Papel e cartão | AQ6: 15.341937 | AR6: 15.973918 | AS6: 13.527947 | AT6: 12.94085 | AU6: 28.666045 | AV6: 17.2901394
AC7: 3 | AD7: º | AE7: 03 | AF7: Peixes e crustáceos | AG7: 12.4281924 | AH7: 0.08668621126 | AI7: 0.5612960164 | AN7: 3º | AO7: 03 | AP7: Peixes e crustáceos | AQ7: 10.823043 | AR7: 10.676239 | AS7: 13.136099 | AT7: 13.557454 | AU7: 13.948127 | AV7: 12.4281924
AC8: 4 | AD8: º | AE8: 45 | AF8: Cortiça e suas obras | AG8: 12.280962 | AH8: 0.08565928433 | AO8: - | AP8: Outros | AQ8: 52.635683 | AR8: 51.601555 | AS8: 63.201876 | AT8: 68.697237 | AU8: 78.348354 | AV8: 62.896941
AC9: 5 | AD9: º | AE9: 21 | AF9: Preparações alimentícias diversas | AG9: 5.9403336 | AH9: 0.04143362098 | AP9: Total | AQ9: 124.464253 | AR9: 126.523557 | AS9: 141.440288 | AT9: 149.016512 | AU9: 175.40483 | AV9: 143.369888
AC10: 6 | AD10: º | AE10: 04 | AF10: Leite e laticínios; ovos; mel, etc. | AG10: 5.4751634 | AH10: 0.03818907496
AC11: 7 | AD11: º | AE11: 19a | AF11: Preparações à base de cereais (exc. NC 19022010) (a) | AG11: 5.0643538 | AH11: 0.03532369224
AC12: 8 | AD12: º | AE12: 44 | AF12: Madeira e suas obras | AG12: 4.4447432 | AH12: 0.03100192978
AC13: 9 | AD13: º | AE13: 20 | AF13: Preparações de produtos vegetais | AG13: 4.4247412 | AH13: 0.03086241652
AC14: 10 | AD14: º | AE14: 16p | AF14: Preparações e conservas de peixes ou crustáceos (NC 1604-05) (p) | AG14: 3.7948758 | AH14: 0.02646912719 | AI14: 0.8502351624
AE15: - | AF15: Outros | AG15: 21.471768 | AH15: 0.1497648376
AE16: Total | AG16: 143.369888 | AH16: 1
AC38: P | AE38: Cód.NC | AF38: Descritivo | AG38: Média import quinquénio | AH38: % do total | AI38: % acumulada | AN38: P | AO38: NC | AP38: Importações | AQ38: 2018 | AR38: 2019 | AS38: 2020 | AT38: 2021 | AU38: 2022 | AV38: média quinquénio
AC39: 1 | AD39: º | AE39: 21 | AF39: Preparações alimentícias diversas | AG39: 1.4481344 | AH39: 0.3210168444 | AN39: 1º | AO39: 21 | AP39: Preparações alimentícias diversas | AQ39: 2.142908 | AR39: 3.474338 | AS39: 0.777922 | AT39: 0.367182 | AU39: 0.478322 | AV39: 1.4481344
AC40: 2 | AD40: º | AE40: 48 | AF40: Papel e cartão | AG40: 0.830344 | AH40: 0.184067453 | AN40: 2º | AO40: 48 | AP40: Papel e cartão | AQ40: 1.160951 | AR40: 0.707032 | AS40: 0.510188 | AT40: 0.636159 | AU40: 1.13739 | AV40: 0.830344
AC41: 3 | AD41: º | AE41: 18 | AF41: Cacau e suas preparações | AG41: 0.3811748 | AH41: 0.08449735844 | AI41: 0.5895816559 | AN41: 3º | AO41: 18 | AP41: Cacau e suas preparações | AQ41: 0.350512 | AR41: 0.424028 | AS41: 0.396495 | AT41: 0.400434 | AU41: 0.334405 | AV41: 0.3811748
AC42: 4 | AD42: º | AE42: 45 | AF42: Cortiça e suas obras | AG42: 0.333394 | AH42: 0.07390549512 | AO42: - | AP42: Outros | AQ42: 2.164716 | AR42: 1.329676 | AS42: 1.131458 | AT42: 2.385537 | AU42: 2.245774 | AV42: 1.8514322
AC43: 5 | AD43: º | AE43: 44 | AF43: Madeira e suas obras | AG43: 0.3062796 | AH43: 0.06789487958 | AP43: Total | AQ43: 5.819087 | AR43: 5.935074 | AS43: 2.816063 | AT43: 3.789312 | AU43: 4.195891 | AV43: 4.5110854
AC44: 6 | AD44: º | AE44: 22 | AF44: Bebidas, líquidos alcoólicos e vinagres | AG44: 0.2772166 | AH44: 0.06145230591
AC45: 7 | AD45: º | AE45: 19a | AF45: Preparações à base de cereais (exc. NC 19022010) (a) | AG45: 0.2027368 | AH45: 0.04494191132
AC46: 8 | AD46: º | AE46: 15 | AF46: Gorduras e óleos animais ou vegetais | AG46: 0.1188298 | AH46: 0.02634173142
AC47: 9 | AD47: º | AE47: 35 | AF47: Caseínas, albuminas, gelatinas, peptonas, dextrinas (NC 3501 a 3505) | AG47: 0.1026784 | AH47: 0.0227613514
AC48: 10 | AD48: º | AE48: 08 | AF48: Frutas | AG48: 0.1006214 | AH48: 0.02230536358 | AI48: 0.9091846942
AE49: - | AF49: Outros | AG49: 0.4096756 | AH49: 0.09081530578
AE50: Total | AG50: 4.5110854 | AH50: 1
AC62: DESAGREGAÇÃO A 4 DÍGITOS | AN62: DESAGREGAÇÃO A 4 DÍGITOS
AC64: P | AE64: Cód.NC | AF64: Descritivo | AG64: Média export quinquénio | AH64: % do total | AI64: % acumulada | AN64: P | AO64: NC | AP64: Exportações | AQ64: 2018 | AR64: 2019 | AS64: 2020 | AT64: 2021 | AU64: 2022 | AV64: média quinquénio
AC65: 1 | AD65: º | AE65: 2204 | AF65: Vinhos de uvas frescas | AG65: 33.438852 | AH65: 0.2332348338 | AN65: 1º | AO65: 2204 | AP65: Vinhos de uvas frescas | AQ65: 30.462964 | AR65: 32.234564 | AS65: 34.308114 | AT65: 35.887953 | AU65: 34.300665 | AV65: 33.438852
AC66: 2 | AD66: º | AE66: 4802 | AF66: Papel e cartão p/ escrita, etc. | AG66: 14.3831482 | AH66: 0.1003219602 | AN66: 2º | AO66: 4802 | AP66: Papel e cartão p/ escrita, etc. | AQ66: 12.951081 | AR66: 13.290021 | AS66: 10.853303 | AT66: 10.146841 | AU66: 24.674495 | AV66: 14.3831482
AC67: 3 | AD67: º | AE67: 2203 | AF67: Cervejas de malte | AG67: 11.126183 | AH67: 0.07760474082 | AI67: 0.4111615348 | AN67: 3º | AO67: 2203 | AP67: Cervejas de malte | AQ67: 10.595384 | AR67: 10.617014 | AS67: 10.946196 | AT67: 10.902445 | AU67: 12.569876 | AV67: 11.126183
AC68: 4 | AD68: º | AE68: 4503 | AF68: Obras de cortiça natural | AG68: 8.0902862 | AH68: 0.05642946586 | AN68: - | AO68: - | AP68: Outros | AQ68: 70.454824 | AR68: 70.381958 | AS68: 85.332675 | AT68: 92.079273 | AU68: 103.859794 | AV68: 84.4217048
AC69: 5 | AD69: º | AE69: 0303 | AF69: Peixes congelados | AG69: 5.3186086 | AH69: 0.03709711066 | AP69: Total | AQ69: 124.464253 | AR69: 126.523557 | AS69: 141.440288 | AT69: 149.016512 | AU69: 175.40483 | AV69: 143.369888
AC70: 6 | AD70: º | AE70: 2202 | AF70: Águas com açúcar ou outros produtos; outras bebidas | AG70: 4.1674134 | AH70: 0.02906756403
AC71: 7 | AD71: º | AE71: 0406 | AF71: Queijos e requeijão | AG71: 3.7335508 | AH71: 0.02604138744
AC72: 8 | AD72: º | AE72: 4504 | AF72: Cortiça aglomerada e suas obras | AG72: 3.5947918 | AH72: 0.02507354822
AC73: 9 | AD73: º | AE73: 0307 | AF73: Moluscos | AG73: 3.1332148 | AH73: 0.02185406464
AC74: 10 | AD74: º | AE74: 0901 | AF74: Café | AG74: 3.0423334 | AH74: 0.02122017003 | AI74: 0.6279448457
AE75: - | AF75: Outros | AG75: 53.3415058 | AH75: 0.3720551543
AE76: Total | AG76: 143.369888 | AH76: 1
AC89: DESAGREGAÇÃO A 4 DÍGITOS | AN89: DESAGREGAÇÃO A 4 DÍGITOS
G91: média 2018-2022 em milhões de euros | I91: Cód. NC | J91: Descritivo | K91: Export | L91: Import | M91: Saldo | AC91: P | AE91: Cód.NC | AF91: Descritivo | AG91: Média import quinquénio | AH91: % do total | AI91: % acumulada | AN91: P | AO91: NC | AP91: Importações | AQ91: 2018 | AR91: 2019 | AS91: 2020 | AT91: 2021 | AU91: 2022 | AV91: média quinquénio
I92: 2204 | J92: Vinhos de uvas frescas | K92: 33.438852 | L92: 0.243005 | M92: 33.195847 | AC92: 1 | AD92: º | AE92: 2106 | AF92: Outras preparações alimentícias | AG92: 0.8602622 | AH92: 0.1906996041 | AN92: 1º | AO92: 2106 | AP92: Outras preparações alimentícias | AQ92: 1.670805 | AR92: 2.1141 | AS92: 0.371364 | AT92: 0.078452 | AU92: 0.06659 | AV92: 0.8602622
I93: 4802 | J93: Papel e cartão p/ escrita, etc. | K93: 14.3831482 | L93: 0.0208802 | M93: 14.362268 | AC93: 2 | AD93: º | AE93: 1806 | AF93: Chocolate e outras preparações com cacau | AG93: 0.3796208 | AH93: 0.08415287372 | AN93: 2º | AO93: 1806 | AP93: Chocolate e outras preparações com cacau | AQ93: 0.343967 | AR93: 0.422897 | AS93: 0.396495 | AT93: 0.400434 | AU93: 0.334311 | AV93: 0.3796208
I94: 2203 | J94: Cervejas de malte | K94: 11.126183 | L94: 0.010179 | M94: 11.116004 | AC94: 3 | AD94: º | AE94: 4819 | AF94: Embalagens de papel, cartão etc. | AG94: 0.3141502 | AH94: 0.06963960381 | AI94: 0.3444920817 | AN94: 3º | AO94: 4819 | AP94: Embalagens de papel, cartão etc. | AQ94: 0.371488 | AR94: 0.316773 | AS94: 0.268188 | AT94: 0.326995 | AU94: 0.287307 | AV94: 0.3141502
I95: 4503 | J95: Obras de cortiça natural | K95: 8.0902862 | L95: 0.2717748 | M95: 7.8185114 | AC95: 4 | AD95: º | AE95: 4503 | AF95: Obras de cortiça natural | AG95: 0.2717748 | AH95: 0.06024598869 | AN95: - | AO95: - | AP95: Outros | AQ95: 3.432827 | AR95: 3.081304 | AS95: 1.780016 | AT95: 2.983431 | AU95: 3.507683 | AV95: 2.9570522
I96: 0303 | J96: Peixes congelados | K96: 5.3186086 | L96: 0.0081204 | M96: 5.3104882 | AC96: 5 | AD96: º | AE96: 2104 | AF96: Preparações para caldos e sopas | AG96: 0.2483886 | AH96: 0.05506182614 | AP96: Total | AQ96: 5.819087 | AR96: 5.935074 | AS96: 2.816063 | AT96: 3.789312 | AU96: 4.195891 | AV96: 4.5110854
I97: 2202 | J97: Águas com açúcar ou outros produtos; outras bebidas | K97: 4.1674134 | L97: 0.0057626 | M97: 4.1616508 | AC97: 6 | AD97: º | AE97: 2204 | AF97: Vinhos de uvas frescas | AG97: 0.243005 | AH97: 0.05386841047
I98: 0406 | J98: Queijos e requeijão | K98: 3.7335508 | L98: 0.0378604 | M98: 3.6956904 | AC98: 7 | AD98: º | AE98: 2101 | AF98: Extratos e preparados de café, chá ou mate | AG98: 0.197624 | AH98: 0.04380852555
I99: 4504 | J99: Cortiça aglomerada e suas obras | K99: 3.5947918 | L99: 0.0612244 | M99: 3.5335674 | AC99: 8 | AD99: º | AE99: 1901 | AF99: Extratos de malte; preparações de farinhas, etc., sem cacau | AG99: 0.1493024 | AH99: 0.03309677977
I100: 0307 | J100: Moluscos | K100: 3.1332148 | L100: 0.0036012 | M100: 3.1296136 | AC100: 9 | AD100: º | AE100: 4821 | AF100: Etiquetas de qualquer espécie | AG100: 0.1299576 | AH100: 0.02880849917
I101: 0901 | J101: Café | K101: 3.0423334 | L101: 0.0275238 | M101: 3.0148096 | AC101: 10 | AD101: º | AE101: 4808 | AF101: Papel e cartão canelados, etc. | AG101: 0.1267462 | AH101: 0.02809660841 | AI101: 0.6474787199
I102: - | J102: Outros | K102: 53.1580054 | L102: 3.0243456 | M102: 50.1336598 | AE102: - | AF102: Outros | AG102: 1.5902536 | AH102: 0.3525212801
I103: 5201 | J103: Algodão não cardado nem penteado | K103: 0.0003196 | L103: 0.0349734 | M103: -0.0346538 | AE103: Total | AG103: 4.5110854 | AH103: 1
I104: 4821 | J104: Etiquetas de qualquer espécie | K104: 0.0796204 | L104: 0.1299576 | M104: -0.0503372
I105: 4804 | J105: Papel e cartão "kraft", não revestidos | K105: 0.0152054 | L105: 0.068394 | M105: -0.0531886
I106: 2404 | J106: Produtos que contenham tabaco, tabaco reconstituído, nicotina ou sucedâneos | K106: 4.8e-06 | L106: 0.0553032 | M106: -0.0552984
I107: 4301 | J107: Peles com pêlo em bruto | K107: 0 | L107: 0.05564 | M107: -0.05564
I108: 1511 | J108: Óleo de palma e suas frações | K108: 0.0039716 | L108: 0.0606538 | M108: -0.0566822
I109: 4807 | J109: Papel e cartão, não revestidos nem impregnados, etc. | K109: 0 | L109: 0.0631374 | M109: -0.0631374
I110: 4808 | J110: Papel e cartão canelados, etc. | K110: 0.0582778 | L110: 0.1267462 | M110: -0.0684684
I111: 4407 | J111: Madeira serrada, etc. | K111: 0.026081 | L111: 0.1117078 | M111: -0.0856268
I112: 3501 | J112: Caseínas, caseinatos e outros derivados | K112: 1.98e-05 | L112: 0.0902946 | M112: -0.0902748
I113: Total | K113: 143.369888 | L113: 4.5110854 | M113: 138.8588026
A116: Fonte: GPP a partir de dados INE/Comércio Internacional (2022 definitivos) | Y116: 2023-08-30T16:15:01.840

Sheet 3A
A1: Principais produtos agrícolas e agroalimentares transacionados entre Portugal e Suíça em 2018-2022 (NC a 2 e 4 dígitos) em milhões de euros
AC4: P | AE4: Cód.NC | AF4: Descritivo | AG4: Média export quinquénio | AH4: % do total | AI4: % acumulada | AN4: P | AO4: NC | AP4: Exportações | AQ4: 2018 | AR4: 2019 | AS4: 2020 | AT4: 2021 | AU4: 2022 | AV4: média quinquénio
AC5: 1 | AD5: º | AE5: 22 | AF5: Bebidas, líquidos alcoólicos e vinagres | AG5: 50.7546152 | AH5: 0.5517281686 | AN5: 1º | AO5: 22 | AP5: Bebidas, líquidos alcoólicos e vinagres | AQ5: 45.66359 | AR5: 48.271845 | AS5: 51.574366 | AT5: 53.820971 | AU5: 54.442304 | AV5: 50.7546152
AC6: 2 | AD6: º | AE6: 21 | AF6: Preparações alimentícias diversas | AG6: 5.9403336 | AH6: 0.06457441092 | AN6: 2º | AO6: 21 | AP6: Preparações alimentícias diversas | AQ6: 3.641797 | AR6: 4.105786 | AS6: 6.859611 | AT6: 7.64746 | AU6: 7.447014 | AV6: 5.9403336
AC7: 3 | AD7: º | AE7: 04 | AF7: Leite e laticínios; ovos; mel, etc. | AG7: 5.4751634 | AH7: 0.05951777712 | AI7: 0.6758203566 | AN7: 3º | AO7: 04 | AP7: Leite e laticínios; ovos; mel, etc. | AQ7: 4.947569 | AR7: 5.006611 | AS7: 5.187142 | AT7: 5.723325 | AU7: 6.51117 | AV7: 5.4751634
AC8: 4 | AD8: º | AE8: 19a | AF8: Preparações à base de cereais (exc. NC 19022010) (a) | AG8: 5.0643538 | AH8: 0.05505207036 | AO8: - | AP8: Outros | AQ8: 20.299652 | AR8: 23.166897 | AS8: 31.200381 | AT8: 33.131843 | AU8: 41.311006 | AV8: 29.8219558
AC9: 5 | AD9: º | AE9: 20 | AF9: Preparações de produtos vegetais | AG9: 4.4247412 | AH9: 0.04809916003 | AP9: Total | AQ9: 74.552608 | AR9: 80.551139 | AS9: 94.8215 | AT9: 100.323599 | AU9: 109.711494 | AV9: 91.992068
AC10: 6 | AD10: º | AE10: 09 | AF10: Café, chá, mate e especiarias | AG10: 3.2278124 | AH10: 0.03508794258
AC11: 7 | AD11: º | AE11: 15 | AF11: Gorduras e óleos animais ou vegetais | AG11: 3.2017192 | AH11: 0.03480429639
AC12: 8 | AD12: º | AE12: 08 | AF12: Frutas | AG12: 2.6870596 | AH12: 0.02920968795
AC13: 9 | AD13: º | AE13: 02 | AF13: Carnes e miudezas | AG13: 2.1230264 | AH13: 0.02307836367
AC14: 10 | AD14: º | AE14: 07 | AF14: Produtos hortícolas | AG14: 2.0137232 | AH14: 0.02189018297 | AI14: 0.9230420605
AE15: - | AF15: Outros | AG15: 7.07952 | AH15: 0.07695793946
AE16: Total | AG16: 91.992068 | AH16: 1
AC38: P | AE38: Cód.NC | AF38: Descritivo | AG38: Média import quinquénio | AH38: % do total | AI38: % acumulada | AN38: P | AO38: NC | AP38: Importações | AQ38: 2018 | AR38: 2019 | AS38: 2020 | AT38: 2021 | AU38: 2022 | AV38: média quinquénio
AC39: 1 | AD39: º | AE39: 21 | AF39: Preparações alimentícias diversas | AG39: 1.4481344 | AH39: 0.4829581617 | AN39: 1º | AO39: 21 | AP39: Preparações alimentícias diversas | AQ39: 2.142908 | AR39: 3.474338 | AS39: 0.777922 | AT39: 0.367182 | AU39: 0.478322 | AV39: 1.4481344
AC40: 2 | AD40: º | AE40: 18 | AF40: Cacau e suas preparações | AG40: 0.3811748 | AH40: 0.1271232012 | AN40: 2º | AO40: 18 | AP40: Cacau e suas preparações | AQ40: 0.350512 | AR40: 0.424028 | AS40: 0.396495 | AT40: 0.400434 | AU40: 0.334405 | AV40: 0.3811748
AC41: 3 | AD41: º | AE41: 22 | AF41: Bebidas, líquidos alcoólicos e vinagres | AG41: 0.2772166 | AH41: 0.0924527582 | AI41: 0.7025341211 | AN41: 3º | AO41: 22 | AP41: Bebidas, líquidos alcoólicos e vinagres | AQ41: 0.20959 | AR41: 0.275568 | AS41: 0.202991 | AT41: 0.286091 | AU41: 0.411843 | AV41: 0.2772166
AC42: 4 | AD42: º | AE42: 19a | AF42: Preparações à base de cereais (exc. NC 19022010) (a) | AG42: 0.2027368 | AH42: 0.06761347029 | AO42: - | AP42: Outros | AQ42: 1.165136 | AR42: 0.617832 | AS42: 0.439697 | AT42: 0.788572 | AU42: 1.448472 | AV42: 0.8919418
AC43: 5 | AD43: º | AE43: 15 | AF43: Gorduras e óleos animais ou vegetais | AG43: 0.1188298 | AH43: 0.03963017643 | AP43: Total | AQ43: 3.868146 | AR43: 4.791766 | AS43: 1.817105 | AT43: 1.842279 | AU43: 2.673042 | AV43: 2.9984676
AC44: 6 | AD44: º | AE44: 35 | AF44: Caseínas, albuminas, gelatinas, peptonas, dextrinas (NC 3501 a 3505) | AG44: 0.1026784 | AH44: 0.03424362498
AC45: 7 | AD45: º | AE45: 08 | AF45: Frutas | AG45: 0.1006214 | AH45: 0.03355760789
AC46: 8 | AD46: º | AE46: 24 | AF46: Tabaco | AG46: 0.0688648 | AH46: 0.02296666471
AC47: 9 | AD47: º | AE47: 43 | AF47: Peles com pelo em bruto (NC 4301) | AG47: 0.05564 | AH47: 0.01855614515
AC48: 10 | AD48: º | AE48: 09 | AF48: Café, chá, mate e especiarias | AG48: 0.0490868 | AH48: 0.01637062878 | AI48: 0.9354724393
AE49: - | AF49: Outros | AG49: 0.1934838 | AH49: 0.06452756068
AE50: Total | AG50: 2.9984676 | AH50: 1
AC62: DESAGREGAÇÃO A 4 DÍGITOS | AN62: DESAGREGAÇÃO A 4 DÍGITOS
AC64: P | AE64: Cód.NC | AF64: Descritivo | AG64: Média export quinquénio | AH64: % do total | AI64: % acumulada | AN64: P | AO64: NC | AP64: Exportações | AQ64: 2018 | AR64: 2019 | AS64: 2020 | AT64: 2021 | AU64: 2022 | AV64: média quinquénio
AC65: 1 | AD65: º | AE65: 2204 | AF65: Vinhos de uvas frescas | AG65: 33.438852 | AH65: 0.3634971224 | AN65: 1º | AO65: 2204 | AP65: Vinhos de uvas frescas | AQ65: 30.462964 | AR65: 32.234564 | AS65: 34.308114 | AT65: 35.887953 | AU65: 34.300665 | AV65: 33.438852
AC66: 2 | AD66: º | AE66: 2203 | AF66: Cervejas de malte | AG66: 11.126183 | AH66: 0.1209471995 | AN66: 2º | AO66: 2203 | AP66: Cervejas de malte | AQ66: 10.595384 | AR66: 10.617014 | AS66: 10.946196 | AT66: 10.902445 | AU66: 12.569876 | AV66: 11.126183
AC67: 3 | AD67: º | AE67: 2202 | AF67: Águas com açúcar ou outros produtos; outras bebidas | AG67: 4.1674134 | AH67: 0.04530187755 | AI67: 0.5297461994 | AN67: 3º | AO67: 2202 | AP67: Águas com açúcar ou outros produtos; outras bebidas | AQ67: 3.090875 | AR67: 3.637036 | AS67: 4.150552 | AT67: 4.634638 | AU67: 5.323966 | AV67: 4.1674134
AC68: 4 | AD68: º | AE68: 0406 | AF68: Queijos e requeijão | AG68: 3.7335508 | AH68: 0.0405855731 | AN68: - | AO68: - | AP68: Outros | AQ68: 30.403385 | AR68: 34.062525 | AS68: 45.416638 | AT68: 48.898563 | AU68: 57.516987 | AV68: 43.2596196
AC69: 5 | AD69: º | AE69: 0901 | AF69: Café | AG69: 3.0423334 | AH69: 0.03307169266 | AP69: Total | AQ69: 74.552608 | AR69: 80.551139 | AS69: 94.8215 | AT69: 100.323599 | AU69: 109.711494 | AV69: 91.992068
AC70: 6 | AD70: º | AE70: 1905 | AF70: Produtos de padaria, pastelaria, etc. | AG70: 3.0205584 | AH70: 0.03283498747
AC71: 7 | AD71: º | AE71: 2106 | AF71: Outras preparações alimentícias | AG71: 2.7170446 | AH71: 0.02953563996
AC72: 8 | AD72: º | AE72: 1509 | AF72: Azeite (processos mecânicos ou físicos) | AG72: 2.6795608 | AH72: 0.02912817222
AC73: 9 | AD73: º | AE73: 2005 | AF73: Produtos hortícolas preparados, não congelados | AG73: 2.0794956 | AH73: 0.022605162
AC74: 10 | AD74: º | AE74: 2101 | AF74: Extratos e preparados de café, chá ou mate | AG74: 1.9778152 | AH74: 0.02149984496 | AI74: 0.7390072718
AE75: - | AF75: Outros | AG75: 24.0092608 | AH75: 0.2609927282
AE76: Total | AG76: 91.992068 | AH76: 1
AC89: DESAGREGAÇÃO A 4 DÍGITOS | AN89: DESAGREGAÇÃO A 4 DÍGITOS
G91: média 2018-2022 em milhões de euros | I91: Cód. NC | J91: Descritivo | K91: Export | L91: Import | M91: Saldo | AC91: P | AE91: Cód.NC | AF91: Descritivo | AG91: Média import quinquénio | AH91: % do total | AI91: % acumulada | AN91: P | AO91: NC | AP91: Importações | AQ91: 2018 | AR91: 2019 | AS91: 2020 | AT91: 2021 | AU91: 2022 | AV91: média quinquénio
I92: 2204 | J92: Vinhos de uvas frescas | K92: 33.438852 | L92: 0.243005 | M92: 33.195847 | AC92: 1 | AD92: º | AE92: 2106 | AF92: Outras preparações alimentícias | AG92: 0.8602622 | AH92: 0.2869006155 | AN92: 1º | AO92: 2106 | AP92: Outras preparações alimentícias | AQ92: 1.670805 | AR92: 2.1141 | AS92: 0.371364 | AT92: 0.078452 | AU92: 0.06659 | AV92: 0.8602622
I93: 2203 | J93: Cervejas de malte | K93: 11.126183 | L93: 0.010179 | M93: 11.116004 | AC93: 2 | AD93: º | AE93: 1806 | AF93: Chocolate e outras preparações com cacau | AG93: 0.3796208 | AH93: 0.1266049365 | AN93: 2º | AO93: 1806 | AP93: Chocolate e outras preparações com cacau | AQ93: 0.343967 | AR93: 0.422897 | AS93: 0.396495 | AT93: 0.400434 | AU93: 0.334311 | AV93: 0.3796208
I94: 2202 | J94: Águas com açúcar ou outros produtos; outras bebidas | K94: 4.1674134 | L94: 0.0057626 | M94: 4.1616508 | AC94: 3 | AD94: º | AE94: 2104 | AF94: Preparações para caldos e sopas | AG94: 0.2483886 | AH94: 0.08283851391 | AI94: 0.4963440659 | AN94: 3º | AO94: 2104 | AP94: Preparações para caldos e sopas | AQ94: 0.343987 | AR94: 0.374687 | AS94: 0.313952 | AT94: 0.128983 | AU94: 0.080334 | AV94: 0.2483886
I95: 0406 | J95: Queijos e requeijão | K95: 3.7335508 | L95: 0.0378604 | M95: 3.6956904 | AC95: 4 | AD95: º | AE95: 2204 | AF95: Vinhos de uvas frescas | AG95: 0.243005 | AH95: 0.08104306346 | AN95: - | AO95: - | AP95: Outros | AQ95: 1.509387 | AR95: 1.880082 | AS95: 0.735294 | AT95: 1.23441 | AU95: 2.191807 | AV95: 1.510196
I96: 0901 | J96: Café | K96: 3.0423334 | L96: 0.0275238 | M96: 3.0148096 | AC96: 5 | AD96: º | AE96: 2101 | AF96: Extratos e preparados de café, chá ou mate | AG96: 0.197624 | AH96: 0.06590833264 | AP96: Total | AQ96: 3.868146 | AR96: 4.791766 | AS96: 1.817105 | AT96: 1.842279 | AU96: 2.673042 | AV96: 2.9984676
I97: 1905 | J97: Produtos de padaria, pastelaria, etc. | K97: 3.0205584 | L97: 0.0520158 | M97: 2.9685426 | AC97: 6 | AD97: º | AE97: 1901 | AF97: Extratos de malte; preparações de farinhas, etc., sem cacau | AG97: 0.1493024 | AH97: 0.04979290088
I98: 1509 | J98: Azeite (processos mecânicos ou físicos) | K98: 2.6795608 | L98: 0.0048944 | M98: 2.6746664 | AC98: 7 | AD98: º | AE98: 2103 | AF98: Preparações para molhos e molhos preparados | AG98: 0.126488 | AH98: 0.04218421436
I99: 2005 | J99: Produtos hortícolas preparados, não congelados | K99: 2.0794956 | L99: 4.2e-06 | M99: 2.0794914 | AC99: 8 | AD99: º | AE99: 3501 | AF99: Caseínas, caseinatos e outros derivados | AG99: 0.0902946 | AH99: 0.03011358202
I100: 2106 | J100: Outras preparações alimentícias | K100: 2.7170446 | L100: 0.8602622 | M100: 1.8567824 | AC100: 9 | AD100: º | AE100: 1511 | AF100: Óleo de palma e suas frações | AG100: 0.0606538 | AH100: 0.02022826593
I101: 2101 | J101: Extratos e preparados de café, chá ou mate | K101: 1.9778152 | L101: 0.197624 | M101: 1.7801912 | AC101: 10 | AD101: º | AE101: 4301 | AF101: Peles com pêlo em bruto | AG101: 0.05564 | AH101: 0.01855614515 | AI101: 0.8041705703
I102: - | J102: Outros | K102: 23.9743456 | L102: 1.1938694 | M102: 22.7804762 | AE102: - | AF102: Outros | AG102: 0.5871882 | AH102: 0.1958294297
I103: 1502 | J103: Gorduras de bovinos, ovinos ou caprinos | K103: 0 | L103: 0.0010814 | M103: -0.0010814 | AE103: Total | AG103: 2.9984676 | AH103: 1
I104: 3823 | J104: Ácidos e álcoois gordos (NC 382311 a 13-19-70) | K104: 0 | L104: 0.001369 | M104: -0.001369
I105: 5003 | J105: Desperdícios de seda | K105: 0 | L105: 0.002399 | M105: -0.002399
I106: 3505 | J106: Dextrina e outros amidos e féculas modificados | K106: 0.0024718 | L106: 0.0117122 | M106: -0.0092404
I107: 1512 | J107: Óleos de girassol, cártamo ou algodão | K107: 0.0281276 | L107: 0.0520402 | M107: -0.0239126
I108: 5201 | J108: Algodão não cardado nem penteado | K108: 0.0003196 | L108: 0.0349734 | M108: -0.0346538
I109: 2404 | J109: Produtos que contenham tabaco, tabaco reconstituído, nicotina ou sucedâneos | K109: 4.8e-06 | L109: 0.0553032 | M109: -0.0552984
I110: 4301 | J110: Peles com pêlo em bruto | K110: 0 | L110: 0.05564 | M110: -0.05564
I111: 1511 | J111: Óleo de palma e suas frações | K111: 0.0039716 | L111: 0.0606538 | M111: -0.0566822
I112: 3501 | J112: Caseínas, caseinatos e outros derivados | K112: 1.98e-05 | L112: 0.0902946 | M112: -0.0902748
I113: Total | K113: 91.992068 | L113: 2.9984676 | M113: 88.9936004
A116: Fonte: GPP a partir de dados INE/Comércio Internacional (2022 definitivos) | Y116: 2023-08-30T16:15:01.840

Sheet 4A
A1: Evolução da balança comercial Portugal-Suíça 2018-2022 por produto em euros (NC 2 dígitos)
A3: =+aux!A31 -> Evolução da balança comercial Portugal-Suíça para Cacau e suas preparações
A5: Selecione o produto:
Q7: Para obter uma maior desagregação deste produto, clique no botão respetivo:
A20: =+aux!A43 -> Evolução da balança comercial Portugal-Suíça para Preparações alimentícias diversas
A22: Selecione o produto:
A38: Fonte: GPP a partir de dados INE/Comércio Internacional (2022 definitivos) | N38: 2023-08-30T16:15:01.840

Sheet 5.2
A1: Trocas comerciais Portugal-Suíça 2018-2022 em milhares de euros (NC 2 dígitos) | C1: Produtos agrícolas e agroalimentares, do mar e da floresta
A2: Cód. NC | B2: Descritivo | C2: Importações | K2: Exportações | S2: Saldo quinquénio (exp-imp) | T2: Evolução das importações | U2: =+"Variação das Importações " & INDEX(K3:N3,1,aux!AL1) & "-"& '5.2'!O3 &"" -> Variação das Importações 2018-2022 | Z2: Evolução das exportações | AA2: ="Variação das Exportações " & INDEX(K3:N3,1,aux!AL1) & "-"& '5.2'!O3 &"" -> Variação das Exportações 2018-2022
C3: 2018 | D3: 2019 | E3: 2020 | F3: 2021 | G3: 2022 | H3: média quinquénio | I3: % Subtot | J3: % Total | K3: 2018 | L3: 2019 | M3: 2020 | N3: 2021 | O3: 2022 | P3: média quinquénio | Q3: % Subtot | R3: % Total | U3: variação total em valor | V3: % no subtotal de variação | W3: % no total de variação | X3: taxa de variação média anual | Y3: taxa de variação total | AA3: variação total em valor | AB3: % no subtotal de variação | AC3: % no total de variação | AD3: taxa de variação média anual | AE3: taxa de variação total
A4: 01 | B4: Animais vivos | C4: 9.657 | D4: 30.124 | E4: 19.025 | F4: 0.687 | G4: 105.992 | H4: 33.097 | I4: 0.01103797153 | J4: 0.007336815215 | K4: 109.785 | L4: 182.835 | M4: 337.846 | N4: 357.795 | O4: 271.606 | P4: 251.9734 | Q4: 0.00273907746 | R4: 0.001757505732 | S4: 218.8764 | U4: =G4-INDEX($C4:$G4,1,aux!$AL$1) -> 96.335 | V4: =IF($U$37<>0,U4/$U$37, "n.d.") -> -0.0806080475 | W4: =IF($U$53<>0,U4/$U$53, "n.d.") -> -0.0593489634 | X4: =+IF(INDEX($C4:$G4,1,aux!$AL$1)>0,(G4/INDEX($C4:$G4,1,aux!$AL$1))^(1/($G$3-INDEX($C$3:$G$3,1,aux!$AL$1)))-1,"n.d.") -> 0.8201522376 | Y4: =IF(INDEX($C4:$G4,1,aux!$AL$1)>0,(G4-INDEX($C4:$G4,1,aux!$AL$1))/INDEX($C4:$G4,1,aux!$AL$1),"n.d.") -> 9.97566532 | AA4: =O4-INDEX($K4:$O4,1,aux!$AL$1) -> 161.821 | AB4: =IF($AA$37<>0,AA4/$AA$37, "n.d.") -> 0.004602563346 | AC4: =IF($AA$53<>0,AA4/$AA$53, "n.d.") -> 0.003176662094 | AD4: =+IF(INDEX($K4:$O4,1,aux!$AL$1)>0,(O4/INDEX($K4:$O4,1,aux!$AL$1))^(1/($O$3-INDEX($K$3:$O$3,1,aux!$AL$1)))-1,"n.d.") -> 0.2541488618 | AE4: =IF(INDEX($K4:$O4,1,aux!$AL$1)>0,(O4-INDEX($K4:$O4,1,aux!$AL$1))/INDEX($K4:$O4,1,aux!$AL$1),"n.d.") -> 1.473980963
A5: 02 | B5: Carnes e miudezas | C5: 0 | D5: 0.012 | E5: 0 | F5: 0 | G5: 0.007 | H5: 0.0038 | I5: 1.267314011e-06 | J5: 8.423693331e-07 | K5: 1600.356 | L5: 1706.218 | M5: 2356.925 | N5: 2739.165 | O5: 2212.468 | P5: 2123.0264 | Q5: 0.02307836367 | R5: 0.01480803556 | S5: 2123.0226 | U5: =G5-INDEX($C5:$G5,1,aux!$AL$1) -> 0.007 | V5: -5.857230835e-06 | W5: -4.312479824e-06 | X5: =+IF(INDEX($C5:$G5,1,aux!$AL$1)>0,(G5/INDEX($C5:$G5,1,aux!$AL$1))^(1/($G$3-INDEX($C$3:$G$3,1,aux!$AL$1)))-1,"n.d.") -> n.d. | Y5: =IF(INDEX($C5:$G5,1,aux!$AL$1)>0,(G5-INDEX($C5:$G5,1,aux!$AL$1))/INDEX($C5:$G5,1,aux!$AL$1),"n.d.") -> n.d. | AA5: =O5-INDEX($K5:$O5,1,aux!$AL$1) -> 612.112 | AB5: 0.01740988039 | AC5: 0.01201619683 | AD5: =+IF(INDEX($K5:$O5,1,aux!$AL$1)>0,(O5/INDEX($K5:$O5,1,aux!$AL$1))^(1/($O$3-INDEX($K$3:$O$3,1,aux!$AL$1)))-1,"n.d.") -> 0.08433905178 | AE5: =IF(INDEX($K5:$O5,1,aux!$AL$1)>0,(O5-INDEX($K5:$O5,1,aux!$AL$1))/INDEX($K5:$O5,1,aux!$AL$1),"n.d.") -> 0.3824848971
A6: 04 | B6: Leite e laticínios; ovos; mel, etc. | C6: 0.633 | D6: 7.989 | E6: 89.862 | F6: 88.535 | G6: 5.835 | H6: 38.5708 | I6: 0.01286350401 | J6: 0.008550226072 | K6: 4947.569 | L6: 5006.611 | M6: 5187.142 | N6: 5723.325 | O6: 6511.17 | P6: 5475.1634 | Q6: 0.05951777712 | R6: 0.03818907496 | S6: 5436.5926 | U6: =G6-INDEX($C6:$G6,1,aux!$AL$1) -> 5.202 | V6: -0.004352759258 | W6: -0.003204788578 | X6: =+IF(INDEX($C6:$G6,1,aux!$AL$1)>0,(G6/INDEX($C6:$G6,1,aux!$AL$1))^(1/($G$3-INDEX($C$3:$G$3,1,aux!$AL$1)))-1,"n.d.") -> 0.7424458387 | Y6: =IF(INDEX($C6:$G6,1,aux!$AL$1)>0,(G6-INDEX($C6:$G6,1,aux!$AL$1))/INDEX($C6:$G6,1,aux!$AL$1),"n.d.") -> 8.218009479 | AA6: =O6-INDEX($K6:$O6,1,aux!$AL$1) -> 1563.601 | AB6: 0.04447242725 | AC6: 0.03069460717 | AD6: =+IF(INDEX($K6:$O6,1,aux!$AL$1)>0,(O6/INDEX($K6:$O6,1,aux!$AL$1))^(1/($O$3-INDEX($K$3:$O$3,1,aux!$AL$1)))-1,"n.d.") -> 0.07106738218 | AE6: =IF(INDEX($K6:$O6,1,aux!$AL$1)>0,(O6-INDEX($K6:$O6,1,aux!$AL$1))/INDEX($K6:$O6,1,aux!$AL$1),"n.d.") -> 0.3160341978
A7: 05a | B7: Outros produtos de origem animal (exc. NC 0508, 051191) (a) | C7: 0 | D7: 0 | E7: 0.381 | F7: 0.138 | G7: 0.06 | H7: 0.1158 | I7: 3.861972696e-05 | J7: 2.567009705e-05 | K7: 74.851 | L7: 19.852 | M7: 33.385 | N7: 59.826 | O7: 46.968 | P7: 46.9764 | Q7: 0.000510657071 | R7: 0.0003276587619 | S7: 46.8606 | U7: =G7-INDEX($C7:$G7,1,aux!$AL$1) -> 0.06 | V7: -5.020483573e-05 | W7: -3.696411278e-05 | X7: =+IF(INDEX($C7:$G7,1,aux!$AL$1)>0,(G7/INDEX($C7:$G7,1,aux!$AL$1))^(1/($G$3-INDEX($C$3:$G$3,1,aux!$AL$1)))-1,"n.d.") -> n.d. | Y7: =IF(INDEX($C7:$G7,1,aux!$AL$1)>0,(G7-INDEX($C7:$G7,1,aux!$AL$1))/INDEX($C7:$G7,1,aux!$AL$1),"n.d.") -> n.d. | AA7: =O7-INDEX($K7:$O7,1,aux!$AL$1) -> -27.883 | AB7: -0.0007930569814 | AC7: -0.0005473632542 | AD7: =+IF(INDEX($K7:$O7,1,aux!$AL$1)>0,(O7/INDEX($K7:$O7,1,aux!$AL$1))^(1/($O$3-INDEX($K$3:$O$3,1,aux!$AL$1)))-1,"n.d.") -> -0.1099772351 | AE7: =IF(INDEX($K7:$O7,1,aux!$AL$1)>0,(O7-INDEX($K7:$O7,1,aux!$AL$1))/INDEX($K7:$O7,1,aux!$AL$1),"n.d.") -> -0.3725133933
A8: 06 | B8: Plantas vivas e produtos de floricultura | C8: 0.192 | D8: 4.358 | E8: 20.966 | F8: 30.771 | G8: 0.078 | H8: 11.273 | I8: 0.003759587064 | J8: 0.00249895513 | K8: 495.327 | L8: 540.736 | M8: 573.839 | N8: 770.582 | O8: 626.29 | P8: 601.3548 | Q8: 0.006537028823 | R8: 0.004194428889 | S8: 590.0818 | U8: =G8-INDEX($C8:$G8,1,aux!$AL$1) -> -0.114 | V8: 9.538918789e-05 | W8: 7.023181427e-05 | X8: =+IF(INDEX($C8:$G8,1,aux!$AL$1)>0,(G8/INDEX($C8:$G8,1,aux!$AL$1))^(1/($G$3-INDEX($C$3:$G$3,1,aux!$AL$1)))-1,"n.d.") -> -0.2016407831 | Y8: =IF(INDEX($C8:$G8,1,aux!$AL$1)>0,(G8-INDEX($C8:$G8,1,aux!$AL$1))/INDEX($C8:$G8,1,aux!$AL$1),"n.d.") -> -0.59375 | AA8: =O8-INDEX($K8:$O8,1,aux!$AL$1) -> 130.963 | AB8: 0.003724890487 | AC8: 0.00257089746 | AD8: =+IF(INDEX($K8:$O8,1,aux!$AL$1)>0,(O8/INDEX($K8:$O8,1,aux!$AL$1))^(1/($O$3-INDEX($K$3:$O$3,1,aux!$AL$1)))-1,"n.d.") -> 0.06040280751 | AE8: =IF(INDEX($K8:$O8,1,aux!$AL$1)>0,(O8-INDEX($K8:$O8,1,aux!$AL$1))/INDEX($K8:$O8,1,aux!$AL$1),"n.d.") -> 0.2643970549
A9: 07 | B9: Produtos hortícolas | C9: 11.088 | D9: 0 | E9: 0 | F9: 0.071 | G9: 0 | H9: 2.2318 | I9: 0.0007443135287 | J9: 0.0004947368099 | K9: 1647.718 | L9: 1648.059 | M9: 2049.562 | N9: 2614.196 | O9: 2109.081 | P9: 2013.7232 | Q9: 0.02189018297 | R9: 0.01404564953 | S9: 2011.4914 | U9: =G9-INDEX($C9:$G9,1,aux!$AL$1) -> -11.088 | V9: 0.009277853643 | W9: 0.006830968041 | X9: =+IF(INDEX($C9:$G9,1,aux!$AL$1)>0,(G9/INDEX($C9:$G9,1,aux!$AL$1))^(1/($G$3-INDEX($C$3:$G$3,1,aux!$AL$1)))-1,"n.d.") -> -1 | Y9: =IF(INDEX($C9:$G9,1,aux!$AL$1)>0,(G9-INDEX($C9:$G9,1,aux!$AL$1))/INDEX($C9:$G9,1,aux!$AL$1),"n.d.") -> -1 | AA9: =O9-INDEX($K9:$O9,1,aux!$AL$1) -> 461.363 | AB9: 0.01312223032 | AC9: 0.009056886026 | AD9: =+IF(INDEX($K9:$O9,1,aux!$AL$1)>0,(O9/INDEX($K9:$O9,1,aux!$AL$1))^(1/($O$3-INDEX($K$3:$O$3,1,aux!$AL$1)))-1,"n.d.") -> 0.06365942651 | AE9: =IF(INDEX($K9:$O9,1,aux!$AL$1)>0,(O9-INDEX($K9:$O9,1,aux!$AL$1))/INDEX($K9:$O9,1,aux!$AL$1),"n.d.") -> 0.2800011895
A10: 08 | B10: Frutas | C10: 77.5 | D10: 76.266 | E10: 7.144 | F10: 190.591 | G10: 151.606 | H10: 100.6214 | I10: 0.03355760789 | J10: 0.02230536358 | K10: 1600.997 | L10: 2614.964 | M10: 3333.294 | N10: 3232.531 | O10: 2653.512 | P10: 2687.0596 | Q10: 0.02920968795 | R10: 0.01874214758 | S10: 2586.4382 | U10: =G10-INDEX($C10:$G10,1,aux!$AL$1) -> 74.106 | V10: -0.06200799261 | W10: -0.04565437569 | X10: =+IF(INDEX($C10:$G10,1,aux!$AL$1)>0,(G10/INDEX($C10:$G10,1,aux!$AL$1))^(1/($G$3-INDEX($C$3:$G$3,1,aux!$AL$1)))-1,"n.d.") -> 0.1826430168 | Y10: =IF(INDEX($C10:$G10,1,aux!$AL$1)>0,(G10-INDEX($C10:$G10,1,aux!$AL$1))/INDEX($C10:$G10,1,aux!$AL$1),"n.d.") -> 0.9562064516 | AA10: =O10-INDEX($K10:$O10,1,aux!$AL$1) -> 1052.515 | AB10: 0.02993595986 | AC10: 0.02066162305 | AD10: =+IF(INDEX($K10:$O10,1,aux!$AL$1)>0,(O10/INDEX($K10:$O10,1,aux!$AL$1))^(1/($O$3-INDEX($K$3:$O$3,1,aux!$AL$1)))-1,"n.d.") -> 0.1346388102 | AE10: =IF(INDEX($K10:$O10,1,aux!$AL$1)>0,(O10-INDEX($K10:$O10,1,aux!$AL$1))/INDEX($K10:$O10,1,aux!$AL$1),"n.d.") -> 0.657412225
A11: 09 | B11: Café, chá, mate e especiarias | C11: 72.653 | D11: 69.394 | E11: 85.822 | F11: 6.074 | G11: 11.491 | H11: 49.0868 | I11: 0.01637062878 | J11: 0.01088137236 | K11: 1805.22 | L11: 2354.985 | M11: 3277.935 | N11: 4022.655 | O11: 4678.267 | P11: 3227.8124 | Q11: 0.03508794258 | R11: 0.02251387962 | S11: 3178.7256 | U11: =G11-INDEX($C11:$G11,1,aux!$AL$1) -> -61.162 | V11: 0.05117713605 | W11: 0.03767998443 | X11: =+IF(INDEX($C11:$G11,1,aux!$AL$1)>0,(G11/INDEX($C11:$G11,1,aux!$AL$1))^(1/($G$3-INDEX($C$3:$G$3,1,aux!$AL$1)))-1,"n.d.") -> -0.3693679072 | Y11: =IF(INDEX($C11:$G11,1,aux!$AL$1)>0,(G11-INDEX($C11:$G11,1,aux!$AL$1))/INDEX($C11:$G11,1,aux!$AL$1),"n.d.") -> -0.8418372263 | AA11: =O11-INDEX($K11:$O11,1,aux!$AL$1) -> 2873.047 | AB11: 0.08171609874 | AC11: 0.05639996971 | AD11: =+IF(INDEX($K11:$O11,1,aux!$AL$1)>0,(O11/INDEX($K11:$O11,1,aux!$AL$1))^(1/($O$3-INDEX($K$3:$O$3,1,aux!$AL$1)))-1,"n.d.") -> 0.2687869906 | AE11: =IF(INDEX($K11:$O11,1,aux!$AL$1)>0,(O11-INDEX($K11:$O11,1,aux!$AL$1))/INDEX($K11:$O11,1,aux!$AL$1),"n.d.") -> 1.591521809
A12: 10 | B12: Cereais | C12: 0 | D12: 0 | E12: 0.004 | F12: 0.216 | G12: 0 | H12: 0.044 | I12: 1.467416223e-05 | J12: 9.753750173e-06 | K12: 334.032 | L12: 380.325 | M12: 540.002 | N12: 422.348 | O12: 613.187 | P12: 457.9788 | Q12: 0.004978459665 | R12: 0.003194386258 | S12: 457.9348 | U12: =G12-INDEX($C12:$G12,1,aux!$AL$1) -> 0 | V12: 0 | W12: 0 | X12: =+IF(INDEX($C12:$G12,1,aux!$AL$1)>0,(G12/INDEX($C12:$G12,1,aux!$AL$1))^(1/($G$3-INDEX($C$3:$G$3,1,aux!$AL$1)))-1,"n.d.") -> n.d. | Y12: =IF(INDEX($C12:$G12,1,aux!$AL$1)>0,(G12-INDEX($C12:$G12,1,aux!$AL$1))/INDEX($C12:$G12,1,aux!$AL$1),"n.d.") -> n.d. | AA12: =O12-INDEX($K12:$O12,1,aux!$AL$1) -> 279.155 | AB12: 0.007939813565 | AC12: 0.005480012525 | AD12: =+IF(INDEX($K12:$O12,1,aux!$AL$1)>0,(O12/INDEX($K12:$O12,1,aux!$AL$1))^(1/($O$3-INDEX($K$3:$O$3,1,aux!$AL$1)))-1,"n.d.") -> 0.163995272 | AE12: =IF(INDEX($K12:$O12,1,aux!$AL$1)>0,(O12-INDEX($K12:$O12,1,aux!$AL$1))/INDEX($K12:$O12,1,aux!$AL$1),"n.d.") -> 0.8357133448
A13: 11 | B13: Produtos da indústria de moagem e outros | C13: 1.084 | D13: 1.152 | E13: 2.485 | F13: 2.33 | G13: 3.186 | H13: 2.0474 | I13: 0.0006828154488 | J13: 0.0004538597296 | K13: 266.5 | L13: 251.826 | M13: 354.651 | N13: 274.161 | O13: 266.662 | P13: 282.76 | Q13: 0.003073743271 | R13: 0.0019722412 | S13: 280.7126 | U13: =G13-INDEX($C13:$G13,1,aux!$AL$1) -> 2.102 | V13: -0.001758842745 | W13: -0.001294976084 | X13: =+IF(INDEX($C13:$G13,1,aux!$AL$1)>0,(G13/INDEX($C13:$G13,1,aux!$AL$1))^(1/($G$3-INDEX($C$3:$G$3,1,aux!$AL$1)))-1,"n.d.") -> 0.309345085 | Y13: =IF(INDEX($C13:$G13,1,aux!$AL$1)>0,(G13-INDEX($C13:$G13,1,aux!$AL$1))/INDEX($C13:$G13,1,aux!$AL$1),"n.d.") -> 1.939114391 | AA13: =O13-INDEX($K13:$O13,1,aux!$AL$1) -> 0.162 | AB13: 4.60765452e-06 | AC13: 3.180175992e-06 | AD13: =+IF(INDEX($K13:$O13,1,aux!$AL$1)>0,(O13/INDEX($K13:$O13,1,aux!$AL$1))^(1/($O$3-INDEX($K$3:$O$3,1,aux!$AL$1)))-1,"n.d.") -> 0.0001519353512 | AE13: =IF(INDEX($K13:$O13,1,aux!$AL$1)>0,(O13-INDEX($K13:$O13,1,aux!$AL$1))/INDEX($K13:$O13,1,aux!$AL$1),"n.d.") -> 0.000607879925
A14: 12 | B14: Sementes e frutos oleaginosos | C14: 0 | D14: 3.534 | E14: 0.009 | F14: 5.061 | G14: 0.703 | H14: 1.8614 | I14: 0.000620783763 | J14: 0.0004126279675 | K14: 28.619 | L14: 17.806 | M14: 49.932 | N14: 30.448 | O14: 8661.954 | P14: 1757.7518 | Q14: 0.01910764524 | R14: 0.01226025789 | S14: 1755.8904 | U14: =G14-INDEX($C14:$G14,1,aux!$AL$1) -> 0.703 | V14: -0.0005882333253 | W14: -0.000433096188 | X14: =+IF(INDEX($C14:$G14,1,aux!$AL$1)>0,(G14/INDEX($C14:$G14,1,aux!$AL$1))^(1/($G$3-INDEX($C$3:$G$3,1,aux!$AL$1)))-1,"n.d.") -> n.d. | Y14: =IF(INDEX($C14:$G14,1,aux!$AL$1)>0,(G14-INDEX($C14:$G14,1,aux!$AL$1))/INDEX($C14:$G14,1,aux!$AL$1),"n.d.") -> n.d. | AA14: =O14-INDEX($K14:$O14,1,aux!$AL$1) -> 8633.335 | AB14: 0.2455520064 | AC14: 0.1694785475 | AD14: =+IF(INDEX($K14:$O14,1,aux!$AL$1)>0,(O14/INDEX($K14:$O14,1,aux!$AL$1))^(1/($O$3-INDEX($K$3:$O$3,1,aux!$AL$1)))-1,"n.d.") -> 3.171001582 | AE14: =IF(INDEX($K14:$O14,1,aux!$AL$1)>0,(O14-INDEX($K14:$O14,1,aux!$AL$1))/INDEX($K14:$O14,1,aux!$AL$1),"n.d.") -> 301.6644537
A15: 13a | B15: Sucos e extratos vegetais (exc. NC 1301) (a) | C15: 0.05 | D15: 1.708 | E15: 3.911 | F15: 11.7 | G15: 15.631 | H15: 6.6 | I15: 0.002201124334 | J15: 0.001463062526 | K15: 0 | L15: 2.1 | M15: 176.58 | N15: 0.053 | O15: 0.92 | P15: 35.9306 | Q15: 0.0003905836751 | R15: 0.0002506146897 | S15: 29.3306 | U15: =G15-INDEX($C15:$G15,1,aux!$AL$1) -> 15.581 | V15: -0.01303735909 | W15: -0.009598964019 | X15: =+IF(INDEX($C15:$G15,1,aux!$AL$1)>0,(G15/INDEX($C15:$G15,1,aux!$AL$1))^(1/($G$3-INDEX($C$3:$G$3,1,aux!$AL$1)))-1,"n.d.") -> 3.204885648 | Y15: =IF(INDEX($C15:$G15,1,aux!$AL$1)>0,(G15-INDEX($C15:$G15,1,aux!$AL$1))/INDEX($C15:$G15,1,aux!$AL$1),"n.d.") -> 311.62 | AA15: =O15-INDEX($K15:$O15,1,aux!$AL$1) -> 0.92 | AB15: 2.61669269e-05 | AC15: 1.806025872e-05 | AD15: =+IF(INDEX($K15:$O15,1,aux!$AL$1)>0,(O15/INDEX($K15:$O15,1,aux!$AL$1))^(1/($O$3-INDEX($K$3:$O$3,1,aux!$AL$1)))-1,"n.d.") -> n.d. | AE15: =IF(INDEX($K15:$O15,1,aux!$AL$1)>0,(O15-INDEX($K15:$O15,1,aux!$AL$1))/INDEX($K15:$O15,1,aux!$AL$1),"n.d.") -> n.d.
A16: 14 | B16: Matérias para entrançar e outros | C16: 0 | D16: 0 | E16: 0 | F16: 0 | G16: 0 | H16: 0 | I16: 0 | J16: 0 | K16: 0 | L16: 0 | M16: 0.085 | N16: 7.005 | O16: 6.499 | P16: 2.7178 | Q16: 2.954385154e-05 | R16: 1.895656081e-05 | S16: 2.7178 | U16: =G16-INDEX($C16:$G16,1,aux!$AL$1) -> 0 | V16: 0 | W16: 0 | X16: =+IF(INDEX($C16:$G16,1,aux!$AL$1)>0,(G16/INDEX($C16:$G16,1,aux!$AL$1))^(1/($G$3-INDEX($C$3:$G$3,1,aux!$AL$1)))-1,"n.d.") -> n.d. | Y16: =IF(INDEX($C16:$G16,1,aux!$AL$1)>0,(G16-INDEX($C16:$G16,1,aux!$AL$1))/INDEX($C16:$G16,1,aux!$AL$1),"n.d.") -> n.d. | AA16: =O16-INDEX($K16:$O16,1,aux!$AL$1) -> 6.499 | AB16: 0.0001848465847 | AC16: 0.0001275800233 | AD16: =+IF(INDEX($K16:$O16,1,aux!$AL$1)>0,(O16/INDEX($K16:$O16,1,aux!$AL$1))^(1/($O$3-INDEX($K$3:$O$3,1,aux!$AL$1)))-1,"n.d.") -> n.d. | AE16: =IF(INDEX($K16:$O16,1,aux!$AL$1)>0,(O16-INDEX($K16:$O16,1,aux!$AL$1))/INDEX($K16:$O16,1,aux!$AL$1),"n.d.") -> n.d.
A17: 15 | B17: Gorduras e óleos animais ou vegetais | C17: 1.759 | D17: 68.84 | E17: 55.169 | F17: 230.628 | G17: 237.753 | H17: 118.8298 | I17: 0.03963017643 | J17: 0.02634173142 | K17: 2322.864 | L17: 2299.949 | M17: 3510.712 | N17: 3687.036 | O17: 4188.035 | P17: 3201.7192 | Q17: 0.03480429639 | R17: 0.02233188046 | S17: 3082.8894 | U17: =G17-INDEX($C17:$G17,1,aux!$AL$1) -> 235.994 | V17: -0.1974673334 | W17: -0.1453884805 | X17: =+IF(INDEX($C17:$G17,1,aux!$AL$1)>0,(G17/INDEX($C17:$G17,1,aux!$AL$1))^(1/($G$3-INDEX($C$3:$G$3,1,aux!$AL$1)))-1,"n.d.") -> 2.409691144 | Y17: =IF(INDEX($C17:$G17,1,aux!$AL$1)>0,(G17-INDEX($C17:$G17,1,aux!$AL$1))/INDEX($C17:$G17,1,aux!$AL$1),"n.d.") -> 134.1637294 | AA17: =O17-INDEX($K17:$O17,1,aux!$AL$1) -> 1865.171 | AB17: 0.05304977524 | AC17: 0.03661464219 | AD17: =+IF(INDEX($K17:$O17,1,aux!$AL$1)>0,(O17/INDEX($K17:$O17,1,aux!$AL$1))^(1/($O$3-INDEX($K$3:$O$3,1,aux!$AL$1)))-1,"n.d.") -> 0.1587683639 | AE17: =IF(INDEX($K17:$O17,1,aux!$AL$1)>0,(O17-INDEX($K17:$O17,1,aux!$AL$1))/INDEX($K17:$O17,1,aux!$AL$1),"n.d.") -> 0.8029617748
A18: 16a | B18: Preparações de carnes (exc. NC 1604-05) (a) | C18: 0 | D18: 0 | E18: 0 | F18: 0.124 | G18: 0.058 | H18: 0.0364 | I18: 1.213953421e-05 | J18: 8.069011507e-06 | K18: 1519.328 | L18: 1685.43 | M18: 2191.099 | N18: 2396.63 | O18: 2131.612 | P18: 1984.8198 | Q18: 0.02157598849 | R18: 0.01384404932 | S18: 1984.7834 | U18: =G18-INDEX($C18:$G18,1,aux!$AL$1) -> 0.058 | V18: -4.853134121e-05 | W18: -3.573197568e-05 | X18: =+IF(INDEX($C18:$G18,1,aux!$AL$1)>0,(G18/INDEX($C18:$G18,1,aux!$AL$1))^(1/($G$3-INDEX($C$3:$G$3,1,aux!$AL$1)))-1,"n.d.") -> n.d. | Y18: =IF(INDEX($C18:$G18,1,aux!$AL$1)>0,(G18-INDEX($C18:$G18,1,aux!$AL$1))/INDEX($C18:$G18,1,aux!$AL$1),"n.d.") -> n.d. | AA18: =O18-INDEX($K18:$O18,1,aux!$AL$1) -> 612.284 | AB18: 0.01741477247 | AC18: 0.01201957332 | AD18: =+IF(INDEX($K18:$O18,1,aux!$AL$1)>0,(O18/INDEX($K18:$O18,1,aux!$AL$1))^(1/($O$3-INDEX($K$3:$O$3,1,aux!$AL$1)))-1,"n.d.") -> 0.08833890369 | AE18: =IF(INDEX($K18:$O18,1,aux!$AL$1)>0,(O18-INDEX($K18:$O18,1,aux!$AL$1))/INDEX($K18:$O18,1,aux!$AL$1),"n.d.") -> 0.402996588
A19: 17 | B19: Açúcares e produtos de confeitaria | C19: 2.118 | D19: 5.949 | E19: 8.215 | F19: 2.204 | G19: 0.881 | H19: 3.8734 | I19: 0.001291793181 | J19: 0.0008586403618 | K19: 206.811 | L19: 193.691 | M19: 233.748 | N19: 277.594 | O19: 354.363 | P19: 253.2414 | Q19: 0.002752861258 | R19: 0.001766349988 | S19: 249.368 | U19: =G19-INDEX($C19:$G19,1,aux!$AL$1) -> -1.237 | V19: 0.001035056363 | W19: 0.0007620767917 | X19: =+IF(INDEX($C19:$G19,1,aux!$AL$1)>0,(G19/INDEX($C19:$G19,1,aux!$AL$1))^(1/($G$3-INDEX($C$3:$G$3,1,aux!$AL$1)))-1,"n.d.") -> -0.1969131991 | Y19: =IF(INDEX($C19:$G19,1,aux!$AL$1)>0,(G19-INDEX($C19:$G19,1,aux!$AL$1))/INDEX($C19:$G19,1,aux!$AL$1),"n.d.") -> -0.5840415486 | AA19: =O19-INDEX($K19:$O19,1,aux!$AL$1) -> 147.552 | AB19: 0.004196719998 | AC19: 0.002896551407 | AD19: =+IF(INDEX($K19:$O19,1,aux!$AL$1)>0,(O19/INDEX($K19:$O19,1,aux!$AL$1))^(1/($O$3-INDEX($K$3:$O$3,1,aux!$AL$1)))-1,"n.d.") -> 0.1441123769 | AE19: =IF(INDEX($K19:$O19,1,aux!$AL$1)>0,(O19-INDEX($K19:$O19,1,aux!$AL$1))/INDEX($K19:$O19,1,aux!$AL$1),"n.d.") -> 0.713463017
A20: 18 | B20: Cacau e suas preparações | C20: 350.512 | D20: 424.028 | E20: 396.495 | F20: 400.434 | G20: 334.405 | H20: 381.1748 | I20: 0.1271232012 | J20: 0.08449735844 | K20: 431.09 | L20: 908.136 | M20: 1252.784 | N20: 1452.234 | O20: 1070.967 | P20: 1023.0422 | Q20: 0.01112098274 | R20: 0.007135683889 | S20: 641.8674 | U20: =G20-INDEX($C20:$G20,1,aux!$AL$1) -> -16.107 | V20: 0.01347748815 | W20: 0.009923016074 | X20: =+IF(INDEX($C20:$G20,1,aux!$AL$1)>0,(G20/INDEX($C20:$G20,1,aux!$AL$1))^(1/($G$3-INDEX($C$3:$G$3,1,aux!$AL$1)))-1,"n.d.") -> -0.01169164266 | Y20: =IF(INDEX($C20:$G20,1,aux!$AL$1)>0,(G20-INDEX($C20:$G20,1,aux!$AL$1))/INDEX($C20:$G20,1,aux!$AL$1),"n.d.") -> -0.04595277765 | AA20: =O20-INDEX($K20:$O20,1,aux!$AL$1) -> 639.877 | AB20: 0.01819958118 | AC20: 0.01256124366 | AD20: =+IF(INDEX($K20:$O20,1,aux!$AL$1)>0,(O20/INDEX($K20:$O20,1,aux!$AL$1))^(1/($O$3-INDEX($K$3:$O$3,1,aux!$AL$1)))-1,"n.d.") -> 0.2554575567 | AE20: =IF(INDEX($K20:$O20,1,aux!$AL$1)>0,(O20-INDEX($K20:$O20,1,aux!$AL$1))/INDEX($K20:$O20,1,aux!$AL$1),"n.d.") -> 1.484323459
A21: 19a | B21: Preparações à base de cereais (exc. NC 19022010) (a) | C21: 913.083 | D21: 52.213 | E21: 39.889 | F21: 5.289 | G21: 3.21 | H21: 202.7368 | I21: 0.06761347029 | J21: 0.04494191132 | K21: 4083.062 | L21: 4400.9 | M21: 5409.261 | N21: 5520.18 | O21: 5908.366 | P21: 5064.3538 | Q21: 0.05505207036 | R21: 0.03532369224 | S21: 4861.617 | U21: =G21-INDEX($C21:$G21,1,aux!$AL$1) -> -909.873 | V21: 0.7613337417 | W21: 0.5605441364 | X21: =+IF(INDEX($C21:$G21,1,aux!$AL$1)>0,(G21/INDEX($C21:$G21,1,aux!$AL$1))^(1/($G$3-INDEX($C$3:$G$3,1,aux!$AL$1)))-1,"n.d.") -> -0.7565001523 | Y21: =IF(INDEX($C21:$G21,1,aux!$AL$1)>0,(G21-INDEX($C21:$G21,1,aux!$AL$1))/INDEX($C21:$G21,1,aux!$AL$1),"n.d.") -> -0.9964844379 | AA21: =O21-INDEX($K21:$O21,1,aux!$AL$1) -> 1825.304 | AB21: 0.05191586559 | AC21: 0.03583202444 | AD21: =+IF(INDEX($K21:$O21,1,aux!$AL$1)>0,(O21/INDEX($K21:$O21,1,aux!$AL$1))^(1/($O$3-INDEX($K$3:$O$3,1,aux!$AL$1)))-1,"n.d.") -> 0.09678209994 | AE21: =IF(INDEX($K21:$O21,1,aux!$AL$1)>0,(O21-INDEX($K21:$O21,1,aux!$AL$1))/INDEX($K21:$O21,1,aux!$AL$1),"n.d.") -> 0.44704293
A22: 20 | B22: Preparações de produtos vegetais | C22: 16.128 | D22: 18.339 | E22: 30.147 | F22: 46.289 | G22: 84.894 | H22: 39.1594 | I22: 0.01305980428 | J22: 0.008680704648 | K22: 3498.066 | L22: 3742.232 | M22: 5127.913 | N22: 4882.497 | O22: 4872.998 | P22: 4424.7412 | Q22: 0.04809916003 | R22: 0.03086241652 | S22: 4385.5818 | U22: =G22-INDEX($C22:$G22,1,aux!$AL$1) -> 68.766 | V22: -0.05753976223 | W22: -0.04236456965 | X22: =+IF(INDEX($C22:$G22,1,aux!$AL$1)>0,(G22/INDEX($C22:$G22,1,aux!$AL$1))^(1/($G$3-INDEX($C$3:$G$3,1,aux!$AL$1)))-1,"n.d.") -> 0.5146912637 | Y22: =IF(INDEX($C22:$G22,1,aux!$AL$1)>0,(G22-INDEX($C22:$G22,1,aux!$AL$1))/INDEX($C22:$G22,1,aux!$AL$1),"n.d.") -> 4.263764881 | AA22: =O22-INDEX($K22:$O22,1,aux!$AL$1) -> 1374.932 | AB22: 0.03910624472 | AC22: 0.02699089961 | AD22: =+IF(INDEX($K22:$O22,1,aux!$AL$1)>0,(O22/INDEX($K22:$O22,1,aux!$AL$1))^(1/($O$3-INDEX($K$3:$O$3,1,aux!$AL$1)))-1,"n.d.") -> 0.08640575734 | AE22: =IF(INDEX($K22:$O22,1,aux!$AL$1)>0,(O22-INDEX($K22:$O22,1,aux!$AL$1))/INDEX($K22:$O22,1,aux!$AL$1),"n.d.") -> 0.3930549052
A23: 21 | B23: Preparações alimentícias diversas | C23: 2142.908 | D23: 3474.338 | E23: 777.922 | F23: 367.182 | G23: 478.322 | H23: 1448.1344 | I23: 0.4829581617 | J23: 0.3210168444 | K23: 3641.797 | L23: 4105.786 | M23: 6859.611 | N23: 7647.46 | O23: 7447.014 | P23: 5940.3336 | Q23: 0.06457441092 | R23: 0.04143362098 | S23: 4492.1992 | U23: =G23-INDEX($C23:$G23,1,aux!$AL$1) -> -1664.586 | V23: 1.392837778 | W23: 1.025499077 | X23: =+IF(INDEX($C23:$G23,1,aux!$AL$1)>0,(G23/INDEX($C23:$G23,1,aux!$AL$1))^(1/($G$3-INDEX($C$3:$G$3,1,aux!$AL$1)))-1,"n.d.") -> -0.3126479891 | Y23: =IF(INDEX($C23:$G23,1,aux!$AL$1)>0,(G23-INDEX($C23:$G23,1,aux!$AL$1))/INDEX($C23:$G23,1,aux!$AL$1),"n.d.") -> -0.7767883642 | AA23: =O23-INDEX($K23:$O23,1,aux!$AL$1) -> 3805.217 | AB23: 0.1082291686 | AC23: 0.07469913425 | AD23: =+IF(INDEX($K23:$O23,1,aux!$AL$1)>0,(O23/INDEX($K23:$O23,1,aux!$AL$1))^(1/($O$3-INDEX($K$3:$O$3,1,aux!$AL$1)))-1,"n.d.") -> 0.195822193 | AE23: =IF(INDEX($K23:$O23,1,aux!$AL$1)>0,(O23-INDEX($K23:$O23,1,aux!$AL$1))/INDEX($K23:$O23,1,aux!$AL$1),"n.d.") -> 1.044873451
A24: 22 | B24: Bebidas, líquidos alcoólicos e vinagres | C24: 209.59 | D24: 275.568 | E24: 202.991 | F24: 286.091 | G24: 411.843 | H24: 277.2166 | I24: 0.0924527582 | J24: 0.06145230591 | K24: 45663.59 | L24: 48271.845 | M24: 51574.366 | N24: 53820.971 | O24: 54442.304 | P24: 50754.6152 | Q24: 0.5517281686 | R24: 0.354011682 | S24: 50477.3986 | U24: =G24-INDEX($C24:$G24,1,aux!$AL$1) -> 202.253 | V24: -0.169234644 | W24: -0.1246017117 | X24: =+IF(INDEX($C24:$G24,1,aux!$AL$1)>0,(G24/INDEX($C24:$G24,1,aux!$AL$1))^(1/($G$3-INDEX($C$3:$G$3,1,aux!$AL$1)))-1,"n.d.") -> 0.1839688676 | Y24: =IF(INDEX($C24:$G24,1,aux!$AL$1)>0,(G24-INDEX($C24:$G24,1,aux!$AL$1))/INDEX($C24:$G24,1,aux!$AL$1),"n.d.") -> 0.9649935589 | AA24: =O24-INDEX($K24:$O24,1,aux!$AL$1) -> 8778.714 | AB24: 0.2496869213 | AC24: 0.1723324414 | AD24: =+IF(INDEX($K24:$O24,1,aux!$AL$1)>0,(O24/INDEX($K24:$O24,1,aux!$AL$1))^(1/($O$3-INDEX($K$3:$O$3,1,aux!$AL$1)))-1,"n.d.") -> 0.0449406181 | AE24: =IF(INDEX($K24:$O24,1,aux!$AL$1)>0,(O24-INDEX($K24:$O24,1,aux!$AL$1))/INDEX($K24:$O24,1,aux!$AL$1),"n.d.") -> 0.1922475653
A25: 23a | B25: Resíduos indústrias alimentares; alimentos p/ animais (exc. NC 230120) (a) | C25: 44.629 | D25: 0 | E25: 0.368 | F25: 3.877 | G25: 0.873 | H25: 9.9494 | I25: 0.003318161584 | J25: 0.00220554459 | K25: 64.041 | L25: 60.571 | M25: 84.453 | N25: 112.704 | O25: 68.944 | P25: 78.1426 | Q25: 0.0008494493243 | R25: 0.0005450419268 | S25: 68.1932 | U25: =G25-INDEX($C25:$G25,1,aux!$AL$1) -> -43.756 | V25: 0.0366127132 | W25: 0.02695669531 | X25: =+IF(INDEX($C25:$G25,1,aux!$AL$1)>0,(G25/INDEX($C25:$G25,1,aux!$AL$1))^(1/($G$3-INDEX($C$3:$G$3,1,aux!$AL$1)))-1,"n.d.") -> -0.6260192295 | Y25: =IF(INDEX($C25:$G25,1,aux!$AL$1)>0,(G25-INDEX($C25:$G25,1,aux!$AL$1))/INDEX($C25:$G25,1,aux!$AL$1),"n.d.") -> -0.9804387282 | AA25: =O25-INDEX($K25:$O25,1,aux!$AL$1) -> 4.903 | AB25: 0.000139452655 | AC25: 9.624940055e-05 | AD25: =+IF(INDEX($K25:$O25,1,aux!$AL$1)>0,(O25/INDEX($K25:$O25,1,aux!$AL$1))^(1/($O$3-INDEX($K$3:$O$3,1,aux!$AL$1)))-1,"n.d.") -> 0.01861388762 | AE25: =IF(INDEX($K25:$O25,1,aux!$AL$1)>0,(O25-INDEX($K25:$O25,1,aux!$AL$1))/INDEX($K25:$O25,1,aux!$AL$1),"n.d.") -> 0.07656032854
A26: 24 | B26: Tabaco | C26: 6.546 | D26: 5.433 | E26: 7.069 | F26: 19.875 | G26: 305.401 | H26: 68.8648 | I26: 0.02296666471 | J26: 0.01526568307 | K26: 109.971 | L26: 53.027 | M26: 122.167 | N26: 79.909 | O26: 358.96 | P26: 144.8068 | Q26: 0.001574122673 | R26: 0.001010022411 | S26: 75.942 | U26: =G26-INDEX($C26:$G26,1,aux!$AL$1) -> 298.855 | V26: -0.250066103 | W26: -0.1841151654 | X26: =+IF(INDEX($C26:$G26,1,aux!$AL$1)>0,(G26/INDEX($C26:$G26,1,aux!$AL$1))^(1/($G$3-INDEX($C$3:$G$3,1,aux!$AL$1)))-1,"n.d.") -> 1.613506674 | Y26: =IF(INDEX($C26:$G26,1,aux!$AL$1)>0,(G26-INDEX($C26:$G26,1,aux!$AL$1))/INDEX($C26:$G26,1,aux!$AL$1),"n.d.") -> 45.65459823 | AA26: =O26-INDEX($K26:$O26,1,aux!$AL$1) -> 248.989 | AB26: 0.007081822786 | AC26: 0.004887832346 | AD26: =+IF(INDEX($K26:$O26,1,aux!$AL$1)>0,(O26/INDEX($K26:$O26,1,aux!$AL$1))^(1/($O$3-INDEX($K$3:$O$3,1,aux!$AL$1)))-1,"n.d.") -> 0.3441321548 | AE26: =IF(INDEX($K26:$O26,1,aux!$AL$1)>0,(O26-INDEX($K26:$O26,1,aux!$AL$1))/INDEX($K26:$O26,1,aux!$AL$1),"n.d.") -> 2.264133271
A27: 29 | B27: Manitol e sorbitol (NC 290543; 290544) | C27: 0.003 | D27: 0.012 | E27: 0.49 | F27: 3.622 | G27: 1.2 | H27: 1.0654 | I27: 0.0003553148281 | J27: 0.0002361737599 | K27: 0 | L27: 0 | M27: 0.037 | N27: 0 | O27: 0 | P27: 0.0074 | Q27: 8.044171808e-08 | R27: 5.161474354e-08 | S27: -1.058 | U27: =G27-INDEX($C27:$G27,1,aux!$AL$1) -> 1.197 | V27: -0.001001586473 | W27: -0.0007374340499 | X27: =+IF(INDEX($C27:$G27,1,aux!$AL$1)>0,(G27/INDEX($C27:$G27,1,aux!$AL$1))^(1/($G$3-INDEX($C$3:$G$3,1,aux!$AL$1)))-1,"n.d.") -> 3.472135955 | Y27: =IF(INDEX($C27:$G27,1,aux!$AL$1)>0,(G27-INDEX($C27:$G27,1,aux!$AL$1))/INDEX($C27:$G27,1,aux!$AL$1),"n.d.") -> 399 | AA27: =O27-INDEX($K27:$O27,1,aux!$AL$1) -> 0 | AB27: 0 | AC27: 0 | AD27: =+IF(INDEX($K27:$O27,1,aux!$AL$1)>0,(O27/INDEX($K27:$O27,1,aux!$AL$1))^(1/($O$3-INDEX($K$3:$O$3,1,aux!$AL$1)))-1,"n.d.") -> n.d. | AE27: =IF(INDEX($K27:$O27,1,aux!$AL$1)>0,(O27-INDEX($K27:$O27,1,aux!$AL$1))/INDEX($K27:$O27,1,aux!$AL$1),"n.d.") -> n.d.
A28: 33 | B28: Óleos essenciais e resinóides (NC 3301) | C28: 4.605 | D28: 4.824 | E28: 4.393 | F28: 2.007 | G28: 5.702 | H28: 4.3062 | I28: 0.001436133577 | J28: 0.0009545817953 | K28: 4.502 | L28: 3.002 | M28: 10.535 | N28: 12.644 | O28: 15.518 | P28: 9.2402 | Q28: 0.0001004456167 | R28: 6.445007476e-05 | S28: 4.934 | U28: =G28-INDEX($C28:$G28,1,aux!$AL$1) -> 1.097 | V28: -0.0009179117466 | W28: -0.0006758271952 | X28: =+IF(INDEX($C28:$G28,1,aux!$AL$1)>0,(G28/INDEX($C28:$G28,1,aux!$AL$1))^(1/($G$3-INDEX($C$3:$G$3,1,aux!$AL$1)))-1,"n.d.") -> 0.05487110087 | Y28: =IF(INDEX($C28:$G28,1,aux!$AL$1)>0,(G28-INDEX($C28:$G28,1,aux!$AL$1))/INDEX($C28:$G28,1,aux!$AL$1),"n.d.") -> 0.2382193268 | AA28: =O28-INDEX($K28:$O28,1,aux!$AL$1) -> 11.016 | AB28: 0.0003133205074 | AC28: 0.0002162519675 | AD28: =+IF(INDEX($K28:$O28,1,aux!$AL$1)>0,(O28/INDEX($K28:$O28,1,aux!$AL$1))^(1/($O$3-INDEX($K$3:$O$3,1,aux!$AL$1)))-1,"n.d.") -> 0.3625660514 | AE28: =IF(INDEX($K28:$O28,1,aux!$AL$1)>0,(O28-INDEX($K28:$O28,1,aux!$AL$1))/INDEX($K28:$O28,1,aux!$AL$1),"n.d.") -> 2.446912483
A29: 35 | B29: Caseínas, albuminas, gelatinas, peptonas, dextrinas (NC 3501 a 3505) | C29: 3.408 | D29: 5.257 | E29: 9.168 | F29: 86.954 | G29: 408.605 | H29: 102.6784 | I29: 0.03424362498 | J29: 0.0227613514 | K29: 95.272 | L29: 99.304 | M29: 173.053 | N29: 178.576 | O29: 192.361 | P29: 147.7132 | Q29: 0.001605716702 | R29: 0.001030294451 | S29: 45.0348 | U29: =G29-INDEX($C29:$G29,1,aux!$AL$1) -> 405.197 | V29: -0.3390474804 | W29: -0.2496291267 | X29: =+IF(INDEX($C29:$G29,1,aux!$AL$1)>0,(G29/INDEX($C29:$G29,1,aux!$AL$1))^(1/($G$3-INDEX($C$3:$G$3,1,aux!$AL$1)))-1,"n.d.") -> 2.309032424 | Y29: =IF(INDEX($C29:$G29,1,aux!$AL$1)>0,(G29-INDEX($C29:$G29,1,aux!$AL$1))/INDEX($C29:$G29,1,aux!$AL$1),"n.d.") -> 118.8958333 | AA29: =O29-INDEX($K29:$O29,1,aux!$AL$1) -> 97.089 | AB29: 0.002761435615 | AC29: 0.001905926586 | AD29: =+IF(INDEX($K29:$O29,1,aux!$AL$1)>0,(O29/INDEX($K29:$O29,1,aux!$AL$1))^(1/($O$3-INDEX($K$3:$O$3,1,aux!$AL$1)))-1,"n.d.") -> 0.1920320599 | AE29: =IF(INDEX($K29:$O29,1,aux!$AL$1)>0,(O29-INDEX($K29:$O29,1,aux!$AL$1))/INDEX($K29:$O29,1,aux!$AL$1),"n.d.") -> 1.01907171
A30: 38a | B30: Agentes de acabamento, ácidos gordos, sorbitol (NC 380910, 382311-12-13-19-70, 382460) (a) | C30: 0 | D30: 0 | E30: 0 | F30: 0 | G30: 6.845 | H30: 1.369 | I30: 0.0004565665475 | J30: 0.0003034746361 | K30: 0 | L30: 0 | M30: 0 | N30: 0 | O30: 0 | P30: 0 | Q30: 0 | R30: 0 | S30: -1.369 | U30: =G30-INDEX($C30:$G30,1,aux!$AL$1) -> 6.845 | V30: -0.00572753501 | W30: -0.004216989199 | X30: =+IF(INDEX($C30:$G30,1,aux!$AL$1)>0,(G30/INDEX($C30:$G30,1,aux!$AL$1))^(1/($G$3-INDEX($C$3:$G$3,1,aux!$AL$1)))-1,"n.d.") -> n.d. | Y30: =IF(INDEX($C30:$G30,1,aux!$AL$1)>0,(G30-INDEX($C30:$G30,1,aux!$AL$1))/INDEX($C30:$G30,1,aux!$AL$1),"n.d.") -> n.d. | AA30: =O30-INDEX($K30:$O30,1,aux!$AL$1) -> 0 | AB30: 0 | AC30: 0 | AD30: =+IF(INDEX($K30:$O30,1,aux!$AL$1)>0,(O30/INDEX($K30:$O30,1,aux!$AL$1))^(1/($O$3-INDEX($K$3:$O$3,1,aux!$AL$1)))-1,"n.d.") -> n.d. | AE30: =IF(INDEX($K30:$O30,1,aux!$AL$1)>0,(O30-INDEX($K30:$O30,1,aux!$AL$1))/INDEX($K30:$O30,1,aux!$AL$1),"n.d.") -> n.d.
A31: 41 | B31: Couro e peles em bruto (NC 4101 a 4103) | C31: 0 | D31: 0 | E31: 0 | F31: 0 | G31: 0 | H31: 0 | I31: 0 | J31: 0 | K31: 0 | L31: 0 | M31: 0.347 | N31: 0 | O31: 0 | P31: 0.0694 | Q31: 7.544128696e-07 | R31: 4.840625948e-07 | S31: 0.0694 | U31: =G31-INDEX($C31:$G31,1,aux!$AL$1) -> 0 | V31: 0 | W31: 0 | X31: =+IF(INDEX($C31:$G31,1,aux!$AL$1)>0,(G31/INDEX($C31:$G31,1,aux!$AL$1))^(1/($G$3-INDEX($C$3:$G$3,1,aux!$AL$1)))-1,"n.d.") -> n.d. | Y31: =IF(INDEX($C31:$G31,1,aux!$AL$1)>0,(G31-INDEX($C31:$G31,1,aux!$AL$1))/INDEX($C31:$G31,1,aux!$AL$1),"n.d.") -> n.d. | AA31: =O31-INDEX($K31:$O31,1,aux!$AL$1) -> 0 | AB31: 0 | AC31: 0 | AD31: =+IF(INDEX($K31:$O31,1,aux!$AL$1)>0,(O31/INDEX($K31:$O31,1,aux!$AL$1))^(1/($O$3-INDEX($K$3:$O$3,1,aux!$AL$1)))-1,"n.d.") -> n.d. | AE31: =IF(INDEX($K31:$O31,1,aux!$AL$1)>0,(O31-INDEX($K31:$O31,1,aux!$AL$1))/INDEX($K31:$O31,1,aux!$AL$1),"n.d.") -> n.d.
A32: 43 | B32: Peles com pelo em bruto (NC 4301) | C32: 0 | D32: 87.535 | E32: 54.835 | F32: 49.441 | G32: 86.389 | H32: 55.64 | I32: 0.01855614515 | J32: 0.01233406045 | K32: 0 | L32: 0 | M32: 0 | N32: 0 | O32: 0 | P32: 0 | Q32: 0 | R32: 0 | S32: -55.64 | U32: =G32-INDEX($C32:$G32,1,aux!$AL$1) -> 86.389 | V32: -0.07228575923 | W32: -0.05322154564 | X32: =+IF(INDEX($C32:$G32,1,aux!$AL$1)>0,(G32/INDEX($C32:$G32,1,aux!$AL$1))^(1/($G$3-INDEX($C$3:$G$3,1,aux!$AL$1)))-1,"n.d.") -> n.d. | Y32: =IF(INDEX($C32:$G32,1,aux!$AL$1)>0,(G32-INDEX($C32:$G32,1,aux!$AL$1))/INDEX($C32:$G32,1,aux!$AL$1),"n.d.") -> n.d. | AA32: =O32-INDEX($K32:$O32,1,aux!$AL$1) -> 0 | AB32: 0 | AC32: 0 | AD32: =+IF(INDEX($K32:$O32,1,aux!$AL$1)>0,(O32/INDEX($K32:$O32,1,aux!$AL$1))^(1/($O$3-INDEX($K$3:$O$3,1,aux!$AL$1)))-1,"n.d.") -> n.d. | AE32: =IF(INDEX($K32:$O32,1,aux!$AL$1)>0,(O32-INDEX($K32:$O32,1,aux!$AL$1))/INDEX($K32:$O32,1,aux!$AL$1),"n.d.") -> n.d.
A33: 50 | B33: Seda crua (NC 5001-5003) | C33: 0 | D33: 0 | E33: 0 | F33: 0 | G33: 11.995 | H33: 2.399 | I33: 0.0008000753452 | J33: 0.0005318010606 | K33: 0 | L33: 0 | M33: 0 | N33: 0 | O33: 0 | P33: 0 | Q33: 0 | R33: 0 | S33: -2.399 | U33: =G33-INDEX($C33:$G33,1,aux!$AL$1) -> 11.995 | V33: -0.01003678341 | W33: -0.007389742212 | X33: =+IF(INDEX($C33:$G33,1,aux!$AL$1)>0,(G33/INDEX($C33:$G33,1,aux!$AL$1))^(1/($G$3-INDEX($C$3:$G$3,1,aux!$AL$1)))-1,"n.d.") -> n.d. | Y33: =IF(INDEX($C33:$G33,1,aux!$AL$1)>0,(G33-INDEX($C33:$G33,1,aux!$AL$1))/INDEX($C33:$G33,1,aux!$AL$1),"n.d.") -> n.d. | AA33: =O33-INDEX($K33:$O33,1,aux!$AL$1) -> 0 | AB33: 0 | AC33: 0 | AD33: =+IF(INDEX($K33:$O33,1,aux!$AL$1)>0,(O33/INDEX($K33:$O33,1,aux!$AL$1))^(1/($O$3-INDEX($K$3:$O$3,1,aux!$AL$1)))-1,"n.d.") -> n.d. | AE33: =IF(INDEX($K33:$O33,1,aux!$AL$1)>0,(O33-INDEX($K33:$O33,1,aux!$AL$1))/INDEX($K33:$O33,1,aux!$AL$1),"n.d.") -> n.d.
A34: 51 | B34: Lã não cardada (NC 5101-5103) | C34: 0 | D34: 0 | E34: 0.345 | F34: 2.01 | G34: 0.077 | H34: 0.4864 | I34: 0.0001622161934 | J34: 0.0001078232746 | K34: 0 | L34: 0 | M34: 0 | N34: 0 | O34: 0 | P34: 0 | Q34: 0 | R34: 0 | S34: -0.4864 | U34: =G34-INDEX($C34:$G34,1,aux!$AL$1) -> 0.077 | V34: -6.442953919e-05 | W34: -4.743727806e-05 | X34: =+IF(INDEX($C34:$G34,1,aux!$AL$1)>0,(G34/INDEX($C34:$G34,1,aux!$AL$1))^(1/($G$3-INDEX($C$3:$G$3,1,aux!$AL$1)))-1,"n.d.") -> n.d. | Y34: =IF(INDEX($C34:$G34,1,aux!$AL$1)>0,(G34-INDEX($C34:$G34,1,aux!$AL$1))/INDEX($C34:$G34,1,aux!$AL$1),"n.d.") -> n.d. | AA34: =O34-INDEX($K34:$O34,1,aux!$AL$1) -> 0 | AB34: 0 | AC34: 0 | AD34: =+IF(INDEX($K34:$O34,1,aux!$AL$1)>0,(O34/INDEX($K34:$O34,1,aux!$AL$1))^(1/($O$3-INDEX($K$3:$O$3,1,aux!$AL$1)))-1,"n.d.") -> n.d. | AE34: =IF(INDEX($K34:$O34,1,aux!$AL$1)>0,(O34-INDEX($K34:$O34,1,aux!$AL$1))/INDEX($K34:$O34,1,aux!$AL$1),"n.d.") -> n.d.
A35: 52 | B35: Algodão (NC 5201-5203) | C35: 0 | D35: 174.893 | E35: 0 | F35: 0.078 | G35: 0 | H35: 34.9942 | I35: 0.01167069472 | J35: 0.007757379189 | K35: 1.091 | L35: 0.948 | M35: 0.101 | N35: 1.074 | O35: 0.468 | P35: 0.7364 | Q35: 8.005038e-06 | R35: 5.136364478e-06 | S35: -34.2578 | U35: =G35-INDEX($C35:$G35,1,aux!$AL$1) -> 0 | V35: 0 | W35: 0 | X35: =+IF(INDEX($C35:$G35,1,aux!$AL$1)>0,(G35/INDEX($C35:$G35,1,aux!$AL$1))^(1/($G$3-INDEX($C$3:$G$3,1,aux!$AL$1)))-1,"n.d.") -> n.d. | Y35: =IF(INDEX($C35:$G35,1,aux!$AL$1)>0,(G35-INDEX($C35:$G35,1,aux!$AL$1))/INDEX($C35:$G35,1,aux!$AL$1),"n.d.") -> n.d. | AA35: =O35-INDEX($K35:$O35,1,aux!$AL$1) -> -0.623 | AB35: -1.771956028e-05 | AC35: -1.222993607e-05 | AD35: =+IF(INDEX($K35:$O35,1,aux!$AL$1)>0,(O35/INDEX($K35:$O35,1,aux!$AL$1))^(1/($O$3-INDEX($K$3:$O$3,1,aux!$AL$1)))-1,"n.d.") -> -0.1907079473 | AE35: =IF(INDEX($K35:$O35,1,aux!$AL$1)>0,(O35-INDEX($K35:$O35,1,aux!$AL$1))/INDEX($K35:$O35,1,aux!$AL$1),"n.d.") -> -0.571035747
A36: 53 | B36: Linho e cânhamo em bruto (NC 5301-5302) | C36: 0 | D36: 0 | E36: 0 | F36: 0 | G36: 0 | H36: 0 | I36: 0 | J36: 0 | K36: 0.149 | L36: 0.001 | M36: 0.135 | N36: 0 | O36: 1 | P36: 0.257 | Q36: 2.793719128e-06 | R36: 1.792566093e-06 | S36: 0.257 | U36: =G36-INDEX($C36:$G36,1,aux!$AL$1) -> 0 | V36: 0 | W36: =IF($U$53<>0,U36/$U$53, "n.d.") -> 0 | X36: =+IF(INDEX($C36:$G36,1,aux!$AL$1)>0,(G36/INDEX($C36:$G36,1,aux!$AL$1))^(1/($G$3-INDEX($C$3:$G$3,1,aux!$AL$1)))-1,"n.d.") -> n.d. | Y36: =IF(INDEX($C36:$G36,1,aux!$AL$1)>0,(G36-INDEX($C36:$G36,1,aux!$AL$1))/INDEX($C36:$G36,1,aux!$AL$1),"n.d.") -> n.d. | AA36: =O36-INDEX($K36:$O36,1,aux!$AL$1) -> 0.851 | AB36: 2.420440739e-05 | AC36: =IF($AA$53<>0,AA36/$AA$53, "n.d.") -> 1.670573932e-05 | AD36: =+IF(INDEX($K36:$O36,1,aux!$AL$1)>0,(O36/INDEX($K36:$O36,1,aux!$AL$1))^(1/($O$3-INDEX($K$3:$O$3,1,aux!$AL$1)))-1,"n.d.") -> 0.6095461474 | AE36: =IF(INDEX($K36:$O36,1,aux!$AL$1)>0,(O36-INDEX($K36:$O36,1,aux!$AL$1))/INDEX($K36:$O36,1,aux!$AL$1),"n.d.") -> 5.711409396
A37: Subtotal Agrícola e Agroalimentar | C37: 3868.146 | D37: 4791.766 | E37: 1817.105 | F37: 1842.279 | G37: 2673.042 | H37: 2998.4676 | I37: 1 | J37: 0.6646887244 | K37: 74552.608 | L37: 80551.139 | M37: 94821.5 | N37: 100323.599 | O37: 109711.494 | P37: 91992.068 | Q37: 1 | R37: 0.6416414861 | S37: 88993.6004 | U37: =G37-INDEX($C37:$G37,1,aux!$AL$1) -> -1195.104 | V37: 1 | W37: 0.7362659839 | X37: =+IF(INDEX($C37:$G37,1,aux!$AL$1)>0,(G37/INDEX($C37:$G37,1,aux!$AL$1))^(1/($G$3-INDEX($C$3:$G$3,1,aux!$AL$1)))-1,"n.d.") -> -0.08825008561 | Y37: =IF(INDEX($C37:$G37,1,aux!$AL$1)>0,(G37-INDEX($C37:$G37,1,aux!$AL$1))/INDEX($C37:$G37,1,aux!$AL$1),"n.d.") -> -0.3089604167 | AA37: =O37-INDEX($K37:$O37,1,aux!$AL$1) -> 35158.886 | AB37: 1 | AC37: 0.690194106 | AD37: =+IF(INDEX($K37:$O37,1,aux!$AL$1)>0,(O37/INDEX($K37:$O37,1,aux!$AL$1))^(1/($O$3-INDEX($K$3:$O$3,1,aux!$AL$1)))-1,"n.d.") -> 0.1014057062 | AE37: =IF(INDEX($K37:$O37,1,aux!$AL$1)>0,(O37-INDEX($K37:$O37,1,aux!$AL$1))/INDEX($K37:$O37,1,aux!$AL$1),"n.d.") -> 0.4715983376
A38: 03 | B38: Peixes e crustáceos | C38: 6.539 | D38: 0 | E38: 9.695 | F38: 108.247 | G38: 25.599 | H38: 30.016 | I38: 0.9357133505 | J38: 0.006653831027 | K38: 10823.043 | L38: 10676.239 | M38: 13136.099 | N38: 13557.454 | O38: 13948.127 | P38: 12428.1924 | Q38: 0.7553420264 | R38: 0.08668621126 | S38: 12398.1764 | U38: =G38-INDEX($C38:$G38,1,aux!$AL$1) -> 19.06 | V38: =IF($U$44<>0,U38/$U$44, "n.d.") -> 1.089205097 | W38: -0.01174226649 | X38: =+IF(INDEX($C38:$G38,1,aux!$AL$1)>0,(G38/INDEX($C38:$G38,1,aux!$AL$1))^(1/($G$3-INDEX($C$3:$G$3,1,aux!$AL$1)))-1,"n.d.") -> 0.4066236522 | Y38: =IF(INDEX($C38:$G38,1,aux!$AL$1)>0,(G38-INDEX($C38:$G38,1,aux!$AL$1))/INDEX($C38:$G38,1,aux!$AL$1),"n.d.") -> 2.91481878 | AA38: =O38-INDEX($K38:$O38,1,aux!$AL$1) -> 3125.084 | AB38: =IF($AA$44<>0,AA38/$AA$44, "n.d.") -> 0.7689209757 | AC38: 0.06134763648 | AD38: =+IF(INDEX($K38:$O38,1,aux!$AL$1)>0,(O38/INDEX($K38:$O38,1,aux!$AL$1))^(1/($O$3-INDEX($K$3:$O$3,1,aux!$AL$1)))-1,"n.d.") -> 0.06547098456 | AE38: =IF(INDEX($K38:$O38,1,aux!$AL$1)>0,(O38-INDEX($K38:$O38,1,aux!$AL$1))/INDEX($K38:$O38,1,aux!$AL$1),"n.d.") -> 0.2887435632
A39: 05p | B39: Outros produtos de pescado (NC 0508, 051191) (p) | C39: 0 | D39: 0.012 | E39: 0 | F39: 0 | G39: 0 | H39: 0.0024 | I39: 7.481716555e-05 | J39: 5.320227367e-07 | K39: 0 | L39: 0.077 | M39: 0.099 | N39: 0 | O39: 0.014 | P39: 0.038 | Q39: 2.309506972e-06 | R39: 2.65048683e-07 | S39: 0.0356 | U39: =G39-INDEX($C39:$G39,1,aux!$AL$1) -> 0 | V39: 0 | W39: 0 | X39: =+IF(INDEX($C39:$G39,1,aux!$AL$1)>0,(G39/INDEX($C39:$G39,1,aux!$AL$1))^(1/($G$3-INDEX($C$3:$G$3,1,aux!$AL$1)))-1,"n.d.") -> n.d. | Y39: =IF(INDEX($C39:$G39,1,aux!$AL$1)>0,(G39-INDEX($C39:$G39,1,aux!$AL$1))/INDEX($C39:$G39,1,aux!$AL$1),"n.d.") -> n.d. | AA39: =O39-INDEX($K39:$O39,1,aux!$AL$1) -> 0.014 | AB39: 3.444673379e-06 | AC39: 2.74830024e-07 | AD39: =+IF(INDEX($K39:$O39,1,aux!$AL$1)>0,(O39/INDEX($K39:$O39,1,aux!$AL$1))^(1/($O$3-INDEX($K$3:$O$3,1,aux!$AL$1)))-1,"n.d.") -> n.d. | AE39: =IF(INDEX($K39:$O39,1,aux!$AL$1)>0,(O39-INDEX($K39:$O39,1,aux!$AL$1))/INDEX($K39:$O39,1,aux!$AL$1),"n.d.") -> n.d.
A40: 16p | B40: Preparações e conservas de peixes ou crustáceos (NC 1604-05) (p) | C40: 1.645 | D40: 0 | E40: 0.003 | F40: 8.06 | G40: 0.249 | H40: 1.9914 | I40: 0.06207954312 | J40: 0.0004414458658 | K40: 3460.331 | L40: 3347.898 | M40: 3745.785 | N40: 4097.304 | O40: 4323.061 | P40: 3794.8758 | Q40: 0.2306392663 | R40: 0.02646912719 | S40: 3792.8844 | U40: =G40-INDEX($C40:$G40,1,aux!$AL$1) -> -1.396 | V40: -0.0797759872 | W40: 0.0008600316906 | X40: =+IF(INDEX($C40:$G40,1,aux!$AL$1)>0,(G40/INDEX($C40:$G40,1,aux!$AL$1))^(1/($G$3-INDEX($C$3:$G$3,1,aux!$AL$1)))-1,"n.d.") -> -0.376253156 | Y40: =IF(INDEX($C40:$G40,1,aux!$AL$1)>0,(G40-INDEX($C40:$G40,1,aux!$AL$1))/INDEX($C40:$G40,1,aux!$AL$1),"n.d.") -> -0.8486322188 | AA40: =O40-INDEX($K40:$O40,1,aux!$AL$1) -> 862.73 | AB40: 0.212273076 | AC40: 0.01693600762 | AD40: =+IF(INDEX($K40:$O40,1,aux!$AL$1)>0,(O40/INDEX($K40:$O40,1,aux!$AL$1))^(1/($O$3-INDEX($K$3:$O$3,1,aux!$AL$1)))-1,"n.d.") -> 0.05722744842 | AE40: =IF(INDEX($K40:$O40,1,aux!$AL$1)>0,(O40-INDEX($K40:$O40,1,aux!$AL$1))/INDEX($K40:$O40,1,aux!$AL$1),"n.d.") -> 0.2493200795
A41: 19p | B41: Massas recheadas com pescado (NC 19022010) (p) | C41: 0 | D41: 0 | E41: 0 | F41: 0 | G41: 0 | H41: 0 | I41: 0 | J41: 0 | K41: 164.925 | L41: 48.104 | M41: 23.274 | N41: 36.965 | O41: 193.096 | P41: 93.2728 | Q41: 0.005668794261 | R41: 0.0006505745474 | S41: 93.2728 | U41: =G41-INDEX($C41:$G41,1,aux!$AL$1) -> 0 | V41: 0 | W41: 0 | X41: =+IF(INDEX($C41:$G41,1,aux!$AL$1)>0,(G41/INDEX($C41:$G41,1,aux!$AL$1))^(1/($G$3-INDEX($C$3:$G$3,1,aux!$AL$1)))-1,"n.d.") -> n.d. | Y41: =IF(INDEX($C41:$G41,1,aux!$AL$1)>0,(G41-INDEX($C41:$G41,1,aux!$AL$1))/INDEX($C41:$G41,1,aux!$AL$1),"n.d.") -> n.d. | AA41: =O41-INDEX($K41:$O41,1,aux!$AL$1) -> 28.171 | AB41: 0.006931420982 | AC41: 0.0005530169005 | AD41: =+IF(INDEX($K41:$O41,1,aux!$AL$1)>0,(O41/INDEX($K41:$O41,1,aux!$AL$1))^(1/($O$3-INDEX($K$3:$O$3,1,aux!$AL$1)))-1,"n.d.") -> 0.0402116087 | AE41: =IF(INDEX($K41:$O41,1,aux!$AL$1)>0,(O41-INDEX($K41:$O41,1,aux!$AL$1))/INDEX($K41:$O41,1,aux!$AL$1),"n.d.") -> 0.1708109747
A42: 23p | B42: Farinhas de pescado (NC 230120) (p) | C42: 0 | D42: 0 | E42: 0 | F42: 0 | G42: 0 | H42: 0 | I42: 0 | J42: 0 | K42: 0 | L42: 0 | M42: 0 | N42: 0 | O42: 0 | P42: 0 | Q42: 0 | R42: 0 | S42: 0 | U42: =G42-INDEX($C42:$G42,1,aux!$AL$1) -> 0 | V42: 0 | W42: 0 | X42: =+IF(INDEX($C42:$G42,1,aux!$AL$1)>0,(G42/INDEX($C42:$G42,1,aux!$AL$1))^(1/($G$3-INDEX($C$3:$G$3,1,aux!$AL$1)))-1,"n.d.") -> n.d. | Y42: =IF(INDEX($C42:$G42,1,aux!$AL$1)>0,(G42-INDEX($C42:$G42,1,aux!$AL$1))/INDEX($C42:$G42,1,aux!$AL$1),"n.d.") -> n.d. | AA42: =O42-INDEX($K42:$O42,1,aux!$AL$1) -> 0 | AB42: 0 | AC42: 0 | AD42: =+IF(INDEX($K42:$O42,1,aux!$AL$1)>0,(O42/INDEX($K42:$O42,1,aux!$AL$1))^(1/($O$3-INDEX($K$3:$O$3,1,aux!$AL$1)))-1,"n.d.") -> n.d. | AE42: =IF(INDEX($K42:$O42,1,aux!$AL$1)>0,(O42-INDEX($K42:$O42,1,aux!$AL$1))/INDEX($K42:$O42,1,aux!$AL$1),"n.d.") -> n.d.
A43: 25 | B43: Sal e cloreto de sódio puro; água do mar (NC 2501) | C43: 0.165 | D43: 0 | E43: 0.005 | F43: 0.172 | G43: 0 | H43: 0.0684 | I43: 0.002132289218 | J43: 1.5162648e-05 | K43: 97.579 | L43: 145.615 | M43: 170.134 | N43: 127.592 | O43: 145.826 | P43: 137.3492 | Q43: 0.008347603554 | R43: 0.0009580059099 | S43: 137.2808 | U43: =G43-INDEX($C43:$G43,1,aux!$AL$1) -> -0.165 | V43: -0.009429110235 | W43: 0.0001016513101 | X43: =+IF(INDEX($C43:$G43,1,aux!$AL$1)>0,(G43/INDEX($C43:$G43,1,aux!$AL$1))^(1/($G$3-INDEX($C$3:$G$3,1,aux!$AL$1)))-1,"n.d.") -> -1 | Y43: =IF(INDEX($C43:$G43,1,aux!$AL$1)>0,(G43-INDEX($C43:$G43,1,aux!$AL$1))/INDEX($C43:$G43,1,aux!$AL$1),"n.d.") -> -1 | AA43: =O43-INDEX($K43:$O43,1,aux!$AL$1) -> 48.247 | AB43: 0.01187108261 | AC43: 0.0009471231549 | AD43: =+IF(INDEX($K43:$O43,1,aux!$AL$1)>0,(O43/INDEX($K43:$O43,1,aux!$AL$1))^(1/($O$3-INDEX($K$3:$O$3,1,aux!$AL$1)))-1,"n.d.") -> 0.1056550403 | AE43: =IF(INDEX($K43:$O43,1,aux!$AL$1)>0,(O43-INDEX($K43:$O43,1,aux!$AL$1))/INDEX($K43:$O43,1,aux!$AL$1),"n.d.") -> 0.4944404021
A44: Subtotal Mar | C44: 8.349 | D44: 0.012 | E44: 9.703 | F44: 116.479 | G44: 25.848 | H44: 32.0782 | I44: 1 | J44: 0.007110971564 | K44: 14545.878 | L44: 14217.933 | M44: 17075.391 | N44: 17819.315 | O44: 18610.124 | P44: 16453.7282 | Q44: 1 | R44: 0.114764184 | S44: 16421.65 | U44: =G44-INDEX($C44:$G44,1,aux!$AL$1) -> 17.499 | V44: 1 | W44: -0.01078058349 | X44: =+IF(INDEX($C44:$G44,1,aux!$AL$1)>0,(G44/INDEX($C44:$G44,1,aux!$AL$1))^(1/($G$3-INDEX($C$3:$G$3,1,aux!$AL$1)))-1,"n.d.") -> 0.3264721036 | Y44: =IF(INDEX($C44:$G44,1,aux!$AL$1)>0,(G44-INDEX($C44:$G44,1,aux!$AL$1))/INDEX($C44:$G44,1,aux!$AL$1),"n.d.") -> 2.095939633 | AA44: =O44-INDEX($K44:$O44,1,aux!$AL$1) -> 4064.246 | AB44: 1 | AC44: 0.07978405898 | AD44: =+IF(INDEX($K44:$O44,1,aux!$AL$1)>0,(O44/INDEX($K44:$O44,1,aux!$AL$1))^(1/($O$3-INDEX($K$3:$O$3,1,aux!$AL$1)))-1,"n.d.") -> 0.06353633419 | AE44: =IF(INDEX($K44:$O44,1,aux!$AL$1)>0,(O44-INDEX($K44:$O44,1,aux!$AL$1))/INDEX($K44:$O44,1,aux!$AL$1),"n.d.") -> 0.2794087782
A45: 13f | B45: Gomas e resinas (NC 1301) (f) | C45: 0 | D45: 0 | E45: 3.473 | F45: 0 | G45: 5.14 | H45: 1.7226 | I45: 0.001163494715 | J45: 0.0003818593193 | K45: 0.334 | L45: 0.102 | M45: 0.344 | N45: 3.187 | O45: 0.983 | P45: 0.99 | Q45: 2.834719384e-05 | R45: 6.905215689e-06 | S45: -0.7326 | U45: =G45-INDEX($C45:$G45,1,aux!$AL$1) -> 5.14 | V45: =IF($U$52<>0,U45/$U$52, "n.d.") -> -0.01153524196 | W45: -0.003166592328 | X45: =+IF(INDEX($C45:$G45,1,aux!$AL$1)>0,(G45/INDEX($C45:$G45,1,aux!$AL$1))^(1/($G$3-INDEX($C$3:$G$3,1,aux!$AL$1)))-1,"n.d.") -> n.d. | Y45: =IF(INDEX($C45:$G45,1,aux!$AL$1)>0,(G45-INDEX($C45:$G45,1,aux!$AL$1))/INDEX($C45:$G45,1,aux!$AL$1),"n.d.") -> n.d. | AA45: =O45-INDEX($K45:$O45,1,aux!$AL$1) -> 0.649 | AB45: =IF($AA$52<>0,AA45/$AA$52, "n.d.") -> 5.538750129e-05 | AC45: 1.274033468e-05 | AD45: =+IF(INDEX($K45:$O45,1,aux!$AL$1)>0,(O45/INDEX($K45:$O45,1,aux!$AL$1))^(1/($O$3-INDEX($K$3:$O$3,1,aux!$AL$1)))-1,"n.d.") -> 0.3097902787 | AE45: =IF(INDEX($K45:$O45,1,aux!$AL$1)>0,(O45-INDEX($K45:$O45,1,aux!$AL$1))/INDEX($K45:$O45,1,aux!$AL$1),"n.d.") -> 1.943113772
A46: 38f | B46: Tall oil, essências e colofónias (NC 3803,3805,3806) (f) | C46: 0 | D46: 0 | E46: 0 | F46: 0 | G46: 3.17 | H46: 0.634 | I46: 0.0004282222509 | J46: 0.0001405426729 | K46: 569.488 | L46: 930.443 | M46: 836.9 | N46: 946.433 | O46: 1131.66 | P46: 882.9848 | Q46: 0.02528297099 | R46: 0.006158788378 | S46: 882.3508 | U46: =G46-INDEX($C46:$G46,1,aux!$AL$1) -> 3.17 | V46: -0.007114147279 | W46: -0.001952937292 | X46: =+IF(INDEX($C46:$G46,1,aux!$AL$1)>0,(G46/INDEX($C46:$G46,1,aux!$AL$1))^(1/($G$3-INDEX($C$3:$G$3,1,aux!$AL$1)))-1,"n.d.") -> n.d. | Y46: =IF(INDEX($C46:$G46,1,aux!$AL$1)>0,(G46-INDEX($C46:$G46,1,aux!$AL$1))/INDEX($C46:$G46,1,aux!$AL$1),"n.d.") -> n.d. | AA46: =O46-INDEX($K46:$O46,1,aux!$AL$1) -> 562.172 | AB46: 0.04797735342 | AC46: 0.01103583888 | AD46: =+IF(INDEX($K46:$O46,1,aux!$AL$1)>0,(O46/INDEX($K46:$O46,1,aux!$AL$1))^(1/($O$3-INDEX($K$3:$O$3,1,aux!$AL$1)))-1,"n.d.") -> 0.1872928353 | AE46: =IF(INDEX($K46:$O46,1,aux!$AL$1)>0,(O46-INDEX($K46:$O46,1,aux!$AL$1))/INDEX($K46:$O46,1,aux!$AL$1),"n.d.") -> 0.9871533729
A47: 44 | B47: Madeira e suas obras | C47: 152.837 | D47: 163.261 | E47: 236.065 | F47: 736.481 | G47: 242.754 | H47: 306.2796 | I47: 0.2068702519 | J47: 0.06789487958 | K47: 5859.702 | L47: 3579.485 | M47: 3973.779 | N47: 4343.012 | O47: 4467.738 | P47: 4444.7432 | Q47: 0.1272686839 | R47: 0.03100192978 | S47: 4138.4636 | U47: =G47-INDEX($C47:$G47,1,aux!$AL$1) -> 89.917 | V47: -0.2017926753 | W47: -0.05539503547 | X47: =+IF(INDEX($C47:$G47,1,aux!$AL$1)>0,(G47/INDEX($C47:$G47,1,aux!$AL$1))^(1/($G$3-INDEX($C$3:$G$3,1,aux!$AL$1)))-1,"n.d.") -> 0.1226243878 | Y47: =IF(INDEX($C47:$G47,1,aux!$AL$1)>0,(G47-INDEX($C47:$G47,1,aux!$AL$1))/INDEX($C47:$G47,1,aux!$AL$1),"n.d.") -> 0.5883195823 | AA47: =O47-INDEX($K47:$O47,1,aux!$AL$1) -> -1391.964 | AB47: -0.1187941569 | AC47: -0.02732524997 | AD47: =+IF(INDEX($K47:$O47,1,aux!$AL$1)>0,(O47/INDEX($K47:$O47,1,aux!$AL$1))^(1/($O$3-INDEX($K$3:$O$3,1,aux!$AL$1)))-1,"n.d.") -> -0.06555651228 | AE47: =IF(INDEX($K47:$O47,1,aux!$AL$1)>0,(O47-INDEX($K47:$O47,1,aux!$AL$1))/INDEX($K47:$O47,1,aux!$AL$1),"n.d.") -> -0.2375485989
A48: 45 | B48: Cortiça e suas obras | C48: 591.819 | D48: 272.354 | E48: 239.442 | F48: 457.809 | G48: 105.546 | H48: 333.394 | I48: 0.2251841153 | J48: 0.07390549512 | K48: 13492.685 | L48: 11265.482 | M48: 11200.556 | N48: 12634.869 | O48: 12811.218 | P48: 12280.962 | Q48: 0.3516472832 | R48: 0.08565928433 | S48: 11947.568 | U48: =G48-INDEX($C48:$G48,1,aux!$AL$1) -> -486.273 | V48: 1.091298971 | W48: 0.2995775002 | X48: =+IF(INDEX($C48:$G48,1,aux!$AL$1)>0,(G48/INDEX($C48:$G48,1,aux!$AL$1))^(1/($G$3-INDEX($C$3:$G$3,1,aux!$AL$1)))-1,"n.d.") -> -0.3501498571 | Y48: =IF(INDEX($C48:$G48,1,aux!$AL$1)>0,(G48-INDEX($C48:$G48,1,aux!$AL$1))/INDEX($C48:$G48,1,aux!$AL$1),"n.d.") -> -0.8216583111 | AA48: =O48-INDEX($K48:$O48,1,aux!$AL$1) -> -681.467 | AB48: -0.05815832718 | AC48: -0.01337768514 | AD48: =+IF(INDEX($K48:$O48,1,aux!$AL$1)>0,(O48/INDEX($K48:$O48,1,aux!$AL$1))^(1/($O$3-INDEX($K$3:$O$3,1,aux!$AL$1)))-1,"n.d.") -> -0.01287304764 | AE48: =IF(INDEX($K48:$O48,1,aux!$AL$1)>0,(O48-INDEX($K48:$O48,1,aux!$AL$1))/INDEX($K48:$O48,1,aux!$AL$1),"n.d.") -> -0.05050640403
A49: 46 | B49: Obras de espartaria ou de cestaria | C49: 0 | D49: 0.185 | E49: 0.087 | F49: 0.105 | G49: 0.292 | H49: 0.1338 | I49: 9.03724561e-05 | J49: 2.966026757e-05 | K49: 2.59 | L49: 0.842 | M49: 3.871 | N49: 5.247 | O49: 5.525 | P49: 3.615 | Q49: 0.0001035102078 | R49: 2.521449971e-05 | S49: 3.4812 | U49: =G49-INDEX($C49:$G49,1,aux!$AL$1) -> 0.292 | V49: -0.0006553094654 | W49: -0.0001798920155 | X49: =+IF(INDEX($C49:$G49,1,aux!$AL$1)>0,(G49/INDEX($C49:$G49,1,aux!$AL$1))^(1/($G$3-INDEX($C$3:$G$3,1,aux!$AL$1)))-1,"n.d.") -> n.d. | Y49: =IF(INDEX($C49:$G49,1,aux!$AL$1)>0,(G49-INDEX($C49:$G49,1,aux!$AL$1))/INDEX($C49:$G49,1,aux!$AL$1),"n.d.") -> n.d. | AA49: =O49-INDEX($K49:$O49,1,aux!$AL$1) -> 2.935 | AB49: 0.0002504812269 | AC49: 5.761615146e-05 | AD49: =+IF(INDEX($K49:$O49,1,aux!$AL$1)>0,(O49/INDEX($K49:$O49,1,aux!$AL$1))^(1/($O$3-INDEX($K$3:$O$3,1,aux!$AL$1)))-1,"n.d.") -> 0.2085319311 | AE49: =IF(INDEX($K49:$O49,1,aux!$AL$1)>0,(O49-INDEX($K49:$O49,1,aux!$AL$1))/INDEX($K49:$O49,1,aux!$AL$1),"n.d.") -> 1.133204633
A50: 47 | B50: Pastas de madeira | C50: 36.985 | D50: 0.464 | E50: 0 | F50: 0 | G50: 2.709 | H50: 8.0316 | I50: 0.005424778912 | J50: 0.001780414088 | K50: 99.031 | L50: 4.213 | M50: 0 | N50: 0 | O50: 0.043 | P50: 20.6574 | Q50: 0.0005914942647 | R50: 0.0001440846491 | S50: 12.6258 | U50: =G50-INDEX($C50:$G50,1,aux!$AL$1) -> -34.276 | V50: 0.07692255903 | W50: 0.02111636549 | X50: =+IF(INDEX($C50:$G50,1,aux!$AL$1)>0,(G50/INDEX($C50:$G50,1,aux!$AL$1))^(1/($G$3-INDEX($C$3:$G$3,1,aux!$AL$1)))-1,"n.d.") -> -0.4797694579 | Y50: =IF(INDEX($C50:$G50,1,aux!$AL$1)>0,(G50-INDEX($C50:$G50,1,aux!$AL$1))/INDEX($C50:$G50,1,aux!$AL$1),"n.d.") -> -0.9267540895 | AA50: =O50-INDEX($K50:$O50,1,aux!$AL$1) -> -98.988 | AB50: -0.00844791676 | AC50: -0.001943205315 | AD50: =+IF(INDEX($K50:$O50,1,aux!$AL$1)>0,(O50/INDEX($K50:$O50,1,aux!$AL$1))^(1/($O$3-INDEX($K$3:$O$3,1,aux!$AL$1)))-1,"n.d.") -> -0.8556474957 | AE50: =IF(INDEX($K50:$O50,1,aux!$AL$1)>0,(O50-INDEX($K50:$O50,1,aux!$AL$1))/INDEX($K50:$O50,1,aux!$AL$1),"n.d.") -> -0.9995657925
A51: 48 | B51: Papel e cartão | C51: 1160.951 | D51: 707.032 | E51: 510.188 | F51: 636.159 | G51: 1137.39 | H51: 830.344 | I51: 0.5608387645 | J51: 0.184067453 | K51: 15341.937 | L51: 15973.918 | M51: 13527.947 | N51: 12940.85 | O51: 28666.045 | P51: 17290.1394 | Q51: 0.4950777102 | R51: 0.1205981231 | S51: 16459.7954 | U51: =G51-INDEX($C51:$G51,1,aux!$AL$1) -> -23.561 | V51: 0.05287584354 | W51: 0.01451519102 | X51: =+IF(INDEX($C51:$G51,1,aux!$AL$1)>0,(G51/INDEX($C51:$G51,1,aux!$AL$1))^(1/($G$3-INDEX($C$3:$G$3,1,aux!$AL$1)))-1,"n.d.") -> -0.005112718574 | Y51: =IF(INDEX($C51:$G51,1,aux!$AL$1)>0,(G51-INDEX($C51:$G51,1,aux!$AL$1))/INDEX($C51:$G51,1,aux!$AL$1),"n.d.") -> -0.02029456885 | AA51: =O51-INDEX($K51:$O51,1,aux!$AL$1) -> 13324.108 | AB51: 1.137117179 | AC51: 0.2615617801 | AD51: =+IF(INDEX($K51:$O51,1,aux!$AL$1)>0,(O51/INDEX($K51:$O51,1,aux!$AL$1))^(1/($O$3-INDEX($K$3:$O$3,1,aux!$AL$1)))-1,"n.d.") -> 0.1691544737 | AE51: =IF(INDEX($K51:$O51,1,aux!$AL$1)>0,(O51-INDEX($K51:$O51,1,aux!$AL$1))/INDEX($K51:$O51,1,aux!$AL$1),"n.d.") -> 0.8684762556
A52: Subtotal Florestas | C52: 1942.592 | D52: 1143.296 | E52: 989.255 | F52: 1830.554 | G52: 1497.001 | H52: 1480.5396 | I52: 1 | J52: 0.3282003041 | K52: 35365.767 | L52: 31754.485 | M52: 29543.397 | N52: 30873.598 | O52: 47083.212 | P52: 34924.0918 | Q52: 1 | R52: 0.2435943299 | S52: 33443.5522 | U52: =G52-INDEX($C52:$G52,1,aux!$AL$1) -> -445.591 | V52: 1 | W52: 0.2745145996 | X52: =+IF(INDEX($C52:$G52,1,aux!$AL$1)>0,(G52/INDEX($C52:$G52,1,aux!$AL$1))^(1/($G$3-INDEX($C$3:$G$3,1,aux!$AL$1)))-1,"n.d.") -> -0.06306357408 | Y52: =IF(INDEX($C52:$G52,1,aux!$AL$1)>0,(G52-INDEX($C52:$G52,1,aux!$AL$1))/INDEX($C52:$G52,1,aux!$AL$1),"n.d.") -> -0.2293796124 | AA52: =O52-INDEX($K52:$O52,1,aux!$AL$1) -> 11717.445 | AB52: 1 | AC52: 0.230021835 | AD52: =+IF(INDEX($K52:$O52,1,aux!$AL$1)>0,(O52/INDEX($K52:$O52,1,aux!$AL$1))^(1/($O$3-INDEX($K$3:$O$3,1,aux!$AL$1)))-1,"n.d.") -> 0.07416438872 | AE52: =IF(INDEX($K52:$O52,1,aux!$AL$1)>0,(O52-INDEX($K52:$O52,1,aux!$AL$1))/INDEX($K52:$O52,1,aux!$AL$1),"n.d.") -> 0.3313216705
B53: TOTAL | C53: 5819.087 | D53: 5935.074 | E53: 2816.063 | F53: 3789.312 | G53: 4195.891 | H53: 4511.0854 | J53: 1 | K53: 124464.253 | L53: 126523.557 | M53: 141440.288 | N53: 149016.512 | O53: 175404.83 | P53: 143369.888 | R53: 1 | S53: 138858.8026 | U53: =G53-INDEX($C53:$G53,1,aux!$AL$1) -> -1623.196 | W53: 1 | X53: =+IF(INDEX($C53:$G53,1,aux!$AL$1)>0,(G53/INDEX($C53:$G53,1,aux!$AL$1))^(1/($G$3-INDEX($C$3:$G$3,1,aux!$AL$1)))-1,"n.d.") -> -0.07850637123 | Y53: =IF(INDEX($C53:$G53,1,aux!$AL$1)>0,(G53-INDEX($C53:$G53,1,aux!$AL$1))/INDEX($C53:$G53,1,aux!$AL$1),"n.d.") -> -0.278943415 | AA53: =O53-INDEX($K53:$O53,1,aux!$AL$1) -> 50940.577 | AC53: 1 | AD53: =+IF(INDEX($K53:$O53,1,aux!$AL$1)>0,(O53/INDEX($K53:$O53,1,aux!$AL$1))^(1/($O$3-INDEX($K$3:$O$3,1,aux!$AL$1)))-1,"n.d.") -> 0.08955517499 | AE53: =IF(INDEX($K53:$O53,1,aux!$AL$1)>0,(O53-INDEX($K53:$O53,1,aux!$AL$1))/INDEX($K53:$O53,1,aux!$AL$1),"n.d.") -> 0.409278775
B54: a - agrícola e agroalimentar; p - pescas; f - florestas
A55: Fonte: GPP a partir de dados INE/Comércio Internacional (2022 definitivos) | S55: 2023-08-30T16:15:01.840

Sheet 5.2_var
A1: ="Principais contributos por produto para a variação das trocas comerciais PT-Suíça_x000D_ no período " & INDEX('5.2'!K3:N3,1,aux!AL1) & "-2022 (NC 2 dígitos - milhares de euros) Produtos agrícolas e agroalimentares, do mar e da floresta" -> Principais contributos por produto para a variação das trocas comerciais PT-Suíça no período 2018-2022 (NC 2 dígitos - milhares de euros) Produtos agrícolas e agroalimentares, do mar e da floresta
E5: aumento das importações | J5: aumento das exportações
E17: redução das importações | J17: redução das exportações
A28: Fonte: GPP a partir de dados INE/Comércio Internacional (2022 definitivos) | F28: a - agrícola e agroalimentar; p - mar; f - florestas | H28: ='3'!Y116 -> 2023-08-30T16:15:01.840
A29: Cód. NC | B29: Descritivo | C29: ="Variação das Importações " & INDEX('5.2'!K3:N3,1,aux!AL1) & "-"& '5.2'!O3 &"" -> Variação das Importações 2018-2022 | F29: Cód. NC | G29: Descritivo | H29: ="Variação das Exportações " & INDEX('5.2'!K3:N3,1,aux!AL1) & "-"& '5.2'!O3 &"" -> Variação das Exportações 2018-2022
C30: variação total em valor | D30: % do aumento/ redução total | H30: variação total em valor | I30: % do aumento/ redução total
A31: =IF(C31>0,aux!AU6,"") -> 35 | B31: =IF(C31>0,aux!AV6,"") -> Caseínas, albuminas, gelatinas, peptonas, dextrinas (NC 3501 a 3505) | C31: =IF(aux!AW6>0,aux!AW6,0) -> 405.197 | D31: =IF(SUM($C$31:$C$41)<>0,C31/SUM($C$31:$C$41),0) -> 0.2485264334 | F31: =IF(H31>0,aux!AZ6,"") -> 48 | G31: =IF(H31>0,aux!BA6,"") -> Papel e cartão | H31: =IF(aux!BB6>0,aux!BB6,0) -> 13324.108 | I31: =IF(SUM($H$31:$H$41)<>0,H31/SUM($H$31:$H$41),0) -> 0.250728856
A32: =IF(C32>0,aux!AU7,"") -> 24 | B32: =IF(C32>0,aux!AV7,"") -> Tabaco | C32: =IF(aux!AW7>0,aux!AW7,0) -> 298.855 | D32: =IF(SUM($C$31:$C$41)<>0,C32/SUM($C$31:$C$41),0) -> 0.1833018686 | F32: =IF(H32>0,aux!AZ7,"") -> 22 | G32: =IF(H32>0,aux!BA7,"") -> Bebidas, líquidos alcoólicos e vinagres | H32: =IF(aux!BB7>0,aux!BB7,0) -> 8778.714 | I32: =IF(SUM($H$31:$H$41)<>0,H32/SUM($H$31:$H$41),0) -> 0.1651950673
A33: =IF(C33>0,aux!AU8,"") -> 15 | B33: =IF(C33>0,aux!AV8,"") -> Gorduras e óleos animais ou vegetais | C33: =IF(aux!AW8>0,aux!AW8,0) -> 235.994 | D33: 0.1447462521 | F33: =IF(H33>0,aux!AZ8,"") -> 12 | G33: =IF(H33>0,aux!BA8,"") -> Sementes e frutos oleaginosos | H33: =IF(aux!BB8>0,aux!BB8,0) -> 8633.335 | I33: 0.1624593712
A34: =IF(C34>0,aux!AU9,"") -> 22 | B34: =IF(C34>0,aux!AV9,"") -> Bebidas, líquidos alcoólicos e vinagres | C34: =IF(aux!AW9>0,aux!AW9,0) -> 202.253 | D34: 0.1240513053 | F34: =IF(H34>0,aux!AZ9,"") -> 21 | G34: =IF(H34>0,aux!BA9,"") -> Preparações alimentícias diversas | H34: =IF(aux!BB9>0,aux!BB9,0) -> 3805.217 | I34: 0.07160537164
A35: =IF(C35>0,aux!AU10,"") -> 01 | B35: =IF(C35>0,aux!AV10,"") -> Animais vivos | C35: =IF(aux!AW10>0,aux!AW10,0) -> 96.335 | D35: 0.05908679966 | F35: =IF(H35>0,aux!AZ10,"") -> 03 | G35: =IF(H35>0,aux!BA10,"") -> Peixes e crustáceos | H35: =IF(aux!BB10>0,aux!BB10,0) -> 3125.084 | I35: 0.05880684366
A36: =IF(C36>0,aux!AU11,"") -> 44 | B36: =IF(C36>0,aux!AV11,"") -> Madeira e suas obras | C36: =IF(aux!AW11>0,aux!AW11,0) -> 89.917 | D36: 0.05515033752 | F36: =IF(H36>0,aux!AZ11,"") -> 09 | G36: =IF(H36>0,aux!BA11,"") -> Café, chá, mate e especiarias | H36: =IF(aux!BB11>0,aux!BB11,0) -> 2873.047 | I36: 0.054064091
A37: =IF(C37>0,aux!AU12,"") -> 43 | B37: =IF(C37>0,aux!AV12,"") -> Peles com pelo em bruto (NC 4301) | C37: =IF(aux!AW12>0,aux!AW12,0) -> 86.389 | D37: 0.05298644871 | F37: =IF(H37>0,aux!AZ12,"") -> 15 | G37: =IF(H37>0,aux!BA12,"") -> Gorduras e óleos animais ou vegetais | H37: =IF(aux!BB12>0,aux!BB12,0) -> 1865.171 | I37: 0.03509819877
A38: =IF(C38>0,aux!AU13,"") -> 08 | B38: =IF(C38>0,aux!AV13,"") -> Frutas | C38: =IF(aux!AW13>0,aux!AW13,0) -> 74.106 | D38: 0.04545270541 | F38: =IF(H38>0,aux!AZ13,"") -> 19a | G38: =IF(H38>0,aux!BA13,"") -> Preparações à base de cereais (exc. NC 19022010) (a) | H38: =IF(aux!BB13>0,aux!BB13,0) -> 1825.304 | I38: 0.03434799415
A39: =IF(C39>0,aux!AU14,"") -> 20 | B39: =IF(C39>0,aux!AV14,"") -> Preparações de produtos vegetais | C39: =IF(aux!AW14>0,aux!AW14,0) -> 68.766 | D39: 0.04217743152 | F39: =IF(H39>0,aux!AZ14,"") -> 04 | G39: =IF(H39>0,aux!BA14,"") -> Leite e laticínios; ovos; mel, etc. | H39: =IF(aux!BB14>0,aux!BB14,0) -> 1563.601 | I39: 0.02942334976
A40: =IF(C40>0,aux!AU15,"") -> 03 | B40: =IF(C40>0,aux!AV15,"") -> Peixes e crustáceos | C40: =IF(aux!AW15>0,aux!AW15,0) -> 19.06 | D40: 0.01169039707 | F40: =IF(H40>0,aux!AZ15,"") -> 20 | G40: =IF(H40>0,aux!BA15,"") -> Preparações de produtos vegetais | H40: =IF(aux!BB15>0,aux!BB15,0) -> 1374.932 | I40: 0.02587303611
B41: Outros contributos para o aumento das importações | C41: =SUMIF(aux!AW16:AW51,">0") -> 53.526 | D41: 0.03283002065 | G41: Outros contributos para o aumento das exportações | H41: =SUMIF(aux!BB16:BB51,">0") -> 5972.989 | I41: 0.1123978204
B42: Outros contributos para a redução das importações | C42: =SUMIF(aux!AW6:AW41,"<0") -> -1.516 | D42: =IF(SUM($C$42:$C$52)<>0,C42/SUM($C$42:$C$52),0) -> 0.0004659462736 | G42: Outros contributos para a redução das exportações | H42: =SUMIF(aux!BB6:BB41,"<0") -> 0 | I42: =IF(SUM($H$42:$H$52)<>0,H42/SUM($H$42:$H$52),0) -> 0
A43: =IF(C43<>0,aux!AU42,"") -> 16p | B43: =IF(C43<0,aux!AV42,"") -> Preparações e conservas de peixes ou crustáceos (NC 1604-05) (p) | C43: =IF(aux!AW42<0,aux!AW42,0) -> -1.396 | D43: =IF(SUM($C$42:$C$52)<>0,C43/SUM($C$42:$C$52),0) -> 0.0004290639828 | F43: =IF(H43<>0,aux!AZ42,"") ->  | G43: =IF(H43<>0,aux!BA42,"") ->  | H43: =IF(aux!BB42<0,aux!BB42,0) -> 0 | I43: =IF(SUM($H$42:$H$52)<>0,H43/SUM($H$42:$H$52),0) -> 0
A44: =IF(C44<>0,aux!AU43,"") -> 07 | B44: =IF(C44<0,aux!AV43,"") -> Produtos hortícolas | C44: =IF(aux!AW43<0,aux!AW43,0) -> -11.088 | D44: 0.003407923668 | F44: =IF(H44<>0,aux!AZ43,"") ->  | G44: =IF(H44<>0,aux!BA43,"") ->  | H44: =IF(aux!BB43<0,aux!BB43,0) -> 0 | I44: 0
A45: =IF(C45<>0,aux!AU44,"") -> 18 | B45: =IF(C45<0,aux!AV44,"") -> Cacau e suas preparações | C45: =IF(aux!AW44<0,aux!AW44,0) -> -16.107 | D45: 0.00495052548 | F45: =IF(H45<>0,aux!AZ44,"") ->  | G45: =IF(H45<>0,aux!BA44,"") ->  | H45: =IF(aux!BB44<0,aux!BB44,0) -> 0 | I45: 0
A46: =IF(C46<>0,aux!AU45,"") -> 48 | B46: =IF(C46<0,aux!AV45,"") -> Papel e cartão | C46: =IF(aux!AW45<0,aux!AW45,0) -> -23.561 | D46: 0.007241530443 | F46: =IF(H46<>0,aux!AZ45,"") ->  | G46: =IF(H46<>0,aux!BA45,"") ->  | H46: =IF(aux!BB45<0,aux!BB45,0) -> 0 | I46: 0
A47: =IF(C47<>0,aux!AU46,"") -> 47 | B47: =IF(C47<0,aux!AV46,"") -> Pastas de madeira | C47: =IF(aux!AW46<0,aux!AW46,0) -> -34.276 | D47: 0.01053481166 | F47: =IF(H47<>0,aux!AZ46,"") ->  | G47: =IF(H47<>0,aux!BA46,"") ->  | H47: =IF(aux!BB46<0,aux!BB46,0) -> 0 | I47: 0
A48: =IF(C48<>0,aux!AU47,"") -> 23a | B48: =IF(C48<0,aux!AV47,"") -> Resíduos indústrias alimentares; alimentos p/ animais (exc. NC 230120) (a) | C48: =IF(aux!AW47<0,aux!AW47,0) -> -43.756 | D48: 0.01344851263 | F48: =IF(H48<>0,aux!AZ47,"") -> 52 | G48: =IF(H48<>0,aux!BA47,"") -> Algodão (NC 5201-5203) | H48: =IF(aux!BB47<0,aux!BB47,0) -> -0.623 | I48: 0.0002830628031
A49: =IF(C49<>0,aux!AU48,"") -> 09 | B49: =IF(C49<0,aux!AV48,"") -> Café, chá, mate e especiarias | C49: =IF(aux!AW48<0,aux!AW48,0) -> -61.162 | D49: 0.01879828891 | F49: =IF(H49<>0,aux!AZ48,"") -> 05a | G49: =IF(H49<>0,aux!BA48,"") -> Outros produtos de origem animal (exc. NC 0508, 051191) (a) | H49: =IF(aux!BB48<0,aux!BB48,0) -> -27.883 | I49: 0.01266876427
A50: =IF(C50<>0,aux!AU49,"") -> 45 | B50: =IF(C50<0,aux!AV49,"") -> Cortiça e suas obras | C50: =IF(aux!AW49<0,aux!AW49,0) -> -486.273 | D50: 0.1494571849 | F50: =IF(H50<>0,aux!AZ49,"") -> 47 | G50: =IF(H50<>0,aux!BA49,"") -> Pastas de madeira | H50: =IF(aux!BB49<0,aux!BB49,0) -> -98.988 | I50: 0.04497563524
A51: =IF(C51<>0,aux!AU50,"") -> 19a | B51: =IF(C51<0,aux!AV50,"") -> Preparações à base de cereais (exc. NC 19022010) (a) | C51: =IF(aux!AW50<0,aux!AW50,0) -> -909.873 | D51: 0.2796516714 | F51: =IF(H51<>0,aux!AZ50,"") -> 45 | G51: =IF(H51<>0,aux!BA50,"") -> Cortiça e suas obras | H51: =IF(aux!BB50<0,aux!BB50,0) -> -681.467 | I51: 0.309627543
A52: =IF(C52<>0,aux!AU51,"") -> 21 | B52: =IF(C52<0,aux!AV51,"") -> Preparações alimentícias diversas | C52: =IF(aux!AW51<0,aux!AW51,0) -> -1664.586 | D52: 0.5116145407 | F52: =IF(H52<>0,aux!AZ51,"") -> 44 | G52: =IF(H52<>0,aux!BA51,"") -> Madeira e suas obras | H52: =IF(aux!BB51<0,aux!BB51,0) -> -1391.964 | I52: 0.6324449947
A53: TOTAL | C53: =SUM(C31:C52) -> -1623.196 | F53: TOTAL | H53: =SUM(H31:H52) -> 50940.577

Sheet 5.2A
A1: Trocas comerciais Portugal-Suíça 2018-2022 em milhares de euros (NC 4 dígitos) | G1: Produtos agrícolas e agroalimentares, do mar e da floresta
A2: Cód. NC | B2: Descritivo | C2: Importações | K2: Exportações | S2: Saldo quinquénio (exp-imp) | T2: Evolução das importações | U2: =+"Variação das Importações " & INDEX(K3:N3,1,aux!AL1) & "-"& '5.2'!O3 &"" -> Variação das Importações 2018-2022 | Z2: Evolução das exportações | AA2: ="Variação das Exportações " & INDEX(K3:N3,1,aux!AL1) & "-"& '5.2'!O3 &"" -> Variação das Exportações 2018-2022
C3: 2018 | D3: 2019 | E3: 2020 | F3: 2021 | G3: 2022 | H3: média quinquénio | I3: % Subtot | J3: % Total | K3: 2018 | L3: 2019 | M3: 2020 | N3: 2021 | O3: 2022 | P3: média quinquénio | Q3: % Subtot | R3: % Total | U3: variação total em valor | V3: % no subtotal de variação | W3: % no total de variação | X3: taxa de variação média anual | Y3: taxa de variação total | AA3: variação total em valor | AB3: % no subtotal de variação | AC3: % no total de variação | AD3: taxa de variação média anual | AE3: taxa de variação total | AX3: filtro
A4: 0101 | B4: Equídeos vivos | C4: 9.214 | D4: 29.364 | E4: 19.025 | F4: 0 | G4: 104.991 | H4: 32.5188 | I4: 0.0108451397 | J4: 0.007208642071 | K4: 102.083 | L4: 157.75 | M4: 333.879 | N4: 249.091 | O4: 264.861 | P4: 221.5328 | Q4: 0.002408172844 | R4: 0.001545183602 | S4: 189.014 | U4: =G4-INDEX($C4:$G4,1,aux!$AL$1) -> 95.777 | V4: =IF($U$237<>0,U4/$U$237, "n.d.") -> -0.08014114253 | W4: =IF($U$322<>0,U4/$U$322, "n.d.") -> -0.05900519715 | X4: =+IF(INDEX($C4:$G4,1,aux!$AL$1)>0,(G4/INDEX($C4:$G4,1,aux!$AL$1))^(1/($G$3-INDEX($C$3:$G$3,1,aux!$AL$1)))-1,"n.d.") -> 0.837282617 | Y4: =IF(INDEX($C4:$G4,1,aux!$AL$1)>0,(G4-INDEX($C4:$G4,1,aux!$AL$1))/INDEX($C4:$G4,1,aux!$AL$1),"n.d.") -> 10.39472542 | AA4: =O4-INDEX($K4:$O4,1,aux!$AL$1) -> 162.778 | AB4: =IF($AA$237<>0,AA4/$AA$237, "n.d.") -> 0.004629782639 | AC4: =IF($AA$322<>0,AA4/$AA$322, "n.d.") -> 0.003195448689 | AD4: =+IF(INDEX($K4:$O4,1,aux!$AL$1)>0,(O4/INDEX($K4:$O4,1,aux!$AL$1))^(1/($O$3-INDEX($K$3:$O$3,1,aux!$AL$1)))-1,"n.d.") -> 0.2691593321 | AE4: =IF(INDEX($K4:$O4,1,aux!$AL$1)>0,(O4-INDEX($K4:$O4,1,aux!$AL$1))/INDEX($K4:$O4,1,aux!$AL$1),"n.d.") -> 1.594565207 | AX4: =+LEFT(A4,2) -> 01
A5: 0102 | B5: Bovinos vivos | C5: 0 | D5: 0 | E5: 0 | F5: 0 | G5: 0 | H5: 0 | I5: 0 | J5: 0 | K5: 0 | L5: 0 | M5: 0 | N5: 0 | O5: 0 | P5: 0 | Q5: 0 | R5: 0 | S5: 0 | U5: =G5-INDEX($C5:$G5,1,aux!$AL$1) -> 0 | V5: 0 | W5: 0 | X5: =+IF(INDEX($C5:$G5,1,aux!$AL$1)>0,(G5/INDEX($C5:$G5,1,aux!$AL$1))^(1/($G$3-INDEX($C$3:$G$3,1,aux!$AL$1)))-1,"n.d.") -> n.d. | Y5: =IF(INDEX($C5:$G5,1,aux!$AL$1)>0,(G5-INDEX($C5:$G5,1,aux!$AL$1))/INDEX($C5:$G5,1,aux!$AL$1),"n.d.") -> n.d. | AA5: =O5-INDEX($K5:$O5,1,aux!$AL$1) -> 0 | AB5: 0 | AC5: 0 | AD5: =+IF(INDEX($K5:$O5,1,aux!$AL$1)>0,(O5/INDEX($K5:$O5,1,aux!$AL$1))^(1/($O$3-INDEX($K$3:$O$3,1,aux!$AL$1)))-1,"n.d.") -> n.d. | AE5: =IF(INDEX($K5:$O5,1,aux!$AL$1)>0,(O5-INDEX($K5:$O5,1,aux!$AL$1))/INDEX($K5:$O5,1,aux!$AL$1),"n.d.") -> n.d. | AX5: 01
A6: 0103 | B6: Suínos vivos | C6: 0 | D6: 0 | E6: 0 | F6: 0 | G6: 0 | H6: 0 | I6: 0 | J6: 0 | K6: 0 | L6: 0 | M6: 0 | N6: 0 | O6: 0 | P6: 0 | Q6: 0 | R6: 0 | S6: 0 | U6: =G6-INDEX($C6:$G6,1,aux!$AL$1) -> 0 | V6: 0 | W6: 0 | X6: =+IF(INDEX($C6:$G6,1,aux!$AL$1)>0,(G6/INDEX($C6:$G6,1,aux!$AL$1))^(1/($G$3-INDEX($C$3:$G$3,1,aux!$AL$1)))-1,"n.d.") -> n.d. | Y6: =IF(INDEX($C6:$G6,1,aux!$AL$1)>0,(G6-INDEX($C6:$G6,1,aux!$AL$1))/INDEX($C6:$G6,1,aux!$AL$1),"n.d.") -> n.d. | AA6: =O6-INDEX($K6:$O6,1,aux!$AL$1) -> 0 | AB6: 0 | AC6: 0 | AD6: =+IF(INDEX($K6:$O6,1,aux!$AL$1)>0,(O6/INDEX($K6:$O6,1,aux!$AL$1))^(1/($O$3-INDEX($K$3:$O$3,1,aux!$AL$1)))-1,"n.d.") -> n.d. | AE6: =IF(INDEX($K6:$O6,1,aux!$AL$1)>0,(O6-INDEX($K6:$O6,1,aux!$AL$1))/INDEX($K6:$O6,1,aux!$AL$1),"n.d.") -> n.d. | AX6: 01
A7: 0104 | B7: Ovinos ou caprinos vivos | C7: 0 | D7: 0 | E7: 0 | F7: 0 | G7: 0 | H7: 0 | I7: 0 | J7: 0 | K7: 0 | L7: 0 | M7: 0 | N7: 0 | O7: 0 | P7: 0 | Q7: 0 | R7: 0 | S7: 0 | U7: =G7-INDEX($C7:$G7,1,aux!$AL$1) -> 0 | V7: 0 | W7: 0 | X7: =+IF(INDEX($C7:$G7,1,aux!$AL$1)>0,(G7/INDEX($C7:$G7,1,aux!$AL$1))^(1/($G$3-INDEX($C$3:$G$3,1,aux!$AL$1)))-1,"n.d.") -> n.d. | Y7: =IF(INDEX($C7:$G7,1,aux!$AL$1)>0,(G7-INDEX($C7:$G7,1,aux!$AL$1))/INDEX($C7:$G7,1,aux!$AL$1),"n.d.") -> n.d. | AA7: =O7-INDEX($K7:$O7,1,aux!$AL$1) -> 0 | AB7: 0 | AC7: 0 | AD7: =+IF(INDEX($K7:$O7,1,aux!$AL$1)>0,(O7/INDEX($K7:$O7,1,aux!$AL$1))^(1/($O$3-INDEX($K$3:$O$3,1,aux!$AL$1)))-1,"n.d.") -> n.d. | AE7: =IF(INDEX($K7:$O7,1,aux!$AL$1)>0,(O7-INDEX($K7:$O7,1,aux!$AL$1))/INDEX($K7:$O7,1,aux!$AL$1),"n.d.") -> n.d. | AX7: 01
A8: 0105 | B8: Aves de capoeira vivas | C8: 0 | D8: 0 | E8: 0 | F8: 0 | G8: 0 | H8: 0 | I8: 0 | J8: 0 | K8: 5.59 | L8: 23.55 | M8: 0 | N8: 103.484 | O8: 0.225 | P8: 26.5698 | Q8: 0.0002888270758 | R8: 0.0001853234342 | S8: 26.5698 | U8: =G8-INDEX($C8:$G8,1,aux!$AL$1) -> 0 | V8: 0 | W8: 0 | X8: =+IF(INDEX($C8:$G8,1,aux!$AL$1)>0,(G8/INDEX($C8:$G8,1,aux!$AL$1))^(1/($G$3-INDEX($C$3:$G$3,1,aux!$AL$1)))-1,"n.d.") -> n.d. | Y8: =IF(INDEX($C8:$G8,1,aux!$AL$1)>0,(G8-INDEX($C8:$G8,1,aux!$AL$1))/INDEX($C8:$G8,1,aux!$AL$1),"n.d.") -> n.d. | AA8: =O8-INDEX($K8:$O8,1,aux!$AL$1) -> -5.365 | AB8: -0.0001525930031 | AC8: -0.0001053187913 | AD8: =+IF(INDEX($K8:$O8,1,aux!$AL$1)>0,(O8/INDEX($K8:$O8,1,aux!$AL$1))^(1/($O$3-INDEX($K$3:$O$3,1,aux!$AL$1)))-1,"n.d.") -> -0.5520880209 | AE8: =IF(INDEX($K8:$O8,1,aux!$AL$1)>0,(O8-INDEX($K8:$O8,1,aux!$AL$1))/INDEX($K8:$O8,1,aux!$AL$1),"n.d.") -> -0.9597495528 | AX8: 01
A9: 0106 | B9: Outros animais vivos | C9: 0.443 | D9: 0.76 | E9: 0 | F9: 0.687 | G9: 1.001 | H9: 0.5782 | I9: 0.0001928318318 | J9: 0.0001281731443 | K9: 2.112 | L9: 1.535 | M9: 3.967 | N9: 5.22 | O9: 6.52 | P9: 3.8708 | Q9: 4.207754086e-05 | R9: 2.699869585e-05 | S9: 3.2926 | U9: =G9-INDEX($C9:$G9,1,aux!$AL$1) -> 0.558 | V9: -0.0004669049723 | W9: -0.0003437662488 | X9: =+IF(INDEX($C9:$G9,1,aux!$AL$1)>0,(G9/INDEX($C9:$G9,1,aux!$AL$1))^(1/($G$3-INDEX($C$3:$G$3,1,aux!$AL$1)))-1,"n.d.") -> 0.2260483235 | Y9: =IF(INDEX($C9:$G9,1,aux!$AL$1)>0,(G9-INDEX($C9:$G9,1,aux!$AL$1))/INDEX($C9:$G9,1,aux!$AL$1),"n.d.") -> 1.259593679 | AA9: =O9-INDEX($K9:$O9,1,aux!$AL$1) -> 4.408 | AB9: 0.0001253737106 | AC9: 8.653219613e-05 | AD9: =+IF(INDEX($K9:$O9,1,aux!$AL$1)>0,(O9/INDEX($K9:$O9,1,aux!$AL$1))^(1/($O$3-INDEX($K$3:$O$3,1,aux!$AL$1)))-1,"n.d.") -> 0.3255265179 | AE9: =IF(INDEX($K9:$O9,1,aux!$AL$1)>0,(O9-INDEX($K9:$O9,1,aux!$AL$1))/INDEX($K9:$O9,1,aux!$AL$1),"n.d.") -> 2.087121212 | AX9: 01
A10: 01SS | B10: Animais vivos | C10: 0 | D10: 0 | E10: 0 | F10: 0 | G10: 0 | H10: 0 | I10: 0 | J10: 0 | K10: 0 | L10: 0 | M10: 0 | N10: 0 | O10: 0 | P10: 0 | Q10: 0 | R10: 0 | S10: 0 | U10: =G10-INDEX($C10:$G10,1,aux!$AL$1) -> 0 | V10: 0 | W10: 0 | X10: =+IF(INDEX($C10:$G10,1,aux!$AL$1)>0,(G10/INDEX($C10:$G10,1,aux!$AL$1))^(1/($G$3-INDEX($C$3:$G$3,1,aux!$AL$1)))-1,"n.d.") -> n.d. | Y10: =IF(INDEX($C10:$G10,1,aux!$AL$1)>0,(G10-INDEX($C10:$G10,1,aux!$AL$1))/INDEX($C10:$G10,1,aux!$AL$1),"n.d.") -> n.d. | AA10: =O10-INDEX($K10:$O10,1,aux!$AL$1) -> 0 | AB10: 0 | AC10: 0 | AD10: =+IF(INDEX($K10:$O10,1,aux!$AL$1)>0,(O10/INDEX($K10:$O10,1,aux!$AL$1))^(1/($O$3-INDEX($K$3:$O$3,1,aux!$AL$1)))-1,"n.d.") -> n.d. | AE10: =IF(INDEX($K10:$O10,1,aux!$AL$1)>0,(O10-INDEX($K10:$O10,1,aux!$AL$1))/INDEX($K10:$O10,1,aux!$AL$1),"n.d.") -> n.d. | AX10: 01
A11: 0201 | B11: Carnes de bovino, frescas ou refrigeradas | C11: 0 | D11: 0 | E11: 0 | F11: 0 | G11: 0 | H11: 0 | I11: 0 | J11: 0 | K11: 4.716 | L11: 0.005 | M11: 5.578 | N11: 1.498 | O11: 17.746 | P11: 5.9086 | Q11: 6.422945074e-05 | R11: 4.121228022e-05 | S11: 5.9086 | U11: =G11-INDEX($C11:$G11,1,aux!$AL$1) -> 0 | V11: 0 | W11: 0 | X11: =+IF(INDEX($C11:$G11,1,aux!$AL$1)>0,(G11/INDEX($C11:$G11,1,aux!$AL$1))^(1/($G$3-INDEX($C$3:$G$3,1,aux!$AL$1)))-1,"n.d.") -> n.d. | Y11: =IF(INDEX($C11:$G11,1,aux!$AL$1)>0,(G11-INDEX($C11:$G11,1,aux!$AL$1))/INDEX($C11:$G11,1,aux!$AL$1),"n.d.") -> n.d. | AA11: =O11-INDEX($K11:$O11,1,aux!$AL$1) -> 13.03 | AB11: 0.0003706033234 | AC11: 0.0002557882295 | AD11: =+IF(INDEX($K11:$O11,1,aux!$AL$1)>0,(O11/INDEX($K11:$O11,1,aux!$AL$1))^(1/($O$3-INDEX($K$3:$O$3,1,aux!$AL$1)))-1,"n.d.") -> 0.3927772689 | AE11: =IF(INDEX($K11:$O11,1,aux!$AL$1)>0,(O11-INDEX($K11:$O11,1,aux!$AL$1))/INDEX($K11:$O11,1,aux!$AL$1),"n.d.") -> 2.76293469 | AX11: 02
A12: 0202 | B12: Carnes de bovino, congeladas | C12: 0 | D12: 0 | E12: 0 | F12: 0 | G12: 0 | H12: 0 | I12: 0 | J12: 0 | K12: 19.402 | L12: 8.027 | M12: 36.517 | N12: 0.871 | O12: 10.771 | P12: 15.1176 | Q12: 0.0001643359077 | R12: 0.0001054447361 | S12: 15.1176 | U12: =G12-INDEX($C12:$G12,1,aux!$AL$1) -> 0 | V12: 0 | W12: 0 | X12: =+IF(INDEX($C12:$G12,1,aux!$AL$1)>0,(G12/INDEX($C12:$G12,1,aux!$AL$1))^(1/($G$3-INDEX($C$3:$G$3,1,aux!$AL$1)))-1,"n.d.") -> n.d. | Y12: =IF(INDEX($C12:$G12,1,aux!$AL$1)>0,(G12-INDEX($C12:$G12,1,aux!$AL$1))/INDEX($C12:$G12,1,aux!$AL$1),"n.d.") -> n.d. | AA12: =O12-INDEX($K12:$O12,1,aux!$AL$1) -> -8.631 | AB12: -0.0002454855936 | AC12: -0.0001694327098 | AD12: =+IF(INDEX($K12:$O12,1,aux!$AL$1)>0,(O12/INDEX($K12:$O12,1,aux!$AL$1))^(1/($O$3-INDEX($K$3:$O$3,1,aux!$AL$1)))-1,"n.d.") -> -0.136817988 | AE12: =IF(INDEX($K12:$O12,1,aux!$AL$1)>0,(O12-INDEX($K12:$O12,1,aux!$AL$1))/INDEX($K12:$O12,1,aux!$AL$1),"n.d.") -> -0.4448510463 | AX12: 02
A13: 0203 | B13: Carnes de suíno | C13: 0 | D13: 0 | E13: 0 | F13: 0 | G13: 0 | H13: 0 | I13: 0 | J13: 0 | K13: 1119.526 | L13: 1160.896 | M13: 1508.544 | N13: 1772.754 | O13: 1396.925 | P13: 1391.729 | Q13: 0.0151287935 | R13: 0.009707261542 | S13: 1391.729 | U13: =G13-INDEX($C13:$G13,1,aux!$AL$1) -> 0 | V13: 0 | W13: 0 | X13: =+IF(INDEX($C13:$G13,1,aux!$AL$1)>0,(G13/INDEX($C13:$G13,1,aux!$AL$1))^(1/($G$3-INDEX($C$3:$G$3,1,aux!$AL$1)))-1,"n.d.") -> n.d. | Y13: =IF(INDEX($C13:$G13,1,aux!$AL$1)>0,(G13-INDEX($C13:$G13,1,aux!$AL$1))/INDEX($C13:$G13,1,aux!$AL$1),"n.d.") -> n.d. | AA13: =O13-INDEX($K13:$O13,1,aux!$AL$1) -> 277.399 | AB13: 0.007889868866 | AC13: 0.005445540988 | AD13: =+IF(INDEX($K13:$O13,1,aux!$AL$1)>0,(O13/INDEX($K13:$O13,1,aux!$AL$1))^(1/($O$3-INDEX($K$3:$O$3,1,aux!$AL$1)))-1,"n.d.") -> 0.05690201625 | AE13: =IF(INDEX($K13:$O13,1,aux!$AL$1)>0,(O13-INDEX($K13:$O13,1,aux!$AL$1))/INDEX($K13:$O13,1,aux!$AL$1),"n.d.") -> 0.2477825437 | AX13: 02
A14: 0204 | B14: Carnes de ovino ou caprino | C14: 0 | D14: 0 | E14: 0 | F14: 0 | G14: 0 | H14: 0 | I14: 0 | J14: 0 | K14: 11.847 | L14: 3.494 | M14: 66.639 | N14: 76.648 | O14: 145.48 | P14: 60.8216 | Q14: 0.0006611613514 | R14: 0.0004242285521 | S14: 60.8216 | U14: =G14-INDEX($C14:$G14,1,aux!$AL$1) -> 0 | V14: 0 | W14: 0 | X14: =+IF(INDEX($C14:$G14,1,aux!$AL$1)>0,(G14/INDEX($C14:$G14,1,aux!$AL$1))^(1/($G$3-INDEX($C$3:$G$3,1,aux!$AL$1)))-1,"n.d.") -> n.d. | Y14: =IF(INDEX($C14:$G14,1,aux!$AL$1)>0,(G14-INDEX($C14:$G14,1,aux!$AL$1))/INDEX($C14:$G14,1,aux!$AL$1),"n.d.") -> n.d. | AA14: =O14-INDEX($K14:$O14,1,aux!$AL$1) -> 133.633 | AB14: 0.00380083146 | AC14: 0.002623311471 | AD14: =+IF(INDEX($K14:$O14,1,aux!$AL$1)>0,(O14/INDEX($K14:$O14,1,aux!$AL$1))^(1/($O$3-INDEX($K$3:$O$3,1,aux!$AL$1)))-1,"n.d.") -> 0.8719693167 | AE14: =IF(INDEX($K14:$O14,1,aux!$AL$1)>0,(O14-INDEX($K14:$O14,1,aux!$AL$1))/INDEX($K14:$O14,1,aux!$AL$1),"n.d.") -> 11.27990208 | AX14: 02
A15: 0205 | B15: Carnes de equídeo | C15: 0 | D15: 0 | E15: 0 | F15: 0 | G15: 0 | H15: 0 | I15: 0 | J15: 0 | K15: 0 | L15: 0 | M15: 0 | N15: 0 | O15: 0 | P15: 0 | Q15: 0 | R15: 0 | S15: 0 | U15: =G15-INDEX($C15:$G15,1,aux!$AL$1) -> 0 | V15: 0 | W15: 0 | X15: =+IF(INDEX($C15:$G15,1,aux!$AL$1)>0,(G15/INDEX($C15:$G15,1,aux!$AL$1))^(1/($G$3-INDEX($C$3:$G$3,1,aux!$AL$1)))-1,"n.d.") -> n.d. | Y15: =IF(INDEX($C15:$G15,1,aux!$AL$1)>0,(G15-INDEX($C15:$G15,1,aux!$AL$1))/INDEX($C15:$G15,1,aux!$AL$1),"n.d.") -> n.d. | AA15: =O15-INDEX($K15:$O15,1,aux!$AL$1) -> 0 | AB15: 0 | AC15: 0 | AD15: =+IF(INDEX($K15:$O15,1,aux!$AL$1)>0,(O15/INDEX($K15:$O15,1,aux!$AL$1))^(1/($O$3-INDEX($K$3:$O$3,1,aux!$AL$1)))-1,"n.d.") -> n.d. | AE15: =IF(INDEX($K15:$O15,1,aux!$AL$1)>0,(O15-INDEX($K15:$O15,1,aux!$AL$1))/INDEX($K15:$O15,1,aux!$AL$1),"n.d.") -> n.d. | AX15: 02
A16: 0206 | B16: Miudezas de bovino, suíno, ovino, caprino,equídeo | C16: 0 | D16: 0 | E16: 0 | F16: 0 | G16: 0 | H16: 0 | I16: 0 | J16: 0 | K16: 1.902 | L16: 6.826 | M16: 14.026 | N16: 14.524 | O16: 18.388 | P16: 11.1332 | Q16: 0.0001210234778 | R16: 7.765368415e-05 | S16: 11.1332 | U16: =G16-INDEX($C16:$G16,1,aux!$AL$1) -> 0 | V16: 0 | W16: 0 | X16: =+IF(INDEX($C16:$G16,1,aux!$AL$1)>0,(G16/INDEX($C16:$G16,1,aux!$AL$1))^(1/($G$3-INDEX($C$3:$G$3,1,aux!$AL$1)))-1,"n.d.") -> n.d. | Y16: =IF(INDEX($C16:$G16,1,aux!$AL$1)>0,(G16-INDEX($C16:$G16,1,aux!$AL$1))/INDEX($C16:$G16,1,aux!$AL$1),"n.d.") -> n.d. | AA16: =O16-INDEX($K16:$O16,1,aux!$AL$1) -> 16.486 | AB16: 0.0004688999532 | AC16: 0.000323631984 | AD16: =+IF(INDEX($K16:$O16,1,aux!$AL$1)>0,(O16/INDEX($K16:$O16,1,aux!$AL$1))^(1/($O$3-INDEX($K$3:$O$3,1,aux!$AL$1)))-1,"n.d.") -> 0.7633194405 | AE16: =IF(INDEX($K16:$O16,1,aux!$AL$1)>0,(O16-INDEX($K16:$O16,1,aux!$AL$1))/INDEX($K16:$O16,1,aux!$AL$1),"n.d.") -> 8.667718191 | AX16: 02
A17: 0207 | B17: Carnes e miudezas de aves de capoeira | C17: 0 | D17: 0 | E17: 0 | F17: 0 | G17: 0 | H17: 0 | I17: 0 | J17: 0 | K17: 305.901 | L17: 355.049 | M17: 482.224 | N17: 607.361 | O17: 416.813 | P17: 433.4696 | Q17: 0.004712032346 | R17: 0.003023435437 | S17: 433.4696 | U17: =G17-INDEX($C17:$G17,1,aux!$AL$1) -> 0 | V17: 0 | W17: 0 | X17: =+IF(INDEX($C17:$G17,1,aux!$AL$1)>0,(G17/INDEX($C17:$G17,1,aux!$AL$1))^(1/($G$3-INDEX($C$3:$G$3,1,aux!$AL$1)))-1,"n.d.") -> n.d. | Y17: =IF(INDEX($C17:$G17,1,aux!$AL$1)>0,(G17-INDEX($C17:$G17,1,aux!$AL$1))/INDEX($C17:$G17,1,aux!$AL$1),"n.d.") -> n.d. | AA17: =O17-INDEX($K17:$O17,1,aux!$AL$1) -> 110.912 | AB17: 0.003154593692 | AC17: 0.002177281973 | AD17: =+IF(INDEX($K17:$O17,1,aux!$AL$1)>0,(O17/INDEX($K17:$O17,1,aux!$AL$1))^(1/($O$3-INDEX($K$3:$O$3,1,aux!$AL$1)))-1,"n.d.") -> 0.08041371793 | AE17: =IF(INDEX($K17:$O17,1,aux!$AL$1)>0,(O17-INDEX($K17:$O17,1,aux!$AL$1))/INDEX($K17:$O17,1,aux!$AL$1),"n.d.") -> 0.36257482 | AX17: 02
A18: 0208 | B18: Outras carnes e miudezas | C18: 0 | D18: 0 | E18: 0 | F18: 0 | G18: 0 | H18: 0 | I18: 0 | J18: 0 | K18: 40.201 | L18: 41.42 | M18: 49.514 | N18: 48.558 | O18: 48.926 | P18: 45.7238 | Q18: 0.0004970406796 | R18: 0.0003189219203 | S18: 45.7238 | U18: =G18-INDEX($C18:$G18,1,aux!$AL$1) -> 0 | V18: 0 | W18: 0 | X18: =+IF(INDEX($C18:$G18,1,aux!$AL$1)>0,(G18/INDEX($C18:$G18,1,aux!$AL$1))^(1/($G$3-INDEX($C$3:$G$3,1,aux!$AL$1)))-1,"n.d.") -> n.d. | Y18: =IF(INDEX($C18:$G18,1,aux!$AL$1)>0,(G18-INDEX($C18:$G18,1,aux!$AL$1))/INDEX($C18:$G18,1,aux!$AL$1),"n.d.") -> n.d. | AA18: =O18-INDEX($K18:$O18,1,aux!$AL$1) -> 8.725 | AB18: 0.0002481591709 | AC18: 0.0001712779971 | AD18: =+IF(INDEX($K18:$O18,1,aux!$AL$1)>0,(O18/INDEX($K18:$O18,1,aux!$AL$1))^(1/($O$3-INDEX($K$3:$O$3,1,aux!$AL$1)))-1,"n.d.") -> 0.05032986334 | AE18: =IF(INDEX($K18:$O18,1,aux!$AL$1)>0,(O18-INDEX($K18:$O18,1,aux!$AL$1))/INDEX($K18:$O18,1,aux!$AL$1),"n.d.") -> 0.2170344021 | AX18: 02
A19: 0209 | B19: Toucinho, gorduras de porco e de aves | C19: 0 | D19: 0 | E19: 0 | F19: 0 | G19: 0 | H19: 0 | I19: 0 | J19: 0 | K19: 0.851 | L19: 1.121 | M19: 7.141 | N19: 4.235 | O19: 1.631 | P19: 2.9958 | Q19: 3.256585122e-05 | R19: 2.089560117e-05 | S19: 2.9958 | U19: =G19-INDEX($C19:$G19,1,aux!$AL$1) -> 0 | V19: 0 | W19: 0 | X19: =+IF(INDEX($C19:$G19,1,aux!$AL$1)>0,(G19/INDEX($C19:$G19,1,aux!$AL$1))^(1/($G$3-INDEX($C$3:$G$3,1,aux!$AL$1)))-1,"n.d.") -> n.d. | Y19: =IF(INDEX($C19:$G19,1,aux!$AL$1)>0,(G19-INDEX($C19:$G19,1,aux!$AL$1))/INDEX($C19:$G19,1,aux!$AL$1),"n.d.") -> n.d. | AA19: =O19-INDEX($K19:$O19,1,aux!$AL$1) -> 0.78 | AB19: 2.218500324e-05 | AC19: 1.531195848e-05 | AD19: =+IF(INDEX($K19:$O19,1,aux!$AL$1)>0,(O19/INDEX($K19:$O19,1,aux!$AL$1))^(1/($O$3-INDEX($K$3:$O$3,1,aux!$AL$1)))-1,"n.d.") -> 0.1766061125 | AE19: =IF(INDEX($K19:$O19,1,aux!$AL$1)>0,(O19-INDEX($K19:$O19,1,aux!$AL$1))/INDEX($K19:$O19,1,aux!$AL$1),"n.d.") -> 0.9165687427 | AX19: 02
A20: 0210 | B20: Carnes e miudezas processadas; farinhas de carnes | C20: 0 | D20: 0.012 | E20: 0 | F20: 0 | G20: 0.007 | H20: 0.0038 | I20: 1.267314011e-06 | J20: 8.423693331e-07 | K20: 96.01 | L20: 129.38 | M20: 186.742 | N20: 212.716 | O20: 155.788 | P20: 156.1272 | Q20: 0.001697181109 | R20: 0.001088981809 | S20: 156.1234 | U20: =G20-INDEX($C20:$G20,1,aux!$AL$1) -> 0.007 | V20: -5.857230835e-06 | W20: -4.312479824e-06 | X20: =+IF(INDEX($C20:$G20,1,aux!$AL$1)>0,(G20/INDEX($C20:$G20,1,aux!$AL$1))^(1/($G$3-INDEX($C$3:$G$3,1,aux!$AL$1)))-1,"n.d.") -> n.d. | Y20: =IF(INDEX($C20:$G20,1,aux!$AL$1)>0,(G20-INDEX($C20:$G20,1,aux!$AL$1))/INDEX($C20:$G20,1,aux!$AL$1),"n.d.") -> n.d. | AA20: =O20-INDEX($K20:$O20,1,aux!$AL$1) -> 59.778 | AB20: 0.001700224518 | AC20: 0.001173484941 | AD20: =+IF(INDEX($K20:$O20,1,aux!$AL$1)>0,(O20/INDEX($K20:$O20,1,aux!$AL$1))^(1/($O$3-INDEX($K$3:$O$3,1,aux!$AL$1)))-1,"n.d.") -> 0.1286372584 | AE20: =IF(INDEX($K20:$O20,1,aux!$AL$1)>0,(O20-INDEX($K20:$O20,1,aux!$AL$1))/INDEX($K20:$O20,1,aux!$AL$1),"n.d.") -> 0.6226226435 | AX20: 02
A21: 02SS | B21: Carnes e miudezas, comestíveis | C21: 0 | D21: 0 | E21: 0 | F21: 0 | G21: 0 | H21: 0 | I21: 0 | J21: 0 | K21: 0 | L21: 0 | M21: 0 | N21: 0 | O21: 0 | P21: 0 | Q21: 0 | R21: 0 | S21: 0 | U21: =G21-INDEX($C21:$G21,1,aux!$AL$1) -> 0 | V21: 0 | W21: 0 | X21: =+IF(INDEX($C21:$G21,1,aux!$AL$1)>0,(G21/INDEX($C21:$G21,1,aux!$AL$1))^(1/($G$3-INDEX($C$3:$G$3,1,aux!$AL$1)))-1,"n.d.") -> n.d. | Y21: =IF(INDEX($C21:$G21,1,aux!$AL$1)>0,(G21-INDEX($C21:$G21,1,aux!$AL$1))/INDEX($C21:$G21,1,aux!$AL$1),"n.d.") -> n.d. | AA21: =O21-INDEX($K21:$O21,1,aux!$AL$1) -> 0 | AB21: 0 | AC21: 0 | AD21: =+IF(INDEX($K21:$O21,1,aux!$AL$1)>0,(O21/INDEX($K21:$O21,1,aux!$AL$1))^(1/($O$3-INDEX($K$3:$O$3,1,aux!$AL$1)))-1,"n.d.") -> n.d. | AE21: =IF(INDEX($K21:$O21,1,aux!$AL$1)>0,(O21-INDEX($K21:$O21,1,aux!$AL$1))/INDEX($K21:$O21,1,aux!$AL$1),"n.d.") -> n.d. | AX21: 02
A22: 0401 | B22: Leite e nata, não concentrados | C22: 0 | D22: 0 | E22: 0 | F22: 0 | G22: 0 | H22: 0 | I22: 0 | J22: 0 | K22: 12.226 | L22: 8.363 | M22: 16.667 | N22: 27.769 | O22: 29.274 | P22: 18.8598 | Q22: 0.000205015502 | R22: 0.0001315464514 | S22: 18.8598 | U22: =G22-INDEX($C22:$G22,1,aux!$AL$1) -> 0 | V22: 0 | W22: 0 | X22: =+IF(INDEX($C22:$G22,1,aux!$AL$1)>0,(G22/INDEX($C22:$G22,1,aux!$AL$1))^(1/($G$3-INDEX($C$3:$G$3,1,aux!$AL$1)))-1,"n.d.") -> n.d. | Y22: =IF(INDEX($C22:$G22,1,aux!$AL$1)>0,(G22-INDEX($C22:$G22,1,aux!$AL$1))/INDEX($C22:$G22,1,aux!$AL$1),"n.d.") -> n.d. | AA22: =O22-INDEX($K22:$O22,1,aux!$AL$1) -> 17.048 | AB22: 0.0004848845325 | AC22: 0.0003346644464 | AD22: =+IF(INDEX($K22:$O22,1,aux!$AL$1)>0,(O22/INDEX($K22:$O22,1,aux!$AL$1))^(1/($O$3-INDEX($K$3:$O$3,1,aux!$AL$1)))-1,"n.d.") -> 0.2439399602 | AE22: =IF(INDEX($K22:$O22,1,aux!$AL$1)>0,(O22-INDEX($K22:$O22,1,aux!$AL$1))/INDEX($K22:$O22,1,aux!$AL$1),"n.d.") -> 1.394405366 | AX22: 04
A23: 0402 | B23: Leite e nata, concentrados | C23: 0 | D23: 0.478 | E23: 0.117 | F23: 0 | G23: 0.052 | H23: 0.1294 | I23: 4.31553771e-05 | J23: 2.868489255e-05 | K23: 205.966 | L23: 194.17 | M23: 212.618 | N23: 162.789 | O23: 169.384 | P23: 188.9854 | Q23: 0.002054366253 | R23: 0.001318166615 | S23: 188.856 | U23: =G23-INDEX($C23:$G23,1,aux!$AL$1) -> 0.052 | V23: -4.351085763e-05 | W23: -3.203556441e-05 | X23: =+IF(INDEX($C23:$G23,1,aux!$AL$1)>0,(G23/INDEX($C23:$G23,1,aux!$AL$1))^(1/($G$3-INDEX($C$3:$G$3,1,aux!$AL$1)))-1,"n.d.") -> n.d. | Y23: =IF(INDEX($C23:$G23,1,aux!$AL$1)>0,(G23-INDEX($C23:$G23,1,aux!$AL$1))/INDEX($C23:$G23,1,aux!$AL$1),"n.d.") -> n.d. | AA23: =O23-INDEX($K23:$O23,1,aux!$AL$1) -> -36.582 | AB23: -0.001040476652 | AC23: -0.0007181308527 | AD23: =+IF(INDEX($K23:$O23,1,aux!$AL$1)>0,(O23/INDEX($K23:$O23,1,aux!$AL$1))^(1/($O$3-INDEX($K$3:$O$3,1,aux!$AL$1)))-1,"n.d.") -> -0.04771002499 | AE23: =IF(INDEX($K23:$O23,1,aux!$AL$1)>0,(O23-INDEX($K23:$O23,1,aux!$AL$1))/INDEX($K23:$O23,1,aux!$AL$1),"n.d.") -> -0.1776118388 | AX23: 04
A24: 0403 | B24: Leitelho, leite coalhado, iogurte, etc. | C24: 0.05 | D24: 1.691 | E24: 0 | F24: 0 | G24: 0.065 | H24: 0.3612 | I24: 0.0001204615318 | J24: 8.006942187e-05 | K24: 494.843 | L24: 470.685 | M24: 489.822 | N24: 458.45 | O24: 433.315 | P24: 469.423 | Q24: 0.005102863869 | R24: 0.003274209156 | S24: 469.0618 | U24: =G24-INDEX($C24:$G24,1,aux!$AL$1) -> 0.015 | V24: -1.255120893e-05 | W24: -9.241028194e-06 | X24: =+IF(INDEX($C24:$G24,1,aux!$AL$1)>0,(G24/INDEX($C24:$G24,1,aux!$AL$1))^(1/($G$3-INDEX($C$3:$G$3,1,aux!$AL$1)))-1,"n.d.") -> 0.06778997237 | Y24: =IF(INDEX($C24:$G24,1,aux!$AL$1)>0,(G24-INDEX($C24:$G24,1,aux!$AL$1))/INDEX($C24:$G24,1,aux!$AL$1),"n.d.") -> 0.3 | AA24: =O24-INDEX($K24:$O24,1,aux!$AL$1) -> -61.528 | AB24: -0.001749998564 | AC24: -0.001207838694 | AD24: =+IF(INDEX($K24:$O24,1,aux!$AL$1)>0,(O24/INDEX($K24:$O24,1,aux!$AL$1))^(1/($O$3-INDEX($K$3:$O$3,1,aux!$AL$1)))-1,"n.d.") -> -0.03264902658 | AE24: =IF(INDEX($K24:$O24,1,aux!$AL$1)>0,(O24-INDEX($K24:$O24,1,aux!$AL$1))/INDEX($K24:$O24,1,aux!$AL$1),"n.d.") -> -0.1243384265 | AX24: 04
A25: 0404 | B25: Soro de leite e outros produtos do leite | C25: 0 | D25: 0 | E25: 0 | F25: 0 | G25: 0 | H25: 0 | I25: 0 | J25: 0 | K25: 0 | L25: 0 | M25: 0 | N25: 0 | O25: 0.453 | P25: 0.0906 | Q25: 9.848675214e-07 | R25: 6.319318601e-07 | S25: 0.0906 | U25: =G25-INDEX($C25:$G25,1,aux!$AL$1) -> 0 | V25: 0 | W25: 0 | X25: =+IF(INDEX($C25:$G25,1,aux!$AL$1)>0,(G25/INDEX($C25:$G25,1,aux!$AL$1))^(1/($G$3-INDEX($C$3:$G$3,1,aux!$AL$1)))-1,"n.d.") -> n.d. | Y25: =IF(INDEX($C25:$G25,1,aux!$AL$1)>0,(G25-INDEX($C25:$G25,1,aux!$AL$1))/INDEX($C25:$G25,1,aux!$AL$1),"n.d.") -> n.d. | AA25: =O25-INDEX($K25:$O25,1,aux!$AL$1) -> 0.453 | AB25: 1.288436727e-05 | AC25: 8.892714348e-06 | AD25: =+IF(INDEX($K25:$O25,1,aux!$AL$1)>0,(O25/INDEX($K25:$O25,1,aux!$AL$1))^(1/($O$3-INDEX($K$3:$O$3,1,aux!$AL$1)))-1,"n.d.") -> n.d. | AE25: =IF(INDEX($K25:$O25,1,aux!$AL$1)>0,(O25-INDEX($K25:$O25,1,aux!$AL$1))/INDEX($K25:$O25,1,aux!$AL$1),"n.d.") -> n.d. | AX25: 04
A26: 0405 | B26: Manteiga | C26: 0 | D26: 0 | E26: 0 | F26: 0 | G26: 0 | H26: 0 | I26: 0 | J26: 0 | K26: 39.107 | L26: 48.282 | M26: 59.217 | N26: 79.232 | O26: 75.627 | P26: 60.293 | Q26: 0.0006554152038 | R26: 0.0004205415854 | S26: 60.293 | U26: =G26-INDEX($C26:$G26,1,aux!$AL$1) -> 0 | V26: 0 | W26: 0 | X26: =+IF(INDEX($C26:$G26,1,aux!$AL$1)>0,(G26/INDEX($C26:$G26,1,aux!$AL$1))^(1/($G$3-INDEX($C$3:$G$3,1,aux!$AL$1)))-1,"n.d.") -> n.d. | Y26: =IF(INDEX($C26:$G26,1,aux!$AL$1)>0,(G26-INDEX($C26:$G26,1,aux!$AL$1))/INDEX($C26:$G26,1,aux!$AL$1),"n.d.") -> n.d. | AA26: =O26-INDEX($K26:$O26,1,aux!$AL$1) -> 36.52 | AB26: 0.001038713229 | AC26: 0.0007169137483 | AD26: =+IF(INDEX($K26:$O26,1,aux!$AL$1)>0,(O26/INDEX($K26:$O26,1,aux!$AL$1))^(1/($O$3-INDEX($K$3:$O$3,1,aux!$AL$1)))-1,"n.d.") -> 0.1792492071 | AE26: =IF(INDEX($K26:$O26,1,aux!$AL$1)>0,(O26-INDEX($K26:$O26,1,aux!$AL$1))/INDEX($K26:$O26,1,aux!$AL$1),"n.d.") -> 0.9338481602 | AX26: 04
A27: 0406 | B27: Queijos e requeijão | C27: 0 | D27: 5.82 | E27: 89.745 | F27: 88.146 | G27: 5.591 | H27: 37.8604 | I27: 0.01262658299 | J27: 0.008392747342 | K27: 3151.323 | L27: 3173.988 | M27: 3660.093 | N27: 4155.32 | O27: 4527.03 | P27: 3733.5508 | Q27: 0.0405855731 | R27: 0.02604138744 | S27: 3695.6904 | U27: =G27-INDEX($C27:$G27,1,aux!$AL$1) -> 5.591 | V27: -0.004678253943 | W27: -0.003444439242 | X27: =+IF(INDEX($C27:$G27,1,aux!$AL$1)>0,(G27/INDEX($C27:$G27,1,aux!$AL$1))^(1/($G$3-INDEX($C$3:$G$3,1,aux!$AL$1)))-1,"n.d.") -> n.d. | Y27: =IF(INDEX($C27:$G27,1,aux!$AL$1)>0,(G27-INDEX($C27:$G27,1,aux!$AL$1))/INDEX($C27:$G27,1,aux!$AL$1),"n.d.") -> n.d. | AA27: =O27-INDEX($K27:$O27,1,aux!$AL$1) -> 1375.707 | AB27: 0.03912828751 | AC27: 0.02700611342 | AD27: =+IF(INDEX($K27:$O27,1,aux!$AL$1)>0,(O27/INDEX($K27:$O27,1,aux!$AL$1))^(1/($O$3-INDEX($K$3:$O$3,1,aux!$AL$1)))-1,"n.d.") -> 0.09478821398 | AE27: =IF(INDEX($K27:$O27,1,aux!$AL$1)>0,(O27-INDEX($K27:$O27,1,aux!$AL$1))/INDEX($K27:$O27,1,aux!$AL$1),"n.d.") -> 0.4365490304 | AX27: 04
A28: 0407 | B28: Ovos de aves, com cascas | C28: 0 | D28: 0 | E28: 0 | F28: 0 | G28: 0 | H28: 0 | I28: 0 | J28: 0 | K28: 496.111 | L28: 485.46 | M28: 345.765 | N28: 399.287 | O28: 621.696 | P28: 469.6638 | Q28: 0.005105481486 | R28: 0.003275888728 | S28: 469.6638 | U28: =G28-INDEX($C28:$G28,1,aux!$AL$1) -> 0 | V28: 0 | W28: 0 | X28: =+IF(INDEX($C28:$G28,1,aux!$AL$1)>0,(G28/INDEX($C28:$G28,1,aux!$AL$1))^(1/($G$3-INDEX($C$3:$G$3,1,aux!$AL$1)))-1,"n.d.") -> n.d. | Y28: =IF(INDEX($C28:$G28,1,aux!$AL$1)>0,(G28-INDEX($C28:$G28,1,aux!$AL$1))/INDEX($C28:$G28,1,aux!$AL$1),"n.d.") -> n.d. | AA28: =O28-INDEX($K28:$O28,1,aux!$AL$1) -> 125.585 | AB28: 0.003571927734 | AC28: 0.002465323469 | AD28: =+IF(INDEX($K28:$O28,1,aux!$AL$1)>0,(O28/INDEX($K28:$O28,1,aux!$AL$1))^(1/($O$3-INDEX($K$3:$O$3,1,aux!$AL$1)))-1,"n.d.") -> 0.05803443886 | AE28: =IF(INDEX($K28:$O28,1,aux!$AL$1)>0,(O28-INDEX($K28:$O28,1,aux!$AL$1))/INDEX($K28:$O28,1,aux!$AL$1),"n.d.") -> 0.2531389145 | AX28: 04
A29: 0408 | B29: Ovos de aves, sem casca | C29: 0 | D29: 0 | E29: 0 | F29: 0 | G29: 0 | H29: 0 | I29: 0 | J29: 0 | K29: 527.82 | L29: 603.164 | M29: 353.125 | N29: 403.184 | O29: 615.088 | P29: 500.4762 | Q29: 0.005440427755 | R29: 0.00349080415 | S29: 500.4762 | U29: =G29-INDEX($C29:$G29,1,aux!$AL$1) -> 0 | V29: 0 | W29: 0 | X29: =+IF(INDEX($C29:$G29,1,aux!$AL$1)>0,(G29/INDEX($C29:$G29,1,aux!$AL$1))^(1/($G$3-INDEX($C$3:$G$3,1,aux!$AL$1)))-1,"n.d.") -> n.d. | Y29: =IF(INDEX($C29:$G29,1,aux!$AL$1)>0,(G29-INDEX($C29:$G29,1,aux!$AL$1))/INDEX($C29:$G29,1,aux!$AL$1),"n.d.") -> n.d. | AA29: =O29-INDEX($K29:$O29,1,aux!$AL$1) -> 87.268 | AB29: 0.002482103671 | AC29: 0.001713133324 | AD29: =+IF(INDEX($K29:$O29,1,aux!$AL$1)>0,(O29/INDEX($K29:$O29,1,aux!$AL$1))^(1/($O$3-INDEX($K$3:$O$3,1,aux!$AL$1)))-1,"n.d.") -> 0.03899355355 | AE29: =IF(INDEX($K29:$O29,1,aux!$AL$1)>0,(O29-INDEX($K29:$O29,1,aux!$AL$1))/INDEX($K29:$O29,1,aux!$AL$1),"n.d.") -> 0.1653366678 | AX29: 04
A30: 0409 | B30: Mel natural | C30: 0.583 | D30: 0 | E30: 0 | F30: 0.389 | G30: 0.105 | H30: 0.2154 | I30: 7.183669418e-05 | J30: 4.774904062e-05 | K30: 20.173 | L30: 22.499 | M30: 49.835 | N30: 37.294 | O30: 39.303 | P30: 33.8208 | Q30: 0.000367649089 | R30: 0.0002358989079 | S30: 33.6054 | U30: =G30-INDEX($C30:$G30,1,aux!$AL$1) -> -0.478 | V30: 0.0003999651913 | W30: 0.0002944807651 | X30: =+IF(INDEX($C30:$G30,1,aux!$AL$1)>0,(G30/INDEX($C30:$G30,1,aux!$AL$1))^(1/($G$3-INDEX($C$3:$G$3,1,aux!$AL$1)))-1,"n.d.") -> -0.3485513535 | Y30: =IF(INDEX($C30:$G30,1,aux!$AL$1)>0,(G30-INDEX($C30:$G30,1,aux!$AL$1))/INDEX($C30:$G30,1,aux!$AL$1),"n.d.") -> -0.819897084 | AA30: =O30-INDEX($K30:$O30,1,aux!$AL$1) -> 19.13 | AB30: 0.0005441014257 | AC30: 0.0003755355971 | AD30: =+IF(INDEX($K30:$O30,1,aux!$AL$1)>0,(O30/INDEX($K30:$O30,1,aux!$AL$1))^(1/($O$3-INDEX($K$3:$O$3,1,aux!$AL$1)))-1,"n.d.") -> 0.1814458013 | AE30: =IF(INDEX($K30:$O30,1,aux!$AL$1)>0,(O30-INDEX($K30:$O30,1,aux!$AL$1))/INDEX($K30:$O30,1,aux!$AL$1),"n.d.") -> 0.948297229 | AX30: 04
A31: 0410 | B31: Outros produtos comestíveis de origem animal | C31: 0 | D31: 0 | E31: 0 | F31: 0 | G31: 0.022 | H31: 0.0044 | I31: 1.467416223e-06 | J31: 9.753750173e-07 | K31: 0 | L31: 0 | M31: 0 | N31: 0 | O31: 0 | P31: 0 | Q31: 0 | R31: 0 | S31: -0.0044 | U31: =G31-INDEX($C31:$G31,1,aux!$AL$1) -> 0.022 | V31: -1.840843977e-05 | W31: -1.355350802e-05 | X31: =+IF(INDEX($C31:$G31,1,aux!$AL$1)>0,(G31/INDEX($C31:$G31,1,aux!$AL$1))^(1/($G$3-INDEX($C$3:$G$3,1,aux!$AL$1)))-1,"n.d.") -> n.d. | Y31: =IF(INDEX($C31:$G31,1,aux!$AL$1)>0,(G31-INDEX($C31:$G31,1,aux!$AL$1))/INDEX($C31:$G31,1,aux!$AL$1),"n.d.") -> n.d. | AA31: =O31-INDEX($K31:$O31,1,aux!$AL$1) -> 0 | AB31: 0 | AC31: 0 | AD31: =+IF(INDEX($K31:$O31,1,aux!$AL$1)>0,(O31/INDEX($K31:$O31,1,aux!$AL$1))^(1/($O$3-INDEX($K$3:$O$3,1,aux!$AL$1)))-1,"n.d.") -> n.d. | AE31: =IF(INDEX($K31:$O31,1,aux!$AL$1)>0,(O31-INDEX($K31:$O31,1,aux!$AL$1))/INDEX($K31:$O31,1,aux!$AL$1),"n.d.") -> n.d. | AX31: 04
A32: 04SS | B32: Leite e lacticínios; ovos de aves; mel natural; etc. | C32: 0 | D32: 0 | E32: 0 | F32: 0 | G32: 0 | H32: 0 | I32: 0 | J32: 0 | K32: 0 | L32: 0 | M32: 0 | N32: 0 | O32: 0 | P32: 0 | Q32: 0 | R32: 0 | S32: 0 | U32: =G32-INDEX($C32:$G32,1,aux!$AL$1) -> 0 | V32: 0 | W32: 0 | X32: =+IF(INDEX($C32:$G32,1,aux!$AL$1)>0,(G32/INDEX($C32:$G32,1,aux!$AL$1))^(1/($G$3-INDEX($C$3:$G$3,1,aux!$AL$1)))-1,"n.d.") -> n.d. | Y32: =IF(INDEX($C32:$G32,1,aux!$AL$1)>0,(G32-INDEX($C32:$G32,1,aux!$AL$1))/INDEX($C32:$G32,1,aux!$AL$1),"n.d.") -> n.d. | AA32: =O32-INDEX($K32:$O32,1,aux!$AL$1) -> 0 | AB32: 0 | AC32: 0 | AD32: =+IF(INDEX($K32:$O32,1,aux!$AL$1)>0,(O32/INDEX($K32:$O32,1,aux!$AL$1))^(1/($O$3-INDEX($K$3:$O$3,1,aux!$AL$1)))-1,"n.d.") -> n.d. | AE32: =IF(INDEX($K32:$O32,1,aux!$AL$1)>0,(O32-INDEX($K32:$O32,1,aux!$AL$1))/INDEX($K32:$O32,1,aux!$AL$1),"n.d.") -> n.d. | AX32: 04
A33: 0501 | B33: Cabelos em bruto | C33: 0 | D33: 0 | E33: 0 | F33: 0 | G33: 0.06 | H33: 0.012 | I33: 4.002044244e-06 | J33: 2.660113684e-06 | K33: 0.149 | L33: 0 | M33: 0 | N33: 0 | O33: 0 | P33: 0.0298 | Q33: 3.239409728e-07 | R33: 2.078539672e-07 | S33: 0.0178 | U33: =G33-INDEX($C33:$G33,1,aux!$AL$1) -> 0.06 | V33: -5.020483573e-05 | W33: -3.696411278e-05 | X33: =+IF(INDEX($C33:$G33,1,aux!$AL$1)>0,(G33/INDEX($C33:$G33,1,aux!$AL$1))^(1/($G$3-INDEX($C$3:$G$3,1,aux!$AL$1)))-1,"n.d.") -> n.d. | Y33: =IF(INDEX($C33:$G33,1,aux!$AL$1)>0,(G33-INDEX($C33:$G33,1,aux!$AL$1))/INDEX($C33:$G33,1,aux!$AL$1),"n.d.") -> n.d. | AA33: =O33-INDEX($K33:$O33,1,aux!$AL$1) -> -0.149 | AB33: -4.237904466e-06 | AC33: -2.924976684e-06 | AD33: =+IF(INDEX($K33:$O33,1,aux!$AL$1)>0,(O33/INDEX($K33:$O33,1,aux!$AL$1))^(1/($O$3-INDEX($K$3:$O$3,1,aux!$AL$1)))-1,"n.d.") -> -1 | AE33: =IF(INDEX($K33:$O33,1,aux!$AL$1)>0,(O33-INDEX($K33:$O33,1,aux!$AL$1))/INDEX($K33:$O33,1,aux!$AL$1),"n.d.") -> -1 | AX33: 05
A34: 0502 | B34: Cerdas de porco ou de javali, etc. | C34: 0 | D34: 0 | E34: 0 | F34: 0 | G34: 0 | H34: 0 | I34: 0 | J34: 0 | K34: 0 | L34: 0 | M34: 0 | N34: 0 | O34: 0 | P34: 0 | Q34: 0 | R34: 0 | S34: 0 | U34: =G34-INDEX($C34:$G34,1,aux!$AL$1) -> 0 | V34: 0 | W34: 0 | X34: =+IF(INDEX($C34:$G34,1,aux!$AL$1)>0,(G34/INDEX($C34:$G34,1,aux!$AL$1))^(1/($G$3-INDEX($C$3:$G$3,1,aux!$AL$1)))-1,"n.d.") -> n.d. | Y34: =IF(INDEX($C34:$G34,1,aux!$AL$1)>0,(G34-INDEX($C34:$G34,1,aux!$AL$1))/INDEX($C34:$G34,1,aux!$AL$1),"n.d.") -> n.d. | AA34: =O34-INDEX($K34:$O34,1,aux!$AL$1) -> 0 | AB34: 0 | AC34: 0 | AD34: =+IF(INDEX($K34:$O34,1,aux!$AL$1)>0,(O34/INDEX($K34:$O34,1,aux!$AL$1))^(1/($O$3-INDEX($K$3:$O$3,1,aux!$AL$1)))-1,"n.d.") -> n.d. | AE34: =IF(INDEX($K34:$O34,1,aux!$AL$1)>0,(O34-INDEX($K34:$O34,1,aux!$AL$1))/INDEX($K34:$O34,1,aux!$AL$1),"n.d.") -> n.d. | AX34: 05
A35: 0504 | B35: Tripas de animais (excepto peixes) | C35: 0 | D35: 0 | E35: 0 | F35: 0 | G35: 0 | H35: 0 | I35: 0 | J35: 0 | K35: 68.805 | L35: 19.786 | M35: 33.381 | N35: 59.826 | O35: 39.458 | P35: 44.2512 | Q35: 0.0004810327777 | R35: 0.0003086505864 | S35: 44.2512 | U35: =G35-INDEX($C35:$G35,1,aux!$AL$1) -> 0 | V35: 0 | W35: 0 | X35: =+IF(INDEX($C35:$G35,1,aux!$AL$1)>0,(G35/INDEX($C35:$G35,1,aux!$AL$1))^(1/($G$3-INDEX($C$3:$G$3,1,aux!$AL$1)))-1,"n.d.") -> n.d. | Y35: =IF(INDEX($C35:$G35,1,aux!$AL$1)>0,(G35-INDEX($C35:$G35,1,aux!$AL$1))/INDEX($C35:$G35,1,aux!$AL$1),"n.d.") -> n.d. | AA35: =O35-INDEX($K35:$O35,1,aux!$AL$1) -> -29.347 | AB35: -0.0008346965259 | AC35: -0.0005761026225 | AD35: =+IF(INDEX($K35:$O35,1,aux!$AL$1)>0,(O35/INDEX($K35:$O35,1,aux!$AL$1))^(1/($O$3-INDEX($K$3:$O$3,1,aux!$AL$1)))-1,"n.d.") -> -0.1297805871 | AE35: =IF(INDEX($K35:$O35,1,aux!$AL$1)>0,(O35-INDEX($K35:$O35,1,aux!$AL$1))/INDEX($K35:$O35,1,aux!$AL$1),"n.d.") -> -0.4265242352 | AX35: 05
A36: 0505 | B36: Peles e outras partes de aves | C36: 0 | D36: 0 | E36: 0 | F36: 0 | G36: 0 | H36: 0 | I36: 0 | J36: 0 | K36: 0 | L36: 0 | M36: 0 | N36: 0 | O36: 0 | P36: 0 | Q36: 0 | R36: 0 | S36: 0 | U36: =G36-INDEX($C36:$G36,1,aux!$AL$1) -> 0 | V36: 0 | W36: 0 | X36: =+IF(INDEX($C36:$G36,1,aux!$AL$1)>0,(G36/INDEX($C36:$G36,1,aux!$AL$1))^(1/($G$3-INDEX($C$3:$G$3,1,aux!$AL$1)))-1,"n.d.") -> n.d. | Y36: =IF(INDEX($C36:$G36,1,aux!$AL$1)>0,(G36-INDEX($C36:$G36,1,aux!$AL$1))/INDEX($C36:$G36,1,aux!$AL$1),"n.d.") -> n.d. | AA36: =O36-INDEX($K36:$O36,1,aux!$AL$1) -> 0 | AB36: 0 | AC36: 0 | AD36: =+IF(INDEX($K36:$O36,1,aux!$AL$1)>0,(O36/INDEX($K36:$O36,1,aux!$AL$1))^(1/($O$3-INDEX($K$3:$O$3,1,aux!$AL$1)))-1,"n.d.") -> n.d. | AE36: =IF(INDEX($K36:$O36,1,aux!$AL$1)>0,(O36-INDEX($K36:$O36,1,aux!$AL$1))/INDEX($K36:$O36,1,aux!$AL$1),"n.d.") -> n.d. | AX36: 05
A37: 0506 | B37: Ossos e núcleos córneos, em bruto | C37: 0 | D37: 0 | E37: 0 | F37: 0 | G37: 0 | H37: 0 | I37: 0 | J37: 0 | K37: 0 | L37: 0 | M37: 0 | N37: 0 | O37: 0 | P37: 0 | Q37: 0 | R37: 0 | S37: 0 | U37: =G37-INDEX($C37:$G37,1,aux!$AL$1) -> 0 | V37: 0 | W37: 0 | X37: =+IF(INDEX($C37:$G37,1,aux!$AL$1)>0,(G37/INDEX($C37:$G37,1,aux!$AL$1))^(1/($G$3-INDEX($C$3:$G$3,1,aux!$AL$1)))-1,"n.d.") -> n.d. | Y37: =IF(INDEX($C37:$G37,1,aux!$AL$1)>0,(G37-INDEX($C37:$G37,1,aux!$AL$1))/INDEX($C37:$G37,1,aux!$AL$1),"n.d.") -> n.d. | AA37: =O37-INDEX($K37:$O37,1,aux!$AL$1) -> 0 | AB37: 0 | AC37: 0 | AD37: =+IF(INDEX($K37:$O37,1,aux!$AL$1)>0,(O37/INDEX($K37:$O37,1,aux!$AL$1))^(1/($O$3-INDEX($K$3:$O$3,1,aux!$AL$1)))-1,"n.d.") -> n.d. | AE37: =IF(INDEX($K37:$O37,1,aux!$AL$1)>0,(O37-INDEX($K37:$O37,1,aux!$AL$1))/INDEX($K37:$O37,1,aux!$AL$1),"n.d.") -> n.d. | AX37: 05
A38: 0507 | B38: Marfim, carapaças de tartaruga, etc. | C38: 0 | D38: 0 | E38: 0 | F38: 0 | G38: 0 | H38: 0 | I38: 0 | J38: 0 | K38: 5.537 | L38: 0.048 | M38: 0 | N38: 0 | O38: 0 | P38: 1.117 | Q38: 1.214235123e-05 | R38: 7.791036288e-06 | S38: 1.117 | U38: =G38-INDEX($C38:$G38,1,aux!$AL$1) -> 0 | V38: 0 | W38: 0 | X38: =+IF(INDEX($C38:$G38,1,aux!$AL$1)>0,(G38/INDEX($C38:$G38,1,aux!$AL$1))^(1/($G$3-INDEX($C$3:$G$3,1,aux!$AL$1)))-1,"n.d.") -> n.d. | Y38: =IF(INDEX($C38:$G38,1,aux!$AL$1)>0,(G38-INDEX($C38:$G38,1,aux!$AL$1))/INDEX($C38:$G38,1,aux!$AL$1),"n.d.") -> n.d. | AA38: =O38-INDEX($K38:$O38,1,aux!$AL$1) -> -5.537 | AB38: -0.0001574850807 | AC38: -0.0001086952745 | AD38: =+IF(INDEX($K38:$O38,1,aux!$AL$1)>0,(O38/INDEX($K38:$O38,1,aux!$AL$1))^(1/($O$3-INDEX($K$3:$O$3,1,aux!$AL$1)))-1,"n.d.") -> -1 | AE38: =IF(INDEX($K38:$O38,1,aux!$AL$1)>0,(O38-INDEX($K38:$O38,1,aux!$AL$1))/INDEX($K38:$O38,1,aux!$AL$1),"n.d.") -> -1 | AX38: 05
A39: 0510 | B39: Âmbar-cinzento, castóreo, algália e almíscar, etc. | C39: 0 | D39: 0 | E39: 0 | F39: 0 | G39: 0 | H39: 0 | I39: 0 | J39: 0 | K39: 0 | L39: 0 | M39: 0 | N39: 0 | O39: 0 | P39: 0 | Q39: 0 | R39: 0 | S39: 0 | U39: =G39-INDEX($C39:$G39,1,aux!$AL$1) -> 0 | V39: 0 | W39: 0 | X39: =+IF(INDEX($C39:$G39,1,aux!$AL$1)>0,(G39/INDEX($C39:$G39,1,aux!$AL$1))^(1/($G$3-INDEX($C$3:$G$3,1,aux!$AL$1)))-1,"n.d.") -> n.d. | Y39: =IF(INDEX($C39:$G39,1,aux!$AL$1)>0,(G39-INDEX($C39:$G39,1,aux!$AL$1))/INDEX($C39:$G39,1,aux!$AL$1),"n.d.") -> n.d. | AA39: =O39-INDEX($K39:$O39,1,aux!$AL$1) -> 0 | AB39: 0 | AC39: 0 | AD39: =+IF(INDEX($K39:$O39,1,aux!$AL$1)>0,(O39/INDEX($K39:$O39,1,aux!$AL$1))^(1/($O$3-INDEX($K$3:$O$3,1,aux!$AL$1)))-1,"n.d.") -> n.d. | AE39: =IF(INDEX($K39:$O39,1,aux!$AL$1)>0,(O39-INDEX($K39:$O39,1,aux!$AL$1))/INDEX($K39:$O39,1,aux!$AL$1),"n.d.") -> n.d. | AX39: 05
A40: 0511 | B40: Outros produtos de origem animal (exc. NC 0511 91) (a) | C40: 0 | D40: 0 | E40: 0.381 | F40: 0.138 | G40: 0 | H40: 0.1038 | I40: 3.461768271e-05 | J40: 2.300998336e-05 | K40: 0.36 | L40: 0.018 | M40: 0.004 | N40: 0 | O40: 7.51 | P40: 1.5784 | Q40: 1.715800106e-05 | R40: 1.10092853e-05 | S40: 1.4746 | U40: =G40-INDEX($C40:$G40,1,aux!$AL$1) -> 0 | V40: 0 | W40: 0 | X40: =+IF(INDEX($C40:$G40,1,aux!$AL$1)>0,(G40/INDEX($C40:$G40,1,aux!$AL$1))^(1/($G$3-INDEX($C$3:$G$3,1,aux!$AL$1)))-1,"n.d.") -> n.d. | Y40: =IF(INDEX($C40:$G40,1,aux!$AL$1)>0,(G40-INDEX($C40:$G40,1,aux!$AL$1))/INDEX($C40:$G40,1,aux!$AL$1),"n.d.") -> n.d. | AA40: =O40-INDEX($K40:$O40,1,aux!$AL$1) -> 7.15 | AB40: 0.0002033625297 | AC40: 0.0001403596194 | AD40: =+IF(INDEX($K40:$O40,1,aux!$AL$1)>0,(O40/INDEX($K40:$O40,1,aux!$AL$1))^(1/($O$3-INDEX($K$3:$O$3,1,aux!$AL$1)))-1,"n.d.") -> 1.137146821 | AE40: =IF(INDEX($K40:$O40,1,aux!$AL$1)>0,(O40-INDEX($K40:$O40,1,aux!$AL$1))/INDEX($K40:$O40,1,aux!$AL$1),"n.d.") -> 19.86111111 | AX40: 05
A41: 05SS | B41: Outros produtos de origem animal | C41: 0 | D41: 0 | E41: 0 | F41: 0 | G41: 0 | H41: 0 | I41: 0 | J41: 0 | K41: 0 | L41: 0 | M41: 0 | N41: 0 | O41: 0 | P41: 0 | Q41: 0 | R41: 0 | S41: 0 | U41: =G41-INDEX($C41:$G41,1,aux!$AL$1) -> 0 | V41: 0 | W41: 0 | X41: =+IF(INDEX($C41:$G41,1,aux!$AL$1)>0,(G41/INDEX($C41:$G41,1,aux!$AL$1))^(1/($G$3-INDEX($C$3:$G$3,1,aux!$AL$1)))-1,"n.d.") -> n.d. | Y41: =IF(INDEX($C41:$G41,1,aux!$AL$1)>0,(G41-INDEX($C41:$G41,1,aux!$AL$1))/INDEX($C41:$G41,1,aux!$AL$1),"n.d.") -> n.d. | AA41: =O41-INDEX($K41:$O41,1,aux!$AL$1) -> 0 | AB41: 0 | AC41: 0 | AD41: =+IF(INDEX($K41:$O41,1,aux!$AL$1)>0,(O41/INDEX($K41:$O41,1,aux!$AL$1))^(1/($O$3-INDEX($K$3:$O$3,1,aux!$AL$1)))-1,"n.d.") -> n.d. | AE41: =IF(INDEX($K41:$O41,1,aux!$AL$1)>0,(O41-INDEX($K41:$O41,1,aux!$AL$1))/INDEX($K41:$O41,1,aux!$AL$1),"n.d.") -> n.d. | AX41: 05
A42: 0601 | B42: Bolbos, tubérculos, raízes, etc. | C42: 0 | D42: 0 | E42: 0 | F42: 0 | G42: 0 | H42: 0 | I42: 0 | J42: 0 | K42: 0 | L42: 0 | M42: 0 | N42: 0 | O42: 0 | P42: 0 | Q42: 0 | R42: 0 | S42: 0 | U42: =G42-INDEX($C42:$G42,1,aux!$AL$1) -> 0 | V42: 0 | W42: 0 | X42: =+IF(INDEX($C42:$G42,1,aux!$AL$1)>0,(G42/INDEX($C42:$G42,1,aux!$AL$1))^(1/($G$3-INDEX($C$3:$G$3,1,aux!$AL$1)))-1,"n.d.") -> n.d. | Y42: =IF(INDEX($C42:$G42,1,aux!$AL$1)>0,(G42-INDEX($C42:$G42,1,aux!$AL$1))/INDEX($C42:$G42,1,aux!$AL$1),"n.d.") -> n.d. | AA42: =O42-INDEX($K42:$O42,1,aux!$AL$1) -> 0 | AB42: 0 | AC42: 0 | AD42: =+IF(INDEX($K42:$O42,1,aux!$AL$1)>0,(O42/INDEX($K42:$O42,1,aux!$AL$1))^(1/($O$3-INDEX($K$3:$O$3,1,aux!$AL$1)))-1,"n.d.") -> n.d. | AE42: =IF(INDEX($K42:$O42,1,aux!$AL$1)>0,(O42-INDEX($K42:$O42,1,aux!$AL$1))/INDEX($K42:$O42,1,aux!$AL$1),"n.d.") -> n.d. | AX42: 06
A43: 0602 | B43: Plantas vivas | C43: 0.192 | D43: 0.493 | E43: 16.512 | F43: 30.771 | G43: 0 | H43: 9.5936 | I43: 0.003199500972 | J43: 0.00212667222 | K43: 90.577 | L43: 113.336 | M43: 198.465 | N43: 340.626 | O43: 246.308 | P43: 197.8624 | Q43: 0.002150863703 | R43: 0.001380083383 | S43: 188.2688 | U43: =G43-INDEX($C43:$G43,1,aux!$AL$1) -> -0.192 | V43: 0.0001606554743 | W43: 0.0001182851609 | X43: =+IF(INDEX($C43:$G43,1,aux!$AL$1)>0,(G43/INDEX($C43:$G43,1,aux!$AL$1))^(1/($G$3-INDEX($C$3:$G$3,1,aux!$AL$1)))-1,"n.d.") -> -1 | Y43: =IF(INDEX($C43:$G43,1,aux!$AL$1)>0,(G43-INDEX($C43:$G43,1,aux!$AL$1))/INDEX($C43:$G43,1,aux!$AL$1),"n.d.") -> -1 | AA43: =O43-INDEX($K43:$O43,1,aux!$AL$1) -> 155.731 | AB43: 0.004429349667 | AC43: 0.003057111034 | AD43: =+IF(INDEX($K43:$O43,1,aux!$AL$1)>0,(O43/INDEX($K43:$O43,1,aux!$AL$1))^(1/($O$3-INDEX($K$3:$O$3,1,aux!$AL$1)))-1,"n.d.") -> 0.2841481971 | AE43: =IF(INDEX($K43:$O43,1,aux!$AL$1)>0,(O43-INDEX($K43:$O43,1,aux!$AL$1))/INDEX($K43:$O43,1,aux!$AL$1),"n.d.") -> 1.719321682 | AX43: 06
A44: 0603 | B44: Flores e seus botões | C44: 0 | D44: 0.997 | E44: 0 | F44: 0 | G44: 0 | H44: 0.1994 | I44: 6.650063519e-05 | J44: 4.420222237e-05 | K44: 404.75 | L44: 427.4 | M44: 375.026 | N44: 427.83 | O44: 343.966 | P44: 395.7944 | Q44: 0.004302483992 | R44: 0.002760652223 | S44: 395.595 | U44: =G44-INDEX($C44:$G44,1,aux!$AL$1) -> 0 | V44: 0 | W44: 0 | X44: =+IF(INDEX($C44:$G44,1,aux!$AL$1)>0,(G44/INDEX($C44:$G44,1,aux!$AL$1))^(1/($G$3-INDEX($C$3:$G$3,1,aux!$AL$1)))-1,"n.d.") -> n.d. | Y44: =IF(INDEX($C44:$G44,1,aux!$AL$1)>0,(G44-INDEX($C44:$G44,1,aux!$AL$1))/INDEX($C44:$G44,1,aux!$AL$1),"n.d.") -> n.d. | AA44: =O44-INDEX($K44:$O44,1,aux!$AL$1) -> -60.784 | AB44: -0.001728837484 | AC44: -0.001193233441 | AD44: =+IF(INDEX($K44:$O44,1,aux!$AL$1)>0,(O44/INDEX($K44:$O44,1,aux!$AL$1))^(1/($O$3-INDEX($K$3:$O$3,1,aux!$AL$1)))-1,"n.d.") -> -0.03986530236 | AE44: =IF(INDEX($K44:$O44,1,aux!$AL$1)>0,(O44-INDEX($K44:$O44,1,aux!$AL$1))/INDEX($K44:$O44,1,aux!$AL$1),"n.d.") -> -0.1501766523 | AX44: 06
A45: 0604 | B45: Folhagem, folhas, ramos e outras partes de plantas | C45: 0 | D45: 2.868 | E45: 4.454 | F45: 0 | G45: 0.078 | H45: 1.48 | I45: 0.0004935854568 | J45: 0.0003280806876 | K45: 0 | L45: 0 | M45: 0.348 | N45: 2.126 | O45: 36.016 | P45: 7.698 | Q45: 8.368112781e-05 | R45: 5.369328321e-05 | S45: 6.218 | U45: =G45-INDEX($C45:$G45,1,aux!$AL$1) -> 0.078 | V45: -6.526628645e-05 | W45: -4.805334661e-05 | X45: =+IF(INDEX($C45:$G45,1,aux!$AL$1)>0,(G45/INDEX($C45:$G45,1,aux!$AL$1))^(1/($G$3-INDEX($C$3:$G$3,1,aux!$AL$1)))-1,"n.d.") -> n.d. | Y45: =IF(INDEX($C45:$G45,1,aux!$AL$1)>0,(G45-INDEX($C45:$G45,1,aux!$AL$1))/INDEX($C45:$G45,1,aux!$AL$1),"n.d.") -> n.d. | AA45: =O45-INDEX($K45:$O45,1,aux!$AL$1) -> 36.016 | AB45: 0.001024378304 | AC45: 0.0007070198675 | AD45: =+IF(INDEX($K45:$O45,1,aux!$AL$1)>0,(O45/INDEX($K45:$O45,1,aux!$AL$1))^(1/($O$3-INDEX($K$3:$O$3,1,aux!$AL$1)))-1,"n.d.") -> n.d. | AE45: =IF(INDEX($K45:$O45,1,aux!$AL$1)>0,(O45-INDEX($K45:$O45,1,aux!$AL$1))/INDEX($K45:$O45,1,aux!$AL$1),"n.d.") -> n.d. | AX45: 06
A46: 06SS | B46: Plantas vivas e produtos de floricultura | C46: 0 | D46: 0 | E46: 0 | F46: 0 | G46: 0 | H46: 0 | I46: 0 | J46: 0 | K46: 0 | L46: 0 | M46: 0 | N46: 0 | O46: 0 | P46: 0 | Q46: 0 | R46: 0 | S46: 0 | U46: =G46-INDEX($C46:$G46,1,aux!$AL$1) -> 0 | V46: 0 | W46: 0 | X46: =+IF(INDEX($C46:$G46,1,aux!$AL$1)>0,(G46/INDEX($C46:$G46,1,aux!$AL$1))^(1/($G$3-INDEX($C$3:$G$3,1,aux!$AL$1)))-1,"n.d.") -> n.d. | Y46: =IF(INDEX($C46:$G46,1,aux!$AL$1)>0,(G46-INDEX($C46:$G46,1,aux!$AL$1))/INDEX($C46:$G46,1,aux!$AL$1),"n.d.") -> n.d. | AA46: =O46-INDEX($K46:$O46,1,aux!$AL$1) -> 0 | AB46: 0 | AC46: 0 | AD46: =+IF(INDEX($K46:$O46,1,aux!$AL$1)>0,(O46/INDEX($K46:$O46,1,aux!$AL$1))^(1/($O$3-INDEX($K$3:$O$3,1,aux!$AL$1)))-1,"n.d.") -> n.d. | AE46: =IF(INDEX($K46:$O46,1,aux!$AL$1)>0,(O46-INDEX($K46:$O46,1,aux!$AL$1))/INDEX($K46:$O46,1,aux!$AL$1),"n.d.") -> n.d. | AX46: 06
A47: 0701 | B47: Batatas, frescas ou refrigeradas | C47: 0 | D47: 0 | E47: 0 | F47: 0 | G47: 0 | H47: 0 | I47: 0 | J47: 0 | K47: 7.026 | L47: 5.342 | M47: 14.036 | N47: 438.8 | O47: 79.075 | P47: 108.8558 | Q47: 0.00118331724 | R47: 0.0007592654324 | S47: 108.8558 | U47: =G47-INDEX($C47:$G47,1,aux!$AL$1) -> 0 | V47: 0 | W47: 0 | X47: =+IF(INDEX($C47:$G47,1,aux!$AL$1)>0,(G47/INDEX($C47:$G47,1,aux!$AL$1))^(1/($G$3-INDEX($C$3:$G$3,1,aux!$AL$1)))-1,"n.d.") -> n.d. | Y47: =IF(INDEX($C47:$G47,1,aux!$AL$1)>0,(G47-INDEX($C47:$G47,1,aux!$AL$1))/INDEX($C47:$G47,1,aux!$AL$1),"n.d.") -> n.d. | AA47: =O47-INDEX($K47:$O47,1,aux!$AL$1) -> 72.049 | AB47: 0.002049240127 | AC47: 0.001414373457 | AD47: =+IF(INDEX($K47:$O47,1,aux!$AL$1)>0,(O47/INDEX($K47:$O47,1,aux!$AL$1))^(1/($O$3-INDEX($K$3:$O$3,1,aux!$AL$1)))-1,"n.d.") -> 0.8316089786 | AE47: =IF(INDEX($K47:$O47,1,aux!$AL$1)>0,(O47-INDEX($K47:$O47,1,aux!$AL$1))/INDEX($K47:$O47,1,aux!$AL$1),"n.d.") -> 10.25462568 | AX47: 07
A48: 0702 | B48: Tomates, frescos ou refrigerados | C48: 0 | D48: 0 | E48: 0 | F48: 0 | G48: 0 | H48: 0 | I48: 0 | J48: 0 | K48: 22.584 | L48: 24.274 | M48: 42.48 | N48: 46.751 | O48: 63.693 | P48: 39.9564 | Q48: 0.0004343461438 | R48: 0.0002786945052 | S48: 39.9564 | U48: =G48-INDEX($C48:$G48,1,aux!$AL$1) -> 0 | V48: 0 | W48: 0 | X48: =+IF(INDEX($C48:$G48,1,aux!$AL$1)>0,(G48/INDEX($C48:$G48,1,aux!$AL$1))^(1/($G$3-INDEX($C$3:$G$3,1,aux!$AL$1)))-1,"n.d.") -> n.d. | Y48: =IF(INDEX($C48:$G48,1,aux!$AL$1)>0,(G48-INDEX($C48:$G48,1,aux!$AL$1))/INDEX($C48:$G48,1,aux!$AL$1),"n.d.") -> n.d. | AA48: =O48-INDEX($K48:$O48,1,aux!$AL$1) -> 41.109 | AB48: 0.001169234998 | AC48: 0.0008069991041 | AD48: =+IF(INDEX($K48:$O48,1,aux!$AL$1)>0,(O48/INDEX($K48:$O48,1,aux!$AL$1))^(1/($O$3-INDEX($K$3:$O$3,1,aux!$AL$1)))-1,"n.d.") -> 0.2959036407 | AE48: =IF(INDEX($K48:$O48,1,aux!$AL$1)>0,(O48-INDEX($K48:$O48,1,aux!$AL$1))/INDEX($K48:$O48,1,aux!$AL$1),"n.d.") -> 1.820270988 | AX48: 07
A49: 0703 | B49: Cebolas, alhos, etc., frescos ou refrigerados | C49: 0 | D49: 0 | E49: 0 | F49: 0 | G49: 0 | H49: 0 | I49: 0 | J49: 0 | K49: 28.487 | L49: 42.669 | M49: 45.927 | N49: 38.235 | O49: 39.264 | P49: 38.9164 | Q49: 0.0004230408213 | R49: 0.0002714405413 | S49: 38.9164 | U49: =G49-INDEX($C49:$G49,1,aux!$AL$1) -> 0 | V49: 0 | W49: 0 | X49: =+IF(INDEX($C49:$G49,1,aux!$AL$1)>0,(G49/INDEX($C49:$G49,1,aux!$AL$1))^(1/($G$3-INDEX($C$3:$G$3,1,aux!$AL$1)))-1,"n.d.") -> n.d. | Y49: =IF(INDEX($C49:$G49,1,aux!$AL$1)>0,(G49-INDEX($C49:$G49,1,aux!$AL$1))/INDEX($C49:$G49,1,aux!$AL$1),"n.d.") -> n.d. | AA49: =O49-INDEX($K49:$O49,1,aux!$AL$1) -> 10.777 | AB49: 0.0003065227948 | AC49: 0.0002115602263 | AD49: =+IF(INDEX($K49:$O49,1,aux!$AL$1)>0,(O49/INDEX($K49:$O49,1,aux!$AL$1))^(1/($O$3-INDEX($K$3:$O$3,1,aux!$AL$1)))-1,"n.d.") -> 0.08352006056 | AE49: =IF(INDEX($K49:$O49,1,aux!$AL$1)>0,(O49-INDEX($K49:$O49,1,aux!$AL$1))/INDEX($K49:$O49,1,aux!$AL$1),"n.d.") -> 0.3783129147 | AX49: 07
A50: 0704 | B50: Couves, frescas ou refrigeradas | C50: 0 | D50: 0 | E50: 0 | F50: 0 | G50: 0 | H50: 0 | I50: 0 | J50: 0 | K50: 155.165 | L50: 248.264 | M50: 244.923 | N50: 229.861 | O50: 223.147 | P50: 220.272 | Q50: 0.002394467314 | R50: 0.001536389566 | S50: 220.272 | U50: =G50-INDEX($C50:$G50,1,aux!$AL$1) -> 0 | V50: 0 | W50: 0 | X50: =+IF(INDEX($C50:$G50,1,aux!$AL$1)>0,(G50/INDEX($C50:$G50,1,aux!$AL$1))^(1/($G$3-INDEX($C$3:$G$3,1,aux!$AL$1)))-1,"n.d.") -> n.d. | Y50: =IF(INDEX($C50:$G50,1,aux!$AL$1)>0,(G50-INDEX($C50:$G50,1,aux!$AL$1))/INDEX($C50:$G50,1,aux!$AL$1),"n.d.") -> n.d. | AA50: =O50-INDEX($K50:$O50,1,aux!$AL$1) -> 67.982 | AB50: 0.001933565244 | AC50: 0.001334535335 | AD50: =+IF(INDEX($K50:$O50,1,aux!$AL$1)>0,(O50/INDEX($K50:$O50,1,aux!$AL$1))^(1/($O$3-INDEX($K$3:$O$3,1,aux!$AL$1)))-1,"n.d.") -> 0.09508876079 | AE50: =IF(INDEX($K50:$O50,1,aux!$AL$1)>0,(O50-INDEX($K50:$O50,1,aux!$AL$1))/INDEX($K50:$O50,1,aux!$AL$1),"n.d.") -> 0.438127155 | AX50: 07
A51: 0705 | B51: Alfaces, frescas ou refrigeradas | C51: 0 | D51: 0 | E51: 0 | F51: 0 | G51: 0 | H51: 0 | I51: 0 | J51: 0 | K51: 1.079 | L51: 0.777 | M51: 0.451 | N51: 1.133 | O51: 0.709 | P51: 0.8298 | Q51: 9.020342928e-06 | R51: 5.787826241e-06 | S51: 0.8298 | U51: =G51-INDEX($C51:$G51,1,aux!$AL$1) -> 0 | V51: 0 | W51: 0 | X51: =+IF(INDEX($C51:$G51,1,aux!$AL$1)>0,(G51/INDEX($C51:$G51,1,aux!$AL$1))^(1/($G$3-INDEX($C$3:$G$3,1,aux!$AL$1)))-1,"n.d.") -> n.d. | Y51: =IF(INDEX($C51:$G51,1,aux!$AL$1)>0,(G51-INDEX($C51:$G51,1,aux!$AL$1))/INDEX($C51:$G51,1,aux!$AL$1),"n.d.") -> n.d. | AA51: =O51-INDEX($K51:$O51,1,aux!$AL$1) -> -0.37 | AB51: -1.052365539e-05 | AC51: -7.26336492e-06 | AD51: =+IF(INDEX($K51:$O51,1,aux!$AL$1)>0,(O51/INDEX($K51:$O51,1,aux!$AL$1))^(1/($O$3-INDEX($K$3:$O$3,1,aux!$AL$1)))-1,"n.d.") -> -0.09966072069 | AE51: =IF(INDEX($K51:$O51,1,aux!$AL$1)>0,(O51-INDEX($K51:$O51,1,aux!$AL$1))/INDEX($K51:$O51,1,aux!$AL$1),"n.d.") -> -0.3429101019 | AX51: 07
A52: 0706 | B52: Cenouras, nabos, beterrabas, etc., frescos ou refrigerados | C52: 0 | D52: 0 | E52: 0 | F52: 0 | G52: 0 | H52: 0 | I52: 0 | J52: 0 | K52: 27.323 | L52: 23.493 | M52: 29.543 | N52: 21.45 | O52: 62.461 | P52: 32.854 | Q52: 0.0003571394873 | R52: 0.0002291555114 | S52: 32.854 | U52: =G52-INDEX($C52:$G52,1,aux!$AL$1) -> 0 | V52: 0 | W52: 0 | X52: =+IF(INDEX($C52:$G52,1,aux!$AL$1)>0,(G52/INDEX($C52:$G52,1,aux!$AL$1))^(1/($G$3-INDEX($C$3:$G$3,1,aux!$AL$1)))-1,"n.d.") -> n.d. | Y52: =IF(INDEX($C52:$G52,1,aux!$AL$1)>0,(G52-INDEX($C52:$G52,1,aux!$AL$1))/INDEX($C52:$G52,1,aux!$AL$1),"n.d.") -> n.d. | AA52: =O52-INDEX($K52:$O52,1,aux!$AL$1) -> 35.138 | AB52: 0.0009994059539 | AC52: 0.0006897840988 | AD52: =+IF(INDEX($K52:$O52,1,aux!$AL$1)>0,(O52/INDEX($K52:$O52,1,aux!$AL$1))^(1/($O$3-INDEX($K$3:$O$3,1,aux!$AL$1)))-1,"n.d.") -> 0.2296177896 | AE52: =IF(INDEX($K52:$O52,1,aux!$AL$1)>0,(O52-INDEX($K52:$O52,1,aux!$AL$1))/INDEX($K52:$O52,1,aux!$AL$1),"n.d.") -> 1.286022765 | AX52: 07
A53: 0707 | B53: Pepinos e pepininhos, frescos ou refrigerados | C53: 0 | D53: 0 | E53: 0 | F53: 0 | G53: 0 | H53: 0 | I53: 0 | J53: 0 | K53: 1.93 | L53: 1.751 | M53: 3.718 | N53: 2.454 | O53: 2.703 | P53: 2.5112 | Q53: 2.729800574e-05 | R53: 1.751553297e-05 | S53: 2.5112 | U53: =G53-INDEX($C53:$G53,1,aux!$AL$1) -> 0 | V53: 0 | W53: 0 | X53: =+IF(INDEX($C53:$G53,1,aux!$AL$1)>0,(G53/INDEX($C53:$G53,1,aux!$AL$1))^(1/($G$3-INDEX($C$3:$G$3,1,aux!$AL$1)))-1,"n.d.") -> n.d. | Y53: =IF(INDEX($C53:$G53,1,aux!$AL$1)>0,(G53-INDEX($C53:$G53,1,aux!$AL$1))/INDEX($C53:$G53,1,aux!$AL$1),"n.d.") -> n.d. | AA53: =O53-INDEX($K53:$O53,1,aux!$AL$1) -> 0.773 | AB53: 2.198590706e-05 | AC53: 1.517454347e-05 | AD53: =+IF(INDEX($K53:$O53,1,aux!$AL$1)>0,(O53/INDEX($K53:$O53,1,aux!$AL$1))^(1/($O$3-INDEX($K$3:$O$3,1,aux!$AL$1)))-1,"n.d.") -> 0.08785793569 | AE53: =IF(INDEX($K53:$O53,1,aux!$AL$1)>0,(O53-INDEX($K53:$O53,1,aux!$AL$1))/INDEX($K53:$O53,1,aux!$AL$1),"n.d.") -> 0.4005181347 | AX53: 07
A54: 0708 | B54: Tomates preparados ou conservados | C54: 0 | D54: 0 | E54: 0 | F54: 0 | G54: 0 | H54: 0 | I54: 0 | J54: 0 | K54: 10.238 | L54: 8.162 | M54: 9.631 | N54: 6.545 | O54: 6.165 | P54: 8.1482 | Q54: 8.857502801e-05 | R54: 5.683341261e-05 | S54: 8.1482 | U54: =G54-INDEX($C54:$G54,1,aux!$AL$1) -> 0 | V54: 0 | W54: 0 | X54: =+IF(INDEX($C54:$G54,1,aux!$AL$1)>0,(G54/INDEX($C54:$G54,1,aux!$AL$1))^(1/($G$3-INDEX($C$3:$G$3,1,aux!$AL$1)))-1,"n.d.") -> n.d. | Y54: =IF(INDEX($C54:$G54,1,aux!$AL$1)>0,(G54-INDEX($C54:$G54,1,aux!$AL$1))/INDEX($C54:$G54,1,aux!$AL$1),"n.d.") -> n.d. | AA54: =O54-INDEX($K54:$O54,1,aux!$AL$1) -> -4.073 | AB54: -0.0001158455362 | AC54: -7.995590627e-05 | AD54: =+IF(INDEX($K54:$O54,1,aux!$AL$1)>0,(O54/INDEX($K54:$O54,1,aux!$AL$1))^(1/($O$3-INDEX($K$3:$O$3,1,aux!$AL$1)))-1,"n.d.") -> -0.1190941605 | AE54: =IF(INDEX($K54:$O54,1,aux!$AL$1)>0,(O54-INDEX($K54:$O54,1,aux!$AL$1))/INDEX($K54:$O54,1,aux!$AL$1),"n.d.") -> -0.3978316077 | AX54: 07
A55: 0709 | B55: Outros produtos hortícolas, frescos ou refrigerados | C55: 0.011 | D55: 0 | E55: 0 | F55: 0.009 | G55: 0 | H55: 0.004 | I55: 1.334014748e-06 | J55: 8.867045612e-07 | K55: 154.327 | L55: 218.025 | M55: 262.224 | N55: 401.203 | O55: 270.867 | P55: 261.3292 | Q55: 0.002840779707 | R55: 0.001822762113 | S55: 261.3252 | U55: =G55-INDEX($C55:$G55,1,aux!$AL$1) -> -0.011 | V55: 9.204219884e-06 | W55: 6.776754009e-06 | X55: =+IF(INDEX($C55:$G55,1,aux!$AL$1)>0,(G55/INDEX($C55:$G55,1,aux!$AL$1))^(1/($G$3-INDEX($C$3:$G$3,1,aux!$AL$1)))-1,"n.d.") -> -1 | Y55: =IF(INDEX($C55:$G55,1,aux!$AL$1)>0,(G55-INDEX($C55:$G55,1,aux!$AL$1))/INDEX($C55:$G55,1,aux!$AL$1),"n.d.") -> -1 | AA55: =O55-INDEX($K55:$O55,1,aux!$AL$1) -> 116.54 | AB55: 0.003314667023 | AC55: 0.002287763643 | AD55: =+IF(INDEX($K55:$O55,1,aux!$AL$1)>0,(O55/INDEX($K55:$O55,1,aux!$AL$1))^(1/($O$3-INDEX($K$3:$O$3,1,aux!$AL$1)))-1,"n.d.") -> 0.1510085401 | AE55: =IF(INDEX($K55:$O55,1,aux!$AL$1)>0,(O55-INDEX($K55:$O55,1,aux!$AL$1))/INDEX($K55:$O55,1,aux!$AL$1),"n.d.") -> 0.7551497794 | AX55: 07
A56: 0710 | B56: Produtos hortícolas congelados | C56: 11.077 | D56: 0 | E56: 0 | F56: 0 | G56: 0 | H56: 2.2154 | I56: 0.0007388440682 | J56: 0.0004911013212 | K56: 680.518 | L56: 684.698 | M56: 717.033 | N56: 707.436 | O56: 804.083 | P56: 718.7536 | Q56: 0.007813212765 | R56: 0.00501328145 | S56: 716.5382 | U56: =G56-INDEX($C56:$G56,1,aux!$AL$1) -> -11.077 | V56: 0.009268649423 | W56: 0.006824191287 | X56: =+IF(INDEX($C56:$G56,1,aux!$AL$1)>0,(G56/INDEX($C56:$G56,1,aux!$AL$1))^(1/($G$3-INDEX($C$3:$G$3,1,aux!$AL$1)))-1,"n.d.") -> -1 | Y56: =IF(INDEX($C56:$G56,1,aux!$AL$1)>0,(G56-INDEX($C56:$G56,1,aux!$AL$1))/INDEX($C56:$G56,1,aux!$AL$1),"n.d.") -> -1 | AA56: =O56-INDEX($K56:$O56,1,aux!$AL$1) -> 123.565 | AB56: 0.003514474264 | AC56: 0.002425669423 | AD56: =+IF(INDEX($K56:$O56,1,aux!$AL$1)>0,(O56/INDEX($K56:$O56,1,aux!$AL$1))^(1/($O$3-INDEX($K$3:$O$3,1,aux!$AL$1)))-1,"n.d.") -> 0.04259422698 | AE56: =IF(INDEX($K56:$O56,1,aux!$AL$1)>0,(O56-INDEX($K56:$O56,1,aux!$AL$1))/INDEX($K56:$O56,1,aux!$AL$1),"n.d.") -> 0.1815749179 | AX56: 07
A57: 0711 | B57: Produtos hortícolas conservados transitoriamente | C57: 0 | D57: 0 | E57: 0 | F57: 0 | G57: 0 | H57: 0 | I57: 0 | J57: 0 | K57: 11.149 | L57: 7.33 | M57: 3.38 | N57: 16.931 | O57: 25.635 | P57: 12.885 | Q57: 0.000140066424 | R57: 8.987242844e-05 | S57: 12.885 | U57: =G57-INDEX($C57:$G57,1,aux!$AL$1) -> 0 | V57: 0 | W57: 0 | X57: =+IF(INDEX($C57:$G57,1,aux!$AL$1)>0,(G57/INDEX($C57:$G57,1,aux!$AL$1))^(1/($G$3-INDEX($C$3:$G$3,1,aux!$AL$1)))-1,"n.d.") -> n.d. | Y57: =IF(INDEX($C57:$G57,1,aux!$AL$1)>0,(G57-INDEX($C57:$G57,1,aux!$AL$1))/INDEX($C57:$G57,1,aux!$AL$1),"n.d.") -> n.d. | AA57: =O57-INDEX($K57:$O57,1,aux!$AL$1) -> 14.486 | AB57: 0.0004120153295 | AC57: 0.000284370552 | AD57: =+IF(INDEX($K57:$O57,1,aux!$AL$1)>0,(O57/INDEX($K57:$O57,1,aux!$AL$1))^(1/($O$3-INDEX($K$3:$O$3,1,aux!$AL$1)))-1,"n.d.") -> 0.2314005737 | AE57: =IF(INDEX($K57:$O57,1,aux!$AL$1)>0,(O57-INDEX($K57:$O57,1,aux!$AL$1))/INDEX($K57:$O57,1,aux!$AL$1),"n.d.") -> 1.299309355 | AX57: 07
A58: 0712 | B58: Produtos hortícolas secos | C58: 0 | D58: 0 | E58: 0 | F58: 0.062 | G58: 0 | H58: 0.0124 | I58: 4.135445719e-06 | J58: 2.74878414e-06 | K58: 79.172 | L58: 76.478 | M58: 8.373 | N58: 77.76 | O58: 7.904 | P58: 49.9374 | Q58: 0.0005428446287 | R58: 0.0003483116343 | S58: 49.925 | U58: =G58-INDEX($C58:$G58,1,aux!$AL$1) -> 0 | V58: 0 | W58: 0 | X58: =+IF(INDEX($C58:$G58,1,aux!$AL$1)>0,(G58/INDEX($C58:$G58,1,aux!$AL$1))^(1/($G$3-INDEX($C$3:$G$3,1,aux!$AL$1)))-1,"n.d.") -> n.d. | Y58: =IF(INDEX($C58:$G58,1,aux!$AL$1)>0,(G58-INDEX($C58:$G58,1,aux!$AL$1))/INDEX($C58:$G58,1,aux!$AL$1),"n.d.") -> n.d. | AA58: =O58-INDEX($K58:$O58,1,aux!$AL$1) -> -71.268 | AB58: -0.002027026681 | AC58: -0.001399041868 | AD58: =+IF(INDEX($K58:$O58,1,aux!$AL$1)>0,(O58/INDEX($K58:$O58,1,aux!$AL$1))^(1/($O$3-INDEX($K$3:$O$3,1,aux!$AL$1)))-1,"n.d.") -> -0.4378932133 | AE58: =IF(INDEX($K58:$O58,1,aux!$AL$1)>0,(O58-INDEX($K58:$O58,1,aux!$AL$1))/INDEX($K58:$O58,1,aux!$AL$1),"n.d.") -> -0.9001667256 | AX58: 07
A59: 0713 | B59: Legumes de vagem, secos, em grão | C59: 0 | D59: 0 | E59: 0 | F59: 0 | G59: 0 | H59: 0 | I59: 0 | J59: 0 | K59: 280.642 | L59: 253.378 | M59: 370.546 | N59: 357.922 | O59: 338.784 | P59: 320.2544 | Q59: 0.003481326238 | R59: 0.002233763341 | S59: 320.2544 | U59: =G59-INDEX($C59:$G59,1,aux!$AL$1) -> 0 | V59: 0 | W59: 0 | X59: =+IF(INDEX($C59:$G59,1,aux!$AL$1)>0,(G59/INDEX($C59:$G59,1,aux!$AL$1))^(1/($G$3-INDEX($C$3:$G$3,1,aux!$AL$1)))-1,"n.d.") -> n.d. | Y59: =IF(INDEX($C59:$G59,1,aux!$AL$1)>0,(G59-INDEX($C59:$G59,1,aux!$AL$1))/INDEX($C59:$G59,1,aux!$AL$1),"n.d.") -> n.d. | AA59: =O59-INDEX($K59:$O59,1,aux!$AL$1) -> 58.142 | AB59: 0.001653692896 | AC59: 0.00114136909 | AD59: =+IF(INDEX($K59:$O59,1,aux!$AL$1)>0,(O59/INDEX($K59:$O59,1,aux!$AL$1))^(1/($O$3-INDEX($K$3:$O$3,1,aux!$AL$1)))-1,"n.d.") -> 0.04819614024 | AE59: =IF(INDEX($K59:$O59,1,aux!$AL$1)>0,(O59-INDEX($K59:$O59,1,aux!$AL$1))/INDEX($K59:$O59,1,aux!$AL$1),"n.d.") -> 0.2071749774 | AX59: 07
A60: 0714 | B60: Raízes de mandioca, de araruta, batata-doce, etc. | C60: 0 | D60: 0 | E60: 0 | F60: 0 | G60: 0 | H60: 0 | I60: 0 | J60: 0 | K60: 188.078 | L60: 53.418 | M60: 297.297 | N60: 267.715 | O60: 184.591 | P60: 198.2198 | Q60: 0.00215474882 | R60: 0.001382576235 | S60: 198.2198 | U60: =G60-INDEX($C60:$G60,1,aux!$AL$1) -> 0 | V60: 0 | W60: 0 | X60: =+IF(INDEX($C60:$G60,1,aux!$AL$1)>0,(G60/INDEX($C60:$G60,1,aux!$AL$1))^(1/($G$3-INDEX($C$3:$G$3,1,aux!$AL$1)))-1,"n.d.") -> n.d. | Y60: =IF(INDEX($C60:$G60,1,aux!$AL$1)>0,(G60-INDEX($C60:$G60,1,aux!$AL$1))/INDEX($C60:$G60,1,aux!$AL$1),"n.d.") -> n.d. | AA60: =O60-INDEX($K60:$O60,1,aux!$AL$1) -> -3.487 | AB60: -9.917834143e-05 | AC60: -6.845230669e-05 | AD60: =+IF(INDEX($K60:$O60,1,aux!$AL$1)>0,(O60/INDEX($K60:$O60,1,aux!$AL$1))^(1/($O$3-INDEX($K$3:$O$3,1,aux!$AL$1)))-1,"n.d.") -> -0.004667623525 | AE60: =IF(INDEX($K60:$O60,1,aux!$AL$1)>0,(O60-INDEX($K60:$O60,1,aux!$AL$1))/INDEX($K60:$O60,1,aux!$AL$1),"n.d.") -> -0.01854018014 | AX60: 07
A61: 07SS | B61: Produtos hortícolas, plantas, raízes e tubérculos, comestíveis | C61: 0 | D61: 0 | E61: 0 | F61: 0 | G61: 0 | H61: 0 | I61: 0 | J61: 0 | K61: 0 | L61: 0 | M61: 0 | N61: 0 | O61: 0 | P61: 0 | Q61: 0 | R61: 0 | S61: 0 | U61: =G61-INDEX($C61:$G61,1,aux!$AL$1) -> 0 | V61: 0 | W61: 0 | X61: =+IF(INDEX($C61:$G61,1,aux!$AL$1)>0,(G61/INDEX($C61:$G61,1,aux!$AL$1))^(1/($G$3-INDEX($C$3:$G$3,1,aux!$AL$1)))-1,"n.d.") -> n.d. | Y61: =IF(INDEX($C61:$G61,1,aux!$AL$1)>0,(G61-INDEX($C61:$G61,1,aux!$AL$1))/INDEX($C61:$G61,1,aux!$AL$1),"n.d.") -> n.d. | AA61: =O61-INDEX($K61:$O61,1,aux!$AL$1) -> 0 | AB61: 0 | AC61: 0 | AD61: =+IF(INDEX($K61:$O61,1,aux!$AL$1)>0,(O61/INDEX($K61:$O61,1,aux!$AL$1))^(1/($O$3-INDEX($K$3:$O$3,1,aux!$AL$1)))-1,"n.d.") -> n.d. | AE61: =IF(INDEX($K61:$O61,1,aux!$AL$1)>0,(O61-INDEX($K61:$O61,1,aux!$AL$1))/INDEX($K61:$O61,1,aux!$AL$1),"n.d.") -> n.d. | AX61: 07
A62: 0801 | B62: Cocos, castanhas do brasil e castanha de cajú | C62: 0 | D62: 0 | E62: 0.003 | F62: 0 | G62: 0 | H62: 0.0006 | I62: 2.001022122e-07 | J62: 1.330056842e-07 | K62: 26.662 | L62: 22.264 | M62: 31.657 | N62: 27.106 | O62: 24.469 | P62: 26.4316 | Q62: 0.0002873247724 | R62: 0.000184359494 | S62: 26.431 | U62: =G62-INDEX($C62:$G62,1,aux!$AL$1) -> 0 | V62: 0 | W62: 0 | X62: =+IF(INDEX($C62:$G62,1,aux!$AL$1)>0,(G62/INDEX($C62:$G62,1,aux!$AL$1))^(1/($G$3-INDEX($C$3:$G$3,1,aux!$AL$1)))-1,"n.d.") -> n.d. | Y62: =IF(INDEX($C62:$G62,1,aux!$AL$1)>0,(G62-INDEX($C62:$G62,1,aux!$AL$1))/INDEX($C62:$G62,1,aux!$AL$1),"n.d.") -> n.d. | AA62: =O62-INDEX($K62:$O62,1,aux!$AL$1) -> -2.193 | AB62: -6.237398989e-05 | AC62: -4.305016019e-05 | AD62: =+IF(INDEX($K62:$O62,1,aux!$AL$1)>0,(O62/INDEX($K62:$O62,1,aux!$AL$1))^(1/($O$3-INDEX($K$3:$O$3,1,aux!$AL$1)))-1,"n.d.") -> -0.02122949344 | AE62: =IF(INDEX($K62:$O62,1,aux!$AL$1)>0,(O62-INDEX($K62:$O62,1,aux!$AL$1))/INDEX($K62:$O62,1,aux!$AL$1),"n.d.") -> -0.08225189408 | AX62: 08
A63: 0802 | B63: Frutas de casca rija | C63: 0 | D63: 0.018 | E63: 0.38 | F63: 147.844 | G63: 52.881 | H63: 40.2246 | I63: 0.01341505241 | J63: 0.008916834073 | K63: 370.097 | L63: 234.493 | M63: 282.441 | N63: 735.969 | O63: 449.096 | P63: 414.4192 | Q63: 0.004504944926 | R63: 0.002890559557 | S63: 374.1946 | U63: =G63-INDEX($C63:$G63,1,aux!$AL$1) -> 52.881 | V63: -0.04424803197 | W63: -0.03257832079 | X63: =+IF(INDEX($C63:$G63,1,aux!$AL$1)>0,(G63/INDEX($C63:$G63,1,aux!$AL$1))^(1/($G$3-INDEX($C$3:$G$3,1,aux!$AL$1)))-1,"n.d.") -> n.d. | Y63: =IF(INDEX($C63:$G63,1,aux!$AL$1)>0,(G63-INDEX($C63:$G63,1,aux!$AL$1))/INDEX($C63:$G63,1,aux!$AL$1),"n.d.") -> n.d. | AA63: =O63-INDEX($K63:$O63,1,aux!$AL$1) -> 78.999 | AB63: 0.002246914194 | AC63: 0.001550806933 | AD63: =+IF(INDEX($K63:$O63,1,aux!$AL$1)>0,(O63/INDEX($K63:$O63,1,aux!$AL$1))^(1/($O$3-INDEX($K$3:$O$3,1,aux!$AL$1)))-1,"n.d.") -> 0.04955670045 | AE63: =IF(INDEX($K63:$O63,1,aux!$AL$1)>0,(O63-INDEX($K63:$O63,1,aux!$AL$1))/INDEX($K63:$O63,1,aux!$AL$1),"n.d.") -> 0.213454851 | AX63: 08
A64: 0803 | B64: Bananas, frescas ou secas | C64: 0 | D64: 0 | E64: 0 | F64: 0 | G64: 0 | H64: 0 | I64: 0 | J64: 0 | K64: 6.481 | L64: 6.128 | M64: 6.385 | N64: 5.747 | O64: 8.555 | P64: 6.6592 | Q64: 7.238884987e-05 | R64: 4.644768921e-05 | S64: 6.6592 | U64: =G64-INDEX($C64:$G64,1,aux!$AL$1) -> 0 | V64: 0 | W64: 0 | X64: =+IF(INDEX($C64:$G64,1,aux!$AL$1)>0,(G64/INDEX($C64:$G64,1,aux!$AL$1))^(1/($G$3-INDEX($C$3:$G$3,1,aux!$AL$1)))-1,"n.d.") -> n.d. | Y64: =IF(INDEX($C64:$G64,1,aux!$AL$1)>0,(G64-INDEX($C64:$G64,1,aux!$AL$1))/INDEX($C64:$G64,1,aux!$AL$1),"n.d.") -> n.d. | AA64: =O64-INDEX($K64:$O64,1,aux!$AL$1) -> 2.074 | AB64: 5.898935478e-05 | AC64: 4.071410499e-05 | AD64: =+IF(INDEX($K64:$O64,1,aux!$AL$1)>0,(O64/INDEX($K64:$O64,1,aux!$AL$1))^(1/($O$3-INDEX($K$3:$O$3,1,aux!$AL$1)))-1,"n.d.") -> 0.07187587958 | AE64: =IF(INDEX($K64:$O64,1,aux!$AL$1)>0,(O64-INDEX($K64:$O64,1,aux!$AL$1))/INDEX($K64:$O64,1,aux!$AL$1),"n.d.") -> 0.3200123438 | AX64: 08
A65: 0804 | B65: Tâmaras, figos, ananases, abacates, goiabas, mangas | C65: 0 | D65: 0 | E65: 0 | F65: 0 | G65: 0 | H65: 0 | I65: 0 | J65: 0 | K65: 9.582 | L65: 13.387 | M65: 16.044 | N65: 11.443 | O65: 16.28 | P65: 13.3472 | Q65: 0.0001450907702 | R65: 9.309625742e-05 | S65: 13.3472 | U65: =G65-INDEX($C65:$G65,1,aux!$AL$1) -> 0 | V65: 0 | W65: 0 | X65: =+IF(INDEX($C65:$G65,1,aux!$AL$1)>0,(G65/INDEX($C65:$G65,1,aux!$AL$1))^(1/($G$3-INDEX($C$3:$G$3,1,aux!$AL$1)))-1,"n.d.") -> n.d. | Y65: =IF(INDEX($C65:$G65,1,aux!$AL$1)>0,(G65-INDEX($C65:$G65,1,aux!$AL$1))/INDEX($C65:$G65,1,aux!$AL$1),"n.d.") -> n.d. | AA65: =O65-INDEX($K65:$O65,1,aux!$AL$1) -> 6.698 | AB65: 0.0001905066048 | AC65: 0.0001314865358 | AD65: =+IF(INDEX($K65:$O65,1,aux!$AL$1)>0,(O65/INDEX($K65:$O65,1,aux!$AL$1))^(1/($O$3-INDEX($K$3:$O$3,1,aux!$AL$1)))-1,"n.d.") -> 0.1416935789 | AE65: =IF(INDEX($K65:$O65,1,aux!$AL$1)>0,(O65-INDEX($K65:$O65,1,aux!$AL$1))/INDEX($K65:$O65,1,aux!$AL$1),"n.d.") -> 0.6990189939 | AX65: 08
A66: 0805 | B66: Citrinos, frescos ou secos | C66: 0 | D66: 0 | E66: 6.732 | F66: 0 | G66: 0.003 | H66: 1.347 | I66: 0.0004492294664 | J66: 0.000298597761 | K66: 93.288 | L66: 258.472 | M66: 437.574 | N66: 499.431 | O66: 663.018 | P66: 390.3566 | Q66: 0.004243372374 | R66: 0.002722723756 | S66: 389.0096 | U66: =G66-INDEX($C66:$G66,1,aux!$AL$1) -> 0.003 | V66: -2.510241786e-06 | W66: -1.848205639e-06 | X66: =+IF(INDEX($C66:$G66,1,aux!$AL$1)>0,(G66/INDEX($C66:$G66,1,aux!$AL$1))^(1/($G$3-INDEX($C$3:$G$3,1,aux!$AL$1)))-1,"n.d.") -> n.d. | Y66: =IF(INDEX($C66:$G66,1,aux!$AL$1)>0,(G66-INDEX($C66:$G66,1,aux!$AL$1))/INDEX($C66:$G66,1,aux!$AL$1),"n.d.") -> n.d. | AA66: =O66-INDEX($K66:$O66,1,aux!$AL$1) -> 569.73 | AB66: 0.01620443833 | AC66: 0.01118420783 | AD66: =+IF(INDEX($K66:$O66,1,aux!$AL$1)>0,(O66/INDEX($K66:$O66,1,aux!$AL$1))^(1/($O$3-INDEX($K$3:$O$3,1,aux!$AL$1)))-1,"n.d.") -> 0.6327695187 | AE66: =IF(INDEX($K66:$O66,1,aux!$AL$1)>0,(O66-INDEX($K66:$O66,1,aux!$AL$1))/INDEX($K66:$O66,1,aux!$AL$1),"n.d.") -> 6.107216362 | AX66: 08
A67: 0806 | B67: Uvas, frescas ou secas | C67: 0 | D67: 0 | E67: 0 | F67: 0 | G67: 0 | H67: 0 | I67: 0 | J67: 0 | K67: 14.349 | L67: 15.075 | M67: 14.991 | N67: 16.49 | O67: 12.354 | P67: 14.6518 | Q67: 0.0001592724277 | R67: 0.0001021957972 | S67: 14.6518 | U67: =G67-INDEX($C67:$G67,1,aux!$AL$1) -> 0 | V67: 0 | W67: 0 | X67: =+IF(INDEX($C67:$G67,1,aux!$AL$1)>0,(G67/INDEX($C67:$G67,1,aux!$AL$1))^(1/($G$3-INDEX($C$3:$G$3,1,aux!$AL$1)))-1,"n.d.") -> n.d. | Y67: =IF(INDEX($C67:$G67,1,aux!$AL$1)>0,(G67-INDEX($C67:$G67,1,aux!$AL$1))/INDEX($C67:$G67,1,aux!$AL$1),"n.d.") -> n.d. | AA67: =O67-INDEX($K67:$O67,1,aux!$AL$1) -> -1.995 | AB67: -5.674241215e-05 | AC67: -3.916327842e-05 | AD67: =+IF(INDEX($K67:$O67,1,aux!$AL$1)>0,(O67/INDEX($K67:$O67,1,aux!$AL$1))^(1/($O$3-INDEX($K$3:$O$3,1,aux!$AL$1)))-1,"n.d.") -> -0.03673342574 | AE67: =IF(INDEX($K67:$O67,1,aux!$AL$1)>0,(O67-INDEX($K67:$O67,1,aux!$AL$1))/INDEX($K67:$O67,1,aux!$AL$1),"n.d.") -> -0.139034079 | AX67: 08
A68: 0807 | B68: Melões, melancias e papaia, frescos | C68: 0 | D68: 0 | E68: 0 | F68: 0 | G68: 0 | H68: 0 | I68: 0 | J68: 0 | K68: 116.996 | L68: 82.683 | M68: 98.16 | N68: 97.65 | O68: 91.632 | P68: 97.4242 | Q68: 0.001059050004 | R68: 0.0006795304185 | S68: 97.4242 | U68: =G68-INDEX($C68:$G68,1,aux!$AL$1) -> 0 | V68: =IF($U$237<>0,U68/$U$237, "n.d.") -> 0 | W68: =IF($U$322<>0,U68/$U$322, "n.d.") -> 0 | X68: =+IF(INDEX($C68:$G68,1,aux!$AL$1)>0,(G68/INDEX($C68:$G68,1,aux!$AL$1))^(1/($G$3-INDEX($C$3:$G$3,1,aux!$AL$1)))-1,"n.d.") -> n.d. | Y68: =IF(INDEX($C68:$G68,1,aux!$AL$1)>0,(G68-INDEX($C68:$G68,1,aux!$AL$1))/INDEX($C68:$G68,1,aux!$AL$1),"n.d.") -> n.d. | AA68: =O68-INDEX($K68:$O68,1,aux!$AL$1) -> -25.364 | AB68: =IF($AA$237<>0,AA68/$AA$237, "n.d.") -> -0.0007214107978 | AC68: =IF($AA$322<>0,AA68/$AA$322, "n.d.") -> -0.0004979134806 | AD68: =+IF(INDEX($K68:$O68,1,aux!$AL$1)>0,(O68/INDEX($K68:$O68,1,aux!$AL$1))^(1/($O$3-INDEX($K$3:$O$3,1,aux!$AL$1)))-1,"n.d.") -> -0.05926124013 | AE68: =IF(INDEX($K68:$O68,1,aux!$AL$1)>0,(O68-INDEX($K68:$O68,1,aux!$AL$1))/INDEX($K68:$O68,1,aux!$AL$1),"n.d.") -> -0.2167937365 | AX68: 08
A69: 0808 | B69: Maçãs, peras e marmelos, frescos | C69: 0 | D69: 16.55 | E69: 0 | F69: 0 | G69: 98.418 | H69: 22.9936 | I69: 0.007668450378 | J69: 0.005097132499 | K69: 263.492 | L69: 153.361 | M69: 290.363 | N69: 147.42 | O69: 156.471 | P69: 202.2214 | Q69: 0.002198248223 | R69: 0.001410487257 | S69: 179.2278 | U69: =G69-INDEX($C69:$G69,1,aux!$AL$1) -> 98.418 | V69: -0.08235099205 | W69: -0.06063223418 | X69: =+IF(INDEX($C69:$G69,1,aux!$AL$1)>0,(G69/INDEX($C69:$G69,1,aux!$AL$1))^(1/($G$3-INDEX($C$3:$G$3,1,aux!$AL$1)))-1,"n.d.") -> n.d. | Y69: =IF(INDEX($C69:$G69,1,aux!$AL$1)>0,(G69-INDEX($C69:$G69,1,aux!$AL$1))/INDEX($C69:$G69,1,aux!$AL$1),"n.d.") -> n.d. | AA69: =O69-INDEX($K69:$O69,1,aux!$AL$1) -> -107.021 | AB69: -0.003043924657 | AC69: -0.002100898857 | AD69: =+IF(INDEX($K69:$O69,1,aux!$AL$1)>0,(O69/INDEX($K69:$O69,1,aux!$AL$1))^(1/($O$3-INDEX($K$3:$O$3,1,aux!$AL$1)))-1,"n.d.") -> -0.1221574939 | AE69: =IF(INDEX($K69:$O69,1,aux!$AL$1)>0,(O69-INDEX($K69:$O69,1,aux!$AL$1))/INDEX($K69:$O69,1,aux!$AL$1),"n.d.") -> -0.406164134 | AX69: 08
A70: 0809 | B70: Damascos, cerejas, pêssegos, etc., frescos | C70: 0 | D70: 0 | E70: 0 | F70: 0 | G70: 0 | H70: 0 | I70: 0 | J70: 0 | K70: 14.925 | L70: 14.902 | M70: 19.251 | N70: 121.554 | O70: 143.148 | P70: 62.756 | Q70: 0.0006821892514 | R70: 0.0004377209251 | S70: 62.756 | U70: =G70-INDEX($C70:$G70,1,aux!$AL$1) -> 0 | V70: 0 | W70: 0 | X70: =+IF(INDEX($C70:$G70,1,aux!$AL$1)>0,(G70/INDEX($C70:$G70,1,aux!$AL$1))^(1/($G$3-INDEX($C$3:$G$3,1,aux!$AL$1)))-1,"n.d.") -> n.d. | Y70: =IF(INDEX($C70:$G70,1,aux!$AL$1)>0,(G70-INDEX($C70:$G70,1,aux!$AL$1))/INDEX($C70:$G70,1,aux!$AL$1),"n.d.") -> n.d. | AA70: =O70-INDEX($K70:$O70,1,aux!$AL$1) -> 128.223 | AB70: 0.003646958553 | AC70: 0.002517109298 | AD70: =+IF(INDEX($K70:$O70,1,aux!$AL$1)>0,(O70/INDEX($K70:$O70,1,aux!$AL$1))^(1/($O$3-INDEX($K$3:$O$3,1,aux!$AL$1)))-1,"n.d.") -> 0.7598179218 | AE70: =IF(INDEX($K70:$O70,1,aux!$AL$1)>0,(O70-INDEX($K70:$O70,1,aux!$AL$1))/INDEX($K70:$O70,1,aux!$AL$1),"n.d.") -> 8.591155779 | AX70: 08
A71: 0810 | B71: Outras frutas frescas | C71: 0 | D71: 0 | E71: 0 | F71: 0 | G71: 0 | H71: 0 | I71: 0 | J71: 0 | K71: 144.415 | L71: 433.043 | M71: 792.554 | N71: 998.224 | O71: 553.302 | P71: 584.3076 | Q71: 0.006351717194 | R71: 0.00407552526 | S71: 584.3076 | U71: =G71-INDEX($C71:$G71,1,aux!$AL$1) -> 0 | V71: 0 | W71: 0 | X71: =+IF(INDEX($C71:$G71,1,aux!$AL$1)>0,(G71/INDEX($C71:$G71,1,aux!$AL$1))^(1/($G$3-INDEX($C$3:$G$3,1,aux!$AL$1)))-1,"n.d.") -> n.d. | Y71: =IF(INDEX($C71:$G71,1,aux!$AL$1)>0,(G71-INDEX($C71:$G71,1,aux!$AL$1))/INDEX($C71:$G71,1,aux!$AL$1),"n.d.") -> n.d. | AA71: =O71-INDEX($K71:$O71,1,aux!$AL$1) -> 408.887 | AB71: 0.01162969157 | AC71: 0.008026744573 | AD71: =+IF(INDEX($K71:$O71,1,aux!$AL$1)>0,(O71/INDEX($K71:$O71,1,aux!$AL$1))^(1/($O$3-INDEX($K$3:$O$3,1,aux!$AL$1)))-1,"n.d.") -> 0.3990636849 | AE71: =IF(INDEX($K71:$O71,1,aux!$AL$1)>0,(O71-INDEX($K71:$O71,1,aux!$AL$1))/INDEX($K71:$O71,1,aux!$AL$1),"n.d.") -> 2.83133331 | AX71: 08
A72: 0811 | B72: Frutas não cozidas ou cozidas em água ou vapor, congeladas | C72: 77.5 | D72: 59.698 | E72: 0 | F72: 42.63 | G72: 0 | H72: 35.9656 | I72: 0.01199466021 | J72: 0.007972715391 | K72: 533.482 | L72: 1378.081 | M72: 1330.803 | N72: 562.605 | O72: 527.543 | P72: 866.5028 | Q72: 0.009419320805 | R72: 0.006043826999 | S72: 830.5372 | U72: =G72-INDEX($C72:$G72,1,aux!$AL$1) -> -77.5 | V72: 0.06484791282 | W72: 0.04774531233 | X72: =+IF(INDEX($C72:$G72,1,aux!$AL$1)>0,(G72/INDEX($C72:$G72,1,aux!$AL$1))^(1/($G$3-INDEX($C$3:$G$3,1,aux!$AL$1)))-1,"n.d.") -> -1 | Y72: =IF(INDEX($C72:$G72,1,aux!$AL$1)>0,(G72-INDEX($C72:$G72,1,aux!$AL$1))/INDEX($C72:$G72,1,aux!$AL$1),"n.d.") -> -1 | AA72: =O72-INDEX($K72:$O72,1,aux!$AL$1) -> -5.939 | AB72: -0.0001689188901 | AC72: -0.0001165868223 | AD72: =+IF(INDEX($K72:$O72,1,aux!$AL$1)>0,(O72/INDEX($K72:$O72,1,aux!$AL$1))^(1/($O$3-INDEX($K$3:$O$3,1,aux!$AL$1)))-1,"n.d.") -> -0.002794825209 | AE72: =IF(INDEX($K72:$O72,1,aux!$AL$1)>0,(O72-INDEX($K72:$O72,1,aux!$AL$1))/INDEX($K72:$O72,1,aux!$AL$1),"n.d.") -> -0.01113252181 | AX72: 08
A73: 0812 | B73: Frutas conservadas transitoriamente | C73: 0 | D73: 0 | E73: 0 | F73: 0 | G73: 0 | H73: 0 | I73: 0 | J73: 0 | K73: 0.012 | L73: 0 | M73: 0 | N73: 0.4 | O73: 0 | P73: 0.0824 | Q73: 8.957294014e-07 | R73: 5.747371442e-07 | S73: 0.0824 | U73: =G73-INDEX($C73:$G73,1,aux!$AL$1) -> 0 | V73: 0 | W73: 0 | X73: =+IF(INDEX($C73:$G73,1,aux!$AL$1)>0,(G73/INDEX($C73:$G73,1,aux!$AL$1))^(1/($G$3-INDEX($C$3:$G$3,1,aux!$AL$1)))-1,"n.d.") -> n.d. | Y73: =IF(INDEX($C73:$G73,1,aux!$AL$1)>0,(G73-INDEX($C73:$G73,1,aux!$AL$1))/INDEX($C73:$G73,1,aux!$AL$1),"n.d.") -> n.d. | AA73: =O73-INDEX($K73:$O73,1,aux!$AL$1) -> -0.012 | AB73: -3.413077422e-07 | AC73: -2.35568592e-07 | AD73: =+IF(INDEX($K73:$O73,1,aux!$AL$1)>0,(O73/INDEX($K73:$O73,1,aux!$AL$1))^(1/($O$3-INDEX($K$3:$O$3,1,aux!$AL$1)))-1,"n.d.") -> -1 | AE73: =IF(INDEX($K73:$O73,1,aux!$AL$1)>0,(O73-INDEX($K73:$O73,1,aux!$AL$1))/INDEX($K73:$O73,1,aux!$AL$1),"n.d.") -> -1 | AX73: 08
A74: 0813 | B74: Outras frutas secas | C74: 0 | D74: 0 | E74: 0.029 | F74: 0.117 | G74: 0.304 | H74: 0.09 | I74: 3.001533183e-05 | J74: 1.995085263e-05 | K74: 7.216 | L74: 3.075 | M74: 13.071 | N74: 8.492 | O74: 7.644 | P74: 7.8996 | Q74: 8.58726211e-05 | R74: 5.509943622e-05 | S74: 7.8096 | U74: =G74-INDEX($C74:$G74,1,aux!$AL$1) -> 0.304 | V74: -0.0002543711677 | W74: -0.0001872848381 | X74: =+IF(INDEX($C74:$G74,1,aux!$AL$1)>0,(G74/INDEX($C74:$G74,1,aux!$AL$1))^(1/($G$3-INDEX($C$3:$G$3,1,aux!$AL$1)))-1,"n.d.") -> n.d. | Y74: =IF(INDEX($C74:$G74,1,aux!$AL$1)>0,(G74-INDEX($C74:$G74,1,aux!$AL$1))/INDEX($C74:$G74,1,aux!$AL$1),"n.d.") -> n.d. | AA74: =O74-INDEX($K74:$O74,1,aux!$AL$1) -> 0.428 | AB74: 1.217330947e-05 | AC74: 8.401946448e-06 | AD74: =+IF(INDEX($K74:$O74,1,aux!$AL$1)>0,(O74/INDEX($K74:$O74,1,aux!$AL$1))^(1/($O$3-INDEX($K$3:$O$3,1,aux!$AL$1)))-1,"n.d.") -> 0.01450931378 | AE74: =IF(INDEX($K74:$O74,1,aux!$AL$1)>0,(O74-INDEX($K74:$O74,1,aux!$AL$1))/INDEX($K74:$O74,1,aux!$AL$1),"n.d.") -> 0.05931263858 | AX74: 08
A75: 0814 | B75: Cascas de citrinos, melões ou melancias | C75: 0 | D75: 0 | E75: 0 | F75: 0 | G75: 0 | H75: 0 | I75: 0 | J75: 0 | K75: 0 | L75: 0 | M75: 0 | N75: 0 | O75: 0 | P75: 0 | Q75: 0 | R75: 0 | S75: 0 | U75: =G75-INDEX($C75:$G75,1,aux!$AL$1) -> 0 | V75: 0 | W75: 0 | X75: =+IF(INDEX($C75:$G75,1,aux!$AL$1)>0,(G75/INDEX($C75:$G75,1,aux!$AL$1))^(1/($G$3-INDEX($C$3:$G$3,1,aux!$AL$1)))-1,"n.d.") -> n.d. | Y75: =IF(INDEX($C75:$G75,1,aux!$AL$1)>0,(G75-INDEX($C75:$G75,1,aux!$AL$1))/INDEX($C75:$G75,1,aux!$AL$1),"n.d.") -> n.d. | AA75: =O75-INDEX($K75:$O75,1,aux!$AL$1) -> 0 | AB75: 0 | AC75: 0 | AD75: =+IF(INDEX($K75:$O75,1,aux!$AL$1)>0,(O75/INDEX($K75:$O75,1,aux!$AL$1))^(1/($O$3-INDEX($K$3:$O$3,1,aux!$AL$1)))-1,"n.d.") -> n.d. | AE75: =IF(INDEX($K75:$O75,1,aux!$AL$1)>0,(O75-INDEX($K75:$O75,1,aux!$AL$1))/INDEX($K75:$O75,1,aux!$AL$1),"n.d.") -> n.d. | AX75: =+LEFT(A75,2) -> 08
A76: 08SS | B76: Frutas; cascas de citrinos e de melões | C76: 0 | D76: 0 | E76: 0 | F76: 0 | G76: 0 | H76: 0 | I76: 0 | J76: 0 | K76: 0 | L76: 0 | M76: 0 | N76: 0 | O76: 0 | P76: 0 | Q76: 0 | R76: 0 | S76: 0 | U76: =G76-INDEX($C76:$G76,1,aux!$AL$1) -> 0 | V76: 0 | W76: 0 | X76: =+IF(INDEX($C76:$G76,1,aux!$AL$1)>0,(G76/INDEX($C76:$G76,1,aux!$AL$1))^(1/($G$3-INDEX($C$3:$G$3,1,aux!$AL$1)))-1,"n.d.") -> n.d. | Y76: =IF(INDEX($C76:$G76,1,aux!$AL$1)>0,(G76-INDEX($C76:$G76,1,aux!$AL$1))/INDEX($C76:$G76,1,aux!$AL$1),"n.d.") -> n.d. | AA76: =O76-INDEX($K76:$O76,1,aux!$AL$1) -> 0 | AB76: 0 | AC76: 0 | AD76: =+IF(INDEX($K76:$O76,1,aux!$AL$1)>0,(O76/INDEX($K76:$O76,1,aux!$AL$1))^(1/($O$3-INDEX($K$3:$O$3,1,aux!$AL$1)))-1,"n.d.") -> n.d. | AE76: =IF(INDEX($K76:$O76,1,aux!$AL$1)>0,(O76-INDEX($K76:$O76,1,aux!$AL$1))/INDEX($K76:$O76,1,aux!$AL$1),"n.d.") -> n.d. | AX76: 08
A77: 0901 | B77: Café | C77: 1.657 | D77: 39.989 | E77: 80.135 | F77: 5.834 | G77: 10.004 | H77: 27.5238 | I77: 0.009179288781 | J77: 0.00610136975 | K77: 1618.716 | L77: 2158.491 | M77: 3098.272 | N77: 3821.612 | O77: 4514.576 | P77: 3042.3334 | Q77: 0.03307169266 | R77: 0.02122017003 | S77: 3014.8096 | U77: =G77-INDEX($C77:$G77,1,aux!$AL$1) -> 8.347 | V77: -0.006984329397 | W77: -0.005142324156 | X77: =+IF(INDEX($C77:$G77,1,aux!$AL$1)>0,(G77/INDEX($C77:$G77,1,aux!$AL$1))^(1/($G$3-INDEX($C$3:$G$3,1,aux!$AL$1)))-1,"n.d.") -> 0.5675189279 | Y77: =IF(INDEX($C77:$G77,1,aux!$AL$1)>0,(G77-INDEX($C77:$G77,1,aux!$AL$1))/INDEX($C77:$G77,1,aux!$AL$1),"n.d.") -> 5.037417019 | AA77: =O77-INDEX($K77:$O77,1,aux!$AL$1) -> 2895.86 | AB77: 0.0823649532 | AC77: 0.05684780524 | AD77: =+IF(INDEX($K77:$O77,1,aux!$AL$1)>0,(O77/INDEX($K77:$O77,1,aux!$AL$1))^(1/($O$3-INDEX($K$3:$O$3,1,aux!$AL$1)))-1,"n.d.") -> 0.2922947419 | AE77: =IF(INDEX($K77:$O77,1,aux!$AL$1)>0,(O77-INDEX($K77:$O77,1,aux!$AL$1))/INDEX($K77:$O77,1,aux!$AL$1),"n.d.") -> 1.788985838 | AX77: 09
A78: 0902 | B78: Chá | C78: 70.996 | D78: 29.405 | E78: 5.684 | F78: 0.017 | G78: 1.303 | H78: 21.481 | I78: 0.007163992701 | J78: 0.00476182517 | K78: 76.215 | L78: 49.159 | M78: 58.347 | N78: 62.152 | O78: 49.225 | P78: 59.0196 | Q78: 0.000641572706 | R78: 0.0004116596645 | S78: 37.5386 | U78: =G78-INDEX($C78:$G78,1,aux!$AL$1) -> -69.693 | V78: 0.05831542694 | W78: 0.04293566519 | X78: =+IF(INDEX($C78:$G78,1,aux!$AL$1)>0,(G78/INDEX($C78:$G78,1,aux!$AL$1))^(1/($G$3-INDEX($C$3:$G$3,1,aux!$AL$1)))-1,"n.d.") -> -0.6319323624 | Y78: =IF(INDEX($C78:$G78,1,aux!$AL$1)>0,(G78-INDEX($C78:$G78,1,aux!$AL$1))/INDEX($C78:$G78,1,aux!$AL$1),"n.d.") -> -0.9816468533 | AA78: =O78-INDEX($K78:$O78,1,aux!$AL$1) -> -26.99 | AB78: -0.0007676579969 | AC78: -0.0005298330249 | AD78: =+IF(INDEX($K78:$O78,1,aux!$AL$1)>0,(O78/INDEX($K78:$O78,1,aux!$AL$1))^(1/($O$3-INDEX($K$3:$O$3,1,aux!$AL$1)))-1,"n.d.") -> -0.1035288501 | AE78: =IF(INDEX($K78:$O78,1,aux!$AL$1)>0,(O78-INDEX($K78:$O78,1,aux!$AL$1))/INDEX($K78:$O78,1,aux!$AL$1),"n.d.") -> -0.3541297645 | AX78: 09
A79: 0903 | B79: Mate | C79: 0 | D79: 0 | E79: 0 | F79: 0.19 | G79: 0.179 | H79: 0.0738 | I79: 2.46125721e-05 | J79: 1.635969915e-05 | K79: 1.438 | L79: 0.887 | M79: 1.578 | N79: 2.421 | O79: 1.709 | P79: 1.6066 | Q79: 1.746454923e-05 | R79: 1.120597932e-05 | S79: 1.5328 | U79: =G79-INDEX($C79:$G79,1,aux!$AL$1) -> 0.179 | V79: -0.0001497777599 | W79: -0.0001102762698 | X79: =+IF(INDEX($C79:$G79,1,aux!$AL$1)>0,(G79/INDEX($C79:$G79,1,aux!$AL$1))^(1/($G$3-INDEX($C$3:$G$3,1,aux!$AL$1)))-1,"n.d.") -> n.d. | Y79: =IF(INDEX($C79:$G79,1,aux!$AL$1)>0,(G79-INDEX($C79:$G79,1,aux!$AL$1))/INDEX($C79:$G79,1,aux!$AL$1),"n.d.") -> n.d. | AA79: =O79-INDEX($K79:$O79,1,aux!$AL$1) -> 0.271 | AB79: 7.707866512e-06 | AC79: 5.319924036e-06 | AD79: =+IF(INDEX($K79:$O79,1,aux!$AL$1)>0,(O79/INDEX($K79:$O79,1,aux!$AL$1))^(1/($O$3-INDEX($K$3:$O$3,1,aux!$AL$1)))-1,"n.d.") -> 0.04410889148 | AE79: =IF(INDEX($K79:$O79,1,aux!$AL$1)>0,(O79-INDEX($K79:$O79,1,aux!$AL$1))/INDEX($K79:$O79,1,aux!$AL$1),"n.d.") -> 0.1884561892 | AX79: 09
A80: 0904 | B80: Pimenta | C80: 0 | D80: 0 | E80: 0 | F80: 0 | G80: 0.002 | H80: 0.0004 | I80: 1.334014748e-07 | J80: 8.867045612e-08 | K80: 21.402 | L80: 24.981 | M80: 29.348 | N80: 48.831 | O80: 28.565 | P80: 30.6254 | Q80: 0.0003329134855 | R80: 0.0002136111036 | S80: 30.625 | U80: =G80-INDEX($C80:$G80,1,aux!$AL$1) -> 0.002 | V80: -1.673494524e-06 | W80: -1.232137093e-06 | X80: =+IF(INDEX($C80:$G80,1,aux!$AL$1)>0,(G80/INDEX($C80:$G80,1,aux!$AL$1))^(1/($G$3-INDEX($C$3:$G$3,1,aux!$AL$1)))-1,"n.d.") -> n.d. | Y80: =IF(INDEX($C80:$G80,1,aux!$AL$1)>0,(G80-INDEX($C80:$G80,1,aux!$AL$1))/INDEX($C80:$G80,1,aux!$AL$1),"n.d.") -> n.d. | AA80: =O80-INDEX($K80:$O80,1,aux!$AL$1) -> 7.163 | AB80: 0.0002037322798 | AC80: 0.0001406148187 | AD80: =+IF(INDEX($K80:$O80,1,aux!$AL$1)>0,(O80/INDEX($K80:$O80,1,aux!$AL$1))^(1/($O$3-INDEX($K$3:$O$3,1,aux!$AL$1)))-1,"n.d.") -> 0.07484283849 | AE80: =IF(INDEX($K80:$O80,1,aux!$AL$1)>0,(O80-INDEX($K80:$O80,1,aux!$AL$1))/INDEX($K80:$O80,1,aux!$AL$1),"n.d.") -> 0.3346883469 | AX80: 09
A81: 0905 | B81: Baunilha | C81: 0 | D81: 0 | E81: 0 | F81: 0 | G81: 0 | H81: 0 | I81: 0 | J81: 0 | K81: 0.077 | L81: 0 | M81: 0 | N81: 0.058 | O81: 0 | P81: 0.027 | Q81: 2.93503566e-07 | R81: 1.883240643e-07 | S81: 0.027 | U81: =G81-INDEX($C81:$G81,1,aux!$AL$1) -> 0 | V81: 0 | W81: 0 | X81: =+IF(INDEX($C81:$G81,1,aux!$AL$1)>0,(G81/INDEX($C81:$G81,1,aux!$AL$1))^(1/($G$3-INDEX($C$3:$G$3,1,aux!$AL$1)))-1,"n.d.") -> n.d. | Y81: =IF(INDEX($C81:$G81,1,aux!$AL$1)>0,(G81-INDEX($C81:$G81,1,aux!$AL$1))/INDEX($C81:$G81,1,aux!$AL$1),"n.d.") -> n.d. | AA81: =O81-INDEX($K81:$O81,1,aux!$AL$1) -> -0.077 | AB81: -2.190058013e-06 | AC81: -1.511565132e-06 | AD81: =+IF(INDEX($K81:$O81,1,aux!$AL$1)>0,(O81/INDEX($K81:$O81,1,aux!$AL$1))^(1/($O$3-INDEX($K$3:$O$3,1,aux!$AL$1)))-1,"n.d.") -> -1 | AE81: =IF(INDEX($K81:$O81,1,aux!$AL$1)>0,(O81-INDEX($K81:$O81,1,aux!$AL$1))/INDEX($K81:$O81,1,aux!$AL$1),"n.d.") -> -1 | AX81: 09
A82: 0906 | B82: Canela | C82: 0 | D82: 0 | E82: 0 | F82: 0 | G82: 0 | H82: 0 | I82: 0 | J82: 0 | K82: 23.694 | L82: 20.544 | M82: 23.889 | N82: 28.177 | O82: 26.608 | P82: 24.5824 | Q82: 0.0002672230393 | R82: 0.000171461388 | S82: 24.5824 | U82: =G82-INDEX($C82:$G82,1,aux!$AL$1) -> 0 | V82: 0 | W82: 0 | X82: =+IF(INDEX($C82:$G82,1,aux!$AL$1)>0,(G82/INDEX($C82:$G82,1,aux!$AL$1))^(1/($G$3-INDEX($C$3:$G$3,1,aux!$AL$1)))-1,"n.d.") -> n.d. | Y82: =IF(INDEX($C82:$G82,1,aux!$AL$1)>0,(G82-INDEX($C82:$G82,1,aux!$AL$1))/INDEX($C82:$G82,1,aux!$AL$1),"n.d.") -> n.d. | AA82: =O82-INDEX($K82:$O82,1,aux!$AL$1) -> 2.914 | AB82: 8.288089674e-05 | AC82: 5.720390643e-05 | AD82: =+IF(INDEX($K82:$O82,1,aux!$AL$1)>0,(O82/INDEX($K82:$O82,1,aux!$AL$1))^(1/($O$3-INDEX($K$3:$O$3,1,aux!$AL$1)))-1,"n.d.") -> 0.02942203917 | AE82: =IF(INDEX($K82:$O82,1,aux!$AL$1)>0,(O82-INDEX($K82:$O82,1,aux!$AL$1))/INDEX($K82:$O82,1,aux!$AL$1),"n.d.") -> 0.1229847219 | AX82: 09
A83: 0907 | B83: Cravo-da-índia | C83: 0 | D83: 0 | E83: 0 | F83: 0 | G83: 0 | H83: 0 | I83: 0 | J83: 0 | K83: 0.296 | L83: 0.389 | M83: 0.578 | N83: 0.973 | O83: 0.398 | P83: 0.5268 | Q83: 5.726580687e-06 | R83: 3.674411743e-06 | S83: 0.5268 | U83: =G83-INDEX($C83:$G83,1,aux!$AL$1) -> 0 | V83: 0 | W83: 0 | X83: =+IF(INDEX($C83:$G83,1,aux!$AL$1)>0,(G83/INDEX($C83:$G83,1,aux!$AL$1))^(1/($G$3-INDEX($C$3:$G$3,1,aux!$AL$1)))-1,"n.d.") -> n.d. | Y83: =IF(INDEX($C83:$G83,1,aux!$AL$1)>0,(G83-INDEX($C83:$G83,1,aux!$AL$1))/INDEX($C83:$G83,1,aux!$AL$1),"n.d.") -> n.d. | AA83: =O83-INDEX($K83:$O83,1,aux!$AL$1) -> 0.102 | AB83: 2.901115809e-06 | AC83: 2.002333032e-06 | AD83: =+IF(INDEX($K83:$O83,1,aux!$AL$1)>0,(O83/INDEX($K83:$O83,1,aux!$AL$1))^(1/($O$3-INDEX($K$3:$O$3,1,aux!$AL$1)))-1,"n.d.") -> 0.07683172066 | AE83: =IF(INDEX($K83:$O83,1,aux!$AL$1)>0,(O83-INDEX($K83:$O83,1,aux!$AL$1))/INDEX($K83:$O83,1,aux!$AL$1),"n.d.") -> 0.3445945946 | AX83: 09
A84: 0908 | B84: Noz-moscada, etc. | C84: 0 | D84: 0 | E84: 0 | F84: 0 | G84: 0 | H84: 0 | I84: 0 | J84: 0 | K84: 1.701 | L84: 1.588 | M84: 3.641 | N84: 4.709 | O84: 1.555 | P84: 2.6388 | Q84: 2.868508185e-05 | R84: 1.840553855e-05 | S84: 2.6388 | U84: =G84-INDEX($C84:$G84,1,aux!$AL$1) -> 0 | V84: 0 | W84: 0 | X84: =+IF(INDEX($C84:$G84,1,aux!$AL$1)>0,(G84/INDEX($C84:$G84,1,aux!$AL$1))^(1/($G$3-INDEX($C$3:$G$3,1,aux!$AL$1)))-1,"n.d.") -> n.d. | Y84: =IF(INDEX($C84:$G84,1,aux!$AL$1)>0,(G84-INDEX($C84:$G84,1,aux!$AL$1))/INDEX($C84:$G84,1,aux!$AL$1),"n.d.") -> n.d. | AA84: =O84-INDEX($K84:$O84,1,aux!$AL$1) -> -0.146 | AB84: -4.15257753e-06 | AC84: -2.866084536e-06 | AD84: =+IF(INDEX($K84:$O84,1,aux!$AL$1)>0,(O84/INDEX($K84:$O84,1,aux!$AL$1))^(1/($O$3-INDEX($K$3:$O$3,1,aux!$AL$1)))-1,"n.d.") -> -0.0221853946 | AE84: =IF(INDEX($K84:$O84,1,aux!$AL$1)>0,(O84-INDEX($K84:$O84,1,aux!$AL$1))/INDEX($K84:$O84,1,aux!$AL$1),"n.d.") -> -0.08583186361 | AX84: 09
A85: 0909 | B85: Sementes de anis, funcho, etc. | C85: 0 | D85: 0 | E85: 0 | F85: 0 | G85: 0.003 | H85: 0.0006 | I85: 2.001022122e-07 | J85: 1.330056842e-07 | K85: 6.785 | L85: 8.524 | M85: 13.048 | N85: 15.562 | O85: 13.537 | P85: 11.4912 | Q85: 0.0001249151177 | R85: 8.015072175e-05 | S85: 11.4906 | U85: =G85-INDEX($C85:$G85,1,aux!$AL$1) -> 0.003 | V85: -2.510241786e-06 | W85: -1.848205639e-06 | X85: =+IF(INDEX($C85:$G85,1,aux!$AL$1)>0,(G85/INDEX($C85:$G85,1,aux!$AL$1))^(1/($G$3-INDEX($C$3:$G$3,1,aux!$AL$1)))-1,"n.d.") -> n.d. | Y85: =IF(INDEX($C85:$G85,1,aux!$AL$1)>0,(G85-INDEX($C85:$G85,1,aux!$AL$1))/INDEX($C85:$G85,1,aux!$AL$1),"n.d.") -> n.d. | AA85: =O85-INDEX($K85:$O85,1,aux!$AL$1) -> 6.752 | AB85: 0.0001920424896 | AC85: 0.0001325465944 | AD85: =+IF(INDEX($K85:$O85,1,aux!$AL$1)>0,(O85/INDEX($K85:$O85,1,aux!$AL$1))^(1/($O$3-INDEX($K$3:$O$3,1,aux!$AL$1)))-1,"n.d.") -> 0.1884834659 | AE85: =IF(INDEX($K85:$O85,1,aux!$AL$1)>0,(O85-INDEX($K85:$O85,1,aux!$AL$1))/INDEX($K85:$O85,1,aux!$AL$1),"n.d.") -> 0.9951363301 | AX85: 09
A86: 0910 | B86: Gengibre, açafrão, tomilho, louro, etc. | C86: 0 | D86: 0 | E86: 0.003 | F86: 0.033 | G86: 0 | H86: 0.0072 | I86: 2.401226547e-06 | J86: 1.59606821e-06 | K86: 54.896 | L86: 90.422 | M86: 49.234 | N86: 38.16 | O86: 42.094 | P86: 54.9612 | Q86: 0.0005974558589 | R86: 0.0003833524652 | S86: 54.954 | U86: =G86-INDEX($C86:$G86,1,aux!$AL$1) -> 0 | V86: 0 | W86: 0 | X86: =+IF(INDEX($C86:$G86,1,aux!$AL$1)>0,(G86/INDEX($C86:$G86,1,aux!$AL$1))^(1/($G$3-INDEX($C$3:$G$3,1,aux!$AL$1)))-1,"n.d.") -> n.d. | Y86: =IF(INDEX($C86:$G86,1,aux!$AL$1)>0,(G86-INDEX($C86:$G86,1,aux!$AL$1))/INDEX($C86:$G86,1,aux!$AL$1),"n.d.") -> n.d. | AA86: =O86-INDEX($K86:$O86,1,aux!$AL$1) -> -12.802 | AB86: -0.0003641184763 | AC86: -0.0002513124262 | AD86: =+IF(INDEX($K86:$O86,1,aux!$AL$1)>0,(O86/INDEX($K86:$O86,1,aux!$AL$1))^(1/($O$3-INDEX($K$3:$O$3,1,aux!$AL$1)))-1,"n.d.") -> -0.06422837097 | AE86: =IF(INDEX($K86:$O86,1,aux!$AL$1)>0,(O86-INDEX($K86:$O86,1,aux!$AL$1))/INDEX($K86:$O86,1,aux!$AL$1),"n.d.") -> -0.2332046051 | AX86: 09
A87: 09SS | B87: Café, chá, mate e especiarias | C87: 0 | D87: 0 | E87: 0 | F87: 0 | G87: 0 | H87: 0 | I87: 0 | J87: 0 | K87: 0 | L87: 0 | M87: 0 | N87: 0 | O87: 0 | P87: 0 | Q87: 0 | R87: 0 | S87: 0 | U87: =G87-INDEX($C87:$G87,1,aux!$AL$1) -> 0 | V87: 0 | W87: 0 | X87: =+IF(INDEX($C87:$G87,1,aux!$AL$1)>0,(G87/INDEX($C87:$G87,1,aux!$AL$1))^(1/($G$3-INDEX($C$3:$G$3,1,aux!$AL$1)))-1,"n.d.") -> n.d. | Y87: =IF(INDEX($C87:$G87,1,aux!$AL$1)>0,(G87-INDEX($C87:$G87,1,aux!$AL$1))/INDEX($C87:$G87,1,aux!$AL$1),"n.d.") -> n.d. | AA87: =O87-INDEX($K87:$O87,1,aux!$AL$1) -> 0 | AB87: 0 | AC87: 0 | AD87: =+IF(INDEX($K87:$O87,1,aux!$AL$1)>0,(O87/INDEX($K87:$O87,1,aux!$AL$1))^(1/($O$3-INDEX($K$3:$O$3,1,aux!$AL$1)))-1,"n.d.") -> n.d. | AE87: =IF(INDEX($K87:$O87,1,aux!$AL$1)>0,(O87-INDEX($K87:$O87,1,aux!$AL$1))/INDEX($K87:$O87,1,aux!$AL$1),"n.d.") -> n.d. | AX87: 09
A88: 1001 | B88: Trigo e mistura trigo/centeio | C88: 0 | D88: 0 | E88: 0 | F88: 0 | G88: 0 | H88: 0 | I88: 0 | J88: 0 | K88: 1.03 | L88: 0.401 | M88: 1.425 | N88: 0.037 | O88: 0.185 | P88: 0.6156 | Q88: 6.691881304e-06 | R88: 4.293788665e-06 | S88: 0.6156 | U88: =G88-INDEX($C88:$G88,1,aux!$AL$1) -> 0 | V88: 0 | W88: 0 | X88: =+IF(INDEX($C88:$G88,1,aux!$AL$1)>0,(G88/INDEX($C88:$G88,1,aux!$AL$1))^(1/($G$3-INDEX($C$3:$G$3,1,aux!$AL$1)))-1,"n.d.") -> n.d. | Y88: =IF(INDEX($C88:$G88,1,aux!$AL$1)>0,(G88-INDEX($C88:$G88,1,aux!$AL$1))/INDEX($C88:$G88,1,aux!$AL$1),"n.d.") -> n.d. | AA88: =O88-INDEX($K88:$O88,1,aux!$AL$1) -> -0.845 | AB88: -2.403375352e-05 | AC88: -1.658795502e-05 | AD88: =+IF(INDEX($K88:$O88,1,aux!$AL$1)>0,(O88/INDEX($K88:$O88,1,aux!$AL$1))^(1/($O$3-INDEX($K$3:$O$3,1,aux!$AL$1)))-1,"n.d.") -> -0.3489960466 | AE88: =IF(INDEX($K88:$O88,1,aux!$AL$1)>0,(O88-INDEX($K88:$O88,1,aux!$AL$1))/INDEX($K88:$O88,1,aux!$AL$1),"n.d.") -> -0.8203883495 | AX88: 10
A89: 1002 | B89: Centeio | C89: 0 | D89: 0 | E89: 0 | F89: 0 | G89: 0 | H89: 0 | I89: 0 | J89: 0 | K89: 0 | L89: 0 | M89: 0 | N89: 0 | O89: 0 | P89: 0 | Q89: 0 | R89: 0 | S89: 0 | U89: =G89-INDEX($C89:$G89,1,aux!$AL$1) -> 0 | V89: 0 | W89: 0 | X89: =+IF(INDEX($C89:$G89,1,aux!$AL$1)>0,(G89/INDEX($C89:$G89,1,aux!$AL$1))^(1/($G$3-INDEX($C$3:$G$3,1,aux!$AL$1)))-1,"n.d.") -> n.d. | Y89: =IF(INDEX($C89:$G89,1,aux!$AL$1)>0,(G89-INDEX($C89:$G89,1,aux!$AL$1))/INDEX($C89:$G89,1,aux!$AL$1),"n.d.") -> n.d. | AA89: =O89-INDEX($K89:$O89,1,aux!$AL$1) -> 0 | AB89: 0 | AC89: 0 | AD89: =+IF(INDEX($K89:$O89,1,aux!$AL$1)>0,(O89/INDEX($K89:$O89,1,aux!$AL$1))^(1/($O$3-INDEX($K$3:$O$3,1,aux!$AL$1)))-1,"n.d.") -> n.d. | AE89: =IF(INDEX($K89:$O89,1,aux!$AL$1)>0,(O89-INDEX($K89:$O89,1,aux!$AL$1))/INDEX($K89:$O89,1,aux!$AL$1),"n.d.") -> n.d. | AX89: 10
A90: 1003 | B90: Cevada | C90: 0 | D90: 0 | E90: 0 | F90: 0 | G90: 0 | H90: 0 | I90: 0 | J90: 0 | K90: 1.961 | L90: 0.987 | M90: 2.381 | N90: 0.492 | O90: 1.439 | P90: 1.452 | Q90: 1.578396955e-05 | R90: 1.012764968e-05 | S90: 1.452 | U90: =G90-INDEX($C90:$G90,1,aux!$AL$1) -> 0 | V90: 0 | W90: 0 | X90: =+IF(INDEX($C90:$G90,1,aux!$AL$1)>0,(G90/INDEX($C90:$G90,1,aux!$AL$1))^(1/($G$3-INDEX($C$3:$G$3,1,aux!$AL$1)))-1,"n.d.") -> n.d. | Y90: =IF(INDEX($C90:$G90,1,aux!$AL$1)>0,(G90-INDEX($C90:$G90,1,aux!$AL$1))/INDEX($C90:$G90,1,aux!$AL$1),"n.d.") -> n.d. | AA90: =O90-INDEX($K90:$O90,1,aux!$AL$1) -> -0.522 | AB90: -1.484688679e-05 | AC90: -1.024723375e-05 | AD90: =+IF(INDEX($K90:$O90,1,aux!$AL$1)>0,(O90/INDEX($K90:$O90,1,aux!$AL$1))^(1/($O$3-INDEX($K$3:$O$3,1,aux!$AL$1)))-1,"n.d.") -> -0.07445870591 | AE90: =IF(INDEX($K90:$O90,1,aux!$AL$1)>0,(O90-INDEX($K90:$O90,1,aux!$AL$1))/INDEX($K90:$O90,1,aux!$AL$1),"n.d.") -> -0.266190719 | AX90: 10
A91: 1004 | B91: Aveia | C91: 0 | D91: 0 | E91: 0 | F91: 0 | G91: 0 | H91: 0 | I91: 0 | J91: 0 | K91: 0.046 | L91: 0.005 | M91: 0 | N91: 0 | O91: 0.002 | P91: 0.0106 | Q91: 1.152273259e-07 | R91: 7.393463263e-08 | S91: 0.0106 | U91: =G91-INDEX($C91:$G91,1,aux!$AL$1) -> 0 | V91: 0 | W91: 0 | X91: =+IF(INDEX($C91:$G91,1,aux!$AL$1)>0,(G91/INDEX($C91:$G91,1,aux!$AL$1))^(1/($G$3-INDEX($C$3:$G$3,1,aux!$AL$1)))-1,"n.d.") -> n.d. | Y91: =IF(INDEX($C91:$G91,1,aux!$AL$1)>0,(G91-INDEX($C91:$G91,1,aux!$AL$1))/INDEX($C91:$G91,1,aux!$AL$1),"n.d.") -> n.d. | AA91: =O91-INDEX($K91:$O91,1,aux!$AL$1) -> -0.044 | AB91: -1.251461722e-06 | AC91: -8.63751504e-07 | AD91: =+IF(INDEX($K91:$O91,1,aux!$AL$1)>0,(O91/INDEX($K91:$O91,1,aux!$AL$1))^(1/($O$3-INDEX($K$3:$O$3,1,aux!$AL$1)))-1,"n.d.") -> -0.5433662145 | AE91: =IF(INDEX($K91:$O91,1,aux!$AL$1)>0,(O91-INDEX($K91:$O91,1,aux!$AL$1))/INDEX($K91:$O91,1,aux!$AL$1),"n.d.") -> -0.9565217391 | AX91: 10
A92: 1005 | B92: Milho | C92: 0 | D92: 0 | E92: 0 | F92: 0 | G92: 0 | H92: 0 | I92: 0 | J92: 0 | K92: 1.868 | L92: 3.986 | M92: 1.584 | N92: 9.553 | O92: 6.612 | P92: 4.7206 | Q92: 5.131529384e-05 | R92: 3.29260214e-05 | S92: 4.7206 | U92: =G92-INDEX($C92:$G92,1,aux!$AL$1) -> 0 | V92: 0 | W92: 0 | X92: =+IF(INDEX($C92:$G92,1,aux!$AL$1)>0,(G92/INDEX($C92:$G92,1,aux!$AL$1))^(1/($G$3-INDEX($C$3:$G$3,1,aux!$AL$1)))-1,"n.d.") -> n.d. | Y92: =IF(INDEX($C92:$G92,1,aux!$AL$1)>0,(G92-INDEX($C92:$G92,1,aux!$AL$1))/INDEX($C92:$G92,1,aux!$AL$1),"n.d.") -> n.d. | AA92: =O92-INDEX($K92:$O92,1,aux!$AL$1) -> 4.744 | AB92: 0.0001349303274 | AC92: 9.312811671e-05 | AD92: =+IF(INDEX($K92:$O92,1,aux!$AL$1)>0,(O92/INDEX($K92:$O92,1,aux!$AL$1))^(1/($O$3-INDEX($K$3:$O$3,1,aux!$AL$1)))-1,"n.d.") -> 0.3716363732 | AE92: =IF(INDEX($K92:$O92,1,aux!$AL$1)>0,(O92-INDEX($K92:$O92,1,aux!$AL$1))/INDEX($K92:$O92,1,aux!$AL$1),"n.d.") -> 2.539614561 | AX92: 10
A93: 1006 | B93: Arroz | C93: 0 | D93: 0 | E93: 0 | F93: 0.211 | G93: 0 | H93: 0.0422 | I93: 1.407385559e-05 | J93: 9.35473312e-06 | K93: 328.285 | L93: 369.429 | M93: 533.361 | N93: 410.905 | O93: 602.706 | P93: 448.9372 | Q93: 0.00488017293 | R93: 0.003131321411 | S93: 448.895 | U93: =G93-INDEX($C93:$G93,1,aux!$AL$1) -> 0 | V93: 0 | W93: 0 | X93: =+IF(INDEX($C93:$G93,1,aux!$AL$1)>0,(G93/INDEX($C93:$G93,1,aux!$AL$1))^(1/($G$3-INDEX($C$3:$G$3,1,aux!$AL$1)))-1,"n.d.") -> n.d. | Y93: =IF(INDEX($C93:$G93,1,aux!$AL$1)>0,(G93-INDEX($C93:$G93,1,aux!$AL$1))/INDEX($C93:$G93,1,aux!$AL$1),"n.d.") -> n.d. | AA93: =O93-INDEX($K93:$O93,1,aux!$AL$1) -> 274.421 | AB93: 0.007805167661 | AC93: 0.005387080716 | AD93: =+IF(INDEX($K93:$O93,1,aux!$AL$1)>0,(O93/INDEX($K93:$O93,1,aux!$AL$1))^(1/($O$3-INDEX($K$3:$O$3,1,aux!$AL$1)))-1,"n.d.") -> 0.1640285139 | AE93: =IF(INDEX($K93:$O93,1,aux!$AL$1)>0,(O93-INDEX($K93:$O93,1,aux!$AL$1))/INDEX($K93:$O93,1,aux!$AL$1),"n.d.") -> 0.8359230547 | AX93: 10
A94: 1007 | B94: Sorgo de grão | C94: 0 | D94: 0 | E94: 0 | F94: 0 | G94: 0 | H94: 0 | I94: 0 | J94: 0 | K94: 0 | L94: 0 | M94: 0 | N94: 0 | O94: 0 | P94: 0 | Q94: 0 | R94: 0 | S94: 0 | U94: =G94-INDEX($C94:$G94,1,aux!$AL$1) -> 0 | V94: 0 | W94: 0 | X94: =+IF(INDEX($C94:$G94,1,aux!$AL$1)>0,(G94/INDEX($C94:$G94,1,aux!$AL$1))^(1/($G$3-INDEX($C$3:$G$3,1,aux!$AL$1)))-1,"n.d.") -> n.d. | Y94: =IF(INDEX($C94:$G94,1,aux!$AL$1)>0,(G94-INDEX($C94:$G94,1,aux!$AL$1))/INDEX($C94:$G94,1,aux!$AL$1),"n.d.") -> n.d. | AA94: =O94-INDEX($K94:$O94,1,aux!$AL$1) -> 0 | AB94: 0 | AC94: 0 | AD94: =+IF(INDEX($K94:$O94,1,aux!$AL$1)>0,(O94/INDEX($K94:$O94,1,aux!$AL$1))^(1/($O$3-INDEX($K$3:$O$3,1,aux!$AL$1)))-1,"n.d.") -> n.d. | AE94: =IF(INDEX($K94:$O94,1,aux!$AL$1)>0,(O94-INDEX($K94:$O94,1,aux!$AL$1))/INDEX($K94:$O94,1,aux!$AL$1),"n.d.") -> n.d. | AX94: 10
A95: 1008 | B95: Trigo mourisco, painço e outros cereais | C95: 0 | D95: 0 | E95: 0.004 | F95: 0.005 | G95: 0 | H95: 0.0018 | I95: 6.003066366e-07 | J95: 3.990170525e-07 | K95: 0.842 | L95: 5.517 | M95: 1.251 | N95: 1.361 | O95: 2.243 | P95: 2.2428 | Q95: 2.438036288e-05 | R95: 1.564345227e-05 | S95: 2.241 | U95: =G95-INDEX($C95:$G95,1,aux!$AL$1) -> 0 | V95: 0 | W95: 0 | X95: =+IF(INDEX($C95:$G95,1,aux!$AL$1)>0,(G95/INDEX($C95:$G95,1,aux!$AL$1))^(1/($G$3-INDEX($C$3:$G$3,1,aux!$AL$1)))-1,"n.d.") -> n.d. | Y95: =IF(INDEX($C95:$G95,1,aux!$AL$1)>0,(G95-INDEX($C95:$G95,1,aux!$AL$1))/INDEX($C95:$G95,1,aux!$AL$1),"n.d.") -> n.d. | AA95: =O95-INDEX($K95:$O95,1,aux!$AL$1) -> 1.401 | AB95: 3.984767891e-05 | AC95: 2.750263312e-05 | AD95: =+IF(INDEX($K95:$O95,1,aux!$AL$1)>0,(O95/INDEX($K95:$O95,1,aux!$AL$1))^(1/($O$3-INDEX($K$3:$O$3,1,aux!$AL$1)))-1,"n.d.") -> 0.2775540866 | AE95: =IF(INDEX($K95:$O95,1,aux!$AL$1)>0,(O95-INDEX($K95:$O95,1,aux!$AL$1))/INDEX($K95:$O95,1,aux!$AL$1),"n.d.") -> 1.663895487 | AX95: 10
A96: 10SS | B96: Cereais | C96: 0 | D96: 0 | E96: 0 | F96: 0 | G96: 0 | H96: 0 | I96: 0 | J96: 0 | K96: 0 | L96: 0 | M96: 0 | N96: 0 | O96: 0 | P96: 0 | Q96: 0 | R96: 0 | S96: 0 | U96: =G96-INDEX($C96:$G96,1,aux!$AL$1) -> 0 | V96: 0 | W96: 0 | X96: =+IF(INDEX($C96:$G96,1,aux!$AL$1)>0,(G96/INDEX($C96:$G96,1,aux!$AL$1))^(1/($G$3-INDEX($C$3:$G$3,1,aux!$AL$1)))-1,"n.d.") -> n.d. | Y96: =IF(INDEX($C96:$G96,1,aux!$AL$1)>0,(G96-INDEX($C96:$G96,1,aux!$AL$1))/INDEX($C96:$G96,1,aux!$AL$1),"n.d.") -> n.d. | AA96: =O96-INDEX($K96:$O96,1,aux!$AL$1) -> 0 | AB96: 0 | AC96: 0 | AD96: =+IF(INDEX($K96:$O96,1,aux!$AL$1)>0,(O96/INDEX($K96:$O96,1,aux!$AL$1))^(1/($O$3-INDEX($K$3:$O$3,1,aux!$AL$1)))-1,"n.d.") -> n.d. | AE96: =IF(INDEX($K96:$O96,1,aux!$AL$1)>0,(O96-INDEX($K96:$O96,1,aux!$AL$1))/INDEX($K96:$O96,1,aux!$AL$1),"n.d.") -> n.d. | AX96: 10
A97: 1101 | B97: Farinhas de trigo ou trigo/centeio | C97: 0 | D97: 0 | E97: 0 | F97: 0 | G97: 0 | H97: 0 | I97: 0 | J97: 0 | K97: 65.598 | L97: 55.17 | M97: 92.329 | N97: 82.482 | O97: 86.11 | P97: 76.3378 | Q97: 0.0008298302415 | R97: 0.0005324535093 | S97: 76.3378 | U97: =G97-INDEX($C97:$G97,1,aux!$AL$1) -> 0 | V97: 0 | W97: 0 | X97: =+IF(INDEX($C97:$G97,1,aux!$AL$1)>0,(G97/INDEX($C97:$G97,1,aux!$AL$1))^(1/($G$3-INDEX($C$3:$G$3,1,aux!$AL$1)))-1,"n.d.") -> n.d. | Y97: =IF(INDEX($C97:$G97,1,aux!$AL$1)>0,(G97-INDEX($C97:$G97,1,aux!$AL$1))/INDEX($C97:$G97,1,aux!$AL$1),"n.d.") -> n.d. | AA97: =O97-INDEX($K97:$O97,1,aux!$AL$1) -> 20.512 | AB97: 0.0005834087007 | AC97: 0.0004026652466 | AD97: =+IF(INDEX($K97:$O97,1,aux!$AL$1)>0,(O97/INDEX($K97:$O97,1,aux!$AL$1))^(1/($O$3-INDEX($K$3:$O$3,1,aux!$AL$1)))-1,"n.d.") -> 0.07038680726 | AE97: =IF(INDEX($K97:$O97,1,aux!$AL$1)>0,(O97-INDEX($K97:$O97,1,aux!$AL$1))/INDEX($K97:$O97,1,aux!$AL$1),"n.d.") -> 0.3126924601 | AX97: 11
A98: 1102 | B98: Outras farinhas de cereais | C98: 0 | D98: 0 | E98: 1.512 | F98: 1.512 | G98: 1.574 | H98: 0.9196 | I98: 0.0003066899906 | J98: 0.0002038533786 | K98: 75.322 | L98: 61.891 | M98: 90.488 | N98: 88.205 | O98: 81.609 | P98: 79.503 | Q98: 0.0008642375558 | R98: 0.0005545306696 | S98: 78.5834 | U98: =G98-INDEX($C98:$G98,1,aux!$AL$1) -> 1.574 | V98: -0.001317040191 | W98: -0.0009696918918 | X98: =+IF(INDEX($C98:$G98,1,aux!$AL$1)>0,(G98/INDEX($C98:$G98,1,aux!$AL$1))^(1/($G$3-INDEX($C$3:$G$3,1,aux!$AL$1)))-1,"n.d.") -> n.d. | Y98: =IF(INDEX($C98:$G98,1,aux!$AL$1)>0,(G98-INDEX($C98:$G98,1,aux!$AL$1))/INDEX($C98:$G98,1,aux!$AL$1),"n.d.") -> n.d. | AA98: =O98-INDEX($K98:$O98,1,aux!$AL$1) -> 6.287 | AB98: 0.0001788168146 | AC98: 0.0001234183115 | AD98: =+IF(INDEX($K98:$O98,1,aux!$AL$1)>0,(O98/INDEX($K98:$O98,1,aux!$AL$1))^(1/($O$3-INDEX($K$3:$O$3,1,aux!$AL$1)))-1,"n.d.") -> 0.0202440091 | AE98: =IF(INDEX($K98:$O98,1,aux!$AL$1)>0,(O98-INDEX($K98:$O98,1,aux!$AL$1))/INDEX($K98:$O98,1,aux!$AL$1),"n.d.") -> 0.08346830939 | AX98: 11
A99: 1103 | B99: Grumos, sêmolas, etc. de cereais | C99: 0 | D99: 0 | E99: 0 | F99: 0 | G99: 0 | H99: 0 | I99: 0 | J99: 0 | K99: 1.691 | L99: 0.474 | M99: 1.209 | N99: 0.489 | O99: 0.489 | P99: 0.8704 | Q99: 9.461685327e-06 | R99: 6.071009834e-06 | S99: 0.8704 | U99: =G99-INDEX($C99:$G99,1,aux!$AL$1) -> 0 | V99: 0 | W99: 0 | X99: =+IF(INDEX($C99:$G99,1,aux!$AL$1)>0,(G99/INDEX($C99:$G99,1,aux!$AL$1))^(1/($G$3-INDEX($C$3:$G$3,1,aux!$AL$1)))-1,"n.d.") -> n.d. | Y99: =IF(INDEX($C99:$G99,1,aux!$AL$1)>0,(G99-INDEX($C99:$G99,1,aux!$AL$1))/INDEX($C99:$G99,1,aux!$AL$1),"n.d.") -> n.d. | AA99: =O99-INDEX($K99:$O99,1,aux!$AL$1) -> -1.202 | AB99: -3.418765885e-05 | AC99: -2.359612063e-05 | AD99: =+IF(INDEX($K99:$O99,1,aux!$AL$1)>0,(O99/INDEX($K99:$O99,1,aux!$AL$1))^(1/($O$3-INDEX($K$3:$O$3,1,aux!$AL$1)))-1,"n.d.") -> -0.2666837433 | AE99: =IF(INDEX($K99:$O99,1,aux!$AL$1)>0,(O99-INDEX($K99:$O99,1,aux!$AL$1))/INDEX($K99:$O99,1,aux!$AL$1),"n.d.") -> -0.7108219988 | AX99: 11
A100: 1104 | B100: Grãos de cereais processados | C100: 0 | D100: 0 | E100: 0.01 | F100: 0 | G100: 0 | H100: 0.002 | I100: 6.67007374e-07 | J100: 4.433522806e-07 | K100: 3.481 | L100: 3.846 | M100: 12.06 | N100: 6.593 | O100: 6.63 | P100: 6.522 | Q100: 7.089741694e-05 | R100: 4.549072397e-05 | S100: 6.52 | U100: =G100-INDEX($C100:$G100,1,aux!$AL$1) -> 0 | V100: 0 | W100: 0 | X100: =+IF(INDEX($C100:$G100,1,aux!$AL$1)>0,(G100/INDEX($C100:$G100,1,aux!$AL$1))^(1/($G$3-INDEX($C$3:$G$3,1,aux!$AL$1)))-1,"n.d.") -> n.d. | Y100: =IF(INDEX($C100:$G100,1,aux!$AL$1)>0,(G100-INDEX($C100:$G100,1,aux!$AL$1))/INDEX($C100:$G100,1,aux!$AL$1),"n.d.") -> n.d. | AA100: =O100-INDEX($K100:$O100,1,aux!$AL$1) -> 3.149 | AB100: 8.956484002e-05 | AC100: 6.181712469e-05 | AD100: =+IF(INDEX($K100:$O100,1,aux!$AL$1)>0,(O100/INDEX($K100:$O100,1,aux!$AL$1))^(1/($O$3-INDEX($K$3:$O$3,1,aux!$AL$1)))-1,"n.d.") -> 0.1747687255 | AE100: =IF(INDEX($K100:$O100,1,aux!$AL$1)>0,(O100-INDEX($K100:$O100,1,aux!$AL$1))/INDEX($K100:$O100,1,aux!$AL$1),"n.d.") -> 0.9046251077 | AX100: 11
A101: 1105 | B101: Farinha, sêmola, etc. de batata | C101: 1.084 | D101: 1.152 | E101: 0.963 | F101: 0.818 | G101: 1.612 | H101: 1.1258 | I101: 0.0003754584508 | J101: 0.0002495629987 | K101: 0.155 | L101: 0.058 | M101: 0.277 | N101: 0.06 | O101: 0.071 | P101: 0.1242 | Q101: 1.350116404e-06 | R101: 8.662906956e-07 | S101: -1.0016 | U101: =G101-INDEX($C101:$G101,1,aux!$AL$1) -> 0.528 | V101: -0.0004418025544 | W101: -0.0003252841924 | X101: =+IF(INDEX($C101:$G101,1,aux!$AL$1)>0,(G101/INDEX($C101:$G101,1,aux!$AL$1))^(1/($G$3-INDEX($C$3:$G$3,1,aux!$AL$1)))-1,"n.d.") -> 0.1042920327 | Y101: =IF(INDEX($C101:$G101,1,aux!$AL$1)>0,(G101-INDEX($C101:$G101,1,aux!$AL$1))/INDEX($C101:$G101,1,aux!$AL$1),"n.d.") -> 0.4870848708 | AA101: =O101-INDEX($K101:$O101,1,aux!$AL$1) -> -0.084 | AB101: -2.389154196e-06 | AC101: -1.648980144e-06 | AD101: =+IF(INDEX($K101:$O101,1,aux!$AL$1)>0,(O101/INDEX($K101:$O101,1,aux!$AL$1))^(1/($O$3-INDEX($K$3:$O$3,1,aux!$AL$1)))-1,"n.d.") -> -0.17731863 | AE101: =IF(INDEX($K101:$O101,1,aux!$AL$1)>0,(O101-INDEX($K101:$O101,1,aux!$AL$1))/INDEX($K101:$O101,1,aux!$AL$1),"n.d.") -> -0.5419354839 | AX101: 11
A102: 1106 | B102: Farinhas, etc. de leguminosas e outros tubérculos | C102: 0 | D102: 0 | E102: 0 | F102: 0 | G102: 0 | H102: 0 | I102: 0 | J102: 0 | K102: 58.561 | L102: 59.507 | M102: 71.682 | N102: 51.154 | O102: 43.636 | P102: 56.908 | Q102: 0.0006186185531 | R102: 0.0003969313277 | S102: 56.908 | U102: =G102-INDEX($C102:$G102,1,aux!$AL$1) -> 0 | V102: 0 | W102: 0 | X102: =+IF(INDEX($C102:$G102,1,aux!$AL$1)>0,(G102/INDEX($C102:$G102,1,aux!$AL$1))^(1/($G$3-INDEX($C$3:$G$3,1,aux!$AL$1)))-1,"n.d.") -> n.d. | Y102: =IF(INDEX($C102:$G102,1,aux!$AL$1)>0,(G102-INDEX($C102:$G102,1,aux!$AL$1))/INDEX($C102:$G102,1,aux!$AL$1),"n.d.") -> n.d. | AA102: =O102-INDEX($K102:$O102,1,aux!$AL$1) -> -14.925 | AB102: -0.0004245015044 | AC102: -0.0002929884363 | AD102: =+IF(INDEX($K102:$O102,1,aux!$AL$1)>0,(O102/INDEX($K102:$O102,1,aux!$AL$1))^(1/($O$3-INDEX($K$3:$O$3,1,aux!$AL$1)))-1,"n.d.") -> -0.07090716216 | AE102: =IF(INDEX($K102:$O102,1,aux!$AL$1)>0,(O102-INDEX($K102:$O102,1,aux!$AL$1))/INDEX($K102:$O102,1,aux!$AL$1),"n.d.") -> -0.2548624511 | AX102: 11
A103: 1107 | B103: Malte, mesmo torrado | C103: 0 | D103: 0 | E103: 0 | F103: 0 | G103: 0 | H103: 0 | I103: 0 | J103: 0 | K103: 0 | L103: 0 | M103: 0.042 | N103: 0 | O103: 0 | P103: 0.0084 | Q103: 9.131222053e-08 | R103: 5.858970888e-08 | S103: 0.0084 | U103: =G103-INDEX($C103:$G103,1,aux!$AL$1) -> 0 | V103: 0 | W103: 0 | X103: =+IF(INDEX($C103:$G103,1,aux!$AL$1)>0,(G103/INDEX($C103:$G103,1,aux!$AL$1))^(1/($G$3-INDEX($C$3:$G$3,1,aux!$AL$1)))-1,"n.d.") -> n.d. | Y103: =IF(INDEX($C103:$G103,1,aux!$AL$1)>0,(G103-INDEX($C103:$G103,1,aux!$AL$1))/INDEX($C103:$G103,1,aux!$AL$1),"n.d.") -> n.d. | AA103: =O103-INDEX($K103:$O103,1,aux!$AL$1) -> 0 | AB103: 0 | AC103: 0 | AD103: =+IF(INDEX($K103:$O103,1,aux!$AL$1)>0,(O103/INDEX($K103:$O103,1,aux!$AL$1))^(1/($O$3-INDEX($K$3:$O$3,1,aux!$AL$1)))-1,"n.d.") -> n.d. | AE103: =IF(INDEX($K103:$O103,1,aux!$AL$1)>0,(O103-INDEX($K103:$O103,1,aux!$AL$1))/INDEX($K103:$O103,1,aux!$AL$1),"n.d.") -> n.d. | AX103: 11
A104: 1108 | B104: Amidos e féculas; inulina | C104: 0 | D104: 0 | E104: 0 | F104: 0 | G104: 0 | H104: 0 | I104: 0 | J104: 0 | K104: 61.692 | L104: 70.88 | M104: 86.564 | N104: 45.178 | O104: 48.117 | P104: 62.4862 | Q104: 0.0006792563898 | R104: 0.0004358390794 | S104: 62.4862 | U104: =G104-INDEX($C104:$G104,1,aux!$AL$1) -> 0 | V104: 0 | W104: 0 | X104: =+IF(INDEX($C104:$G104,1,aux!$AL$1)>0,(G104/INDEX($C104:$G104,1,aux!$AL$1))^(1/($G$3-INDEX($C$3:$G$3,1,aux!$AL$1)))-1,"n.d.") -> n.d. | Y104: =IF(INDEX($C104:$G104,1,aux!$AL$1)>0,(G104-INDEX($C104:$G104,1,aux!$AL$1))/INDEX($C104:$G104,1,aux!$AL$1),"n.d.") -> n.d. | AA104: =O104-INDEX($K104:$O104,1,aux!$AL$1) -> -13.575 | AB104: -0.0003861043834 | AC104: -0.0002664869697 | AD104: =+IF(INDEX($K104:$O104,1,aux!$AL$1)>0,(O104/INDEX($K104:$O104,1,aux!$AL$1))^(1/($O$3-INDEX($K$3:$O$3,1,aux!$AL$1)))-1,"n.d.") -> -0.06023898881 | AE104: =IF(INDEX($K104:$O104,1,aux!$AL$1)>0,(O104-INDEX($K104:$O104,1,aux!$AL$1))/INDEX($K104:$O104,1,aux!$AL$1),"n.d.") -> -0.2200447384 | AX104: 11
A105: 1109 | B105: Glúten de trigo, mesmo seco | C105: 0 | D105: 0 | E105: 0 | F105: 0 | G105: 0 | H105: 0 | I105: 0 | J105: 0 | K105: 0 | L105: 0 | M105: 0 | N105: 0 | O105: 0 | P105: 0 | Q105: 0 | R105: 0 | S105: 0 | U105: =G105-INDEX($C105:$G105,1,aux!$AL$1) -> 0 | V105: 0 | W105: 0 | X105: =+IF(INDEX($C105:$G105,1,aux!$AL$1)>0,(G105/INDEX($C105:$G105,1,aux!$AL$1))^(1/($G$3-INDEX($C$3:$G$3,1,aux!$AL$1)))-1,"n.d.") -> n.d. | Y105: =IF(INDEX($C105:$G105,1,aux!$AL$1)>0,(G105-INDEX($C105:$G105,1,aux!$AL$1))/INDEX($C105:$G105,1,aux!$AL$1),"n.d.") -> n.d. | AA105: =O105-INDEX($K105:$O105,1,aux!$AL$1) -> 0 | AB105: 0 | AC105: 0 | AD105: =+IF(INDEX($K105:$O105,1,aux!$AL$1)>0,(O105/INDEX($K105:$O105,1,aux!$AL$1))^(1/($O$3-INDEX($K$3:$O$3,1,aux!$AL$1)))-1,"n.d.") -> n.d. | AE105: =IF(INDEX($K105:$O105,1,aux!$AL$1)>0,(O105-INDEX($K105:$O105,1,aux!$AL$1))/INDEX($K105:$O105,1,aux!$AL$1),"n.d.") -> n.d. | AX105: 11
A106: 11SS | B106: Produtos da indústria de moagem e outros | C106: 0 | D106: 0 | E106: 0 | F106: 0 | G106: 0 | H106: 0 | I106: 0 | J106: 0 | K106: 0 | L106: 0 | M106: 0 | N106: 0 | O106: 0 | P106: 0 | Q106: 0 | R106: 0 | S106: 0 | U106: =G106-INDEX($C106:$G106,1,aux!$AL$1) -> 0 | V106: 0 | W106: 0 | X106: =+IF(INDEX($C106:$G106,1,aux!$AL$1)>0,(G106/INDEX($C106:$G106,1,aux!$AL$1))^(1/($G$3-INDEX($C$3:$G$3,1,aux!$AL$1)))-1,"n.d.") -> n.d. | Y106: =IF(INDEX($C106:$G106,1,aux!$AL$1)>0,(G106-INDEX($C106:$G106,1,aux!$AL$1))/INDEX($C106:$G106,1,aux!$AL$1),"n.d.") -> n.d. | AA106: =O106-INDEX($K106:$O106,1,aux!$AL$1) -> 0 | AB106: 0 | AC106: 0 | AD106: =+IF(INDEX($K106:$O106,1,aux!$AL$1)>0,(O106/INDEX($K106:$O106,1,aux!$AL$1))^(1/($O$3-INDEX($K$3:$O$3,1,aux!$AL$1)))-1,"n.d.") -> n.d. | AE106: =IF(INDEX($K106:$O106,1,aux!$AL$1)>0,(O106-INDEX($K106:$O106,1,aux!$AL$1))/INDEX($K106:$O106,1,aux!$AL$1),"n.d.") -> n.d. | AX106: 11
A107: 1201 | B107: Soja, mesmo triturada | C107: 0 | D107: 0 | E107: 0 | F107: 0 | G107: 0 | H107: 0 | I107: 0 | J107: 0 | K107: 0 | L107: 0.045 | M107: 0.049 | N107: 0.326 | O107: 1.311 | P107: 0.3462 | Q107: 3.763367946e-06 | R107: 2.414733002e-06 | S107: 0.3462 | U107: =G107-INDEX($C107:$G107,1,aux!$AL$1) -> 0 | V107: 0 | W107: 0 | X107: =+IF(INDEX($C107:$G107,1,aux!$AL$1)>0,(G107/INDEX($C107:$G107,1,aux!$AL$1))^(1/($G$3-INDEX($C$3:$G$3,1,aux!$AL$1)))-1,"n.d.") -> n.d. | Y107: =IF(INDEX($C107:$G107,1,aux!$AL$1)>0,(G107-INDEX($C107:$G107,1,aux!$AL$1))/INDEX($C107:$G107,1,aux!$AL$1),"n.d.") -> n.d. | AA107: =O107-INDEX($K107:$O107,1,aux!$AL$1) -> 1.311 | AB107: 3.728787084e-05 | AC107: 2.573586868e-05 | AD107: =+IF(INDEX($K107:$O107,1,aux!$AL$1)>0,(O107/INDEX($K107:$O107,1,aux!$AL$1))^(1/($O$3-INDEX($K$3:$O$3,1,aux!$AL$1)))-1,"n.d.") -> n.d. | AE107: =IF(INDEX($K107:$O107,1,aux!$AL$1)>0,(O107-INDEX($K107:$O107,1,aux!$AL$1))/INDEX($K107:$O107,1,aux!$AL$1),"n.d.") -> n.d. | AX107: 12
A108: 1202 | B108: Amendoins não torrados | C108: 0 | D108: 0 | E108: 0 | F108: 0 | G108: 0 | H108: 0 | I108: 0 | J108: 0 | K108: 0.108 | L108: 0.273 | M108: 0.245 | N108: 0.382 | O108: 0.54 | P108: 0.3096 | Q108: 3.365507557e-06 | R108: 2.15944927e-06 | S108: 0.3096 | U108: =G108-INDEX($C108:$G108,1,aux!$AL$1) -> 0 | V108: 0 | W108: 0 | X108: =+IF(INDEX($C108:$G108,1,aux!$AL$1)>0,(G108/INDEX($C108:$G108,1,aux!$AL$1))^(1/($G$3-INDEX($C$3:$G$3,1,aux!$AL$1)))-1,"n.d.") -> n.d. | Y108: =IF(INDEX($C108:$G108,1,aux!$AL$1)>0,(G108-INDEX($C108:$G108,1,aux!$AL$1))/INDEX($C108:$G108,1,aux!$AL$1),"n.d.") -> n.d. | AA108: =O108-INDEX($K108:$O108,1,aux!$AL$1) -> 0.432 | AB108: 1.228707872e-05 | AC108: 8.480469312e-06 | AD108: =+IF(INDEX($K108:$O108,1,aux!$AL$1)>0,(O108/INDEX($K108:$O108,1,aux!$AL$1))^(1/($O$3-INDEX($K$3:$O$3,1,aux!$AL$1)))-1,"n.d.") -> 0.4953487812 | AE108: =IF(INDEX($K108:$O108,1,aux!$AL$1)>0,(O108-INDEX($K108:$O108,1,aux!$AL$1))/INDEX($K108:$O108,1,aux!$AL$1),"n.d.") -> 4 | AX108: 12
A109: 1203 | B109: Copra | C109: 0 | D109: 0 | E109: 0 | F109: 0 | G109: 0 | H109: 0 | I109: 0 | J109: 0 | K109: 0 | L109: 0 | M109: 0 | N109: 0 | O109: 0 | P109: 0 | Q109: 0 | R109: 0 | S109: 0 | U109: =G109-INDEX($C109:$G109,1,aux!$AL$1) -> 0 | V109: 0 | W109: 0 | X109: =+IF(INDEX($C109:$G109,1,aux!$AL$1)>0,(G109/INDEX($C109:$G109,1,aux!$AL$1))^(1/($G$3-INDEX($C$3:$G$3,1,aux!$AL$1)))-1,"n.d.") -> n.d. | Y109: =IF(INDEX($C109:$G109,1,aux!$AL$1)>0,(G109-INDEX($C109:$G109,1,aux!$AL$1))/INDEX($C109:$G109,1,aux!$AL$1),"n.d.") -> n.d. | AA109: =O109-INDEX($K109:$O109,1,aux!$AL$1) -> 0 | AB109: 0 | AC109: 0 | AD109: =+IF(INDEX($K109:$O109,1,aux!$AL$1)>0,(O109/INDEX($K109:$O109,1,aux!$AL$1))^(1/($O$3-INDEX($K$3:$O$3,1,aux!$AL$1)))-1,"n.d.") -> n.d. | AE109: =IF(INDEX($K109:$O109,1,aux!$AL$1)>0,(O109-INDEX($K109:$O109,1,aux!$AL$1))/INDEX($K109:$O109,1,aux!$AL$1),"n.d.") -> n.d. | AX109: 12
A110: 1204 | B110: Sementes de linho (linhaça) | C110: 0 | D110: 0 | E110: 0 | F110: 0.004 | G110: 0 | H110: 0.0008 | I110: 2.668029496e-07 | J110: 1.773409122e-07 | K110: 0 | L110: 0.303 | M110: 1.812 | N110: 1.679 | O110: 1.027 | P110: 0.9642 | Q110: 1.048133846e-05 | R110: 6.725261584e-06 | S110: 0.9634 | U110: =G110-INDEX($C110:$G110,1,aux!$AL$1) -> 0 | V110: 0 | W110: 0 | X110: =+IF(INDEX($C110:$G110,1,aux!$AL$1)>0,(G110/INDEX($C110:$G110,1,aux!$AL$1))^(1/($G$3-INDEX($C$3:$G$3,1,aux!$AL$1)))-1,"n.d.") -> n.d. | Y110: =IF(INDEX($C110:$G110,1,aux!$AL$1)>0,(G110-INDEX($C110:$G110,1,aux!$AL$1))/INDEX($C110:$G110,1,aux!$AL$1),"n.d.") -> n.d. | AA110: =O110-INDEX($K110:$O110,1,aux!$AL$1) -> 1.027 | AB110: 2.921025427e-05 | AC110: 2.016074533e-05 | AD110: =+IF(INDEX($K110:$O110,1,aux!$AL$1)>0,(O110/INDEX($K110:$O110,1,aux!$AL$1))^(1/($O$3-INDEX($K$3:$O$3,1,aux!$AL$1)))-1,"n.d.") -> n.d. | AE110: =IF(INDEX($K110:$O110,1,aux!$AL$1)>0,(O110-INDEX($K110:$O110,1,aux!$AL$1))/INDEX($K110:$O110,1,aux!$AL$1),"n.d.") -> n.d. | AX110: 12
A111: 1205 | B111: Sementes de nabo silvestre ou de colza | C111: 0 | D111: 0 | E111: 0 | F111: 0 | G111: 0 | H111: 0 | I111: 0 | J111: 0 | K111: 0 | L111: 0 | M111: 0 | N111: 0 | O111: 0 | P111: 0 | Q111: 0 | R111: 0 | S111: 0 | U111: =G111-INDEX($C111:$G111,1,aux!$AL$1) -> 0 | V111: 0 | W111: 0 | X111: =+IF(INDEX($C111:$G111,1,aux!$AL$1)>0,(G111/INDEX($C111:$G111,1,aux!$AL$1))^(1/($G$3-INDEX($C$3:$G$3,1,aux!$AL$1)))-1,"n.d.") -> n.d. | Y111: =IF(INDEX($C111:$G111,1,aux!$AL$1)>0,(G111-INDEX($C111:$G111,1,aux!$AL$1))/INDEX($C111:$G111,1,aux!$AL$1),"n.d.") -> n.d. | AA111: =O111-INDEX($K111:$O111,1,aux!$AL$1) -> 0 | AB111: 0 | AC111: 0 | AD111: =+IF(INDEX($K111:$O111,1,aux!$AL$1)>0,(O111/INDEX($K111:$O111,1,aux!$AL$1))^(1/($O$3-INDEX($K$3:$O$3,1,aux!$AL$1)))-1,"n.d.") -> n.d. | AE111: =IF(INDEX($K111:$O111,1,aux!$AL$1)>0,(O111-INDEX($K111:$O111,1,aux!$AL$1))/INDEX($K111:$O111,1,aux!$AL$1),"n.d.") -> n.d. | AX111: 12
A112: 1206 | B112: Sementes de girassol | C112: 0 | D112: 0 | E112: 0 | F112: 0 | G112: 0 | H112: 0 | I112: 0 | J112: 0 | K112: 0.165 | L112: 0.451 | M112: 0.251 | N112: 0.059 | O112: 34.168 | P112: 7.0188 | Q112: 7.629788255e-05 | R112: 4.895588675e-05 | S112: 7.0188 | U112: =G112-INDEX($C112:$G112,1,aux!$AL$1) -> 0 | V112: 0 | W112: 0 | X112: =+IF(INDEX($C112:$G112,1,aux!$AL$1)>0,(G112/INDEX($C112:$G112,1,aux!$AL$1))^(1/($G$3-INDEX($C$3:$G$3,1,aux!$AL$1)))-1,"n.d.") -> n.d. | Y112: =IF(INDEX($C112:$G112,1,aux!$AL$1)>0,(G112-INDEX($C112:$G112,1,aux!$AL$1))/INDEX($C112:$G112,1,aux!$AL$1),"n.d.") -> n.d. | AA112: =O112-INDEX($K112:$O112,1,aux!$AL$1) -> 34.003 | AB112: 0.0009671239299 | AC112: 0.0006675032362 | AD112: =+IF(INDEX($K112:$O112,1,aux!$AL$1)>0,(O112/INDEX($K112:$O112,1,aux!$AL$1))^(1/($O$3-INDEX($K$3:$O$3,1,aux!$AL$1)))-1,"n.d.") -> 2.793445977 | AE112: =IF(INDEX($K112:$O112,1,aux!$AL$1)>0,(O112-INDEX($K112:$O112,1,aux!$AL$1))/INDEX($K112:$O112,1,aux!$AL$1),"n.d.") -> 206.0787879 | AX112: 12
A113: 1207 | B113: Sementes e frutos oleaginosos | C113: 0 | D113: 0 | E113: 0.009 | F113: 0 | G113: 0.04 | H113: 0.0098 | I113: 3.268336133e-06 | J113: 2.172426175e-06 | K113: 12.793 | L113: 1.038 | M113: 2.393 | N113: 2.152 | O113: 4.979 | P113: 4.671 | Q113: 5.077611691e-05 | R113: 3.258006312e-05 | S113: 4.6612 | U113: =G113-INDEX($C113:$G113,1,aux!$AL$1) -> 0.04 | V113: -3.346989049e-05 | W113: -2.464274185e-05 | X113: =+IF(INDEX($C113:$G113,1,aux!$AL$1)>0,(G113/INDEX($C113:$G113,1,aux!$AL$1))^(1/($G$3-INDEX($C$3:$G$3,1,aux!$AL$1)))-1,"n.d.") -> n.d. | Y113: =IF(INDEX($C113:$G113,1,aux!$AL$1)>0,(G113-INDEX($C113:$G113,1,aux!$AL$1))/INDEX($C113:$G113,1,aux!$AL$1),"n.d.") -> n.d. | AA113: =O113-INDEX($K113:$O113,1,aux!$AL$1) -> -7.814 | AB113: -0.0002222482248 | AC113: -0.0001533944148 | AD113: =+IF(INDEX($K113:$O113,1,aux!$AL$1)>0,(O113/INDEX($K113:$O113,1,aux!$AL$1))^(1/($O$3-INDEX($K$3:$O$3,1,aux!$AL$1)))-1,"n.d.") -> -0.2101539845 | AE113: =IF(INDEX($K113:$O113,1,aux!$AL$1)>0,(O113-INDEX($K113:$O113,1,aux!$AL$1))/INDEX($K113:$O113,1,aux!$AL$1),"n.d.") -> -0.6108027828 | AX113: 12
